Workbook

Sheet Terv-segédlet
A1: 2016 | B1: ="A Vadosfai Evangélikus Egyházközség "&A1&". évi költségvetése" -> A Vadosfai Evangélikus Egyházközség 2016. évi költségvetése | L1: =L4+L30 -> 441175.0588
A2: =DATEVALUE(A1&".12.31") -> 42735 | E2: Vadosfa | F2: Gyóró | G2: Kisfalud | H2: Magyarkeresztúr | I2: Mihályi | J2: Potyond | K2: Zsebeháza
E3: =KvZsz!U223 -> -5085434.941 | F3: =KvZsz!V223 -> 328740 | G3: =KvZsz!W223 -> 729810 | H3: =KvZsz!X223 -> 2306430 | I3: =KvZsz!Y223 -> 1564630 | J3: =KvZsz!Z223 -> 246500 | K3: =KvZsz!AA223 -> 350500
A4: Bevételek | E4: =KvZsz!U10 -> 594000 | F4: =KvZsz!V10 -> 374000 | G4: =KvZsz!W10 -> 861500 | H4: =KvZsz!X10 -> 7559000 | I4: =KvZsz!Y10 -> 2366000 | J4: =KvZsz!Z10 -> 276500 | K4: =KvZsz!AA10 -> 496500 | L4: =SUM(L5:L29) -> 12527500
B6: k004 | C6: ingatlan bérbeadás Ft/év | F6: =F7*12 -> 180000 | H6: =H7*12 -> 180000 | I6: =I7*12 -> 480000 | L6: =SUM(E6:K6) -> 840000
C7: lakbér Ft/hó | F7: 15000 | H7: 15000 | I7: 40000
B8: k004 | C8: földbérlet | E8: 37000 | H8: 10000 | I8: 6000 | L8: =SUM(E8:K8) -> 53000
C9: bevétel pályázatból
B10: k020 | C10: EMMI pályázat | H10: 5000000 | L10: 5000000
C11: egyházi beruházási támogatás
B12: k029 | C12: ehm.-i építési támogatás | H12: 1000000 | L12: 1000000
B13: k029 | C13: GAS póttámogatás | L13: 0
B14: k041 | C14: Önkormányzati támogatás | L14: 0
B15: k049 | C15: egyházfenntartás | E15: 297000 | F15: 168000 | G15: 670000 | H15: 469000 | I15: 1300000 | J15: 220000 | K15: 436000 | L15: 3560000
B16: k050 | C16: adomány | E16: 20000 | G16: 10000 | H16: 30000 | I16: 50000 | L16: 110000
B17: k051 | C17: perselypénz | E17: 150000 | F17: 20000 | G17: 120000 | H17: 300000 | I17: 400000 | J17: 50000 | K17: 50000 | L17: 1090000
B18: k052 | C18: céladomány | H18: 500000 | L18: 500000
B19: k054 | C19: továbbítandó (offertórium, GAS, szuppl.) | E19: =SUM(E21:E23) -> 80000 | F19: =SUM(F21:F23) -> 5000 | G19: 60000 | H19: =SUM(H21:H23) -> 60000 | I19: 120000 | J19: 5000 | K19: 8000 | L19: 338000
C20: köt. off. alkalom | E20: 4 | F20: 2 | G20: 4 | H20: 4 | I20: 8 | J20: 2 | K20: 3
C21: köt. off. - Ft | E21: 20000 | F21: 5000 | G21: 60000 | H21: 60000 | I21: 120000 | J21: 5000 | K21: 8000
C22: szupplikáció - Ft | E22: 40000 | F22: 0 | G22: 0 | H22: 0 | I22: 0 | J22: 0 | K22: 0
C23: GAS - Ft | E23: 20000
B24: k057 | C24: Kamatok | E24: =ROUND(E25*E26,0) -> 10000 | F24: =ROUND(F25*F26,0) -> 1000 | G24: 1500 | H24: 10000 | I24: 10000 | J24: 1500 | K24: 2500 | L24: 36500
C25: betét - Ft | E25: 2000000 | F25: 200000 | G25: 300000 | H25: 2000000 | I25: 2000000 | J25: 300000 | K25: 500000
C26: kamat % | E26: 0.005 | F26: 0.005 | G26: 0.005 | H26: 0.005 | I26: 0.005 | J26: 0.005 | K26: 0.005
A30: Kiadások | E30: =KvZsz!U220 -> 5679434.941 | F30: =KvZsz!V220 -> 45260 | G30: =KvZsz!W220 -> 131690 | H30: =KvZsz!X220 -> 5252570 | I30: =KvZsz!Y220 -> 801370 | J30: =KvZsz!Z220 -> 30000 | K30: =KvZsz!AA220 -> 146000 | L30: =-SUM(L31:L99) -> -12086324.94
C32: Gáz
B33: k071 | C33: Lakás | E33: 150000 | L33: 150000
B34: k073 | C34: Templom | E34: - | F34: - | G34: - | H34: - | I34: 140000 | J34: 20000 | K34: 5000 | L34: 165000
C35: Villany
B36: k075 | C36: Lakás | E36: 22000 | F36: - | G36: - | H36: - | I36: - | J36: - | K36: - | L36: 22000
B37: k077 | C37: Templom | E37: 14000 | F37: 4000 | G37: 30000 | H37: 18000 | I37: 15000 | J37: 4000 | K37: 2000 | L37: 87000
C38: Víz
B39: k079 | C39: Lakás | E39: 10000 | F39: - | G39: - | H39: - | I39: - | J39: - | K39: - | L39: 10000
B40: k081 | C40: Templom | F40: - | G40: 1000 | H40: 20000 | I40: 2000 | J40: - | K40: - | L40: 23000
B41: k084 | C41: Irodaszer | E41: 50000 | L41: 50000
C42: Karbantartás - anyag
B43: k086 | C43: Lakás | E43: 50000 | L43: 50000
B44: k092 | C44: Benzin | E44: =ROUND(F45*G45*H45,0) -> 268800 | L44: 268800
F45: 320 | G45: 12000 | H45: 0.07
C46: Szakkönyv
B47: k094 | L47: 0
B48: k094 | E48: 5000 | L48: 5000
B49: k095 | C49: Tisztítószerek | E49: 5000 | L49: 5000
C50: Karbantartás
B51: k106 | C51: lakás | E51: 20000 | L51: 20000
B52: k108 | C52: templom, gyül. épület | L52: 0
B53: k108 | C53: káplánszoba belső felújítás | E53: 1000000 | L53: 1000000
B54: k108 | C54: templomfelújítás | H54: 5000000 | L54: 5000000
B55: k108 | C55: esőcsatorna készítés | K55: 130000 | L55: 130000
B56: k108 | C56: térburkolat készítése | I56: 450000 | L56: 450000
B57: k109 | C57: gk. | E57: 150000 | L57: 150000
B58: k115 | C58: Postaköltség | E58: 10000 | L58: 10000
C59: Szaklapok
B60: k116 | C60: Lelkipásztor előfizetés | E60: 10800 | L60: 10800
B61: k116 | C61: Ev.Élet 10 pld. Előfizetés | E61: =14300*10 -> 143000 | L61: 143000
B62: k121 | C62: Bankköltség | E62: 15000 | F62: 1000 | G62: 1000 | H62: 10000 | I62: 1000 | J62: 1000 | K62: 1000 | L62: 30000
C63: Biztosítás
B64: k123 | C64: épület | E64: 109240 | F64: 21260 | G64: 15690 | H64: 18570 | I64: 26370 | L64: 191130
B65: k123 | C65: épület (Potyondtól és Zsebeházától átvállalva) | E65: =J66+K66 -> 12180 | L65: 12180
J66: 6100 | K66: 6080
B67: k124 | C67: gk. GFB | E67: 27000 | L67: 27000
B68: k124 | C68: gk. CASCO | E68: 40000 | L68: 40000
B69: k133 | C69: Lelkészi illetmény Ft/év bttó | E69: =E71*12 -> 2596932 | L69: 2596932
B70: k133 | C70: rezsitérítés Ft/év bttó | E70: =E72*12 -> 282352.9412 | L70: 282352.9412
C71: illetmény Ft/hó bttó/nettó | E71: 216411 | F71: =E71*0.85 -> 183949.35
C72: rezsitérítés Ft/hó bttó/nettó | E72: =20000*100/85 -> 23529.41176 | F72: =E72*0.85 -> 20000 | N72: =111000/2*100/85 -> 65294.11765
C73: összes illetmény Ft/hó bttó/nettó | E73: =SUM(E71:E72) -> 239940.4118 | F73: =SUM(F71:F72) -> 203949.35
B74: k115 | C74: mobil telefon előfizetés | E74: =E75*12 -> 30000 | L74: =SUM(E74:K74) -> 30000
C75: mobil telefon előfizetés Ft/hó | E75: 2500
B76: k115 | C76: internet előfizetés | E76: =E77*12 -> 42240 | L76: =SUM(E76:K76) -> 42240
C77: internet előfizetés Ft/hó | E77: 3520
C78: Nemlelkészi illetmény (Ft)
C79: kántorizálások száma | E79: 37 | F79: 14 | G79: 24 | H79: 26 | I79: 47 | J79: 16 | K79: 15
C80: Ft/alkalom | E80: 1000
B81: k135 | C81: Ft összesen | E81: =E79*E80 -> 37000 | F81: =F79*E80 -> 14000 | G81: =G79*E80 -> 24000 | H81: =H79*E80 -> 26000 | I81: =I79*E80 -> 47000 | L81: =SUM(E81:K81) -> 148000
B82: k135 | C82: Potyondtól és Zsebeházától átvállalva | E82: =SUM(J83:K83) -> 31000 | L82: 31000
J83: =J79*E80 -> 16000 | K83: =K79*E80 -> 15000
C84: takarítások száma | E84: 18
C85: Ft/alkalom | E85: 4000
C86: Ft/hó
B87: k135 | C87: takarítások Ft összesen | E87: =E84*E85 -> 72000 | I87: =I86*I84 -> 0 | L87: 72000
B88: k146 | C88: Vendéglátás | E88: =SUM(E89:E90) -> 0 | F88: 0 | G88: 0 | H88: 100000 | I88: 0 | J88: 0 | K88: 0 | L88: 100000
C89: könyvbemutató - ebédeltetés | H89: 50000
C90: hálaadó istentisztelet - szeretetvendégség | H90: 50000
B91: k159 | C91: ZP Szolidaritási Alap | E91: =ROUND(209000*110%*110%,0) -> 252890 | L91: 252890
B92: k170 | C92: Egyházmegyei járulék | E92: 131000 | L92: 131000
B93: k172 | C93: Táborfenntartás | E93: 12000 | L93: 12000
B94: k183 | C94: Továbbítandók | E94: =E19 -> 80000 | F94: 5000 | G94: 60000 | H94: 60000 | I94: 120000 | J94: 5000 | K94: 8000 | L94: 338000
C95: Beszerzés 100eFt alatti
L96: 0
A99: Pénzmozgást nem jelentő tételek
B100: xk066 | E100: =E106-E91 -> 179003
B101: xk067 | C101: ZP Szolidaritási Alap támogatás | E101: 254710
B102: xk197 | E102: =E100 -> 179003
B103: xk198 | C103: ZP Szolidaritási Alap támogatás | E103: =E101 -> 254710
A105: Átfutó tételek
B106: p004 | C106: Lelkészi nyugdíjjárulék | E106: =ROUND(SUM(E69:E70)*15%,0) -> 431893
B107: p007 | C107: Leányegyháztól anyaegyháznak | E107: =SUM(F110:K110) -> 3263000
B108: p007 | C108: Másik egyházközségi résztől
B109: p016 | C109: Lelkészi nyugdíjjárulék | E109: =E106 -> 431893
B110: p019 | C110: Anyaegyháznak leányegyháztól | F110: =F15 -> 168000 | G110: 670000 | H110: 469000 | I110: 1300000 | J110: 220000 | K110: 436000
B111: p019 | C111: Másik egyházközségi résznek
B112: p025 | C112: Beruházás (=k215)
A114: Értékcsökkenés
B115: k204 | C115: 100eFt alatti tárgyak értékcsökkenése | L115: =SUM(E115:K115) -> 0
B116: k206 | C116: Ingatlanok értékcsökkenése | L116: 0
A118: Pénzeszköz
B120: Tanévzáró + Mk-i évforduló
B121: Kirándulás
B122: Föld sója találkozó
B123: Havi illetményt tárgyhó 25-én fizetni + járulékokat is utalni (ne legyen következő évre átnyúlás)
B124: Gk. igénylés?
B125: Missziói pályázat - kirándulás tám.
E126: gáz | F126: 1700-2000m3/év | H126: 220000
E127: víz | F127: 5m3/hó | G127: =5*12 -> 60 | H127: =520*1.27*G127 -> 39624
E128: villany | F128: 130kWh/hó | G128: =12*130 -> 1560 | H128: 63000
E129: kéményseprés | F129: ?

Sheet KvZsz
B1: Egyházközség neve:
B3: ="Költségvetés és annak teljesítése - "&'Terv-segédlet'!A1 -> Költségvetés és annak teljesítése - 2016
B7: Sor-szám | D7: A tétel megnevezése | T7: Kv összes | U7: Kv | V7: Kv | W7: Kv | X7: Kv | Y7: Kv | Z7: Kv | AA7: Kv | AB7: Zsz összes | AC7: Zsz | AD7: Zsz | AE7: Zsz | AF7: Zsz | AG7: Zsz | AH7: Zsz | AI7: Zsz | AM7: Megjegyzés (példa jellegű, nem teljes felsorolás)
B9: a | D9: b | U9: V | V9: Gy | W9: K | X9: Mk | Y9: M | Z9: P | AA9: Zs | AC9: V | AD9: Gy | AE9: K | AF9: Mk | AG9: M | AH9: P | AI9: Zs | AL9: =(TODAY()-DATEVALUE('Terv-segédlet'!A1&".01.01"))/IF(MOD('Terv-segédlet'!A1,4)=0,366,365) -> 0.1584699454 | AM9: h
A10: k001 | B10: 1 | D10: I. Pénzügyileg rendezett bevételek (2+14+55) | T10: =T11+T23+T64 -> 12527500 | U10: =U11+U23+U64 -> 594000 | V10: =V11+V23+V64 -> 374000 | W10: =W11+W23+W64 -> 861500 | X10: =X11+X23+X64 -> 7559000 | Y10: =Y11+Y23+Y64 -> 2366000 | Z10: =Z11+Z23+Z64 -> 276500 | AA10: =AA11+AA23+AA64 -> 496500 | AB10: =AB11+AB23+AB64 -> 119302 | AC10: =AC11+AC23+AC64 -> 2985 | AD10: =AD11+AD23+AD64 -> 16 | AE10: 324 | AF10: 31200 | AG10: 84166 | AH10: 58 | AI10: 553 | AK10: b | AL10: =IF(AND(OR(T10<>0,AB10<>0),T10<>0),ABS(AB10/T10),"") -> 0.00952320894
A11: k002 | B11: 2 | D11: 1. Értékesítés nettó árbevétele (3+10+11+13) | T11: =+T12+T19+T20+T22 -> 893000 | U11: =+U12+U19+U20+U22 -> 37000 | V11: =+V12+V19+V20+V22 -> 180000 | W11: =+W12+W19+W20+W22 -> 0 | X11: =+X12+X19+X20+X22 -> 190000 | Y11: =+Y12+Y19+Y20+Y22 -> 486000 | Z11: =+Z12+Z19+Z20+Z22 -> 0 | AA11: =+AA12+AA19+AA20+AA22 -> 0 | AB11: =+AB12+AB19+AB20+AB22 -> 60000 | AC11: =+AC12+AC19+AC20+AC22 -> 0 | AD11: =+AD12+AD19+AD20+AD22 -> 0 | AE11: 0 | AF11: 20000 | AG11: 40000 | AH11: 0 | AI11: 0 | AK11: b | AL11: =IF(AND(OR(T11<>0,AB11<>0),T11<>0),ABS(AB11/T11),"") -> 0.06718924972 | AM11: 91..94
A12: k003 | B12: 3 | D12: i) Alaptevékenység általános jellegű árbevétele (4..9) | T12: =SUM(T13:T18) -> 893000 | U12: =SUM(U13:U18) -> 37000 | V12: =SUM(V13:V18) -> 180000 | W12: =SUM(W13:W18) -> 0 | X12: =SUM(X13:X18) -> 190000 | Y12: =SUM(Y13:Y18) -> 486000 | Z12: =SUM(Z13:Z18) -> 0 | AA12: =SUM(AA13:AA18) -> 0 | AB12: =SUM(AB13:AB18) -> 60000 | AC12: =SUM(AC13:AC18) -> 0 | AD12: =SUM(AD13:AD18) -> 0 | AE12: 0 | AF12: 20000 | AG12: 40000 | AH12: 0 | AI12: 0 | AK12: b | AL12: 0.06718924972
A13: k004 | B13: 4 | D13: Ingatlan bérbeadás árbevétele | T13: =SUM(U13:AA13) -> 893000 | U13: =SUMIF('Terv-segédlet'!$B:$B,$A13,'Terv-segédlet'!E:E) -> 37000 | V13: =SUMIF('Terv-segédlet'!$B:$B,$A13,'Terv-segédlet'!F:F) -> 180000 | W13: =SUMIF('Terv-segédlet'!$B:$B,$A13,'Terv-segédlet'!G:G) -> 0 | X13: =SUMIF('Terv-segédlet'!$B:$B,$A13,'Terv-segédlet'!H:H) -> 190000 | Y13: =SUMIF('Terv-segédlet'!$B:$B,$A13,'Terv-segédlet'!I:I) -> 486000 | Z13: =SUMIF('Terv-segédlet'!$B:$B,$A13,'Terv-segédlet'!J:J) -> 0 | AA13: =SUMIF('Terv-segédlet'!$B:$B,$A13,'Terv-segédlet'!K:K) -> 0 | AB13: =SUM(AC13:AI13) -> 60000 | AC13: =SUMIF(V!$A:$A,$A13,V!$K:$K)+SUMIF(bank!$A:$A,AC$9&$A13,bank!$M:$M) -> 0 | AD13: =SUMIF(Gy!$A:$A,$A13,Gy!$K:$K)+SUMIF(bank!$A:$A,AD$9&$A13,bank!$M:$M) -> 0 | AE13: =SUMIF(K!$A:$A,$A13,K!$K:$K)+SUMIF(bank!$A:$A,AE$9&$A13,bank!$M:$M) -> 0 | AF13: =SUMIF(Mk!$A:$A,$A13,Mk!$K:$K)+SUMIF(bank!$A:$A,AF$9&$A13,bank!$M:$M) -> 20000 | AG13: =SUMIF(M!$A:$A,$A13,M!$K:$K)+SUMIF(bank!$A:$A,AG$9&$A13,bank!$M:$M) -> 40000 | AH13: =SUMIF(P!$A:$A,$A13,P!$K:$K)+SUMIF(bank!$A:$A,AH$9&$A13,bank!$M:$M) -> 0 | AI13: =SUMIF(Zs!$A:$A,$A13,Zs!$K:$K)+SUMIF(bank!$A:$A,AI$9&$A13,bank!$M:$M) -> 0 | AJ13: * | AK13: b | AL13: 0.06718924972 | AM13: részleges ingatlan bérbeadás (lakás, egyéb ingatlan, földterület, stb.) (nem vállalkozási tevékenység)
A14: k005 | B14: 5 | D14: Egyéb bérleti díjak árbevétele | E14: Egyéb bérleti díjak árbevétele | F14: Egyéb bérleti díjak árbevétele | G14: Egyéb bérleti díjak árbevétele | H14: Egyéb bérleti díjak árbevétele | I14: Egyéb bérleti díjak árbevétele | J14: Egyéb bérleti díjak árbevétele | K14: Egyéb bérleti díjak árbevétele | L14: Egyéb bérleti díjak árbevétele | M14: Egyéb bérleti díjak árbevétele | N14: Egyéb bérleti díjak árbevétele | O14: Egyéb bérleti díjak árbevétele | P14: Egyéb bérleti díjak árbevétele | Q14: Egyéb bérleti díjak árbevétele | R14: Egyéb bérleti díjak árbevétele | S14: Egyéb bérleti díjak árbevétele | T14: =SUM(U14:AA14) -> 0 | U14: =SUMIF('Terv-segédlet'!$B:$B,$A14,'Terv-segédlet'!E:E) -> 0 | V14: =SUMIF('Terv-segédlet'!$B:$B,$A14,'Terv-segédlet'!F:F) -> 0 | W14: =SUMIF('Terv-segédlet'!$B:$B,$A14,'Terv-segédlet'!G:G) -> 0 | X14: =SUMIF('Terv-segédlet'!$B:$B,$A14,'Terv-segédlet'!H:H) -> 0 | Y14: =SUMIF('Terv-segédlet'!$B:$B,$A14,'Terv-segédlet'!I:I) -> 0 | Z14: =SUMIF('Terv-segédlet'!$B:$B,$A14,'Terv-segédlet'!J:J) -> 0 | AA14: =SUMIF('Terv-segédlet'!$B:$B,$A14,'Terv-segédlet'!K:K) -> 0 | AB14: =SUM(AC14:AI14) -> 0 | AC14: =SUMIF(V!$A:$A,$A14,V!$K:$K)+SUMIF(bank!$A:$A,AC$9&$A14,bank!$M:$M) -> 0 | AD14: =SUMIF(Gy!$A:$A,$A14,Gy!$K:$K)+SUMIF(bank!$A:$A,AD$9&$A14,bank!$M:$M) -> 0 | AE14: =SUMIF(K!$A:$A,$A14,K!$K:$K)+SUMIF(bank!$A:$A,AE$9&$A14,bank!$M:$M) -> 0 | AF14: =SUMIF(Mk!$A:$A,$A14,Mk!$K:$K)+SUMIF(bank!$A:$A,AF$9&$A14,bank!$M:$M) -> 0 | AG14: =SUMIF(M!$A:$A,$A14,M!$K:$K)+SUMIF(bank!$A:$A,AG$9&$A14,bank!$M:$M) -> 0 | AH14: =SUMIF(P!$A:$A,$A14,P!$K:$K)+SUMIF(bank!$A:$A,AH$9&$A14,bank!$M:$M) -> 0 | AI14: =SUMIF(Zs!$A:$A,$A14,Zs!$K:$K)+SUMIF(bank!$A:$A,AI$9&$A14,bank!$M:$M) -> 0 | AJ14: * | AK14: b | AM14: pl: eszköz bérbeadás
A15: k006 | B15: 6 | D15: Temető árbevétele | E15: Temető árbevétele | F15: Temető árbevétele | G15: Temető árbevétele | H15: Temető árbevétele | I15: Temető árbevétele | J15: Temető árbevétele | K15: Temető árbevétele | L15: Temető árbevétele | M15: Temető árbevétele | N15: Temető árbevétele | O15: Temető árbevétele | P15: Temető árbevétele | Q15: Temető árbevétele | R15: Temető árbevétele | S15: Temető árbevétele | T15: 0 | U15: =SUMIF('Terv-segédlet'!$B:$B,$A15,'Terv-segédlet'!E:E) -> 0 | V15: =SUMIF('Terv-segédlet'!$B:$B,$A15,'Terv-segédlet'!F:F) -> 0 | W15: =SUMIF('Terv-segédlet'!$B:$B,$A15,'Terv-segédlet'!G:G) -> 0 | X15: =SUMIF('Terv-segédlet'!$B:$B,$A15,'Terv-segédlet'!H:H) -> 0 | Y15: =SUMIF('Terv-segédlet'!$B:$B,$A15,'Terv-segédlet'!I:I) -> 0 | Z15: =SUMIF('Terv-segédlet'!$B:$B,$A15,'Terv-segédlet'!J:J) -> 0 | AA15: =SUMIF('Terv-segédlet'!$B:$B,$A15,'Terv-segédlet'!K:K) -> 0 | AB15: 0 | AC15: =SUMIF(V!$A:$A,$A15,V!$K:$K)+SUMIF(bank!$A:$A,AC$9&$A15,bank!$M:$M) -> 0 | AD15: =SUMIF(Gy!$A:$A,$A15,Gy!$K:$K)+SUMIF(bank!$A:$A,AD$9&$A15,bank!$M:$M) -> 0 | AE15: =SUMIF(K!$A:$A,$A15,K!$K:$K)+SUMIF(bank!$A:$A,AE$9&$A15,bank!$M:$M) -> 0 | AF15: =SUMIF(Mk!$A:$A,$A15,Mk!$K:$K)+SUMIF(bank!$A:$A,AF$9&$A15,bank!$M:$M) -> 0 | AG15: =SUMIF(M!$A:$A,$A15,M!$K:$K)+SUMIF(bank!$A:$A,AG$9&$A15,bank!$M:$M) -> 0 | AH15: =SUMIF(P!$A:$A,$A15,P!$K:$K)+SUMIF(bank!$A:$A,AH$9&$A15,bank!$M:$M) -> 0 | AI15: =SUMIF(Zs!$A:$A,$A15,Zs!$K:$K)+SUMIF(bank!$A:$A,AI$9&$A15,bank!$M:$M) -> 0 | AJ15: * | AK15: b | AM15: sírhely, urnahely megváltás, temetési szolgáltatás
A16: k007 | B16: 7 | D16: Iratterjesztés árbevétele | E16: Iratterjesztés árbevétele | F16: Iratterjesztés árbevétele | G16: Iratterjesztés árbevétele | H16: Iratterjesztés árbevétele | I16: Iratterjesztés árbevétele | J16: Iratterjesztés árbevétele | K16: Iratterjesztés árbevétele | L16: Iratterjesztés árbevétele | M16: Iratterjesztés árbevétele | N16: Iratterjesztés árbevétele | O16: Iratterjesztés árbevétele | P16: Iratterjesztés árbevétele | Q16: Iratterjesztés árbevétele | R16: Iratterjesztés árbevétele | S16: Iratterjesztés árbevétele | T16: 0 | U16: =SUMIF('Terv-segédlet'!$B:$B,$A16,'Terv-segédlet'!E:E) -> 0 | V16: =SUMIF('Terv-segédlet'!$B:$B,$A16,'Terv-segédlet'!F:F) -> 0 | W16: =SUMIF('Terv-segédlet'!$B:$B,$A16,'Terv-segédlet'!G:G) -> 0 | X16: =SUMIF('Terv-segédlet'!$B:$B,$A16,'Terv-segédlet'!H:H) -> 0 | Y16: =SUMIF('Terv-segédlet'!$B:$B,$A16,'Terv-segédlet'!I:I) -> 0 | Z16: =SUMIF('Terv-segédlet'!$B:$B,$A16,'Terv-segédlet'!J:J) -> 0 | AA16: =SUMIF('Terv-segédlet'!$B:$B,$A16,'Terv-segédlet'!K:K) -> 0 | AB16: 0 | AC16: =SUMIF(V!$A:$A,$A16,V!$K:$K)+SUMIF(bank!$A:$A,AC$9&$A16,bank!$M:$M) -> 0 | AD16: =SUMIF(Gy!$A:$A,$A16,Gy!$K:$K)+SUMIF(bank!$A:$A,AD$9&$A16,bank!$M:$M) -> 0 | AE16: =SUMIF(K!$A:$A,$A16,K!$K:$K)+SUMIF(bank!$A:$A,AE$9&$A16,bank!$M:$M) -> 0 | AF16: =SUMIF(Mk!$A:$A,$A16,Mk!$K:$K)+SUMIF(bank!$A:$A,AF$9&$A16,bank!$M:$M) -> 0 | AG16: =SUMIF(M!$A:$A,$A16,M!$K:$K)+SUMIF(bank!$A:$A,AG$9&$A16,bank!$M:$M) -> 0 | AH16: =SUMIF(P!$A:$A,$A16,P!$K:$K)+SUMIF(bank!$A:$A,AH$9&$A16,bank!$M:$M) -> 0 | AI16: =SUMIF(Zs!$A:$A,$A16,Zs!$K:$K)+SUMIF(bank!$A:$A,AI$9&$A16,bank!$M:$M) -> 0 | AJ16: * | AK16: b | AM16: Vásárolt könyvek, folyóiratok, stb. értékesítésének bevétele
A17: k008 | B17: 8 | D17: Harangozás árbevétele | E17: Harangozás árbevétele | F17: Harangozás árbevétele | G17: Harangozás árbevétele | H17: Harangozás árbevétele | I17: Harangozás árbevétele | J17: Harangozás árbevétele | K17: Harangozás árbevétele | L17: Harangozás árbevétele | M17: Harangozás árbevétele | N17: Harangozás árbevétele | O17: Harangozás árbevétele | P17: Harangozás árbevétele | Q17: Harangozás árbevétele | R17: Harangozás árbevétele | S17: Harangozás árbevétele | T17: 0 | U17: =SUMIF('Terv-segédlet'!$B:$B,$A17,'Terv-segédlet'!E:E) -> 0 | V17: =SUMIF('Terv-segédlet'!$B:$B,$A17,'Terv-segédlet'!F:F) -> 0 | W17: =SUMIF('Terv-segédlet'!$B:$B,$A17,'Terv-segédlet'!G:G) -> 0 | X17: =SUMIF('Terv-segédlet'!$B:$B,$A17,'Terv-segédlet'!H:H) -> 0 | Y17: =SUMIF('Terv-segédlet'!$B:$B,$A17,'Terv-segédlet'!I:I) -> 0 | Z17: =SUMIF('Terv-segédlet'!$B:$B,$A17,'Terv-segédlet'!J:J) -> 0 | AA17: =SUMIF('Terv-segédlet'!$B:$B,$A17,'Terv-segédlet'!K:K) -> 0 | AB17: 0 | AC17: =SUMIF(V!$A:$A,$A17,V!$K:$K)+SUMIF(bank!$A:$A,AC$9&$A17,bank!$M:$M) -> 0 | AD17: =SUMIF(Gy!$A:$A,$A17,Gy!$K:$K)+SUMIF(bank!$A:$A,AD$9&$A17,bank!$M:$M) -> 0 | AE17: =SUMIF(K!$A:$A,$A17,K!$K:$K)+SUMIF(bank!$A:$A,AE$9&$A17,bank!$M:$M) -> 0 | AF17: =SUMIF(Mk!$A:$A,$A17,Mk!$K:$K)+SUMIF(bank!$A:$A,AF$9&$A17,bank!$M:$M) -> 0 | AG17: =SUMIF(M!$A:$A,$A17,M!$K:$K)+SUMIF(bank!$A:$A,AG$9&$A17,bank!$M:$M) -> 0 | AH17: =SUMIF(P!$A:$A,$A17,P!$K:$K)+SUMIF(bank!$A:$A,AH$9&$A17,bank!$M:$M) -> 0 | AI17: =SUMIF(Zs!$A:$A,$A17,Zs!$K:$K)+SUMIF(bank!$A:$A,AI$9&$A17,bank!$M:$M) -> 0 | AJ17: * | AK17: b | AM17: harangozás díjszabás alapján kivetett, számlázott vagy nyugta alapján átvett bevétele
A18: k009 | B18: 9 | D18: Alaptevékenység egyéb általános árbevétele | E18: Alaptevékenység egyéb általános árbevétele | F18: Alaptevékenység egyéb általános árbevétele | G18: Alaptevékenység egyéb általános árbevétele | H18: Alaptevékenység egyéb általános árbevétele | I18: Alaptevékenység egyéb általános árbevétele | J18: Alaptevékenység egyéb általános árbevétele | K18: Alaptevékenység egyéb általános árbevétele | L18: Alaptevékenység egyéb általános árbevétele | M18: Alaptevékenység egyéb általános árbevétele | N18: Alaptevékenység egyéb általános árbevétele | O18: Alaptevékenység egyéb általános árbevétele | P18: Alaptevékenység egyéb általános árbevétele | Q18: Alaptevékenység egyéb általános árbevétele | R18: Alaptevékenység egyéb általános árbevétele | S18: Alaptevékenység egyéb általános árbevétele | T18: 0 | U18: =SUMIF('Terv-segédlet'!$B:$B,$A18,'Terv-segédlet'!E:E) -> 0 | V18: =SUMIF('Terv-segédlet'!$B:$B,$A18,'Terv-segédlet'!F:F) -> 0 | W18: =SUMIF('Terv-segédlet'!$B:$B,$A18,'Terv-segédlet'!G:G) -> 0 | X18: =SUMIF('Terv-segédlet'!$B:$B,$A18,'Terv-segédlet'!H:H) -> 0 | Y18: =SUMIF('Terv-segédlet'!$B:$B,$A18,'Terv-segédlet'!I:I) -> 0 | Z18: =SUMIF('Terv-segédlet'!$B:$B,$A18,'Terv-segédlet'!J:J) -> 0 | AA18: =SUMIF('Terv-segédlet'!$B:$B,$A18,'Terv-segédlet'!K:K) -> 0 | AB18: 0 | AC18: =SUMIF(V!$A:$A,$A18,V!$K:$K)+SUMIF(bank!$A:$A,AC$9&$A18,bank!$M:$M) -> 0 | AD18: =SUMIF(Gy!$A:$A,$A18,Gy!$K:$K)+SUMIF(bank!$A:$A,AD$9&$A18,bank!$M:$M) -> 0 | AE18: =SUMIF(K!$A:$A,$A18,K!$K:$K)+SUMIF(bank!$A:$A,AE$9&$A18,bank!$M:$M) -> 0 | AF18: =SUMIF(Mk!$A:$A,$A18,Mk!$K:$K)+SUMIF(bank!$A:$A,AF$9&$A18,bank!$M:$M) -> 0 | AG18: =SUMIF(M!$A:$A,$A18,M!$K:$K)+SUMIF(bank!$A:$A,AG$9&$A18,bank!$M:$M) -> 0 | AH18: =SUMIF(P!$A:$A,$A18,P!$K:$K)+SUMIF(bank!$A:$A,AH$9&$A18,bank!$M:$M) -> 0 | AI18: =SUMIF(Zs!$A:$A,$A18,Zs!$K:$K)+SUMIF(bank!$A:$A,AI$9&$A18,bank!$M:$M) -> 0 | AJ18: * | AK18: b | AM18: tábor részvételi díj bevétele, szervezett konferencia részvételi díj, étkeztetés bevélele, saját könyvek, kiadványok bevétele, stb
A19: k010 | B19: 10 | D19: ii) Vállalkozási tevékenység árbevétele | E19: ii) Vállalkozási tevékenység árbevélete | F19: ii) Vállalkozási tevékenység árbevélete | G19: ii) Vállalkozási tevékenység árbevélete | H19: ii) Vállalkozási tevékenység árbevélete | I19: ii) Vállalkozási tevékenység árbevélete | J19: ii) Vállalkozási tevékenység árbevélete | K19: ii) Vállalkozási tevékenység árbevélete | L19: ii) Vállalkozási tevékenység árbevélete | M19: ii) Vállalkozási tevékenység árbevélete | N19: ii) Vállalkozási tevékenység árbevélete | O19: ii) Vállalkozási tevékenység árbevélete | P19: ii) Vállalkozási tevékenység árbevélete | Q19: ii) Vállalkozási tevékenység árbevélete | R19: ii) Vállalkozási tevékenység árbevélete | S19: ii) Vállalkozási tevékenység árbevélete | T19: =SUM(U19:AA19) -> 0 | AK19: b | AM19: teljes ingatlan bérbeadás, kereskedelmi tevékenység, szálláshely szolgáltatás, stb.
A20: k011 | B20: 11 | D20: iii) Közvetített szolgáltatások árbevétele (pl. visszatérítések) | E20: iii) Közvetített szolgáltatások árbevétele | F20: iii) Közvetített szolgáltatások árbevétele | G20: iii) Közvetített szolgáltatások árbevétele | H20: iii) Közvetített szolgáltatások árbevétele | I20: iii) Közvetített szolgáltatások árbevétele | J20: iii) Közvetített szolgáltatások árbevétele | K20: iii) Közvetített szolgáltatások árbevétele | L20: iii) Közvetített szolgáltatások árbevétele | M20: iii) Közvetített szolgáltatások árbevétele | N20: iii) Közvetített szolgáltatások árbevétele | O20: iii) Közvetített szolgáltatások árbevétele | P20: iii) Közvetített szolgáltatások árbevétele | Q20: iii) Közvetített szolgáltatások árbevétele | R20: iii) Közvetített szolgáltatások árbevétele | S20: iii) Közvetített szolgáltatások árbevétele | T20: =SUM(U20:AA20) -> 0 | AK20: b | AM20: rezsi visszatérítés, amennyiben a számla az egyházközség nevére szól, és abból más térítést fizet (számlázandó)
A21: k012 | B21: 12 | D21: ebből lelkészlakáshoz kapcsolódó visszatérítés | E21: ebből lelkészlakáshoz kapcsolódó visszatérítés | F21: ebből lelkészlakáshoz kapcsolódó visszatérítés | G21: ebből lelkészlakáshoz kapcsolódó visszatérítés | H21: ebből lelkészlakáshoz kapcsolódó visszatérítés | I21: ebből lelkészlakáshoz kapcsolódó visszatérítés | J21: ebből lelkészlakáshoz kapcsolódó visszatérítés | K21: ebből lelkészlakáshoz kapcsolódó visszatérítés | L21: ebből lelkészlakáshoz kapcsolódó visszatérítés | M21: ebből lelkészlakáshoz kapcsolódó visszatérítés | N21: ebből lelkészlakáshoz kapcsolódó visszatérítés | O21: ebből lelkészlakáshoz kapcsolódó visszatérítés | P21: ebből lelkészlakáshoz kapcsolódó visszatérítés | Q21: ebből lelkészlakáshoz kapcsolódó visszatérítés | R21: ebből lelkészlakáshoz kapcsolódó visszatérítés | S21: ebből lelkészlakáshoz kapcsolódó visszatérítés | T21: =SUM(U21:AA21) -> 0 | U21: =SUMIF('Terv-segédlet'!$B:$B,$A21,'Terv-segédlet'!E:E) -> 0 | V21: =SUMIF('Terv-segédlet'!$B:$B,$A21,'Terv-segédlet'!F:F) -> 0 | W21: =SUMIF('Terv-segédlet'!$B:$B,$A21,'Terv-segédlet'!G:G) -> 0 | X21: =SUMIF('Terv-segédlet'!$B:$B,$A21,'Terv-segédlet'!H:H) -> 0 | Y21: =SUMIF('Terv-segédlet'!$B:$B,$A21,'Terv-segédlet'!I:I) -> 0 | Z21: =SUMIF('Terv-segédlet'!$B:$B,$A21,'Terv-segédlet'!J:J) -> 0 | AA21: =SUMIF('Terv-segédlet'!$B:$B,$A21,'Terv-segédlet'!K:K) -> 0 | AB21: =SUM(AC21:AI21) -> 0 | AC21: =SUMIF(V!$A:$A,$A21,V!$K:$K)+SUMIF(bank!$A:$A,AC$9&$A21,bank!$M:$M) -> 0 | AD21: =SUMIF(Gy!$A:$A,$A21,Gy!$K:$K)+SUMIF(bank!$A:$A,AD$9&$A21,bank!$M:$M) -> 0 | AE21: =SUMIF(K!$A:$A,$A21,K!$K:$K)+SUMIF(bank!$A:$A,AE$9&$A21,bank!$M:$M) -> 0 | AF21: =SUMIF(Mk!$A:$A,$A21,Mk!$K:$K)+SUMIF(bank!$A:$A,AF$9&$A21,bank!$M:$M) -> 0 | AG21: =SUMIF(M!$A:$A,$A21,M!$K:$K)+SUMIF(bank!$A:$A,AG$9&$A21,bank!$M:$M) -> 0 | AH21: =SUMIF(P!$A:$A,$A21,P!$K:$K)+SUMIF(bank!$A:$A,AH$9&$A21,bank!$M:$M) -> 0 | AI21: =SUMIF(Zs!$A:$A,$A21,Zs!$K:$K)+SUMIF(bank!$A:$A,AI$9&$A21,bank!$M:$M) -> 0 | AJ21: * | AK21: b | AM21: a lelkészlakásra tekintettel a lelkész által fizetett rezsi visszatérítés, amennyiben a számla az egyházközség nevére szól, és abból más térítést fizet (számlázandó)
A22: k013 | B22: 13 | D22: iv) Egyéb tevékenység árbevétele | E22: iv) Egyéb továbbszámlázott tételekből eredő bevételek (visszatérítés) | F22: iv) Egyéb továbbszámlázott tételekből eredő bevételek (visszatérítés) | G22: iv) Egyéb továbbszámlázott tételekből eredő bevételek (visszatérítés) | H22: iv) Egyéb továbbszámlázott tételekből eredő bevételek (visszatérítés) | I22: iv) Egyéb továbbszámlázott tételekből eredő bevételek (visszatérítés) | J22: iv) Egyéb továbbszámlázott tételekből eredő bevételek (visszatérítés) | K22: iv) Egyéb továbbszámlázott tételekből eredő bevételek (visszatérítés) | L22: iv) Egyéb továbbszámlázott tételekből eredő bevételek (visszatérítés) | M22: iv) Egyéb továbbszámlázott tételekből eredő bevételek (visszatérítés) | N22: iv) Egyéb továbbszámlázott tételekből eredő bevételek (visszatérítés) | O22: iv) Egyéb továbbszámlázott tételekből eredő bevételek (visszatérítés) | P22: iv) Egyéb továbbszámlázott tételekből eredő bevételek (visszatérítés) | Q22: iv) Egyéb továbbszámlázott tételekből eredő bevételek (visszatérítés) | R22: iv) Egyéb továbbszámlázott tételekből eredő bevételek (visszatérítés) | S22: iv) Egyéb továbbszámlázott tételekből eredő bevételek (visszatérítés) | T22: 0 | U22: =SUMIF('Terv-segédlet'!$B:$B,$A22,'Terv-segédlet'!E:E) -> 0 | V22: =SUMIF('Terv-segédlet'!$B:$B,$A22,'Terv-segédlet'!F:F) -> 0 | W22: =SUMIF('Terv-segédlet'!$B:$B,$A22,'Terv-segédlet'!G:G) -> 0 | X22: =SUMIF('Terv-segédlet'!$B:$B,$A22,'Terv-segédlet'!H:H) -> 0 | Y22: =SUMIF('Terv-segédlet'!$B:$B,$A22,'Terv-segédlet'!I:I) -> 0 | Z22: =SUMIF('Terv-segédlet'!$B:$B,$A22,'Terv-segédlet'!J:J) -> 0 | AA22: =SUMIF('Terv-segédlet'!$B:$B,$A22,'Terv-segédlet'!K:K) -> 0 | AB22: 0 | AC22: =SUMIF(V!$A:$A,$A22,V!$K:$K)+SUMIF(bank!$A:$A,AC$9&$A22,bank!$M:$M) -> 0 | AD22: =SUMIF(Gy!$A:$A,$A22,Gy!$K:$K)+SUMIF(bank!$A:$A,AD$9&$A22,bank!$M:$M) -> 0 | AE22: =SUMIF(K!$A:$A,$A22,K!$K:$K)+SUMIF(bank!$A:$A,AE$9&$A22,bank!$M:$M) -> 0 | AF22: =SUMIF(Mk!$A:$A,$A22,Mk!$K:$K)+SUMIF(bank!$A:$A,AF$9&$A22,bank!$M:$M) -> 0 | AG22: =SUMIF(M!$A:$A,$A22,M!$K:$K)+SUMIF(bank!$A:$A,AG$9&$A22,bank!$M:$M) -> 0 | AH22: =SUMIF(P!$A:$A,$A22,P!$K:$K)+SUMIF(bank!$A:$A,AH$9&$A22,bank!$M:$M) -> 0 | AI22: =SUMIF(Zs!$A:$A,$A22,Zs!$K:$K)+SUMIF(bank!$A:$A,AI$9&$A22,bank!$M:$M) -> 0 | AJ22: * | AK22: b | AM22: egyéb gazdálkodási bevétel
A23: k014 | B23: 14 | D23: 2. Egyéb bevételek (15+18+19+23) | T23: =SUM(T24,T27:T28,T32) -> 11598000 | U23: =SUM(U24,U27:U28,U32) -> 547000 | V23: =SUM(V24,V27:V28,V32) -> 193000 | W23: =SUM(W24,W27:W28,W32) -> 860000 | X23: =SUM(X24,X27:X28,X32) -> 7359000 | Y23: =SUM(Y24,Y27:Y28,Y32) -> 1870000 | Z23: =SUM(Z24,Z27:Z28,Z32) -> 275000 | AA23: =SUM(AA24,AA27:AA28,AA32) -> 494000 | AB23: =SUM(AB24,AB27:AB28,AB32) -> 53810 | AC23: =SUM(AC24,AC27:AC28,AC32) -> 0 | AD23: =SUM(AD24,AD27:AD28,AD32) -> 0 | AE23: 0 | AF23: 11200 | AG23: 42610 | AH23: 0 | AI23: 0 | AK23: b | AL23: 0.004639593033 | AM23: 0.96
A24: k015 | B24: 15 | D24: i) Értékesített immateriális javak, tárgyi eszközök bevétele (16+17) | T24: =SUM(T25:T26) -> 0 | U24: =SUM(U25:U26) -> 0 | V24: =SUM(V25:V26) -> 0 | W24: =SUM(W25:W26) -> 0 | X24: =SUM(X25:X26) -> 0 | Y24: =SUM(Y25:Y26) -> 0 | Z24: =SUM(Z25:Z26) -> 0 | AA24: =SUM(AA25:AA26) -> 0 | AB24: =SUM(AB25:AB26) -> 0 | AC24: =SUM(AC25:AC26) -> 0 | AD24: =SUM(AD25:AD26) -> 0 | AE24: 0 | AF24: 0 | AG24: 0 | AH24: 0 | AI24: 0 | AK24: b
A25: k016 | B25: 16 | D25: Ingatlan értékesítés | E25: Pályázati bevételek (nem egyházi) | F25: Pályázati bevételek (nem egyházi) | G25: Pályázati bevételek (nem egyházi) | H25: Pályázati bevételek (nem egyházi) | I25: Pályázati bevételek (nem egyházi) | J25: Pályázati bevételek (nem egyházi) | K25: Pályázati bevételek (nem egyházi) | L25: Pályázati bevételek (nem egyházi) | M25: Pályázati bevételek (nem egyházi) | N25: Pályázati bevételek (nem egyházi) | O25: Pályázati bevételek (nem egyházi) | P25: Pályázati bevételek (nem egyházi) | Q25: Pályázati bevételek (nem egyházi) | R25: Pályázati bevételek (nem egyházi) | S25: Pályázati bevételek (nem egyházi) | T25: =SUM(U25:AA25) -> 0 | U25: =SUMIF('Terv-segédlet'!$B:$B,$A25,'Terv-segédlet'!E:E) -> 0 | V25: =SUMIF('Terv-segédlet'!$B:$B,$A25,'Terv-segédlet'!F:F) -> 0 | W25: =SUMIF('Terv-segédlet'!$B:$B,$A25,'Terv-segédlet'!G:G) -> 0 | X25: =SUMIF('Terv-segédlet'!$B:$B,$A25,'Terv-segédlet'!H:H) -> 0 | Y25: =SUMIF('Terv-segédlet'!$B:$B,$A25,'Terv-segédlet'!I:I) -> 0 | Z25: =SUMIF('Terv-segédlet'!$B:$B,$A25,'Terv-segédlet'!J:J) -> 0 | AA25: =SUMIF('Terv-segédlet'!$B:$B,$A25,'Terv-segédlet'!K:K) -> 0 | AB25: =SUM(AC25:AI25) -> 0 | AC25: =SUMIF(V!$A:$A,$A25,V!$K:$K)+SUMIF(bank!$A:$A,AC$9&$A25,bank!$M:$M) -> 0 | AD25: =SUMIF(Gy!$A:$A,$A25,Gy!$K:$K)+SUMIF(bank!$A:$A,AD$9&$A25,bank!$M:$M) -> 0 | AE25: =SUMIF(K!$A:$A,$A25,K!$K:$K)+SUMIF(bank!$A:$A,AE$9&$A25,bank!$M:$M) -> 0 | AF25: =SUMIF(Mk!$A:$A,$A25,Mk!$K:$K)+SUMIF(bank!$A:$A,AF$9&$A25,bank!$M:$M) -> 0 | AG25: =SUMIF(M!$A:$A,$A25,M!$K:$K)+SUMIF(bank!$A:$A,AG$9&$A25,bank!$M:$M) -> 0 | AH25: =SUMIF(P!$A:$A,$A25,P!$K:$K)+SUMIF(bank!$A:$A,AH$9&$A25,bank!$M:$M) -> 0 | AI25: =SUMIF(Zs!$A:$A,$A25,Zs!$K:$K)+SUMIF(bank!$A:$A,AI$9&$A25,bank!$M:$M) -> 0 | AJ25: * | AK25: b | AM25: értékesített ingatlan árbevétele
A26: k017 | B26: 17 | D26: Egyéb értékesítés | E26: Pályázati bevételek (nem egyházi) | F26: Pályázati bevételek (nem egyházi) | G26: Pályázati bevételek (nem egyházi) | H26: Pályázati bevételek (nem egyházi) | I26: Pályázati bevételek (nem egyházi) | J26: Pályázati bevételek (nem egyházi) | K26: Pályázati bevételek (nem egyházi) | L26: Pályázati bevételek (nem egyházi) | M26: Pályázati bevételek (nem egyházi) | N26: Pályázati bevételek (nem egyházi) | O26: Pályázati bevételek (nem egyházi) | P26: Pályázati bevételek (nem egyházi) | Q26: Pályázati bevételek (nem egyházi) | R26: Pályázati bevételek (nem egyházi) | S26: Pályázati bevételek (nem egyházi) | T26: 0 | U26: =SUMIF('Terv-segédlet'!$B:$B,$A26,'Terv-segédlet'!E:E) -> 0 | V26: =SUMIF('Terv-segédlet'!$B:$B,$A26,'Terv-segédlet'!F:F) -> 0 | W26: =SUMIF('Terv-segédlet'!$B:$B,$A26,'Terv-segédlet'!G:G) -> 0 | X26: =SUMIF('Terv-segédlet'!$B:$B,$A26,'Terv-segédlet'!H:H) -> 0 | Y26: =SUMIF('Terv-segédlet'!$B:$B,$A26,'Terv-segédlet'!I:I) -> 0 | Z26: =SUMIF('Terv-segédlet'!$B:$B,$A26,'Terv-segédlet'!J:J) -> 0 | AA26: =SUMIF('Terv-segédlet'!$B:$B,$A26,'Terv-segédlet'!K:K) -> 0 | AB26: 0 | AC26: =SUMIF(V!$A:$A,$A26,V!$K:$K)+SUMIF(bank!$A:$A,AC$9&$A26,bank!$M:$M) -> 0 | AD26: =SUMIF(Gy!$A:$A,$A26,Gy!$K:$K)+SUMIF(bank!$A:$A,AD$9&$A26,bank!$M:$M) -> 0 | AE26: =SUMIF(K!$A:$A,$A26,K!$K:$K)+SUMIF(bank!$A:$A,AE$9&$A26,bank!$M:$M) -> 0 | AF26: =SUMIF(Mk!$A:$A,$A26,Mk!$K:$K)+SUMIF(bank!$A:$A,AF$9&$A26,bank!$M:$M) -> 0 | AG26: =SUMIF(M!$A:$A,$A26,M!$K:$K)+SUMIF(bank!$A:$A,AG$9&$A26,bank!$M:$M) -> 0 | AH26: =SUMIF(P!$A:$A,$A26,P!$K:$K)+SUMIF(bank!$A:$A,AH$9&$A26,bank!$M:$M) -> 0 | AI26: =SUMIF(Zs!$A:$A,$A26,Zs!$K:$K)+SUMIF(bank!$A:$A,AI$9&$A26,bank!$M:$M) -> 0 | AJ26: * | AK26: b | AM26: ingatlanon kívüli leltári eszköz (ingó) értékesítésének bevétele
A27: k018 | B27: 18 | D27: ii) Értékesített, átruházott (engedményezett követelések) elismert értéke | E27: ii) Értékesített, átruházott (engedményezett követelések) elismert értéke | F27: ii) Értékesített, átruházott (engedményezett követelések) elismert értéke | G27: ii) Értékesített, átruházott (engedményezett követelések) elismert értéke | H27: ii) Értékesített, átruházott (engedményezett követelések) elismert értéke | I27: ii) Értékesített, átruházott (engedményezett követelések) elismert értéke | J27: ii) Értékesített, átruházott (engedményezett követelések) elismert értéke | K27: ii) Értékesített, átruházott (engedményezett követelések) elismert értéke | L27: ii) Értékesített, átruházott (engedményezett követelések) elismert értéke | M27: ii) Értékesített, átruházott (engedményezett követelések) elismert értéke | N27: ii) Értékesített, átruházott (engedményezett követelések) elismert értéke | O27: ii) Értékesített, átruházott (engedményezett követelések) elismert értéke | P27: ii) Értékesített, átruházott (engedményezett követelések) elismert értéke | Q27: ii) Értékesített, átruházott (engedményezett követelések) elismert értéke | R27: ii) Értékesített, átruházott (engedményezett követelések) elismert értéke | S27: ii) Értékesített, átruházott (engedményezett követelések) elismert értéke | T27: 0 | U27: =SUMIF('Terv-segédlet'!$B:$B,$A27,'Terv-segédlet'!E:E) -> 0 | V27: =SUMIF('Terv-segédlet'!$B:$B,$A27,'Terv-segédlet'!F:F) -> 0 | W27: =SUMIF('Terv-segédlet'!$B:$B,$A27,'Terv-segédlet'!G:G) -> 0 | X27: =SUMIF('Terv-segédlet'!$B:$B,$A27,'Terv-segédlet'!H:H) -> 0 | Y27: =SUMIF('Terv-segédlet'!$B:$B,$A27,'Terv-segédlet'!I:I) -> 0 | Z27: =SUMIF('Terv-segédlet'!$B:$B,$A27,'Terv-segédlet'!J:J) -> 0 | AA27: =SUMIF('Terv-segédlet'!$B:$B,$A27,'Terv-segédlet'!K:K) -> 0 | AB27: 0 | AC27: =SUMIF(V!$A:$A,$A27,V!$K:$K)+SUMIF(bank!$A:$A,AC$9&$A27,bank!$M:$M) -> 0 | AD27: =SUMIF(Gy!$A:$A,$A27,Gy!$K:$K)+SUMIF(bank!$A:$A,AD$9&$A27,bank!$M:$M) -> 0 | AE27: =SUMIF(K!$A:$A,$A27,K!$K:$K)+SUMIF(bank!$A:$A,AE$9&$A27,bank!$M:$M) -> 0 | AF27: =SUMIF(Mk!$A:$A,$A27,Mk!$K:$K)+SUMIF(bank!$A:$A,AF$9&$A27,bank!$M:$M) -> 0 | AG27: =SUMIF(M!$A:$A,$A27,M!$K:$K)+SUMIF(bank!$A:$A,AG$9&$A27,bank!$M:$M) -> 0 | AH27: =SUMIF(P!$A:$A,$A27,P!$K:$K)+SUMIF(bank!$A:$A,AH$9&$A27,bank!$M:$M) -> 0 | AI27: =SUMIF(Zs!$A:$A,$A27,Zs!$K:$K)+SUMIF(bank!$A:$A,AI$9&$A27,bank!$M:$M) -> 0 | AJ27: * | AK27: b | AM27: nem jellemző bevétel
A28: k019 | B28: 19 | D28: iii) Különféle egyéb bevételek (20..22) | E28: v) Különféle egyéb bevételek (20..22) | F28: v) Különféle egyéb bevételek (20..22) | G28: v) Különféle egyéb bevételek (20..22) | H28: v) Különféle egyéb bevételek (20..22) | I28: v) Különféle egyéb bevételek (20..22) | J28: v) Különféle egyéb bevételek (20..22) | K28: v) Különféle egyéb bevételek (20..22) | L28: v) Különféle egyéb bevételek (20..22) | M28: v) Különféle egyéb bevételek (20..22) | N28: v) Különféle egyéb bevételek (20..22) | O28: v) Különféle egyéb bevételek (20..22) | P28: v) Különféle egyéb bevételek (20..22) | Q28: v) Különféle egyéb bevételek (20..22) | R28: v) Különféle egyéb bevételek (20..22) | S28: v) Különféle egyéb bevételek (20..22) | T28: =SUM(T29:T31) -> 5000000 | U28: =SUM(U29:U31) -> 0 | V28: =SUM(V29:V31) -> 0 | W28: =SUM(W29:W31) -> 0 | X28: =SUM(X29:X31) -> 5000000 | Y28: =SUM(Y29:Y31) -> 0 | Z28: =SUM(Z29:Z31) -> 0 | AA28: =SUM(AA29:AA31) -> 0 | AB28: =SUM(AB29:AB31) -> 0 | AC28: =SUM(AC29:AC31) -> 0 | AD28: =SUM(AD29:AD31) -> 0 | AE28: 0 | AF28: 0 | AG28: 0 | AH28: 0 | AI28: 0 | AK28: b | AL28: 0
A29: k020 | B29: 20 | D29: Pályázati bevételek (nem egyházi) | E29: Pályázati bevételek (nem egyházi) | F29: Pályázati bevételek (nem egyházi) | G29: Pályázati bevételek (nem egyházi) | H29: Pályázati bevételek (nem egyházi) | I29: Pályázati bevételek (nem egyházi) | J29: Pályázati bevételek (nem egyházi) | K29: Pályázati bevételek (nem egyházi) | L29: Pályázati bevételek (nem egyházi) | M29: Pályázati bevételek (nem egyházi) | N29: Pályázati bevételek (nem egyházi) | O29: Pályázati bevételek (nem egyházi) | P29: Pályázati bevételek (nem egyházi) | Q29: Pályázati bevételek (nem egyházi) | R29: Pályázati bevételek (nem egyházi) | S29: Pályázati bevételek (nem egyházi) | T29: =SUM(U29:AA29) -> 5000000 | U29: =SUMIF('Terv-segédlet'!$B:$B,$A29,'Terv-segédlet'!E:E) -> 0 | V29: =SUMIF('Terv-segédlet'!$B:$B,$A29,'Terv-segédlet'!F:F) -> 0 | W29: =SUMIF('Terv-segédlet'!$B:$B,$A29,'Terv-segédlet'!G:G) -> 0 | X29: =SUMIF('Terv-segédlet'!$B:$B,$A29,'Terv-segédlet'!H:H) -> 5000000 | Y29: =SUMIF('Terv-segédlet'!$B:$B,$A29,'Terv-segédlet'!I:I) -> 0 | Z29: =SUMIF('Terv-segédlet'!$B:$B,$A29,'Terv-segédlet'!J:J) -> 0 | AA29: =SUMIF('Terv-segédlet'!$B:$B,$A29,'Terv-segédlet'!K:K) -> 0 | AB29: =SUM(AC29:AI29) -> 0 | AC29: =SUMIF(V!$A:$A,$A29,V!$K:$K)+SUMIF(bank!$A:$A,AC$9&$A29,bank!$M:$M) -> 0 | AD29: =SUMIF(Gy!$A:$A,$A29,Gy!$K:$K)+SUMIF(bank!$A:$A,AD$9&$A29,bank!$M:$M) -> 0 | AE29: =SUMIF(K!$A:$A,$A29,K!$K:$K)+SUMIF(bank!$A:$A,AE$9&$A29,bank!$M:$M) -> 0 | AF29: =SUMIF(Mk!$A:$A,$A29,Mk!$K:$K)+SUMIF(bank!$A:$A,AF$9&$A29,bank!$M:$M) -> 0 | AG29: =SUMIF(M!$A:$A,$A29,M!$K:$K)+SUMIF(bank!$A:$A,AG$9&$A29,bank!$M:$M) -> 0 | AH29: =SUMIF(P!$A:$A,$A29,P!$K:$K)+SUMIF(bank!$A:$A,AH$9&$A29,bank!$M:$M) -> 0 | AI29: =SUMIF(Zs!$A:$A,$A29,Zs!$K:$K)+SUMIF(bank!$A:$A,AI$9&$A29,bank!$M:$M) -> 0 | AJ29: * | AK29: b | AL29: 0 | AM29: nem egyháztól nyert pályázatok bevétele (pl. uniós)
A30: k021 | B30: 21 | D30: Káreseménnyel kapcsolatban kapott bevételek, biztosító által megítélt bevételek | E30: Káreseménnyel kapcsolatban kapott bevételek, biztosító által megítélt bevételek | F30: Káreseménnyel kapcsolatban kapott bevételek, biztosító által megítélt bevételek | G30: Káreseménnyel kapcsolatban kapott bevételek, biztosító által megítélt bevételek | H30: Káreseménnyel kapcsolatban kapott bevételek, biztosító által megítélt bevételek | I30: Káreseménnyel kapcsolatban kapott bevételek, biztosító által megítélt bevételek | J30: Káreseménnyel kapcsolatban kapott bevételek, biztosító által megítélt bevételek | K30: Káreseménnyel kapcsolatban kapott bevételek, biztosító által megítélt bevételek | L30: Káreseménnyel kapcsolatban kapott bevételek, biztosító által megítélt bevételek | M30: Káreseménnyel kapcsolatban kapott bevételek, biztosító által megítélt bevételek | N30: Káreseménnyel kapcsolatban kapott bevételek, biztosító által megítélt bevételek | O30: Káreseménnyel kapcsolatban kapott bevételek, biztosító által megítélt bevételek | P30: Káreseménnyel kapcsolatban kapott bevételek, biztosító által megítélt bevételek | Q30: Káreseménnyel kapcsolatban kapott bevételek, biztosító által megítélt bevételek | R30: Káreseménnyel kapcsolatban kapott bevételek, biztosító által megítélt bevételek | S30: Káreseménnyel kapcsolatban kapott bevételek, biztosító által megítélt bevételek | T30: 0 | U30: =SUMIF('Terv-segédlet'!$B:$B,$A30,'Terv-segédlet'!E:E) -> 0 | V30: =SUMIF('Terv-segédlet'!$B:$B,$A30,'Terv-segédlet'!F:F) -> 0 | W30: =SUMIF('Terv-segédlet'!$B:$B,$A30,'Terv-segédlet'!G:G) -> 0 | X30: =SUMIF('Terv-segédlet'!$B:$B,$A30,'Terv-segédlet'!H:H) -> 0 | Y30: =SUMIF('Terv-segédlet'!$B:$B,$A30,'Terv-segédlet'!I:I) -> 0 | Z30: =SUMIF('Terv-segédlet'!$B:$B,$A30,'Terv-segédlet'!J:J) -> 0 | AA30: =SUMIF('Terv-segédlet'!$B:$B,$A30,'Terv-segédlet'!K:K) -> 0 | AB30: 0 | AC30: =SUMIF(V!$A:$A,$A30,V!$K:$K)+SUMIF(bank!$A:$A,AC$9&$A30,bank!$M:$M) -> 0 | AD30: =SUMIF(Gy!$A:$A,$A30,Gy!$K:$K)+SUMIF(bank!$A:$A,AD$9&$A30,bank!$M:$M) -> 0 | AE30: =SUMIF(K!$A:$A,$A30,K!$K:$K)+SUMIF(bank!$A:$A,AE$9&$A30,bank!$M:$M) -> 0 | AF30: =SUMIF(Mk!$A:$A,$A30,Mk!$K:$K)+SUMIF(bank!$A:$A,AF$9&$A30,bank!$M:$M) -> 0 | AG30: =SUMIF(M!$A:$A,$A30,M!$K:$K)+SUMIF(bank!$A:$A,AG$9&$A30,bank!$M:$M) -> 0 | AH30: =SUMIF(P!$A:$A,$A30,P!$K:$K)+SUMIF(bank!$A:$A,AH$9&$A30,bank!$M:$M) -> 0 | AI30: =SUMIF(Zs!$A:$A,$A30,Zs!$K:$K)+SUMIF(bank!$A:$A,AI$9&$A30,bank!$M:$M) -> 0 | AJ30: * | AK30: b | AM30: káreseményhez kapcsolódó kártérítés, biztosító visszatérítése
A31: k022 | B31: 22 | D31: Különféle egyéb bevételek | E31: Különféle egyéb bevételek | F31: Különféle egyéb bevételek | G31: Különféle egyéb bevételek | H31: Különféle egyéb bevételek | I31: Különféle egyéb bevételek | J31: Különféle egyéb bevételek | K31: Különféle egyéb bevételek | L31: Különféle egyéb bevételek | M31: Különféle egyéb bevételek | N31: Különféle egyéb bevételek | O31: Különféle egyéb bevételek | P31: Különféle egyéb bevételek | Q31: Különféle egyéb bevételek | R31: Különféle egyéb bevételek | S31: Különféle egyéb bevételek | T31: 0 | U31: =SUMIF('Terv-segédlet'!$B:$B,$A31,'Terv-segédlet'!E:E) -> 0 | V31: =SUMIF('Terv-segédlet'!$B:$B,$A31,'Terv-segédlet'!F:F) -> 0 | W31: =SUMIF('Terv-segédlet'!$B:$B,$A31,'Terv-segédlet'!G:G) -> 0 | X31: =SUMIF('Terv-segédlet'!$B:$B,$A31,'Terv-segédlet'!H:H) -> 0 | Y31: =SUMIF('Terv-segédlet'!$B:$B,$A31,'Terv-segédlet'!I:I) -> 0 | Z31: =SUMIF('Terv-segédlet'!$B:$B,$A31,'Terv-segédlet'!J:J) -> 0 | AA31: =SUMIF('Terv-segédlet'!$B:$B,$A31,'Terv-segédlet'!K:K) -> 0 | AB31: 0 | AC31: =SUMIF(V!$A:$A,$A31,V!$K:$K)+SUMIF(bank!$A:$A,AC$9&$A31,bank!$M:$M) -> 0 | AD31: =SUMIF(Gy!$A:$A,$A31,Gy!$K:$K)+SUMIF(bank!$A:$A,AD$9&$A31,bank!$M:$M) -> 0 | AE31: =SUMIF(K!$A:$A,$A31,K!$K:$K)+SUMIF(bank!$A:$A,AE$9&$A31,bank!$M:$M) -> 0 | AF31: =SUMIF(Mk!$A:$A,$A31,Mk!$K:$K)+SUMIF(bank!$A:$A,AF$9&$A31,bank!$M:$M) -> 0 | AG31: =SUMIF(M!$A:$A,$A31,M!$K:$K)+SUMIF(bank!$A:$A,AG$9&$A31,bank!$M:$M) -> 0 | AH31: =SUMIF(P!$A:$A,$A31,P!$K:$K)+SUMIF(bank!$A:$A,AH$9&$A31,bank!$M:$M) -> 0 | AI31: =SUMIF(Zs!$A:$A,$A31,Zs!$K:$K)+SUMIF(bank!$A:$A,AI$9&$A31,bank!$M:$M) -> 0 | AJ31: * | AK31: b | AM31: kerekítések, előzőekben fel nem sorolt és támogatásként nem szereplő egyéb bevételek
A32: k023 | B32: 23 | D32: iv) Támogatások (24+35+41..42) | E32: vi) Támogatások (a+b+c+d) | F32: vi) Támogatások (a+b+c+d) | G32: vi) Támogatások (a+b+c+d) | H32: vi) Támogatások (a+b+c+d) | I32: vi) Támogatások (a+b+c+d) | J32: vi) Támogatások (a+b+c+d) | K32: vi) Támogatások (a+b+c+d) | L32: vi) Támogatások (a+b+c+d) | M32: vi) Támogatások (a+b+c+d) | N32: vi) Támogatások (a+b+c+d) | O32: vi) Támogatások (a+b+c+d) | P32: vi) Támogatások (a+b+c+d) | Q32: vi) Támogatások (a+b+c+d) | R32: vi) Támogatások (a+b+c+d) | S32: vi) Támogatások (a+b+c+d) | T32: =SUM(T33,T44,T50,T51) -> 6598000 | U32: =SUM(U33,U44,U50,U51) -> 547000 | V32: =SUM(V33,V44,V50,V51) -> 193000 | W32: =SUM(W33,W44,W50,W51) -> 860000 | X32: =SUM(X33,X44,X50,X51) -> 2359000 | Y32: =SUM(Y33,Y44,Y50,Y51) -> 1870000 | Z32: =SUM(Z33,Z44,Z50,Z51) -> 275000 | AA32: =SUM(AA33,AA44,AA50,AA51) -> 494000 | AB32: =SUM(AB33,AB44,AB50,AB51) -> 53810 | AC32: =SUM(AC33,AC44,AC50,AC51) -> 0 | AD32: =SUM(AD33,AD44,AD50,AD51) -> 0 | AE32: 0 | AF32: 11200 | AG32: 42610 | AH32: 0 | AI32: 0 | AK32: b | AL32: 0.008155501667
A33: k024 | B33: 24 | D33: a ) Egyházi támogatás (25+34) | E33: a ) Egyházi támogatás (aa+ab) | F33: a ) Egyházi támogatás (aa+ab) | G33: a ) Egyházi támogatás (aa+ab) | H33: a ) Egyházi támogatás (aa+ab) | I33: a ) Egyházi támogatás (aa+ab) | J33: a ) Egyházi támogatás (aa+ab) | K33: a ) Egyházi támogatás (aa+ab) | L33: a ) Egyházi támogatás (aa+ab) | M33: a ) Egyházi támogatás (aa+ab) | N33: a ) Egyházi támogatás (aa+ab) | O33: a ) Egyházi támogatás (aa+ab) | P33: a ) Egyházi támogatás (aa+ab) | Q33: a ) Egyházi támogatás (aa+ab) | R33: a ) Egyházi támogatás (aa+ab) | S33: a ) Egyházi támogatás (aa+ab) | T33: =SUM(T34,T43) -> 1000000 | U33: =SUM(U34,U43) -> 0 | V33: =SUM(V34,V43) -> 0 | W33: =SUM(W34,W43) -> 0 | X33: =SUM(X34,X43) -> 1000000 | Y33: =SUM(Y34,Y43) -> 0 | Z33: =SUM(Z34,Z43) -> 0 | AA33: =SUM(AA34,AA43) -> 0 | AB33: =SUM(AB34,AB43) -> 0 | AC33: =SUM(AC34,AC43) -> 0 | AD33: =SUM(AD34,AD43) -> 0 | AE33: 0 | AF33: 0 | AG33: 0 | AH33: 0 | AI33: 0 | AK33: b | AL33: 0
A34: k025 | B34: 25 | D34: aa) Belföldi belső egyházi (26..33) | E34: aa) Belföldi belső egyházi (26..33) | F34: aa) Belföldi belső egyházi (26..33) | G34: aa) Belföldi belső egyházi (26..33) | H34: aa) Belföldi belső egyházi (26..33) | I34: aa) Belföldi belső egyházi (26..33) | J34: aa) Belföldi belső egyházi (26..33) | K34: aa) Belföldi belső egyházi (26..33) | L34: aa) Belföldi belső egyházi (26..33) | M34: aa) Belföldi belső egyházi (26..33) | N34: aa) Belföldi belső egyházi (26..33) | O34: aa) Belföldi belső egyházi (26..33) | P34: aa) Belföldi belső egyházi (26..33) | Q34: aa) Belföldi belső egyházi (26..33) | R34: aa) Belföldi belső egyházi (26..33) | S34: aa) Belföldi belső egyházi (26..33) | T34: =SUM(T35:T42) -> 1000000 | U34: =SUM(U35:U42) -> 0 | V34: =SUM(V35:V42) -> 0 | W34: =SUM(W35:W42) -> 0 | X34: =SUM(X35:X42) -> 1000000 | Y34: =SUM(Y35:Y42) -> 0 | Z34: =SUM(Z35:Z42) -> 0 | AA34: =SUM(AA35:AA42) -> 0 | AB34: =SUM(AB35:AB42) -> 0 | AC34: =SUM(AC35:AC42) -> 0 | AD34: =SUM(AD35:AD42) -> 0 | AE34: 0 | AF34: 0 | AG34: 0 | AH34: 0 | AI34: 0 | AK34: b | AL34: 0
A35: k026 | B35: 26 | D35: -Működési támogatás | E35: -Működési támogatás | F35: -Működési támogatás | G35: -Működési támogatás | H35: -Működési támogatás | I35: -Működési támogatás | J35: -Működési támogatás | K35: -Működési támogatás | L35: -Működési támogatás | M35: -Működési támogatás | N35: -Működési támogatás | O35: -Működési támogatás | P35: -Működési támogatás | Q35: -Működési támogatás | R35: -Működési támogatás | S35: -Működési támogatás | T35: =SUM(U35:AA35) -> 0 | U35: =SUMIF('Terv-segédlet'!$B:$B,$A35,'Terv-segédlet'!E:E) -> 0 | V35: =SUMIF('Terv-segédlet'!$B:$B,$A35,'Terv-segédlet'!F:F) -> 0 | W35: =SUMIF('Terv-segédlet'!$B:$B,$A35,'Terv-segédlet'!G:G) -> 0 | X35: =SUMIF('Terv-segédlet'!$B:$B,$A35,'Terv-segédlet'!H:H) -> 0 | Y35: =SUMIF('Terv-segédlet'!$B:$B,$A35,'Terv-segédlet'!I:I) -> 0 | Z35: =SUMIF('Terv-segédlet'!$B:$B,$A35,'Terv-segédlet'!J:J) -> 0 | AA35: =SUMIF('Terv-segédlet'!$B:$B,$A35,'Terv-segédlet'!K:K) -> 0 | AB35: =SUM(AC35:AI35) -> 0 | AC35: =SUMIF(V!$A:$A,$A35,V!$K:$K)+SUMIF(bank!$A:$A,AC$9&$A35,bank!$M:$M) -> 0 | AD35: =SUMIF(Gy!$A:$A,$A35,Gy!$K:$K)+SUMIF(bank!$A:$A,AD$9&$A35,bank!$M:$M) -> 0 | AE35: =SUMIF(K!$A:$A,$A35,K!$K:$K)+SUMIF(bank!$A:$A,AE$9&$A35,bank!$M:$M) -> 0 | AF35: =SUMIF(Mk!$A:$A,$A35,Mk!$K:$K)+SUMIF(bank!$A:$A,AF$9&$A35,bank!$M:$M) -> 0 | AG35: =SUMIF(M!$A:$A,$A35,M!$K:$K)+SUMIF(bank!$A:$A,AG$9&$A35,bank!$M:$M) -> 0 | AH35: =SUMIF(P!$A:$A,$A35,P!$K:$K)+SUMIF(bank!$A:$A,AH$9&$A35,bank!$M:$M) -> 0 | AI35: =SUMIF(Zs!$A:$A,$A35,Zs!$K:$K)+SUMIF(bank!$A:$A,AI$9&$A35,bank!$M:$M) -> 0 | AJ35: * | AK35: b | AM35: MEE-től működés céljára kapott támogatás
A36: k027 | B36: 27 | D36: -Gusztáv Adolf segély | E36: -Gusztáv Adolf segély | F36: -Gusztáv Adolf segély | G36: -Gusztáv Adolf segély | H36: -Gusztáv Adolf segély | I36: -Gusztáv Adolf segély | J36: -Gusztáv Adolf segély | K36: -Gusztáv Adolf segély | L36: -Gusztáv Adolf segély | M36: -Gusztáv Adolf segély | N36: -Gusztáv Adolf segély | O36: -Gusztáv Adolf segély | P36: -Gusztáv Adolf segély | Q36: -Gusztáv Adolf segély | R36: -Gusztáv Adolf segély | S36: -Gusztáv Adolf segély | T36: 0 | U36: =SUMIF('Terv-segédlet'!$B:$B,$A36,'Terv-segédlet'!E:E) -> 0 | V36: =SUMIF('Terv-segédlet'!$B:$B,$A36,'Terv-segédlet'!F:F) -> 0 | W36: =SUMIF('Terv-segédlet'!$B:$B,$A36,'Terv-segédlet'!G:G) -> 0 | X36: =SUMIF('Terv-segédlet'!$B:$B,$A36,'Terv-segédlet'!H:H) -> 0 | Y36: =SUMIF('Terv-segédlet'!$B:$B,$A36,'Terv-segédlet'!I:I) -> 0 | Z36: =SUMIF('Terv-segédlet'!$B:$B,$A36,'Terv-segédlet'!J:J) -> 0 | AA36: =SUMIF('Terv-segédlet'!$B:$B,$A36,'Terv-segédlet'!K:K) -> 0 | AB36: 0 | AC36: =SUMIF(V!$A:$A,$A36,V!$K:$K)+SUMIF(bank!$A:$A,AC$9&$A36,bank!$M:$M) -> 0 | AD36: =SUMIF(Gy!$A:$A,$A36,Gy!$K:$K)+SUMIF(bank!$A:$A,AD$9&$A36,bank!$M:$M) -> 0 | AE36: =SUMIF(K!$A:$A,$A36,K!$K:$K)+SUMIF(bank!$A:$A,AE$9&$A36,bank!$M:$M) -> 0 | AF36: =SUMIF(Mk!$A:$A,$A36,Mk!$K:$K)+SUMIF(bank!$A:$A,AF$9&$A36,bank!$M:$M) -> 0 | AG36: =SUMIF(M!$A:$A,$A36,M!$K:$K)+SUMIF(bank!$A:$A,AG$9&$A36,bank!$M:$M) -> 0 | AH36: =SUMIF(P!$A:$A,$A36,P!$K:$K)+SUMIF(bank!$A:$A,AH$9&$A36,bank!$M:$M) -> 0 | AI36: =SUMIF(Zs!$A:$A,$A36,Zs!$K:$K)+SUMIF(bank!$A:$A,AI$9&$A36,bank!$M:$M) -> 0 | AJ36: * | AK36: b | AM36: GAS támogatás - gyülekezeti felhasználásra kapott
A37: k028 | B37: 28 | D37: -Más egyházi jogi személytől | E37: -Más egyházi jogi személytől | F37: -Más egyházi jogi személytől | G37: -Más egyházi jogi személytől | H37: -Más egyházi jogi személytől | I37: -Más egyházi jogi személytől | J37: -Más egyházi jogi személytől | K37: -Más egyházi jogi személytől | L37: -Más egyházi jogi személytől | M37: -Más egyházi jogi személytől | N37: -Más egyházi jogi személytől | O37: -Más egyházi jogi személytől | P37: -Más egyházi jogi személytől | Q37: -Más egyházi jogi személytől | R37: -Más egyházi jogi személytől | S37: -Más egyházi jogi személytől | T37: 0 | U37: =SUMIF('Terv-segédlet'!$B:$B,$A37,'Terv-segédlet'!E:E) -> 0 | V37: =SUMIF('Terv-segédlet'!$B:$B,$A37,'Terv-segédlet'!F:F) -> 0 | W37: =SUMIF('Terv-segédlet'!$B:$B,$A37,'Terv-segédlet'!G:G) -> 0 | X37: =SUMIF('Terv-segédlet'!$B:$B,$A37,'Terv-segédlet'!H:H) -> 0 | Y37: =SUMIF('Terv-segédlet'!$B:$B,$A37,'Terv-segédlet'!I:I) -> 0 | Z37: =SUMIF('Terv-segédlet'!$B:$B,$A37,'Terv-segédlet'!J:J) -> 0 | AA37: =SUMIF('Terv-segédlet'!$B:$B,$A37,'Terv-segédlet'!K:K) -> 0 | AB37: 0 | AC37: =SUMIF(V!$A:$A,$A37,V!$K:$K)+SUMIF(bank!$A:$A,AC$9&$A37,bank!$M:$M) -> 0 | AD37: =SUMIF(Gy!$A:$A,$A37,Gy!$K:$K)+SUMIF(bank!$A:$A,AD$9&$A37,bank!$M:$M) -> 0 | AE37: =SUMIF(K!$A:$A,$A37,K!$K:$K)+SUMIF(bank!$A:$A,AE$9&$A37,bank!$M:$M) -> 0 | AF37: =SUMIF(Mk!$A:$A,$A37,Mk!$K:$K)+SUMIF(bank!$A:$A,AF$9&$A37,bank!$M:$M) -> 0 | AG37: =SUMIF(M!$A:$A,$A37,M!$K:$K)+SUMIF(bank!$A:$A,AG$9&$A37,bank!$M:$M) -> 0 | AH37: =SUMIF(P!$A:$A,$A37,P!$K:$K)+SUMIF(bank!$A:$A,AH$9&$A37,bank!$M:$M) -> 0 | AI37: =SUMIF(Zs!$A:$A,$A37,Zs!$K:$K)+SUMIF(bank!$A:$A,AI$9&$A37,bank!$M:$M) -> 0 | AJ37: * | AK37: b | AM37: más egyházközségtől, egyházmegyétől, egyházi intézménytől kapott támogatás (más adószám!)
A38: k029 | B38: 29 | D38: -Beruházási támogatás | T38: 1000000 | U38: =SUMIF('Terv-segédlet'!$B:$B,$A38,'Terv-segédlet'!E:E) -> 0 | V38: =SUMIF('Terv-segédlet'!$B:$B,$A38,'Terv-segédlet'!F:F) -> 0 | W38: =SUMIF('Terv-segédlet'!$B:$B,$A38,'Terv-segédlet'!G:G) -> 0 | X38: =SUMIF('Terv-segédlet'!$B:$B,$A38,'Terv-segédlet'!H:H) -> 1000000 | Y38: =SUMIF('Terv-segédlet'!$B:$B,$A38,'Terv-segédlet'!I:I) -> 0 | Z38: =SUMIF('Terv-segédlet'!$B:$B,$A38,'Terv-segédlet'!J:J) -> 0 | AA38: =SUMIF('Terv-segédlet'!$B:$B,$A38,'Terv-segédlet'!K:K) -> 0 | AB38: 0 | AC38: =SUMIF(V!$A:$A,$A38,V!$K:$K)+SUMIF(bank!$A:$A,AC$9&$A38,bank!$M:$M) -> 0 | AD38: =SUMIF(Gy!$A:$A,$A38,Gy!$K:$K)+SUMIF(bank!$A:$A,AD$9&$A38,bank!$M:$M) -> 0 | AE38: =SUMIF(K!$A:$A,$A38,K!$K:$K)+SUMIF(bank!$A:$A,AE$9&$A38,bank!$M:$M) -> 0 | AF38: =SUMIF(Mk!$A:$A,$A38,Mk!$K:$K)+SUMIF(bank!$A:$A,AF$9&$A38,bank!$M:$M) -> 0 | AG38: =SUMIF(M!$A:$A,$A38,M!$K:$K)+SUMIF(bank!$A:$A,AG$9&$A38,bank!$M:$M) -> 0 | AH38: =SUMIF(P!$A:$A,$A38,P!$K:$K)+SUMIF(bank!$A:$A,AH$9&$A38,bank!$M:$M) -> 0 | AI38: =SUMIF(Zs!$A:$A,$A38,Zs!$K:$K)+SUMIF(bank!$A:$A,AI$9&$A38,bank!$M:$M) -> 0 | AJ38: * | AK38: b | AL38: 0 | AM38: MEE-től beruházás céljára kapott támogatás (országos, kerületi, megyei keret terhére)
A39: k030 | B39: 30 | D39: -Egyházi pályázati támogatás | E39: -Egyházi pályázati támogatás | F39: -Egyházi pályázati támogatás | G39: -Egyházi pályázati támogatás | H39: -Egyházi pályázati támogatás | I39: -Egyházi pályázati támogatás | J39: -Egyházi pályázati támogatás | K39: -Egyházi pályázati támogatás | L39: -Egyházi pályázati támogatás | M39: -Egyházi pályázati támogatás | N39: -Egyházi pályázati támogatás | O39: -Egyházi pályázati támogatás | P39: -Egyházi pályázati támogatás | Q39: -Egyházi pályázati támogatás | R39: -Egyházi pályázati támogatás | S39: -Egyházi pályázati támogatás | T39: 0 | U39: =SUMIF('Terv-segédlet'!$B:$B,$A39,'Terv-segédlet'!E:E) -> 0 | V39: =SUMIF('Terv-segédlet'!$B:$B,$A39,'Terv-segédlet'!F:F) -> 0 | W39: =SUMIF('Terv-segédlet'!$B:$B,$A39,'Terv-segédlet'!G:G) -> 0 | X39: =SUMIF('Terv-segédlet'!$B:$B,$A39,'Terv-segédlet'!H:H) -> 0 | Y39: =SUMIF('Terv-segédlet'!$B:$B,$A39,'Terv-segédlet'!I:I) -> 0 | Z39: =SUMIF('Terv-segédlet'!$B:$B,$A39,'Terv-segédlet'!J:J) -> 0 | AA39: =SUMIF('Terv-segédlet'!$B:$B,$A39,'Terv-segédlet'!K:K) -> 0 | AB39: 0 | AC39: =SUMIF(V!$A:$A,$A39,V!$K:$K)+SUMIF(bank!$A:$A,AC$9&$A39,bank!$M:$M) -> 0 | AD39: =SUMIF(Gy!$A:$A,$A39,Gy!$K:$K)+SUMIF(bank!$A:$A,AD$9&$A39,bank!$M:$M) -> 0 | AE39: =SUMIF(K!$A:$A,$A39,K!$K:$K)+SUMIF(bank!$A:$A,AE$9&$A39,bank!$M:$M) -> 0 | AF39: =SUMIF(Mk!$A:$A,$A39,Mk!$K:$K)+SUMIF(bank!$A:$A,AF$9&$A39,bank!$M:$M) -> 0 | AG39: =SUMIF(M!$A:$A,$A39,M!$K:$K)+SUMIF(bank!$A:$A,AG$9&$A39,bank!$M:$M) -> 0 | AH39: =SUMIF(P!$A:$A,$A39,P!$K:$K)+SUMIF(bank!$A:$A,AH$9&$A39,bank!$M:$M) -> 0 | AI39: =SUMIF(Zs!$A:$A,$A39,Zs!$K:$K)+SUMIF(bank!$A:$A,AI$9&$A39,bank!$M:$M) -> 0 | AJ39: * | AK39: b | AM39: ifjúsági, zenei, missziós, stb. egyházi pályázaton nyert támogatás
A40: k031 | B40: 31 | D40: -Pályázati előkészítési és önrész támogatás | E40: -Pályázati előkészítési és önrész támogatás | F40: -Pályázati előkészítési és önrész támogatás | G40: -Pályázati előkészítési és önrész támogatás | H40: -Pályázati előkészítési és önrész támogatás | I40: -Pályázati előkészítési és önrész támogatás | J40: -Pályázati előkészítési és önrész támogatás | K40: -Pályázati előkészítési és önrész támogatás | L40: -Pályázati előkészítési és önrész támogatás | M40: -Pályázati előkészítési és önrész támogatás | N40: -Pályázati előkészítési és önrész támogatás | O40: -Pályázati előkészítési és önrész támogatás | P40: -Pályázati előkészítési és önrész támogatás | Q40: -Pályázati előkészítési és önrész támogatás | R40: -Pályázati előkészítési és önrész támogatás | S40: -Pályázati előkészítési és önrész támogatás | T40: 0 | U40: =SUMIF('Terv-segédlet'!$B:$B,$A40,'Terv-segédlet'!E:E) -> 0 | V40: =SUMIF('Terv-segédlet'!$B:$B,$A40,'Terv-segédlet'!F:F) -> 0 | W40: =SUMIF('Terv-segédlet'!$B:$B,$A40,'Terv-segédlet'!G:G) -> 0 | X40: =SUMIF('Terv-segédlet'!$B:$B,$A40,'Terv-segédlet'!H:H) -> 0 | Y40: =SUMIF('Terv-segédlet'!$B:$B,$A40,'Terv-segédlet'!I:I) -> 0 | Z40: =SUMIF('Terv-segédlet'!$B:$B,$A40,'Terv-segédlet'!J:J) -> 0 | AA40: =SUMIF('Terv-segédlet'!$B:$B,$A40,'Terv-segédlet'!K:K) -> 0 | AB40: 0 | AC40: =SUMIF(V!$A:$A,$A40,V!$K:$K)+SUMIF(bank!$A:$A,AC$9&$A40,bank!$M:$M) -> 0 | AD40: =SUMIF(Gy!$A:$A,$A40,Gy!$K:$K)+SUMIF(bank!$A:$A,AD$9&$A40,bank!$M:$M) -> 0 | AE40: =SUMIF(K!$A:$A,$A40,K!$K:$K)+SUMIF(bank!$A:$A,AE$9&$A40,bank!$M:$M) -> 0 | AF40: =SUMIF(Mk!$A:$A,$A40,Mk!$K:$K)+SUMIF(bank!$A:$A,AF$9&$A40,bank!$M:$M) -> 0 | AG40: =SUMIF(M!$A:$A,$A40,M!$K:$K)+SUMIF(bank!$A:$A,AG$9&$A40,bank!$M:$M) -> 0 | AH40: =SUMIF(P!$A:$A,$A40,P!$K:$K)+SUMIF(bank!$A:$A,AH$9&$A40,bank!$M:$M) -> 0 | AI40: =SUMIF(Zs!$A:$A,$A40,Zs!$K:$K)+SUMIF(bank!$A:$A,AI$9&$A40,bank!$M:$M) -> 0 | AJ40: * | AK40: b | AM40: MEE által folyósított pályázati előkészítési- és önrésztámogatás
A41: k032 | B41: =+B40+1 -> 32 | D41: -Utiköltség támogatás | E41: -Pályázati előkészítési és önrész támogatás | F41: -Pályázati előkészítési és önrész támogatás | G41: -Pályázati előkészítési és önrész támogatás | H41: -Pályázati előkészítési és önrész támogatás | I41: -Pályázati előkészítési és önrész támogatás | J41: -Pályázati előkészítési és önrész támogatás | K41: -Pályázati előkészítési és önrész támogatás | L41: -Pályázati előkészítési és önrész támogatás | M41: -Pályázati előkészítési és önrész támogatás | N41: -Pályázati előkészítési és önrész támogatás | O41: -Pályázati előkészítési és önrész támogatás | P41: -Pályázati előkészítési és önrész támogatás | Q41: -Pályázati előkészítési és önrész támogatás | R41: -Pályázati előkészítési és önrész támogatás | S41: -Pályázati előkészítési és önrész támogatás | T41: 0 | U41: =SUMIF('Terv-segédlet'!$B:$B,$A41,'Terv-segédlet'!E:E) -> 0 | V41: =SUMIF('Terv-segédlet'!$B:$B,$A41,'Terv-segédlet'!F:F) -> 0 | W41: =SUMIF('Terv-segédlet'!$B:$B,$A41,'Terv-segédlet'!G:G) -> 0 | X41: =SUMIF('Terv-segédlet'!$B:$B,$A41,'Terv-segédlet'!H:H) -> 0 | Y41: =SUMIF('Terv-segédlet'!$B:$B,$A41,'Terv-segédlet'!I:I) -> 0 | Z41: =SUMIF('Terv-segédlet'!$B:$B,$A41,'Terv-segédlet'!J:J) -> 0 | AA41: =SUMIF('Terv-segédlet'!$B:$B,$A41,'Terv-segédlet'!K:K) -> 0 | AB41: 0 | AC41: =SUMIF(V!$A:$A,$A41,V!$K:$K)+SUMIF(bank!$A:$A,AC$9&$A41,bank!$M:$M) -> 0 | AD41: =SUMIF(Gy!$A:$A,$A41,Gy!$K:$K)+SUMIF(bank!$A:$A,AD$9&$A41,bank!$M:$M) -> 0 | AE41: =SUMIF(K!$A:$A,$A41,K!$K:$K)+SUMIF(bank!$A:$A,AE$9&$A41,bank!$M:$M) -> 0 | AF41: =SUMIF(Mk!$A:$A,$A41,Mk!$K:$K)+SUMIF(bank!$A:$A,AF$9&$A41,bank!$M:$M) -> 0 | AG41: =SUMIF(M!$A:$A,$A41,M!$K:$K)+SUMIF(bank!$A:$A,AG$9&$A41,bank!$M:$M) -> 0 | AH41: =SUMIF(P!$A:$A,$A41,P!$K:$K)+SUMIF(bank!$A:$A,AH$9&$A41,bank!$M:$M) -> 0 | AI41: =SUMIF(Zs!$A:$A,$A41,Zs!$K:$K)+SUMIF(bank!$A:$A,AI$9&$A41,bank!$M:$M) -> 0 | AJ41: * | AK41: b | AM41: belső egyházi forrásból fizetett utiköltség (pl. tisztségviselők utiköltségtérítése)
A42: k033 | B42: =+B41+1 -> 33 | D42: -Belső egyházi forrásból kapott egyéb juttatás | E42: -Belső egyházi forrásból kapott egyéb juttatás | F42: -Belső egyházi forrásból kapott egyéb juttatás | G42: -Belső egyházi forrásból kapott egyéb juttatás | H42: -Belső egyházi forrásból kapott egyéb juttatás | I42: -Belső egyházi forrásból kapott egyéb juttatás | J42: -Belső egyházi forrásból kapott egyéb juttatás | K42: -Belső egyházi forrásból kapott egyéb juttatás | L42: -Belső egyházi forrásból kapott egyéb juttatás | M42: -Belső egyházi forrásból kapott egyéb juttatás | N42: -Belső egyházi forrásból kapott egyéb juttatás | O42: -Belső egyházi forrásból kapott egyéb juttatás | P42: -Belső egyházi forrásból kapott egyéb juttatás | Q42: -Belső egyházi forrásból kapott egyéb juttatás | R42: -Belső egyházi forrásból kapott egyéb juttatás | S42: -Belső egyházi forrásból kapott egyéb juttatás | T42: 0 | U42: =SUMIF('Terv-segédlet'!$B:$B,$A42,'Terv-segédlet'!E:E) -> 0 | V42: =SUMIF('Terv-segédlet'!$B:$B,$A42,'Terv-segédlet'!F:F) -> 0 | W42: =SUMIF('Terv-segédlet'!$B:$B,$A42,'Terv-segédlet'!G:G) -> 0 | X42: =SUMIF('Terv-segédlet'!$B:$B,$A42,'Terv-segédlet'!H:H) -> 0 | Y42: =SUMIF('Terv-segédlet'!$B:$B,$A42,'Terv-segédlet'!I:I) -> 0 | Z42: =SUMIF('Terv-segédlet'!$B:$B,$A42,'Terv-segédlet'!J:J) -> 0 | AA42: =SUMIF('Terv-segédlet'!$B:$B,$A42,'Terv-segédlet'!K:K) -> 0 | AB42: 0 | AC42: =SUMIF(V!$A:$A,$A42,V!$K:$K)+SUMIF(bank!$A:$A,AC$9&$A42,bank!$M:$M) -> 0 | AD42: =SUMIF(Gy!$A:$A,$A42,Gy!$K:$K)+SUMIF(bank!$A:$A,AD$9&$A42,bank!$M:$M) -> 0 | AE42: =SUMIF(K!$A:$A,$A42,K!$K:$K)+SUMIF(bank!$A:$A,AE$9&$A42,bank!$M:$M) -> 0 | AF42: =SUMIF(Mk!$A:$A,$A42,Mk!$K:$K)+SUMIF(bank!$A:$A,AF$9&$A42,bank!$M:$M) -> 0 | AG42: =SUMIF(M!$A:$A,$A42,M!$K:$K)+SUMIF(bank!$A:$A,AG$9&$A42,bank!$M:$M) -> 0 | AH42: =SUMIF(P!$A:$A,$A42,P!$K:$K)+SUMIF(bank!$A:$A,AH$9&$A42,bank!$M:$M) -> 0 | AI42: =SUMIF(Zs!$A:$A,$A42,Zs!$K:$K)+SUMIF(bank!$A:$A,AI$9&$A42,bank!$M:$M) -> 0 | AJ42: * | AK42: b | AM42: MEE által folyósított egyéb támogatások (pl. rendezvényszervezésre - kerületi nap; belső kártalanítás)
A43: k034 | B43: 34 | D43: ab) Külföldi egyházi | E43: ab) Külföldi egyházi | F43: ab) Külföldi egyházi | G43: ab) Külföldi egyházi | H43: ab) Külföldi egyházi | I43: ab) Külföldi egyházi | J43: ab) Külföldi egyházi | K43: ab) Külföldi egyházi | L43: ab) Külföldi egyházi | M43: ab) Külföldi egyházi | N43: ab) Külföldi egyházi | O43: ab) Külföldi egyházi | P43: ab) Külföldi egyházi | Q43: ab) Külföldi egyházi | R43: ab) Külföldi egyházi | S43: ab) Külföldi egyházi | T43: 0 | U43: =SUMIF('Terv-segédlet'!$B:$B,$A43,'Terv-segédlet'!E:E) -> 0 | V43: =SUMIF('Terv-segédlet'!$B:$B,$A43,'Terv-segédlet'!F:F) -> 0 | W43: =SUMIF('Terv-segédlet'!$B:$B,$A43,'Terv-segédlet'!G:G) -> 0 | X43: =SUMIF('Terv-segédlet'!$B:$B,$A43,'Terv-segédlet'!H:H) -> 0 | Y43: =SUMIF('Terv-segédlet'!$B:$B,$A43,'Terv-segédlet'!I:I) -> 0 | Z43: =SUMIF('Terv-segédlet'!$B:$B,$A43,'Terv-segédlet'!J:J) -> 0 | AA43: =SUMIF('Terv-segédlet'!$B:$B,$A43,'Terv-segédlet'!K:K) -> 0 | AB43: 0 | AC43: =SUMIF(V!$A:$A,$A43,V!$K:$K)+SUMIF(bank!$A:$A,AC$9&$A43,bank!$M:$M) -> 0 | AD43: =SUMIF(Gy!$A:$A,$A43,Gy!$K:$K)+SUMIF(bank!$A:$A,AD$9&$A43,bank!$M:$M) -> 0 | AE43: =SUMIF(K!$A:$A,$A43,K!$K:$K)+SUMIF(bank!$A:$A,AE$9&$A43,bank!$M:$M) -> 0 | AF43: =SUMIF(Mk!$A:$A,$A43,Mk!$K:$K)+SUMIF(bank!$A:$A,AF$9&$A43,bank!$M:$M) -> 0 | AG43: =SUMIF(M!$A:$A,$A43,M!$K:$K)+SUMIF(bank!$A:$A,AG$9&$A43,bank!$M:$M) -> 0 | AH43: =SUMIF(P!$A:$A,$A43,P!$K:$K)+SUMIF(bank!$A:$A,AH$9&$A43,bank!$M:$M) -> 0 | AI43: =SUMIF(Zs!$A:$A,$A43,Zs!$K:$K)+SUMIF(bank!$A:$A,AI$9&$A43,bank!$M:$M) -> 0 | AJ43: * | AK43: b | AM43: Bajor segély, GAW segély, LVSZ segély, Testvérgyülekezetektől kapott támogatások
A44: k035 | B44: 35 | D44: b) Központi költségvetés (36..40) | E44: b) Központi költségvetés (36..40) | F44: b) Központi költségvetés (36..40) | G44: b) Központi költségvetés (36..40) | H44: b) Központi költségvetés (36..40) | I44: b) Központi költségvetés (36..40) | J44: b) Központi költségvetés (36..40) | K44: b) Központi költségvetés (36..40) | L44: b) Központi költségvetés (36..40) | M44: b) Központi költségvetés (36..40) | N44: b) Központi költségvetés (36..40) | O44: b) Központi költségvetés (36..40) | P44: b) Központi költségvetés (36..40) | Q44: b) Központi költségvetés (36..40) | R44: b) Központi költségvetés (36..40) | S44: b) Központi költségvetés (36..40) | T44: =SUM(T45:T49) -> 0 | U44: =SUM(U45:U49) -> 0 | V44: =SUM(V45:V49) -> 0 | W44: =SUM(W45:W49) -> 0 | X44: =SUM(X45:X49) -> 0 | Y44: =SUM(Y45:Y49) -> 0 | Z44: =SUM(Z45:Z49) -> 0 | AA44: =SUM(AA45:AA49) -> 0 | AB44: =SUM(AB45:AB49) -> 0 | AC44: =SUM(AC45:AC49) -> 0 | AD44: =SUM(AD45:AD49) -> 0 | AE44: 0 | AF44: 0 | AG44: 0 | AH44: 0 | AI44: 0 | AK44: b
A45: k036 | B45: 36 | D45: -Köznevelési támogatás | E45: -Köznevelési normatív támogatás | F45: -Köznevelési normatív támogatás | G45: -Köznevelési normatív támogatás | H45: -Köznevelési normatív támogatás | I45: -Köznevelési normatív támogatás | J45: -Köznevelési normatív támogatás | K45: -Köznevelési normatív támogatás | L45: -Köznevelési normatív támogatás | M45: -Köznevelési normatív támogatás | N45: -Köznevelési normatív támogatás | O45: -Köznevelési normatív támogatás | P45: -Köznevelési normatív támogatás | Q45: -Köznevelési normatív támogatás | R45: -Köznevelési normatív támogatás | S45: -Köznevelési normatív támogatás | T45: =SUM(U45:AA45) -> 0 | U45: =SUMIF('Terv-segédlet'!$B:$B,$A45,'Terv-segédlet'!E:E) -> 0 | V45: =SUMIF('Terv-segédlet'!$B:$B,$A45,'Terv-segédlet'!F:F) -> 0 | W45: =SUMIF('Terv-segédlet'!$B:$B,$A45,'Terv-segédlet'!G:G) -> 0 | X45: =SUMIF('Terv-segédlet'!$B:$B,$A45,'Terv-segédlet'!H:H) -> 0 | Y45: =SUMIF('Terv-segédlet'!$B:$B,$A45,'Terv-segédlet'!I:I) -> 0 | Z45: =SUMIF('Terv-segédlet'!$B:$B,$A45,'Terv-segédlet'!J:J) -> 0 | AA45: =SUMIF('Terv-segédlet'!$B:$B,$A45,'Terv-segédlet'!K:K) -> 0 | AB45: =SUM(AC45:AI45) -> 0 | AC45: =SUMIF(V!$A:$A,$A45,V!$K:$K)+SUMIF(bank!$A:$A,AC$9&$A45,bank!$M:$M) -> 0 | AD45: =SUMIF(Gy!$A:$A,$A45,Gy!$K:$K)+SUMIF(bank!$A:$A,AD$9&$A45,bank!$M:$M) -> 0 | AE45: =SUMIF(K!$A:$A,$A45,K!$K:$K)+SUMIF(bank!$A:$A,AE$9&$A45,bank!$M:$M) -> 0 | AF45: =SUMIF(Mk!$A:$A,$A45,Mk!$K:$K)+SUMIF(bank!$A:$A,AF$9&$A45,bank!$M:$M) -> 0 | AG45: =SUMIF(M!$A:$A,$A45,M!$K:$K)+SUMIF(bank!$A:$A,AG$9&$A45,bank!$M:$M) -> 0 | AH45: =SUMIF(P!$A:$A,$A45,P!$K:$K)+SUMIF(bank!$A:$A,AH$9&$A45,bank!$M:$M) -> 0 | AI45: =SUMIF(Zs!$A:$A,$A45,Zs!$K:$K)+SUMIF(bank!$A:$A,AI$9&$A45,bank!$M:$M) -> 0 | AJ45: * | AK45: b | AM45: köznevelési intézmény állami támogatása
A46: k037 | B46: 37 | D46: -Szociális támogatás | E46: -Szociális normatív támogatás | F46: -Szociális normatív támogatás | G46: -Szociális normatív támogatás | H46: -Szociális normatív támogatás | I46: -Szociális normatív támogatás | J46: -Szociális normatív támogatás | K46: -Szociális normatív támogatás | L46: -Szociális normatív támogatás | M46: -Szociális normatív támogatás | N46: -Szociális normatív támogatás | O46: -Szociális normatív támogatás | P46: -Szociális normatív támogatás | Q46: -Szociális normatív támogatás | R46: -Szociális normatív támogatás | S46: -Szociális normatív támogatás | T46: 0 | U46: =SUMIF('Terv-segédlet'!$B:$B,$A46,'Terv-segédlet'!E:E) -> 0 | V46: =SUMIF('Terv-segédlet'!$B:$B,$A46,'Terv-segédlet'!F:F) -> 0 | W46: =SUMIF('Terv-segédlet'!$B:$B,$A46,'Terv-segédlet'!G:G) -> 0 | X46: =SUMIF('Terv-segédlet'!$B:$B,$A46,'Terv-segédlet'!H:H) -> 0 | Y46: =SUMIF('Terv-segédlet'!$B:$B,$A46,'Terv-segédlet'!I:I) -> 0 | Z46: =SUMIF('Terv-segédlet'!$B:$B,$A46,'Terv-segédlet'!J:J) -> 0 | AA46: =SUMIF('Terv-segédlet'!$B:$B,$A46,'Terv-segédlet'!K:K) -> 0 | AB46: 0 | AC46: =SUMIF(V!$A:$A,$A46,V!$K:$K)+SUMIF(bank!$A:$A,AC$9&$A46,bank!$M:$M) -> 0 | AD46: =SUMIF(Gy!$A:$A,$A46,Gy!$K:$K)+SUMIF(bank!$A:$A,AD$9&$A46,bank!$M:$M) -> 0 | AE46: =SUMIF(K!$A:$A,$A46,K!$K:$K)+SUMIF(bank!$A:$A,AE$9&$A46,bank!$M:$M) -> 0 | AF46: =SUMIF(Mk!$A:$A,$A46,Mk!$K:$K)+SUMIF(bank!$A:$A,AF$9&$A46,bank!$M:$M) -> 0 | AG46: =SUMIF(M!$A:$A,$A46,M!$K:$K)+SUMIF(bank!$A:$A,AG$9&$A46,bank!$M:$M) -> 0 | AH46: =SUMIF(P!$A:$A,$A46,P!$K:$K)+SUMIF(bank!$A:$A,AH$9&$A46,bank!$M:$M) -> 0 | AI46: =SUMIF(Zs!$A:$A,$A46,Zs!$K:$K)+SUMIF(bank!$A:$A,AI$9&$A46,bank!$M:$M) -> 0 | AJ46: * | AK46: b | AM46: szociális intézmény állami támogatása
A47: k038 | B47: 38 | D47: -Hitoktatási, munkaügyi költségvetési támogatás | E47: -Hitoktatási, munkaügyi költségvetési támogatás | F47: -Hitoktatási, munkaügyi költségvetési támogatás | G47: -Hitoktatási, munkaügyi költségvetési támogatás | H47: -Hitoktatási, munkaügyi költségvetési támogatás | I47: -Hitoktatási, munkaügyi költségvetési támogatás | J47: -Hitoktatási, munkaügyi költségvetési támogatás | K47: -Hitoktatási, munkaügyi költségvetési támogatás | L47: -Hitoktatási, munkaügyi költségvetési támogatás | M47: -Hitoktatási, munkaügyi költségvetési támogatás | N47: -Hitoktatási, munkaügyi költségvetési támogatás | O47: -Hitoktatási, munkaügyi költségvetési támogatás | P47: -Hitoktatási, munkaügyi költségvetési támogatás | Q47: -Hitoktatási, munkaügyi költségvetési támogatás | R47: -Hitoktatási, munkaügyi költségvetési támogatás | S47: -Hitoktatási, munkaügyi költségvetési támogatás | T47: 0 | U47: =SUMIF('Terv-segédlet'!$B:$B,$A47,'Terv-segédlet'!E:E) -> 0 | V47: =SUMIF('Terv-segédlet'!$B:$B,$A47,'Terv-segédlet'!F:F) -> 0 | W47: =SUMIF('Terv-segédlet'!$B:$B,$A47,'Terv-segédlet'!G:G) -> 0 | X47: =SUMIF('Terv-segédlet'!$B:$B,$A47,'Terv-segédlet'!H:H) -> 0 | Y47: =SUMIF('Terv-segédlet'!$B:$B,$A47,'Terv-segédlet'!I:I) -> 0 | Z47: =SUMIF('Terv-segédlet'!$B:$B,$A47,'Terv-segédlet'!J:J) -> 0 | AA47: =SUMIF('Terv-segédlet'!$B:$B,$A47,'Terv-segédlet'!K:K) -> 0 | AB47: 0 | AC47: =SUMIF(V!$A:$A,$A47,V!$K:$K)+SUMIF(bank!$A:$A,AC$9&$A47,bank!$M:$M) -> 0 | AD47: =SUMIF(Gy!$A:$A,$A47,Gy!$K:$K)+SUMIF(bank!$A:$A,AD$9&$A47,bank!$M:$M) -> 0 | AE47: =SUMIF(K!$A:$A,$A47,K!$K:$K)+SUMIF(bank!$A:$A,AE$9&$A47,bank!$M:$M) -> 0 | AF47: =SUMIF(Mk!$A:$A,$A47,Mk!$K:$K)+SUMIF(bank!$A:$A,AF$9&$A47,bank!$M:$M) -> 0 | AG47: =SUMIF(M!$A:$A,$A47,M!$K:$K)+SUMIF(bank!$A:$A,AG$9&$A47,bank!$M:$M) -> 0 | AH47: =SUMIF(P!$A:$A,$A47,P!$K:$K)+SUMIF(bank!$A:$A,AH$9&$A47,bank!$M:$M) -> 0 | AI47: =SUMIF(Zs!$A:$A,$A47,Zs!$K:$K)+SUMIF(bank!$A:$A,AI$9&$A47,bank!$M:$M) -> 0 | AJ47: * | AK47: b | AM47: MEE-n keresztül hitoktatási támogatás, továbbá munkaügyi (pl. közfoglalkoztatásra kapott) támogatás
A48: k039 | B48: 39 | D48: -Járadék támogatás | E48: -Járadék támogatás | F48: -Járadék támogatás | G48: -Járadék támogatás | H48: -Járadék támogatás | I48: -Járadék támogatás | J48: -Járadék támogatás | K48: -Járadék támogatás | L48: -Járadék támogatás | M48: -Járadék támogatás | N48: -Járadék támogatás | O48: -Járadék támogatás | P48: -Járadék támogatás | Q48: -Járadék támogatás | R48: -Járadék támogatás | S48: -Járadék támogatás | T48: 0 | U48: =SUMIF('Terv-segédlet'!$B:$B,$A48,'Terv-segédlet'!E:E) -> 0 | V48: =SUMIF('Terv-segédlet'!$B:$B,$A48,'Terv-segédlet'!F:F) -> 0 | W48: =SUMIF('Terv-segédlet'!$B:$B,$A48,'Terv-segédlet'!G:G) -> 0 | X48: =SUMIF('Terv-segédlet'!$B:$B,$A48,'Terv-segédlet'!H:H) -> 0 | Y48: =SUMIF('Terv-segédlet'!$B:$B,$A48,'Terv-segédlet'!I:I) -> 0 | Z48: =SUMIF('Terv-segédlet'!$B:$B,$A48,'Terv-segédlet'!J:J) -> 0 | AA48: =SUMIF('Terv-segédlet'!$B:$B,$A48,'Terv-segédlet'!K:K) -> 0 | AB48: 0 | AC48: =SUMIF(V!$A:$A,$A48,V!$K:$K)+SUMIF(bank!$A:$A,AC$9&$A48,bank!$M:$M) -> 0 | AD48: =SUMIF(Gy!$A:$A,$A48,Gy!$K:$K)+SUMIF(bank!$A:$A,AD$9&$A48,bank!$M:$M) -> 0 | AE48: =SUMIF(K!$A:$A,$A48,K!$K:$K)+SUMIF(bank!$A:$A,AE$9&$A48,bank!$M:$M) -> 0 | AF48: =SUMIF(Mk!$A:$A,$A48,Mk!$K:$K)+SUMIF(bank!$A:$A,AF$9&$A48,bank!$M:$M) -> 0 | AG48: =SUMIF(M!$A:$A,$A48,M!$K:$K)+SUMIF(bank!$A:$A,AG$9&$A48,bank!$M:$M) -> 0 | AH48: =SUMIF(P!$A:$A,$A48,P!$K:$K)+SUMIF(bank!$A:$A,AH$9&$A48,bank!$M:$M) -> 0 | AI48: =SUMIF(Zs!$A:$A,$A48,Zs!$K:$K)+SUMIF(bank!$A:$A,AI$9&$A48,bank!$M:$M) -> 0 | AJ48: * | AK48: b | AM48: járadék, gyűjteményi támogatás
A49: k040 | B49: 40 | D49: -Egyéb központi költségvetési támogatás | E49: -Egyéb központi költségvetési támogatás | F49: -Egyéb központi költségvetési támogatás | G49: -Egyéb központi költségvetési támogatás | H49: -Egyéb központi költségvetési támogatás | I49: -Egyéb központi költségvetési támogatás | J49: -Egyéb központi költségvetési támogatás | K49: -Egyéb központi költségvetési támogatás | L49: -Egyéb központi költségvetési támogatás | M49: -Egyéb központi költségvetési támogatás | N49: -Egyéb központi költségvetési támogatás | O49: -Egyéb központi költségvetési támogatás | P49: -Egyéb központi költségvetési támogatás | Q49: -Egyéb központi költségvetési támogatás | R49: -Egyéb központi költségvetési támogatás | S49: -Egyéb központi költségvetési támogatás | T49: 0 | U49: =SUMIF('Terv-segédlet'!$B:$B,$A49,'Terv-segédlet'!E:E) -> 0 | V49: =SUMIF('Terv-segédlet'!$B:$B,$A49,'Terv-segédlet'!F:F) -> 0 | W49: =SUMIF('Terv-segédlet'!$B:$B,$A49,'Terv-segédlet'!G:G) -> 0 | X49: =SUMIF('Terv-segédlet'!$B:$B,$A49,'Terv-segédlet'!H:H) -> 0 | Y49: =SUMIF('Terv-segédlet'!$B:$B,$A49,'Terv-segédlet'!I:I) -> 0 | Z49: =SUMIF('Terv-segédlet'!$B:$B,$A49,'Terv-segédlet'!J:J) -> 0 | AA49: =SUMIF('Terv-segédlet'!$B:$B,$A49,'Terv-segédlet'!K:K) -> 0 | AB49: 0 | AC49: =SUMIF(V!$A:$A,$A49,V!$K:$K)+SUMIF(bank!$A:$A,AC$9&$A49,bank!$M:$M) -> 0 | AD49: =SUMIF(Gy!$A:$A,$A49,Gy!$K:$K)+SUMIF(bank!$A:$A,AD$9&$A49,bank!$M:$M) -> 0 | AE49: =SUMIF(K!$A:$A,$A49,K!$K:$K)+SUMIF(bank!$A:$A,AE$9&$A49,bank!$M:$M) -> 0 | AF49: =SUMIF(Mk!$A:$A,$A49,Mk!$K:$K)+SUMIF(bank!$A:$A,AF$9&$A49,bank!$M:$M) -> 0 | AG49: =SUMIF(M!$A:$A,$A49,M!$K:$K)+SUMIF(bank!$A:$A,AG$9&$A49,bank!$M:$M) -> 0 | AH49: =SUMIF(P!$A:$A,$A49,P!$K:$K)+SUMIF(bank!$A:$A,AH$9&$A49,bank!$M:$M) -> 0 | AI49: =SUMIF(Zs!$A:$A,$A49,Zs!$K:$K)+SUMIF(bank!$A:$A,AI$9&$A49,bank!$M:$M) -> 0 | AJ49: * | AK49: b | AM49: bérkompenzáció, költségvetési beruházási támogatás, ágazati pótlék, stb.
A50: k041 | B50: 41 | D50: c) Helyi, megyei önkormányzati támogatás | E50: c) Helyi, megyei önkormányzati támogatás | F50: c) Helyi, megyei önkormányzati támogatás | G50: c) Helyi, megyei önkormányzati támogatás | H50: c) Helyi, megyei önkormányzati támogatás | I50: c) Helyi, megyei önkormányzati támogatás | J50: c) Helyi, megyei önkormányzati támogatás | K50: c) Helyi, megyei önkormányzati támogatás | L50: c) Helyi, megyei önkormányzati támogatás | M50: c) Helyi, megyei önkormányzati támogatás | N50: c) Helyi, megyei önkormányzati támogatás | O50: c) Helyi, megyei önkormányzati támogatás | P50: c) Helyi, megyei önkormányzati támogatás | Q50: c) Helyi, megyei önkormányzati támogatás | R50: c) Helyi, megyei önkormányzati támogatás | S50: c) Helyi, megyei önkormányzati támogatás | T50: 0 | U50: =SUMIF('Terv-segédlet'!$B:$B,$A50,'Terv-segédlet'!E:E) -> 0 | V50: =SUMIF('Terv-segédlet'!$B:$B,$A50,'Terv-segédlet'!F:F) -> 0 | W50: =SUMIF('Terv-segédlet'!$B:$B,$A50,'Terv-segédlet'!G:G) -> 0 | X50: =SUMIF('Terv-segédlet'!$B:$B,$A50,'Terv-segédlet'!H:H) -> 0 | Y50: =SUMIF('Terv-segédlet'!$B:$B,$A50,'Terv-segédlet'!I:I) -> 0 | Z50: =SUMIF('Terv-segédlet'!$B:$B,$A50,'Terv-segédlet'!J:J) -> 0 | AA50: =SUMIF('Terv-segédlet'!$B:$B,$A50,'Terv-segédlet'!K:K) -> 0 | AB50: 0 | AC50: =SUMIF(V!$A:$A,$A50,V!$K:$K)+SUMIF(bank!$A:$A,AC$9&$A50,bank!$M:$M) -> 0 | AD50: =SUMIF(Gy!$A:$A,$A50,Gy!$K:$K)+SUMIF(bank!$A:$A,AD$9&$A50,bank!$M:$M) -> 0 | AE50: =SUMIF(K!$A:$A,$A50,K!$K:$K)+SUMIF(bank!$A:$A,AE$9&$A50,bank!$M:$M) -> 0 | AF50: =SUMIF(Mk!$A:$A,$A50,Mk!$K:$K)+SUMIF(bank!$A:$A,AF$9&$A50,bank!$M:$M) -> 0 | AG50: =SUMIF(M!$A:$A,$A50,M!$K:$K)+SUMIF(bank!$A:$A,AG$9&$A50,bank!$M:$M) -> 0 | AH50: =SUMIF(P!$A:$A,$A50,P!$K:$K)+SUMIF(bank!$A:$A,AH$9&$A50,bank!$M:$M) -> 0 | AI50: =SUMIF(Zs!$A:$A,$A50,Zs!$K:$K)+SUMIF(bank!$A:$A,AI$9&$A50,bank!$M:$M) -> 0 | AJ50: * | AK50: b | AM50: helyi, megyei, kisebbségi önkormányzatoktól kapott támogatás
A51: k042 | B51: 42 | D51: d) Egyéb támogatások (43+47+53) | E51: d) Egyéb támogatások (da+db+dc) | F51: d) Egyéb támogatások (da+db+dc) | G51: d) Egyéb támogatások (da+db+dc) | H51: d) Egyéb támogatások (da+db+dc) | I51: d) Egyéb támogatások (da+db+dc) | J51: d) Egyéb támogatások (da+db+dc) | K51: d) Egyéb támogatások (da+db+dc) | L51: d) Egyéb támogatások (da+db+dc) | M51: d) Egyéb támogatások (da+db+dc) | N51: d) Egyéb támogatások (da+db+dc) | O51: d) Egyéb támogatások (da+db+dc) | P51: d) Egyéb támogatások (da+db+dc) | Q51: d) Egyéb támogatások (da+db+dc) | R51: d) Egyéb támogatások (da+db+dc) | S51: d) Egyéb támogatások (da+db+dc) | T51: =SUM(T52,T57,T63) -> 5598000 | U51: =SUM(U52,U57,U63) -> 547000 | V51: =SUM(V52,V57,V63) -> 193000 | W51: =SUM(W52,W57,W63) -> 860000 | X51: =SUM(X52,X57,X63) -> 1359000 | Y51: =SUM(Y52,Y57,Y63) -> 1870000 | Z51: =SUM(Z52,Z57,Z63) -> 275000 | AA51: =SUM(AA52,AA57,AA63) -> 494000 | AB51: =SUM(AB52,AB57,AB63) -> 53810 | AC51: =SUM(AC52,AC57,AC63) -> 0 | AD51: =SUM(AD52,AD57,AD63) -> 0 | AE51: 0 | AF51: 11200 | AG51: 42610 | AH51: 0 | AI51: 0 | AK51: b | AL51: 0.009612361558
A52: k043 | B52: 43 | D52: da) Gazdálkodó szervektől (44..47) | E52: da) Gazdálkodó szervektől (44..46) | F52: da) Gazdálkodó szervektől (44..46) | G52: da) Gazdálkodó szervektől (44..46) | H52: da) Gazdálkodó szervektől (44..46) | I52: da) Gazdálkodó szervektől (44..46) | J52: da) Gazdálkodó szervektől (44..46) | K52: da) Gazdálkodó szervektől (44..46) | L52: da) Gazdálkodó szervektől (44..46) | M52: da) Gazdálkodó szervektől (44..46) | N52: da) Gazdálkodó szervektől (44..46) | O52: da) Gazdálkodó szervektől (44..46) | P52: da) Gazdálkodó szervektől (44..46) | Q52: da) Gazdálkodó szervektől (44..46) | R52: da) Gazdálkodó szervektől (44..46) | S52: da) Gazdálkodó szervektől (44..46) | T52: =SUM(T53:T56) -> 0 | U52: =SUM(U53:U56) -> 0 | V52: =SUM(V53:V56) -> 0 | W52: =SUM(W53:W56) -> 0 | X52: =SUM(X53:X56) -> 0 | Y52: =SUM(Y53:Y56) -> 0 | Z52: =SUM(Z53:Z56) -> 0 | AA52: =SUM(AA53:AA56) -> 0 | AB52: =SUM(AB53:AB56) -> 0 | AC52: =SUM(AC53:AC56) -> 0 | AD52: =SUM(AD53:AD56) -> 0 | AE52: 0 | AF52: 0 | AG52: 0 | AH52: 0 | AI52: 0 | AK52: b
A53: k044 | B53: 44 | D53: -Vállalkozástól | E53: -Vállalkozástól | F53: -Vállalkozástól | G53: -Vállalkozástól | H53: -Vállalkozástól | I53: -Vállalkozástól | J53: -Vállalkozástól | K53: -Vállalkozástól | L53: -Vállalkozástól | M53: -Vállalkozástól | N53: -Vállalkozástól | O53: -Vállalkozástól | P53: -Vállalkozástól | Q53: -Vállalkozástól | R53: -Vállalkozástól | S53: -Vállalkozástól | T53: =SUM(U53:AA53) -> 0 | U53: =SUMIF('Terv-segédlet'!$B:$B,$A53,'Terv-segédlet'!E:E) -> 0 | V53: =SUMIF('Terv-segédlet'!$B:$B,$A53,'Terv-segédlet'!F:F) -> 0 | W53: =SUMIF('Terv-segédlet'!$B:$B,$A53,'Terv-segédlet'!G:G) -> 0 | X53: =SUMIF('Terv-segédlet'!$B:$B,$A53,'Terv-segédlet'!H:H) -> 0 | Y53: =SUMIF('Terv-segédlet'!$B:$B,$A53,'Terv-segédlet'!I:I) -> 0 | Z53: =SUMIF('Terv-segédlet'!$B:$B,$A53,'Terv-segédlet'!J:J) -> 0 | AA53: =SUMIF('Terv-segédlet'!$B:$B,$A53,'Terv-segédlet'!K:K) -> 0 | AB53: =SUM(AC53:AI53) -> 0 | AC53: =SUMIF(V!$A:$A,$A53,V!$K:$K)+SUMIF(bank!$A:$A,AC$9&$A53,bank!$M:$M) -> 0 | AD53: =SUMIF(Gy!$A:$A,$A53,Gy!$K:$K)+SUMIF(bank!$A:$A,AD$9&$A53,bank!$M:$M) -> 0 | AE53: =SUMIF(K!$A:$A,$A53,K!$K:$K)+SUMIF(bank!$A:$A,AE$9&$A53,bank!$M:$M) -> 0 | AF53: =SUMIF(Mk!$A:$A,$A53,Mk!$K:$K)+SUMIF(bank!$A:$A,AF$9&$A53,bank!$M:$M) -> 0 | AG53: =SUMIF(M!$A:$A,$A53,M!$K:$K)+SUMIF(bank!$A:$A,AG$9&$A53,bank!$M:$M) -> 0 | AH53: =SUMIF(P!$A:$A,$A53,P!$K:$K)+SUMIF(bank!$A:$A,AH$9&$A53,bank!$M:$M) -> 0 | AI53: =SUMIF(Zs!$A:$A,$A53,Zs!$K:$K)+SUMIF(bank!$A:$A,AI$9&$A53,bank!$M:$M) -> 0 | AJ53: * | AK53: b | AM53: bankoktól, gazdasági társaságoktól kapott támogatás
A54: k045 | B54: 45 | D54: -Saját alapítványtól | E54: -Saját alapítványtól | F54: -Saját alapítványtól | G54: -Saját alapítványtól | H54: -Saját alapítványtól | I54: -Saját alapítványtól | J54: -Saját alapítványtól | K54: -Saját alapítványtól | L54: -Saját alapítványtól | M54: -Saját alapítványtól | N54: -Saját alapítványtól | O54: -Saját alapítványtól | P54: -Saját alapítványtól | Q54: -Saját alapítványtól | R54: -Saját alapítványtól | S54: -Saját alapítványtól | T54: 0 | U54: =SUMIF('Terv-segédlet'!$B:$B,$A54,'Terv-segédlet'!E:E) -> 0 | V54: =SUMIF('Terv-segédlet'!$B:$B,$A54,'Terv-segédlet'!F:F) -> 0 | W54: =SUMIF('Terv-segédlet'!$B:$B,$A54,'Terv-segédlet'!G:G) -> 0 | X54: =SUMIF('Terv-segédlet'!$B:$B,$A54,'Terv-segédlet'!H:H) -> 0 | Y54: =SUMIF('Terv-segédlet'!$B:$B,$A54,'Terv-segédlet'!I:I) -> 0 | Z54: =SUMIF('Terv-segédlet'!$B:$B,$A54,'Terv-segédlet'!J:J) -> 0 | AA54: =SUMIF('Terv-segédlet'!$B:$B,$A54,'Terv-segédlet'!K:K) -> 0 | AB54: 0 | AC54: =SUMIF(V!$A:$A,$A54,V!$K:$K)+SUMIF(bank!$A:$A,AC$9&$A54,bank!$M:$M) -> 0 | AD54: =SUMIF(Gy!$A:$A,$A54,Gy!$K:$K)+SUMIF(bank!$A:$A,AD$9&$A54,bank!$M:$M) -> 0 | AE54: =SUMIF(K!$A:$A,$A54,K!$K:$K)+SUMIF(bank!$A:$A,AE$9&$A54,bank!$M:$M) -> 0 | AF54: =SUMIF(Mk!$A:$A,$A54,Mk!$K:$K)+SUMIF(bank!$A:$A,AF$9&$A54,bank!$M:$M) -> 0 | AG54: =SUMIF(M!$A:$A,$A54,M!$K:$K)+SUMIF(bank!$A:$A,AG$9&$A54,bank!$M:$M) -> 0 | AH54: =SUMIF(P!$A:$A,$A54,P!$K:$K)+SUMIF(bank!$A:$A,AH$9&$A54,bank!$M:$M) -> 0 | AI54: =SUMIF(Zs!$A:$A,$A54,Zs!$K:$K)+SUMIF(bank!$A:$A,AI$9&$A54,bank!$M:$M) -> 0 | AJ54: * | AK54: b | AM54: saját alapítványtól pénzben kapott támogatás
A55: k046 | B55: 46 | D55: -Egyéb szervezettől | E55: -Egyéb | F55: -Egyéb | G55: -Egyéb | H55: -Egyéb | I55: -Egyéb | J55: -Egyéb | K55: -Egyéb | L55: -Egyéb | M55: -Egyéb | N55: -Egyéb | O55: -Egyéb | P55: -Egyéb | Q55: -Egyéb | R55: -Egyéb | S55: -Egyéb | T55: 0 | U55: =SUMIF('Terv-segédlet'!$B:$B,$A55,'Terv-segédlet'!E:E) -> 0 | V55: =SUMIF('Terv-segédlet'!$B:$B,$A55,'Terv-segédlet'!F:F) -> 0 | W55: =SUMIF('Terv-segédlet'!$B:$B,$A55,'Terv-segédlet'!G:G) -> 0 | X55: =SUMIF('Terv-segédlet'!$B:$B,$A55,'Terv-segédlet'!H:H) -> 0 | Y55: =SUMIF('Terv-segédlet'!$B:$B,$A55,'Terv-segédlet'!I:I) -> 0 | Z55: =SUMIF('Terv-segédlet'!$B:$B,$A55,'Terv-segédlet'!J:J) -> 0 | AA55: =SUMIF('Terv-segédlet'!$B:$B,$A55,'Terv-segédlet'!K:K) -> 0 | AB55: 0 | AC55: =SUMIF(V!$A:$A,$A55,V!$K:$K)+SUMIF(bank!$A:$A,AC$9&$A55,bank!$M:$M) -> 0 | AD55: =SUMIF(Gy!$A:$A,$A55,Gy!$K:$K)+SUMIF(bank!$A:$A,AD$9&$A55,bank!$M:$M) -> 0 | AE55: =SUMIF(K!$A:$A,$A55,K!$K:$K)+SUMIF(bank!$A:$A,AE$9&$A55,bank!$M:$M) -> 0 | AF55: =SUMIF(Mk!$A:$A,$A55,Mk!$K:$K)+SUMIF(bank!$A:$A,AF$9&$A55,bank!$M:$M) -> 0 | AG55: =SUMIF(M!$A:$A,$A55,M!$K:$K)+SUMIF(bank!$A:$A,AG$9&$A55,bank!$M:$M) -> 0 | AH55: =SUMIF(P!$A:$A,$A55,P!$K:$K)+SUMIF(bank!$A:$A,AH$9&$A55,bank!$M:$M) -> 0 | AI55: =SUMIF(Zs!$A:$A,$A55,Zs!$K:$K)+SUMIF(bank!$A:$A,AI$9&$A55,bank!$M:$M) -> 0 | AJ55: * | AK55: b | AM55: egyesületektől, nem saját alapítványoktól, társadalmi szervezetektől kapott támogatás
A56: k047 | B56: 47 | D56: -Közcélú adomány gazdálkodó szervezetektől | E56: -Egyéb | F56: -Egyéb | G56: -Egyéb | H56: -Egyéb | I56: -Egyéb | J56: -Egyéb | K56: -Egyéb | L56: -Egyéb | M56: -Egyéb | N56: -Egyéb | O56: -Egyéb | P56: -Egyéb | Q56: -Egyéb | R56: -Egyéb | S56: -Egyéb | T56: 0 | U56: =SUMIF('Terv-segédlet'!$B:$B,$A56,'Terv-segédlet'!E:E) -> 0 | V56: =SUMIF('Terv-segédlet'!$B:$B,$A56,'Terv-segédlet'!F:F) -> 0 | W56: =SUMIF('Terv-segédlet'!$B:$B,$A56,'Terv-segédlet'!G:G) -> 0 | X56: =SUMIF('Terv-segédlet'!$B:$B,$A56,'Terv-segédlet'!H:H) -> 0 | Y56: =SUMIF('Terv-segédlet'!$B:$B,$A56,'Terv-segédlet'!I:I) -> 0 | Z56: =SUMIF('Terv-segédlet'!$B:$B,$A56,'Terv-segédlet'!J:J) -> 0 | AA56: =SUMIF('Terv-segédlet'!$B:$B,$A56,'Terv-segédlet'!K:K) -> 0 | AB56: 0 | AC56: =SUMIF(V!$A:$A,$A56,V!$K:$K)+SUMIF(bank!$A:$A,AC$9&$A56,bank!$M:$M) -> 0 | AD56: =SUMIF(Gy!$A:$A,$A56,Gy!$K:$K)+SUMIF(bank!$A:$A,AD$9&$A56,bank!$M:$M) -> 0 | AE56: =SUMIF(K!$A:$A,$A56,K!$K:$K)+SUMIF(bank!$A:$A,AE$9&$A56,bank!$M:$M) -> 0 | AF56: =SUMIF(Mk!$A:$A,$A56,Mk!$K:$K)+SUMIF(bank!$A:$A,AF$9&$A56,bank!$M:$M) -> 0 | AG56: =SUMIF(M!$A:$A,$A56,M!$K:$K)+SUMIF(bank!$A:$A,AG$9&$A56,bank!$M:$M) -> 0 | AH56: =SUMIF(P!$A:$A,$A56,P!$K:$K)+SUMIF(bank!$A:$A,AH$9&$A56,bank!$M:$M) -> 0 | AI56: =SUMIF(Zs!$A:$A,$A56,Zs!$K:$K)+SUMIF(bank!$A:$A,AI$9&$A56,bank!$M:$M) -> 0 | AJ56: * | AK56: b | AM56: Közcélú adomány - társaságoknak, alapítványoknak kiállított igazolással egyezően
A57: k048 | B57: 48 | D57: db) Gyülekezeti tagoktól, magánszemélyektől (49..53) | E57: db) Gyülekezeti tagoktól, magánszemélyektől (48..52) | F57: db) Gyülekezeti tagoktól, magánszemélyektől (48..52) | G57: db) Gyülekezeti tagoktól, magánszemélyektől (48..52) | H57: db) Gyülekezeti tagoktól, magánszemélyektől (48..52) | I57: db) Gyülekezeti tagoktól, magánszemélyektől (48..52) | J57: db) Gyülekezeti tagoktól, magánszemélyektől (48..52) | K57: db) Gyülekezeti tagoktól, magánszemélyektől (48..52) | L57: db) Gyülekezeti tagoktól, magánszemélyektől (48..52) | M57: db) Gyülekezeti tagoktól, magánszemélyektől (48..52) | N57: db) Gyülekezeti tagoktól, magánszemélyektől (48..52) | O57: db) Gyülekezeti tagoktól, magánszemélyektől (48..52) | P57: db) Gyülekezeti tagoktól, magánszemélyektől (48..52) | Q57: db) Gyülekezeti tagoktól, magánszemélyektől (48..52) | R57: db) Gyülekezeti tagoktól, magánszemélyektől (48..52) | S57: db) Gyülekezeti tagoktól, magánszemélyektől (48..52) | T57: =SUM(T58:T62) -> 5260000 | U57: =SUM(U58:U62) -> 467000 | V57: =SUM(V58:V62) -> 188000 | W57: =SUM(W58:W62) -> 800000 | X57: =SUM(X58:X62) -> 1299000 | Y57: =SUM(Y58:Y62) -> 1750000 | Z57: =SUM(Z58:Z62) -> 270000 | AA57: =SUM(AA58:AA62) -> 486000 | AB57: =SUM(AB58:AB62) -> 32000 | AC57: =SUM(AC58:AC62) -> 0 | AD57: =SUM(AD58:AD62) -> 0 | AE57: 0 | AF57: 0 | AG57: 32000 | AH57: 0 | AI57: 0 | AK57: b | AL57: 0.00608365019
A58: k049 | B58: 49 | D58: -Egyházfenntartói járulék | E58: -Egyházfenntartói járulék | F58: -Egyházfenntartói járulék | G58: -Egyházfenntartói járulék | H58: -Egyházfenntartói járulék | I58: -Egyházfenntartói járulék | J58: -Egyházfenntartói járulék | K58: -Egyházfenntartói járulék | L58: -Egyházfenntartói járulék | M58: -Egyházfenntartói járulék | N58: -Egyházfenntartói járulék | O58: -Egyházfenntartói járulék | P58: -Egyházfenntartói járulék | Q58: -Egyházfenntartói járulék | R58: -Egyházfenntartói járulék | S58: -Egyházfenntartói járulék | T58: =SUM(U58:AA58) -> 3560000 | U58: =SUMIF('Terv-segédlet'!$B:$B,$A58,'Terv-segédlet'!E:E) -> 297000 | V58: =SUMIF('Terv-segédlet'!$B:$B,$A58,'Terv-segédlet'!F:F) -> 168000 | W58: =SUMIF('Terv-segédlet'!$B:$B,$A58,'Terv-segédlet'!G:G) -> 670000 | X58: =SUMIF('Terv-segédlet'!$B:$B,$A58,'Terv-segédlet'!H:H) -> 469000 | Y58: =SUMIF('Terv-segédlet'!$B:$B,$A58,'Terv-segédlet'!I:I) -> 1300000 | Z58: =SUMIF('Terv-segédlet'!$B:$B,$A58,'Terv-segédlet'!J:J) -> 220000 | AA58: =SUMIF('Terv-segédlet'!$B:$B,$A58,'Terv-segédlet'!K:K) -> 436000 | AB58: =SUM(AC58:AI58) -> 32000 | AC58: =SUMIF(V!$A:$A,$A58,V!$K:$K)+SUMIF(bank!$A:$A,AC$9&$A58,bank!$M:$M) -> 0 | AD58: =SUMIF(Gy!$A:$A,$A58,Gy!$K:$K)+SUMIF(bank!$A:$A,AD$9&$A58,bank!$M:$M) -> 0 | AE58: =SUMIF(K!$A:$A,$A58,K!$K:$K)+SUMIF(bank!$A:$A,AE$9&$A58,bank!$M:$M) -> 0 | AF58: =SUMIF(Mk!$A:$A,$A58,Mk!$K:$K)+SUMIF(bank!$A:$A,AF$9&$A58,bank!$M:$M) -> 0 | AG58: =SUMIF(M!$A:$A,$A58,M!$K:$K)+SUMIF(bank!$A:$A,AG$9&$A58,bank!$M:$M) -> 32000 | AH58: =SUMIF(P!$A:$A,$A58,P!$K:$K)+SUMIF(bank!$A:$A,AH$9&$A58,bank!$M:$M) -> 0 | AI58: =SUMIF(Zs!$A:$A,$A58,Zs!$K:$K)+SUMIF(bank!$A:$A,AI$9&$A58,bank!$M:$M) -> 0 | AJ58: * | AK58: b | AL58: 0.008988764045 | AM58: magánszemélyek által ezen a címen teljesítet befizetés
A59: k050 | B59: 50 | D59: -Adomány | E59: -Adomány | F59: -Adomány | G59: -Adomány | H59: -Adomány | I59: -Adomány | J59: -Adomány | K59: -Adomány | L59: -Adomány | M59: -Adomány | N59: -Adomány | O59: -Adomány | P59: -Adomány | Q59: -Adomány | R59: -Adomány | S59: -Adomány | T59: 110000 | U59: =SUMIF('Terv-segédlet'!$B:$B,$A59,'Terv-segédlet'!E:E) -> 20000 | V59: =SUMIF('Terv-segédlet'!$B:$B,$A59,'Terv-segédlet'!F:F) -> 0 | W59: =SUMIF('Terv-segédlet'!$B:$B,$A59,'Terv-segédlet'!G:G) -> 10000 | X59: =SUMIF('Terv-segédlet'!$B:$B,$A59,'Terv-segédlet'!H:H) -> 30000 | Y59: =SUMIF('Terv-segédlet'!$B:$B,$A59,'Terv-segédlet'!I:I) -> 50000 | Z59: =SUMIF('Terv-segédlet'!$B:$B,$A59,'Terv-segédlet'!J:J) -> 0 | AA59: =SUMIF('Terv-segédlet'!$B:$B,$A59,'Terv-segédlet'!K:K) -> 0 | AB59: 0 | AC59: =SUMIF(V!$A:$A,$A59,V!$K:$K)+SUMIF(bank!$A:$A,AC$9&$A59,bank!$M:$M) -> 0 | AD59: =SUMIF(Gy!$A:$A,$A59,Gy!$K:$K)+SUMIF(bank!$A:$A,AD$9&$A59,bank!$M:$M) -> 0 | AE59: =SUMIF(K!$A:$A,$A59,K!$K:$K)+SUMIF(bank!$A:$A,AE$9&$A59,bank!$M:$M) -> 0 | AF59: =SUMIF(Mk!$A:$A,$A59,Mk!$K:$K)+SUMIF(bank!$A:$A,AF$9&$A59,bank!$M:$M) -> 0 | AG59: =SUMIF(M!$A:$A,$A59,M!$K:$K)+SUMIF(bank!$A:$A,AG$9&$A59,bank!$M:$M) -> 0 | AH59: =SUMIF(P!$A:$A,$A59,P!$K:$K)+SUMIF(bank!$A:$A,AH$9&$A59,bank!$M:$M) -> 0 | AI59: =SUMIF(Zs!$A:$A,$A59,Zs!$K:$K)+SUMIF(bank!$A:$A,AI$9&$A59,bank!$M:$M) -> 0 | AJ59: * | AK59: b | AL59: 0 | AM59: magánszemélyektől általános felhasználásra kapott adomány
A60: k051 | B60: 51 | D60: -Perselypénz | E60: -Perselypénz | F60: -Perselypénz | G60: -Perselypénz | H60: -Perselypénz | I60: -Perselypénz | J60: -Perselypénz | K60: -Perselypénz | L60: -Perselypénz | M60: -Perselypénz | N60: -Perselypénz | O60: -Perselypénz | P60: -Perselypénz | Q60: -Perselypénz | R60: -Perselypénz | S60: -Perselypénz | T60: 1090000 | U60: =SUMIF('Terv-segédlet'!$B:$B,$A60,'Terv-segédlet'!E:E) -> 150000 | V60: =SUMIF('Terv-segédlet'!$B:$B,$A60,'Terv-segédlet'!F:F) -> 20000 | W60: =SUMIF('Terv-segédlet'!$B:$B,$A60,'Terv-segédlet'!G:G) -> 120000 | X60: =SUMIF('Terv-segédlet'!$B:$B,$A60,'Terv-segédlet'!H:H) -> 300000 | Y60: =SUMIF('Terv-segédlet'!$B:$B,$A60,'Terv-segédlet'!I:I) -> 400000 | Z60: =SUMIF('Terv-segédlet'!$B:$B,$A60,'Terv-segédlet'!J:J) -> 50000 | AA60: =SUMIF('Terv-segédlet'!$B:$B,$A60,'Terv-segédlet'!K:K) -> 50000 | AB60: 0 | AC60: =SUMIF(V!$A:$A,$A60,V!$K:$K)+SUMIF(bank!$A:$A,AC$9&$A60,bank!$M:$M) -> 0 | AD60: =SUMIF(Gy!$A:$A,$A60,Gy!$K:$K)+SUMIF(bank!$A:$A,AD$9&$A60,bank!$M:$M) -> 0 | AE60: =SUMIF(K!$A:$A,$A60,K!$K:$K)+SUMIF(bank!$A:$A,AE$9&$A60,bank!$M:$M) -> 0 | AF60: =SUMIF(Mk!$A:$A,$A60,Mk!$K:$K)+SUMIF(bank!$A:$A,AF$9&$A60,bank!$M:$M) -> 0 | AG60: =SUMIF(M!$A:$A,$A60,M!$K:$K)+SUMIF(bank!$A:$A,AG$9&$A60,bank!$M:$M) -> 0 | AH60: =SUMIF(P!$A:$A,$A60,P!$K:$K)+SUMIF(bank!$A:$A,AH$9&$A60,bank!$M:$M) -> 0 | AI60: =SUMIF(Zs!$A:$A,$A60,Zs!$K:$K)+SUMIF(bank!$A:$A,AI$9&$A60,bank!$M:$M) -> 0 | AJ60: * | AK60: b | AL60: 0 | AM60: egyházközségi rendezvényeken szervezett persely bevétele
A61: k052 | B61: 52 | D61: -Céladomány | E61: -Céladomány | F61: -Céladomány | G61: -Céladomány | H61: -Céladomány | I61: -Céladomány | J61: -Céladomány | K61: -Céladomány | L61: -Céladomány | M61: -Céladomány | N61: -Céladomány | O61: -Céladomány | P61: -Céladomány | Q61: -Céladomány | R61: -Céladomány | S61: -Céladomány | T61: 500000 | U61: =SUMIF('Terv-segédlet'!$B:$B,$A61,'Terv-segédlet'!E:E) -> 0 | V61: =SUMIF('Terv-segédlet'!$B:$B,$A61,'Terv-segédlet'!F:F) -> 0 | W61: =SUMIF('Terv-segédlet'!$B:$B,$A61,'Terv-segédlet'!G:G) -> 0 | X61: =SUMIF('Terv-segédlet'!$B:$B,$A61,'Terv-segédlet'!H:H) -> 500000 | Y61: =SUMIF('Terv-segédlet'!$B:$B,$A61,'Terv-segédlet'!I:I) -> 0 | Z61: =SUMIF('Terv-segédlet'!$B:$B,$A61,'Terv-segédlet'!J:J) -> 0 | AA61: =SUMIF('Terv-segédlet'!$B:$B,$A61,'Terv-segédlet'!K:K) -> 0 | AB61: 0 | AC61: =SUMIF(V!$A:$A,$A61,V!$K:$K)+SUMIF(bank!$A:$A,AC$9&$A61,bank!$M:$M) -> 0 | AD61: =SUMIF(Gy!$A:$A,$A61,Gy!$K:$K)+SUMIF(bank!$A:$A,AD$9&$A61,bank!$M:$M) -> 0 | AE61: =SUMIF(K!$A:$A,$A61,K!$K:$K)+SUMIF(bank!$A:$A,AE$9&$A61,bank!$M:$M) -> 0 | AF61: =SUMIF(Mk!$A:$A,$A61,Mk!$K:$K)+SUMIF(bank!$A:$A,AF$9&$A61,bank!$M:$M) -> 0 | AG61: =SUMIF(M!$A:$A,$A61,M!$K:$K)+SUMIF(bank!$A:$A,AG$9&$A61,bank!$M:$M) -> 0 | AH61: =SUMIF(P!$A:$A,$A61,P!$K:$K)+SUMIF(bank!$A:$A,AH$9&$A61,bank!$M:$M) -> 0 | AI61: =SUMIF(Zs!$A:$A,$A61,Zs!$K:$K)+SUMIF(bank!$A:$A,AI$9&$A61,bank!$M:$M) -> 0 | AJ61: * | AK61: b | AL61: 0 | AM61: magánszemélyek által ezen a címzetten, konkrét felhasználási cél megjelölésével teljesítet befizetés
A62: k053 | B62: 53 | D62: -Egyéb adomány | E62: -Egyéb adomány | F62: -Egyéb adomány | G62: -Egyéb adomány | H62: -Egyéb adomány | I62: -Egyéb adomány | J62: -Egyéb adomány | K62: -Egyéb adomány | L62: -Egyéb adomány | M62: -Egyéb adomány | N62: -Egyéb adomány | O62: -Egyéb adomány | P62: -Egyéb adomány | Q62: -Egyéb adomány | R62: -Egyéb adomány | S62: -Egyéb adomány | T62: 0 | U62: =SUMIF('Terv-segédlet'!$B:$B,$A62,'Terv-segédlet'!E:E) -> 0 | V62: =SUMIF('Terv-segédlet'!$B:$B,$A62,'Terv-segédlet'!F:F) -> 0 | W62: =SUMIF('Terv-segédlet'!$B:$B,$A62,'Terv-segédlet'!G:G) -> 0 | X62: =SUMIF('Terv-segédlet'!$B:$B,$A62,'Terv-segédlet'!H:H) -> 0 | Y62: =SUMIF('Terv-segédlet'!$B:$B,$A62,'Terv-segédlet'!I:I) -> 0 | Z62: =SUMIF('Terv-segédlet'!$B:$B,$A62,'Terv-segédlet'!J:J) -> 0 | AA62: =SUMIF('Terv-segédlet'!$B:$B,$A62,'Terv-segédlet'!K:K) -> 0 | AB62: 0 | AC62: =SUMIF(V!$A:$A,$A62,V!$K:$K)+SUMIF(bank!$A:$A,AC$9&$A62,bank!$M:$M) -> 0 | AD62: =SUMIF(Gy!$A:$A,$A62,Gy!$K:$K)+SUMIF(bank!$A:$A,AD$9&$A62,bank!$M:$M) -> 0 | AE62: =SUMIF(K!$A:$A,$A62,K!$K:$K)+SUMIF(bank!$A:$A,AE$9&$A62,bank!$M:$M) -> 0 | AF62: =SUMIF(Mk!$A:$A,$A62,Mk!$K:$K)+SUMIF(bank!$A:$A,AF$9&$A62,bank!$M:$M) -> 0 | AG62: =SUMIF(M!$A:$A,$A62,M!$K:$K)+SUMIF(bank!$A:$A,AG$9&$A62,bank!$M:$M) -> 0 | AH62: =SUMIF(P!$A:$A,$A62,P!$K:$K)+SUMIF(bank!$A:$A,AH$9&$A62,bank!$M:$M) -> 0 | AI62: =SUMIF(Zs!$A:$A,$A62,Zs!$K:$K)+SUMIF(bank!$A:$A,AI$9&$A62,bank!$M:$M) -> 0 | AJ62: * | AK62: b | AM62: magánszemélyek által teljesítet egyéb adomány befizetés (pl. harangozás, ha nem díjszabás alapján történik)
A63: k054 | B63: 54 | D63: dc) Továbbítandó egyéb támogatások | E63: dc) Továbbítandó egyéb támogatások, bevételek | F63: dc) Továbbítandó egyéb támogatások, bevételek | G63: dc) Továbbítandó egyéb támogatások, bevételek | H63: dc) Továbbítandó egyéb támogatások, bevételek | I63: dc) Továbbítandó egyéb támogatások, bevételek | J63: dc) Továbbítandó egyéb támogatások, bevételek | K63: dc) Továbbítandó egyéb támogatások, bevételek | L63: dc) Továbbítandó egyéb támogatások, bevételek | M63: dc) Továbbítandó egyéb támogatások, bevételek | N63: dc) Továbbítandó egyéb támogatások, bevételek | O63: dc) Továbbítandó egyéb támogatások, bevételek | P63: dc) Továbbítandó egyéb támogatások, bevételek | Q63: dc) Továbbítandó egyéb támogatások, bevételek | R63: dc) Továbbítandó egyéb támogatások, bevételek | S63: dc) Továbbítandó egyéb támogatások, bevételek | T63: 338000 | U63: =SUMIF('Terv-segédlet'!$B:$B,$A63,'Terv-segédlet'!E:E) -> 80000 | V63: =SUMIF('Terv-segédlet'!$B:$B,$A63,'Terv-segédlet'!F:F) -> 5000 | W63: =SUMIF('Terv-segédlet'!$B:$B,$A63,'Terv-segédlet'!G:G) -> 60000 | X63: =SUMIF('Terv-segédlet'!$B:$B,$A63,'Terv-segédlet'!H:H) -> 60000 | Y63: =SUMIF('Terv-segédlet'!$B:$B,$A63,'Terv-segédlet'!I:I) -> 120000 | Z63: =SUMIF('Terv-segédlet'!$B:$B,$A63,'Terv-segédlet'!J:J) -> 5000 | AA63: =SUMIF('Terv-segédlet'!$B:$B,$A63,'Terv-segédlet'!K:K) -> 8000 | AB63: 21810 | AC63: =SUMIF(V!$A:$A,$A63,V!$K:$K)+SUMIF(bank!$A:$A,AC$9&$A63,bank!$M:$M) -> 0 | AD63: =SUMIF(Gy!$A:$A,$A63,Gy!$K:$K)+SUMIF(bank!$A:$A,AD$9&$A63,bank!$M:$M) -> 0 | AE63: =SUMIF(K!$A:$A,$A63,K!$K:$K)+SUMIF(bank!$A:$A,AE$9&$A63,bank!$M:$M) -> 0 | AF63: =SUMIF(Mk!$A:$A,$A63,Mk!$K:$K)+SUMIF(bank!$A:$A,AF$9&$A63,bank!$M:$M) -> 11200 | AG63: =SUMIF(M!$A:$A,$A63,M!$K:$K)+SUMIF(bank!$A:$A,AG$9&$A63,bank!$M:$M) -> 10610 | AH63: =SUMIF(P!$A:$A,$A63,P!$K:$K)+SUMIF(bank!$A:$A,AH$9&$A63,bank!$M:$M) -> 0 | AI63: =SUMIF(Zs!$A:$A,$A63,Zs!$K:$K)+SUMIF(bank!$A:$A,AI$9&$A63,bank!$M:$M) -> 0 | AJ63: * | AK63: b | AL63: 0.06452662722 | AM63: kötelező offertórium, Gusztáv Adolf segély, szupplikáció, továbbítandó egyéb adományok
A64: k055 | B64: 55 | D64: 3. Pénzügyi műveletek bevételei (56..58) | T64: =SUM(T65:T67) -> 36500 | U64: =SUM(U65:U67) -> 10000 | V64: =SUM(V65:V67) -> 1000 | W64: =SUM(W65:W67) -> 1500 | X64: =SUM(X65:X67) -> 10000 | Y64: =SUM(Y65:Y67) -> 10000 | Z64: =SUM(Z65:Z67) -> 1500 | AA64: =SUM(AA65:AA67) -> 2500 | AB64: =SUM(AB65:AB67) -> 5492 | AC64: =SUM(AC65:AC67) -> 2985 | AD64: =SUM(AD65:AD67) -> 16 | AE64: 324 | AF64: 0 | AG64: 1556 | AH64: 58 | AI64: 553 | AK64: b | AL64: 0.1504657534 | AM64: 0.97
A65: k056 | B65: 56 | E65: Befektetett pénzügyi eszközök kamatai, árfolyamnyeresége | T65: =SUM(U65:AA65) -> 0 | U65: =SUMIF('Terv-segédlet'!$B:$B,$A65,'Terv-segédlet'!E:E) -> 0 | V65: =SUMIF('Terv-segédlet'!$B:$B,$A65,'Terv-segédlet'!F:F) -> 0 | W65: =SUMIF('Terv-segédlet'!$B:$B,$A65,'Terv-segédlet'!G:G) -> 0 | X65: =SUMIF('Terv-segédlet'!$B:$B,$A65,'Terv-segédlet'!H:H) -> 0 | Y65: =SUMIF('Terv-segédlet'!$B:$B,$A65,'Terv-segédlet'!I:I) -> 0 | Z65: =SUMIF('Terv-segédlet'!$B:$B,$A65,'Terv-segédlet'!J:J) -> 0 | AA65: =SUMIF('Terv-segédlet'!$B:$B,$A65,'Terv-segédlet'!K:K) -> 0 | AB65: =SUM(AC65:AI65) -> 0 | AC65: =SUMIF(V!$A:$A,$A65,V!$K:$K)+SUMIF(bank!$A:$A,AC$9&$A65,bank!$M:$M) -> 0 | AD65: =SUMIF(Gy!$A:$A,$A65,Gy!$K:$K)+SUMIF(bank!$A:$A,AD$9&$A65,bank!$M:$M) -> 0 | AE65: =SUMIF(K!$A:$A,$A65,K!$K:$K)+SUMIF(bank!$A:$A,AE$9&$A65,bank!$M:$M) -> 0 | AF65: =SUMIF(Mk!$A:$A,$A65,Mk!$K:$K)+SUMIF(bank!$A:$A,AF$9&$A65,bank!$M:$M) -> 0 | AG65: =SUMIF(M!$A:$A,$A65,M!$K:$K)+SUMIF(bank!$A:$A,AG$9&$A65,bank!$M:$M) -> 0 | AH65: =SUMIF(P!$A:$A,$A65,P!$K:$K)+SUMIF(bank!$A:$A,AH$9&$A65,bank!$M:$M) -> 0 | AI65: =SUMIF(Zs!$A:$A,$A65,Zs!$K:$K)+SUMIF(bank!$A:$A,AI$9&$A65,bank!$M:$M) -> 0 | AJ65: * | AK65: b | AM65: hosszú távú (éven túli) befektetések kamata
A66: k057 | B66: 57 | E66: Egyéb kapott (járó) kamatok és kamatjellegű bevételek | T66: 36500 | U66: =SUMIF('Terv-segédlet'!$B:$B,$A66,'Terv-segédlet'!E:E) -> 10000 | V66: =SUMIF('Terv-segédlet'!$B:$B,$A66,'Terv-segédlet'!F:F) -> 1000 | W66: =SUMIF('Terv-segédlet'!$B:$B,$A66,'Terv-segédlet'!G:G) -> 1500 | X66: =SUMIF('Terv-segédlet'!$B:$B,$A66,'Terv-segédlet'!H:H) -> 10000 | Y66: =SUMIF('Terv-segédlet'!$B:$B,$A66,'Terv-segédlet'!I:I) -> 10000 | Z66: =SUMIF('Terv-segédlet'!$B:$B,$A66,'Terv-segédlet'!J:J) -> 1500 | AA66: =SUMIF('Terv-segédlet'!$B:$B,$A66,'Terv-segédlet'!K:K) -> 2500 | AB66: 5492 | AC66: =SUMIF(V!$A:$A,$A66,V!$K:$K)+SUMIF(bank!$A:$A,AC$9&$A66,bank!$M:$M) -> 2985 | AD66: =SUMIF(Gy!$A:$A,$A66,Gy!$K:$K)+SUMIF(bank!$A:$A,AD$9&$A66,bank!$M:$M) -> 16 | AE66: =SUMIF(K!$A:$A,$A66,K!$K:$K)+SUMIF(bank!$A:$A,AE$9&$A66,bank!$M:$M) -> 324 | AF66: =SUMIF(Mk!$A:$A,$A66,Mk!$K:$K)+SUMIF(bank!$A:$A,AF$9&$A66,bank!$M:$M) -> 0 | AG66: =SUMIF(M!$A:$A,$A66,M!$K:$K)+SUMIF(bank!$A:$A,AG$9&$A66,bank!$M:$M) -> 1556 | AH66: =SUMIF(P!$A:$A,$A66,P!$K:$K)+SUMIF(bank!$A:$A,AH$9&$A66,bank!$M:$M) -> 58 | AI66: =SUMIF(Zs!$A:$A,$A66,Zs!$K:$K)+SUMIF(bank!$A:$A,AI$9&$A66,bank!$M:$M) -> 553 | AJ66: * | AK66: b | AL66: 0.1504657534 | AM66: bankszámla, egyéb éven belüli lekötések kamata
A67: k058 | B67: 58 | E67: Pénzügyi műveletek egyéb bevételei | T67: 0 | U67: =SUMIF('Terv-segédlet'!$B:$B,$A67,'Terv-segédlet'!E:E) -> 0 | V67: =SUMIF('Terv-segédlet'!$B:$B,$A67,'Terv-segédlet'!F:F) -> 0 | W67: =SUMIF('Terv-segédlet'!$B:$B,$A67,'Terv-segédlet'!G:G) -> 0 | X67: =SUMIF('Terv-segédlet'!$B:$B,$A67,'Terv-segédlet'!H:H) -> 0 | Y67: =SUMIF('Terv-segédlet'!$B:$B,$A67,'Terv-segédlet'!I:I) -> 0 | Z67: =SUMIF('Terv-segédlet'!$B:$B,$A67,'Terv-segédlet'!J:J) -> 0 | AA67: =SUMIF('Terv-segédlet'!$B:$B,$A67,'Terv-segédlet'!K:K) -> 0 | AB67: 0 | AC67: =SUMIF(V!$A:$A,$A67,V!$K:$K)+SUMIF(bank!$A:$A,AC$9&$A67,bank!$M:$M) -> 0 | AD67: =SUMIF(Gy!$A:$A,$A67,Gy!$K:$K)+SUMIF(bank!$A:$A,AD$9&$A67,bank!$M:$M) -> 0 | AE67: =SUMIF(K!$A:$A,$A67,K!$K:$K)+SUMIF(bank!$A:$A,AE$9&$A67,bank!$M:$M) -> 0 | AF67: =SUMIF(Mk!$A:$A,$A67,Mk!$K:$K)+SUMIF(bank!$A:$A,AF$9&$A67,bank!$M:$M) -> 0 | AG67: =SUMIF(M!$A:$A,$A67,M!$K:$K)+SUMIF(bank!$A:$A,AG$9&$A67,bank!$M:$M) -> 0 | AH67: =SUMIF(P!$A:$A,$A67,P!$K:$K)+SUMIF(bank!$A:$A,AH$9&$A67,bank!$M:$M) -> 0 | AI67: =SUMIF(Zs!$A:$A,$A67,Zs!$K:$K)+SUMIF(bank!$A:$A,AI$9&$A67,bank!$M:$M) -> 0 | AJ67: * | AK67: b | AM67: árfolyamkülönbözet
A68: k059 | B68: 59 | D68: II. Pénzbevételt nem jelentő bevételek (60+61+65) | T68: =SUM(T69:T74) -> 0 | U68: =SUM(U69:U74) -> 0 | V68: =SUM(V69:V74) -> 0 | W68: =SUM(W69:W74) -> 0 | X68: =SUM(X69:X74) -> 0 | Y68: =SUM(Y69:Y74) -> 0 | Z68: =SUM(Z69:Z74) -> 0 | AA68: =SUM(AA69:AA74) -> 0 | AB68: =SUM(AB69:AB74) -> 0 | AC68: =SUM(AC69:AC74) -> 0 | AD68: =SUM(AD69:AD74) -> 0 | AE68: 0 | AF68: 0 | AG68: 0 | AH68: 0 | AI68: 0 | AK68: b
A69: k060 | B69: 60 | D69: 4. Nem pénzben kiegyenlített értékesítés nettó árbevétele | T69: =SUM(U69:AA69) -> 0 | U69: =SUMIF('Terv-segédlet'!$B:$B,$A69,'Terv-segédlet'!E:E) -> 0 | V69: =SUMIF('Terv-segédlet'!$B:$B,$A69,'Terv-segédlet'!F:F) -> 0 | W69: =SUMIF('Terv-segédlet'!$B:$B,$A69,'Terv-segédlet'!G:G) -> 0 | X69: =SUMIF('Terv-segédlet'!$B:$B,$A69,'Terv-segédlet'!H:H) -> 0 | Y69: =SUMIF('Terv-segédlet'!$B:$B,$A69,'Terv-segédlet'!I:I) -> 0 | Z69: =SUMIF('Terv-segédlet'!$B:$B,$A69,'Terv-segédlet'!J:J) -> 0 | AA69: =SUMIF('Terv-segédlet'!$B:$B,$A69,'Terv-segédlet'!K:K) -> 0 | AB69: =SUM(AC69:AI69) -> 0 | AC69: =SUMIF(V!$A:$A,$A69,V!$K:$K)+SUMIF(bank!$A:$A,AC$9&$A69,bank!$M:$M) -> 0 | AD69: =SUMIF(Gy!$A:$A,$A69,Gy!$K:$K)+SUMIF(bank!$A:$A,AD$9&$A69,bank!$M:$M) -> 0 | AE69: =SUMIF(K!$A:$A,$A69,K!$K:$K)+SUMIF(bank!$A:$A,AE$9&$A69,bank!$M:$M) -> 0 | AF69: =SUMIF(Mk!$A:$A,$A69,Mk!$K:$K)+SUMIF(bank!$A:$A,AF$9&$A69,bank!$M:$M) -> 0 | AG69: =SUMIF(M!$A:$A,$A69,M!$K:$K)+SUMIF(bank!$A:$A,AG$9&$A69,bank!$M:$M) -> 0 | AH69: =SUMIF(P!$A:$A,$A69,P!$K:$K)+SUMIF(bank!$A:$A,AH$9&$A69,bank!$M:$M) -> 0 | AI69: =SUMIF(Zs!$A:$A,$A69,Zs!$K:$K)+SUMIF(bank!$A:$A,AI$9&$A69,bank!$M:$M) -> 0 | AJ69: * | AK69: b | AM69: csereügyletek bevétele (pl. ingatlancsere)
A70: k061 | B70: 61 | D70: 5. Nem pénzben kiegyenlített egyéb bevételek | E70: 5. Nem pénzben kiegyenlített egyéb bevételek | F70: 5. Nem pénzben kiegyenlített egyéb bevételek | G70: 5. Nem pénzben kiegyenlített egyéb bevételek | H70: 5. Nem pénzben kiegyenlített egyéb bevételek | I70: 5. Nem pénzben kiegyenlített egyéb bevételek | J70: 5. Nem pénzben kiegyenlített egyéb bevételek | K70: 5. Nem pénzben kiegyenlített egyéb bevételek | L70: 5. Nem pénzben kiegyenlített egyéb bevételek | M70: 5. Nem pénzben kiegyenlített egyéb bevételek | N70: 5. Nem pénzben kiegyenlített egyéb bevételek | O70: 5. Nem pénzben kiegyenlített egyéb bevételek | P70: 5. Nem pénzben kiegyenlített egyéb bevételek | Q70: 5. Nem pénzben kiegyenlített egyéb bevételek | R70: 5. Nem pénzben kiegyenlített egyéb bevételek | S70: 5. Nem pénzben kiegyenlített egyéb bevételek | T70: 0 | U70: =SUMIF('Terv-segédlet'!$B:$B,$A70,'Terv-segédlet'!E:E) -> 0 | V70: =SUMIF('Terv-segédlet'!$B:$B,$A70,'Terv-segédlet'!F:F) -> 0 | W70: =SUMIF('Terv-segédlet'!$B:$B,$A70,'Terv-segédlet'!G:G) -> 0 | X70: =SUMIF('Terv-segédlet'!$B:$B,$A70,'Terv-segédlet'!H:H) -> 0 | Y70: =SUMIF('Terv-segédlet'!$B:$B,$A70,'Terv-segédlet'!I:I) -> 0 | Z70: =SUMIF('Terv-segédlet'!$B:$B,$A70,'Terv-segédlet'!J:J) -> 0 | AA70: =SUMIF('Terv-segédlet'!$B:$B,$A70,'Terv-segédlet'!K:K) -> 0 | AB70: 0 | AC70: =SUMIF(V!$A:$A,$A70,V!$K:$K)+SUMIF(bank!$A:$A,AC$9&$A70,bank!$M:$M) -> 0 | AD70: =SUMIF(Gy!$A:$A,$A70,Gy!$K:$K)+SUMIF(bank!$A:$A,AD$9&$A70,bank!$M:$M) -> 0 | AE70: =SUMIF(K!$A:$A,$A70,K!$K:$K)+SUMIF(bank!$A:$A,AE$9&$A70,bank!$M:$M) -> 0 | AF70: =SUMIF(Mk!$A:$A,$A70,Mk!$K:$K)+SUMIF(bank!$A:$A,AF$9&$A70,bank!$M:$M) -> 0 | AG70: =SUMIF(M!$A:$A,$A70,M!$K:$K)+SUMIF(bank!$A:$A,AG$9&$A70,bank!$M:$M) -> 0 | AH70: =SUMIF(P!$A:$A,$A70,P!$K:$K)+SUMIF(bank!$A:$A,AH$9&$A70,bank!$M:$M) -> 0 | AI70: =SUMIF(Zs!$A:$A,$A70,Zs!$K:$K)+SUMIF(bank!$A:$A,AI$9&$A70,bank!$M:$M) -> 0 | AJ70: * | AK70: b | AM70: NEM összesített adat, be kell írni!!! olyan bevétel, amelyet az egyházközség pénzben nem kapott meg, hanem más kötelezettségbe kerül beszámításra
A71: k062 | B71: 62 | D71: ebből fenntartói nyugdíjjárulékra kapott támogatás | T71: 0 | U71: =SUMIF('Terv-segédlet'!$B:$B,$A71,'Terv-segédlet'!E:E) -> 0 | V71: =SUMIF('Terv-segédlet'!$B:$B,$A71,'Terv-segédlet'!F:F) -> 0 | W71: =SUMIF('Terv-segédlet'!$B:$B,$A71,'Terv-segédlet'!G:G) -> 0 | X71: =SUMIF('Terv-segédlet'!$B:$B,$A71,'Terv-segédlet'!H:H) -> 0 | Y71: =SUMIF('Terv-segédlet'!$B:$B,$A71,'Terv-segédlet'!I:I) -> 0 | Z71: =SUMIF('Terv-segédlet'!$B:$B,$A71,'Terv-segédlet'!J:J) -> 0 | AA71: =SUMIF('Terv-segédlet'!$B:$B,$A71,'Terv-segédlet'!K:K) -> 0 | AB71: 0 | AC71: =SUMIF(V!$A:$A,$A71,V!$K:$K)+SUMIF(bank!$A:$A,AC$9&$A71,bank!$M:$M) -> 0 | AD71: =SUMIF(Gy!$A:$A,$A71,Gy!$K:$K)+SUMIF(bank!$A:$A,AD$9&$A71,bank!$M:$M) -> 0 | AE71: =SUMIF(K!$A:$A,$A71,K!$K:$K)+SUMIF(bank!$A:$A,AE$9&$A71,bank!$M:$M) -> 0 | AF71: =SUMIF(Mk!$A:$A,$A71,Mk!$K:$K)+SUMIF(bank!$A:$A,AF$9&$A71,bank!$M:$M) -> 0 | AG71: =SUMIF(M!$A:$A,$A71,M!$K:$K)+SUMIF(bank!$A:$A,AG$9&$A71,bank!$M:$M) -> 0 | AH71: =SUMIF(P!$A:$A,$A71,P!$K:$K)+SUMIF(bank!$A:$A,AH$9&$A71,bank!$M:$M) -> 0 | AI71: =SUMIF(Zs!$A:$A,$A71,Zs!$K:$K)+SUMIF(bank!$A:$A,AI$9&$A71,bank!$M:$M) -> 0 | AJ71: * | AK71: b | AM71: bevallás alapján megítélt, pénzben meg nem kapott támogatás (szolidaritási bevallás 6. pont szerinti összeg)
A72: k063 | B72: 63 | D72: ebből GAW támogatás előfinanszírozása | T72: 0 | U72: =SUMIF('Terv-segédlet'!$B:$B,$A72,'Terv-segédlet'!E:E) -> 0 | V72: =SUMIF('Terv-segédlet'!$B:$B,$A72,'Terv-segédlet'!F:F) -> 0 | W72: =SUMIF('Terv-segédlet'!$B:$B,$A72,'Terv-segédlet'!G:G) -> 0 | X72: =SUMIF('Terv-segédlet'!$B:$B,$A72,'Terv-segédlet'!H:H) -> 0 | Y72: =SUMIF('Terv-segédlet'!$B:$B,$A72,'Terv-segédlet'!I:I) -> 0 | Z72: =SUMIF('Terv-segédlet'!$B:$B,$A72,'Terv-segédlet'!J:J) -> 0 | AA72: =SUMIF('Terv-segédlet'!$B:$B,$A72,'Terv-segédlet'!K:K) -> 0 | AB72: 0 | AC72: =SUMIF(V!$A:$A,$A72,V!$K:$K)+SUMIF(bank!$A:$A,AC$9&$A72,bank!$M:$M) -> 0 | AD72: =SUMIF(Gy!$A:$A,$A72,Gy!$K:$K)+SUMIF(bank!$A:$A,AD$9&$A72,bank!$M:$M) -> 0 | AE72: =SUMIF(K!$A:$A,$A72,K!$K:$K)+SUMIF(bank!$A:$A,AE$9&$A72,bank!$M:$M) -> 0 | AF72: =SUMIF(Mk!$A:$A,$A72,Mk!$K:$K)+SUMIF(bank!$A:$A,AF$9&$A72,bank!$M:$M) -> 0 | AG72: =SUMIF(M!$A:$A,$A72,M!$K:$K)+SUMIF(bank!$A:$A,AG$9&$A72,bank!$M:$M) -> 0 | AH72: =SUMIF(P!$A:$A,$A72,P!$K:$K)+SUMIF(bank!$A:$A,AH$9&$A72,bank!$M:$M) -> 0 | AI72: =SUMIF(Zs!$A:$A,$A72,Zs!$K:$K)+SUMIF(bank!$A:$A,AI$9&$A72,bank!$M:$M) -> 0 | AJ72: * | AK72: b | AM72: GAW támogatás előfinanszírozása esetén a támogatás beérkezésekor pénzben meg nem kapott, előleg törlesztésre felhasznált bevételrész
A73: k064 | B73: =+B72+1 -> 64 | D73: ebből ajándékba kapott eszközök | T73: 0 | U73: =SUMIF('Terv-segédlet'!$B:$B,$A73,'Terv-segédlet'!E:E) -> 0 | V73: =SUMIF('Terv-segédlet'!$B:$B,$A73,'Terv-segédlet'!F:F) -> 0 | W73: =SUMIF('Terv-segédlet'!$B:$B,$A73,'Terv-segédlet'!G:G) -> 0 | X73: =SUMIF('Terv-segédlet'!$B:$B,$A73,'Terv-segédlet'!H:H) -> 0 | Y73: =SUMIF('Terv-segédlet'!$B:$B,$A73,'Terv-segédlet'!I:I) -> 0 | Z73: =SUMIF('Terv-segédlet'!$B:$B,$A73,'Terv-segédlet'!J:J) -> 0 | AA73: =SUMIF('Terv-segédlet'!$B:$B,$A73,'Terv-segédlet'!K:K) -> 0 | AB73: 0 | AC73: =SUMIF(V!$A:$A,$A73,V!$K:$K)+SUMIF(bank!$A:$A,AC$9&$A73,bank!$M:$M) -> 0 | AD73: =SUMIF(Gy!$A:$A,$A73,Gy!$K:$K)+SUMIF(bank!$A:$A,AD$9&$A73,bank!$M:$M) -> 0 | AE73: =SUMIF(K!$A:$A,$A73,K!$K:$K)+SUMIF(bank!$A:$A,AE$9&$A73,bank!$M:$M) -> 0 | AF73: =SUMIF(Mk!$A:$A,$A73,Mk!$K:$K)+SUMIF(bank!$A:$A,AF$9&$A73,bank!$M:$M) -> 0 | AG73: =SUMIF(M!$A:$A,$A73,M!$K:$K)+SUMIF(bank!$A:$A,AG$9&$A73,bank!$M:$M) -> 0 | AH73: =SUMIF(P!$A:$A,$A73,P!$K:$K)+SUMIF(bank!$A:$A,AH$9&$A73,bank!$M:$M) -> 0 | AI73: =SUMIF(Zs!$A:$A,$A73,Zs!$K:$K)+SUMIF(bank!$A:$A,AI$9&$A73,bank!$M:$M) -> 0 | AJ73: * | AK73: b | AM73: ajándékba kapott eszköz értéke
A74: k065 | B74: =+B73+1 -> 65 | D74: 6. Nem pénzben kiegyenlített rendkívüli bevételek | E74: 5. Nem pénzben kiegyenlített egyéb bevételek | F74: 5. Nem pénzben kiegyenlített egyéb bevételek | G74: 5. Nem pénzben kiegyenlített egyéb bevételek | H74: 5. Nem pénzben kiegyenlített egyéb bevételek | I74: 5. Nem pénzben kiegyenlített egyéb bevételek | J74: 5. Nem pénzben kiegyenlített egyéb bevételek | K74: 5. Nem pénzben kiegyenlített egyéb bevételek | L74: 5. Nem pénzben kiegyenlített egyéb bevételek | M74: 5. Nem pénzben kiegyenlített egyéb bevételek | N74: 5. Nem pénzben kiegyenlített egyéb bevételek | O74: 5. Nem pénzben kiegyenlített egyéb bevételek | P74: 5. Nem pénzben kiegyenlített egyéb bevételek | Q74: 5. Nem pénzben kiegyenlített egyéb bevételek | R74: 5. Nem pénzben kiegyenlített egyéb bevételek | S74: 5. Nem pénzben kiegyenlített egyéb bevételek | T74: 0 | U74: =SUMIF('Terv-segédlet'!$B:$B,$A74,'Terv-segédlet'!E:E) -> 0 | V74: =SUMIF('Terv-segédlet'!$B:$B,$A74,'Terv-segédlet'!F:F) -> 0 | W74: =SUMIF('Terv-segédlet'!$B:$B,$A74,'Terv-segédlet'!G:G) -> 0 | X74: =SUMIF('Terv-segédlet'!$B:$B,$A74,'Terv-segédlet'!H:H) -> 0 | Y74: =SUMIF('Terv-segédlet'!$B:$B,$A74,'Terv-segédlet'!I:I) -> 0 | Z74: =SUMIF('Terv-segédlet'!$B:$B,$A74,'Terv-segédlet'!J:J) -> 0 | AA74: =SUMIF('Terv-segédlet'!$B:$B,$A74,'Terv-segédlet'!K:K) -> 0 | AB74: 0 | AC74: =SUMIF(V!$A:$A,$A74,V!$K:$K)+SUMIF(bank!$A:$A,AC$9&$A74,bank!$M:$M) -> 0 | AD74: =SUMIF(Gy!$A:$A,$A74,Gy!$K:$K)+SUMIF(bank!$A:$A,AD$9&$A74,bank!$M:$M) -> 0 | AE74: =SUMIF(K!$A:$A,$A74,K!$K:$K)+SUMIF(bank!$A:$A,AE$9&$A74,bank!$M:$M) -> 0 | AF74: =SUMIF(Mk!$A:$A,$A74,Mk!$K:$K)+SUMIF(bank!$A:$A,AF$9&$A74,bank!$M:$M) -> 0 | AG74: =SUMIF(M!$A:$A,$A74,M!$K:$K)+SUMIF(bank!$A:$A,AG$9&$A74,bank!$M:$M) -> 0 | AH74: =SUMIF(P!$A:$A,$A74,P!$K:$K)+SUMIF(bank!$A:$A,AH$9&$A74,bank!$M:$M) -> 0 | AI74: =SUMIF(Zs!$A:$A,$A74,Zs!$K:$K)+SUMIF(bank!$A:$A,AI$9&$A74,bank!$M:$M) -> 0 | AJ74: * | AK74: b | AM74: nem jellemző
A75: k066 | B75: 66 | D75: A. VÉGLEGES PÉNZBEVÉTELEK, ELSZÁMOLT BEVÉTELEK (1+59) | T75: =T68+T10 -> 12527500 | U75: =U68+U10 -> 594000 | V75: =V68+V10 -> 374000 | W75: 861500 | X75: 7559000 | Y75: 2366000 | Z75: 276500 | AA75: 496500 | AB75: =AB68+AB10 -> 119302 | AC75: =AC68+AC10 -> 2985 | AD75: =AD68+AD10 -> 16 | AE75: 324 | AF75: 31200 | AG75: 84166 | AH75: 58 | AI75: 553 | AK75: b | AL75: =IF(AND(OR(T75<>0,AB75<>0),T75<>0),ABS(AB75/T75),"") -> 0.00952320894
A76: k067 | B76: 67 | D76: III. Ráfordításként érvényesíthető kiadások (73+136+166+189+193) | E76: III. Ráfordításként érvényesíthető kiadások (7+8+9+10) | F76: III. Ráfordításként érvényesíthető kiadások (7+8+9+10) | G76: III. Ráfordításként érvényesíthető kiadások (7+8+9+10) | H76: III. Ráfordításként érvényesíthető kiadások (7+8+9+10) | I76: III. Ráfordításként érvényesíthető kiadások (7+8+9+10) | J76: III. Ráfordításként érvényesíthető kiadások (7+8+9+10) | K76: III. Ráfordításként érvényesíthető kiadások (7+8+9+10) | L76: III. Ráfordításként érvényesíthető kiadások (7+8+9+10) | M76: III. Ráfordításként érvényesíthető kiadások (7+8+9+10) | N76: III. Ráfordításként érvényesíthető kiadások (7+8+9+10) | O76: III. Ráfordításként érvényesíthető kiadások (7+8+9+10) | P76: III. Ráfordításként érvényesíthető kiadások (7+8+9+10) | Q76: III. Ráfordításként érvényesíthető kiadások (7+8+9+10) | R76: III. Ráfordításként érvényesíthető kiadások (7+8+9+10) | S76: III. Ráfordításként érvényesíthető kiadások (7+8+9+10) | T76: =+T77+T140+T170+T193 -> 12086324.94 | U76: =+U77+U140+U170+U193 -> 5679434.941 | V76: =+V77+V140+V170+V193 -> 45260 | W76: =+W77+W140+W170+W193 -> 131690 | X76: =+X77+X140+X170+X193 -> 5252570 | Y76: =+Y77+Y140+Y170+Y193 -> 801370 | Z76: =+Z77+Z140+Z170+Z193 -> 30000 | AA76: =+AA77+AA140+AA170+AA193 -> 146000 | AB76: =+AB77+AB140+AB170+AB193 -> 465433 | AC76: =+AC77+AC140+AC170+AC193 -> 329568 | AD76: =+AD77+AD140+AD170+AD193 -> 0 | AE76: 5150 | AF76: 11250 | AG76: 35015 | AH76: 0 | AI76: 84450 | AK76: k | AL76: 0.03850905898
A77: k068 | B77: 68 | D77: 7. Anyagjellegű ráfordítások (69+97+119+128+130) | T77: =SUM(T78,T106,T128,T137,T139) -> 8122150 | U77: =SUM(U78,U106,U128,U137,U139) -> 2184260 | V77: =SUM(V78,V106,V128,V137,V139) -> 26260 | W77: =SUM(W78,W106,W128,W137,W139) -> 47690 | X77: =SUM(X78,X106,X128,X137,X139) -> 5066570 | Y77: =SUM(Y78,Y106,Y128,Y137,Y139) -> 634370 | Z77: =SUM(Z78,Z106,Z128,Z137,Z139) -> 25000 | AA77: =SUM(AA78,AA106,AA128,AA137,AA139) -> 138000 | AB77: =SUM(AB78,AB106,AB128,AB137,AB139) -> 133444 | AC77: =SUM(AC78,AC106,AC128,AC137,AC139) -> 26889 | AD77: =SUM(AD78,AD106,AD128,AD137,AD139) -> 0 | AE77: 50 | AF77: 50 | AG77: 24405 | AH77: 0 | AI77: 82050 | AK77: k | AL77: =IF(AND(OR(T77<>0,AB77<>0),T77<>0),ABS(AB77/T77),"") -> 0.01642963994 | AM77: 51..53+81%
A78: k069 | B78: 69 | D78: a) Anyagköltség (70+74+78+82..85+91+94..96) | T78: =SUM(T79,T83,T87,T91:T91,T92:T94,T100,T103:T105) -> 835800 | U78: =SUM(U79,U83,U87,U91:U91,U92:U94,U100,U103:U105) -> 574800 | V78: =SUM(V79,V83,V87,V91:V91,V92:V94,V100,V103:V105) -> 4000 | W78: =SUM(W79,W83,W87,W91:W91,W92:W94,W100,W103:W105) -> 31000 | X78: =SUM(X79,X83,X87,X91:X91,X92:X94,X100,X103:X105) -> 38000 | Y78: =SUM(Y79,Y83,Y87,Y91:Y91,Y92:Y94,Y100,Y103:Y105) -> 157000 | Z78: =SUM(Z79,Z83,Z87,Z91:Z91,Z92:Z94,Z100,Z103:Z105) -> 24000 | AA78: =SUM(AA79,AA83,AA87,AA91:AA91,AA92:AA94,AA100,AA103:AA105) -> 7000 | AB78: =SUM(AB79,AB83,AB87,AB91:AB91,AB92:AB94,AB100,AB103:AB105) -> 50678 | AC78: =SUM(AC79,AC83,AC87,AC91:AC91,AC92:AC94,AC100,AC103:AC105) -> 26323 | AD78: =SUM(AD79,AD83,AD87,AD91:AD91,AD92:AD94,AD100,AD103:AD105) -> 0 | AE78: 0 | AF78: 0 | AG78: 24355 | AH78: 0 | AI78: 0 | AK78: k | AL78: 0.060634123
A79: k070 | B79: 70 | D79: -Gázszolgáltatás díja és egyéb fűtőanyag költsége (70..73) | F79: Alapanyagok, segédanyagok költsége | T79: =SUM(T80:T82) -> 315000 | U79: =SUM(U80:U82) -> 150000 | V79: =SUM(V80:V82) -> 0 | W79: =SUM(W80:W82) -> 0 | X79: =SUM(X80:X82) -> 0 | Y79: =SUM(Y80:Y82) -> 140000 | Z79: =SUM(Z80:Z82) -> 20000 | AA79: =SUM(AA80:AA82) -> 5000 | AB79: =SUM(AB80:AB82) -> 49189 | AC79: =SUM(AC80:AC82) -> 24834 | AD79: =SUM(AD80:AD82) -> 0 | AE79: 0 | AF79: 0 | AG79: 24355 | AH79: 0 | AI79: 0 | AK79: k | AL79: =IF(AND(OR(T79<>0,AB79<>0),T79<>0),ABS(AB79/T79),"") -> 0.1561555556
A80: k071 | B80: 71 | D80: Lelkészlakás | F80: Élelmiszerek költsége | T80: =SUM(U80:AA80) -> 150000 | U80: =SUMIF('Terv-segédlet'!$B:$B,$A80,'Terv-segédlet'!E:E) -> 150000 | V80: =SUMIF('Terv-segédlet'!$B:$B,$A80,'Terv-segédlet'!F:F) -> 0 | W80: =SUMIF('Terv-segédlet'!$B:$B,$A80,'Terv-segédlet'!G:G) -> 0 | X80: =SUMIF('Terv-segédlet'!$B:$B,$A80,'Terv-segédlet'!H:H) -> 0 | Y80: =SUMIF('Terv-segédlet'!$B:$B,$A80,'Terv-segédlet'!I:I) -> 0 | Z80: =SUMIF('Terv-segédlet'!$B:$B,$A80,'Terv-segédlet'!J:J) -> 0 | AA80: =SUMIF('Terv-segédlet'!$B:$B,$A80,'Terv-segédlet'!K:K) -> 0 | AB80: =SUM(AC80:AI80) -> 24834 | AC80: =SUMIF(V!$A:$A,$A80,V!$L:$L)+SUMIF(bank!$A:$A,AC$9&$A80,bank!$N:$N) -> 24834 | AD80: =SUMIF(Gy!$A:$A,$A80,Gy!$L:$L)+SUMIF(bank!$A:$A,AD$9&$A80,bank!$N:$N) -> 0 | AE80: =SUMIF(K!$A:$A,$A80,K!$L:$L)+SUMIF(bank!$A:$A,AE$9&$A80,bank!$N:$N) -> 0 | AF80: =SUMIF(Mk!$A:$A,$A80,Mk!$L:$L)+SUMIF(bank!$A:$A,AF$9&$A80,bank!$N:$N) -> 0 | AG80: =SUMIF(M!$A:$A,$A80,M!$L:$L)+SUMIF(bank!$A:$A,AG$9&$A80,bank!$N:$N) -> 0 | AH80: =SUMIF(P!$A:$A,$A80,P!$L:$L)+SUMIF(bank!$A:$A,AH$9&$A80,bank!$N:$N) -> 0 | AI80: =SUMIF(Zs!$A:$A,$A80,Zs!$L:$L)+SUMIF(bank!$A:$A,AI$9&$A80,bank!$N:$N) -> 0 | AJ80: * | AK80: k | AL80: 0.16556 | AM80: lelkészlakás gáz és egyéb fűtőanyag költsége
A81: k072 | B81: 72 | D81: Egyéb lakás | T81: 0 | U81: =SUMIF('Terv-segédlet'!$B:$B,$A81,'Terv-segédlet'!E:E) -> 0 | V81: =SUMIF('Terv-segédlet'!$B:$B,$A81,'Terv-segédlet'!F:F) -> 0 | W81: =SUMIF('Terv-segédlet'!$B:$B,$A81,'Terv-segédlet'!G:G) -> 0 | X81: =SUMIF('Terv-segédlet'!$B:$B,$A81,'Terv-segédlet'!H:H) -> 0 | Y81: =SUMIF('Terv-segédlet'!$B:$B,$A81,'Terv-segédlet'!I:I) -> 0 | Z81: =SUMIF('Terv-segédlet'!$B:$B,$A81,'Terv-segédlet'!J:J) -> 0 | AA81: =SUMIF('Terv-segédlet'!$B:$B,$A81,'Terv-segédlet'!K:K) -> 0 | AB81: =SUM(AC81:AI81) -> 0 | AC81: =SUMIF(V!$A:$A,$A81,V!$L:$L)+SUMIF(bank!$A:$A,AC$9&$A81,bank!$N:$N) -> 0 | AD81: =SUMIF(Gy!$A:$A,$A81,Gy!$L:$L)+SUMIF(bank!$A:$A,AD$9&$A81,bank!$N:$N) -> 0 | AE81: =SUMIF(K!$A:$A,$A81,K!$L:$L)+SUMIF(bank!$A:$A,AE$9&$A81,bank!$N:$N) -> 0 | AF81: =SUMIF(Mk!$A:$A,$A81,Mk!$L:$L)+SUMIF(bank!$A:$A,AF$9&$A81,bank!$N:$N) -> 0 | AG81: =SUMIF(M!$A:$A,$A81,M!$L:$L)+SUMIF(bank!$A:$A,AG$9&$A81,bank!$N:$N) -> 0 | AH81: =SUMIF(P!$A:$A,$A81,P!$L:$L)+SUMIF(bank!$A:$A,AH$9&$A81,bank!$N:$N) -> 0 | AI81: =SUMIF(Zs!$A:$A,$A81,Zs!$L:$L)+SUMIF(bank!$A:$A,AI$9&$A81,bank!$N:$N) -> 0 | AJ81: * | AK81: k | AM81: egyéb lakóingatlan gáz és egyéb fűtőanyag költsége
A82: k073 | B82: 73 | D82: Más gyülekezeti helyiség | F82: Gyógyszerek költsége | T82: 165000 | U82: =SUMIF('Terv-segédlet'!$B:$B,$A82,'Terv-segédlet'!E:E) -> 0 | V82: =SUMIF('Terv-segédlet'!$B:$B,$A82,'Terv-segédlet'!F:F) -> 0 | W82: =SUMIF('Terv-segédlet'!$B:$B,$A82,'Terv-segédlet'!G:G) -> 0 | X82: =SUMIF('Terv-segédlet'!$B:$B,$A82,'Terv-segédlet'!H:H) -> 0 | Y82: =SUMIF('Terv-segédlet'!$B:$B,$A82,'Terv-segédlet'!I:I) -> 140000 | Z82: =SUMIF('Terv-segédlet'!$B:$B,$A82,'Terv-segédlet'!J:J) -> 20000 | AA82: =SUMIF('Terv-segédlet'!$B:$B,$A82,'Terv-segédlet'!K:K) -> 5000 | AB82: 24355 | AC82: =SUMIF(V!$A:$A,$A82,V!$L:$L)+SUMIF(bank!$A:$A,AC$9&$A82,bank!$N:$N) -> 0 | AD82: =SUMIF(Gy!$A:$A,$A82,Gy!$L:$L)+SUMIF(bank!$A:$A,AD$9&$A82,bank!$N:$N) -> 0 | AE82: =SUMIF(K!$A:$A,$A82,K!$L:$L)+SUMIF(bank!$A:$A,AE$9&$A82,bank!$N:$N) -> 0 | AF82: =SUMIF(Mk!$A:$A,$A82,Mk!$L:$L)+SUMIF(bank!$A:$A,AF$9&$A82,bank!$N:$N) -> 0 | AG82: =SUMIF(M!$A:$A,$A82,M!$L:$L)+SUMIF(bank!$A:$A,AG$9&$A82,bank!$N:$N) -> 24355 | AH82: =SUMIF(P!$A:$A,$A82,P!$L:$L)+SUMIF(bank!$A:$A,AH$9&$A82,bank!$N:$N) -> 0 | AI82: =SUMIF(Zs!$A:$A,$A82,Zs!$L:$L)+SUMIF(bank!$A:$A,AI$9&$A82,bank!$N:$N) -> 0 | AJ82: * | AK82: k | AL82: 0.1476060606 | AM82: egyéb gyülekezeti ingatlan gáz és egyéb fűtőanyag költsége (tepmlom, gyülkezeti terem, üzlethelység, stb.)
A83: k074 | B83: 74 | D83: -Villamosenergia szolgáltatás díja (75..77) | F83: Vegyszerek költsége | T83: =SUM(T84:T86) -> 109000 | U83: =SUM(U84:U86) -> 36000 | V83: =SUM(V84:V86) -> 4000 | W83: =SUM(W84:W86) -> 30000 | X83: =SUM(X84:X86) -> 18000 | Y83: =SUM(Y84:Y86) -> 15000 | Z83: =SUM(Z84:Z86) -> 4000 | AA83: =SUM(AA84:AA86) -> 2000 | AB83: =SUM(AB84:AB86) -> 0 | AC83: =SUM(AC84:AC86) -> 0 | AD83: =SUM(AD84:AD86) -> 0 | AE83: 0 | AF83: 0 | AG83: 0 | AH83: 0 | AI83: 0 | AK83: k | AL83: 0
A84: k075 | B84: 75 | D84: Lelkészlakás | F84: Gázenergia szolgáltatás díja | T84: =SUM(U84:AA84) -> 22000 | U84: =SUMIF('Terv-segédlet'!$B:$B,$A84,'Terv-segédlet'!E:E) -> 22000 | V84: =SUMIF('Terv-segédlet'!$B:$B,$A84,'Terv-segédlet'!F:F) -> 0 | W84: =SUMIF('Terv-segédlet'!$B:$B,$A84,'Terv-segédlet'!G:G) -> 0 | X84: =SUMIF('Terv-segédlet'!$B:$B,$A84,'Terv-segédlet'!H:H) -> 0 | Y84: =SUMIF('Terv-segédlet'!$B:$B,$A84,'Terv-segédlet'!I:I) -> 0 | Z84: =SUMIF('Terv-segédlet'!$B:$B,$A84,'Terv-segédlet'!J:J) -> 0 | AA84: =SUMIF('Terv-segédlet'!$B:$B,$A84,'Terv-segédlet'!K:K) -> 0 | AB84: =SUM(AC84:AI84) -> 0 | AC84: =SUMIF(V!$A:$A,$A84,V!$L:$L)+SUMIF(bank!$A:$A,AC$9&$A84,bank!$N:$N) -> 0 | AD84: =SUMIF(Gy!$A:$A,$A84,Gy!$L:$L)+SUMIF(bank!$A:$A,AD$9&$A84,bank!$N:$N) -> 0 | AE84: =SUMIF(K!$A:$A,$A84,K!$L:$L)+SUMIF(bank!$A:$A,AE$9&$A84,bank!$N:$N) -> 0 | AF84: =SUMIF(Mk!$A:$A,$A84,Mk!$L:$L)+SUMIF(bank!$A:$A,AF$9&$A84,bank!$N:$N) -> 0 | AG84: =SUMIF(M!$A:$A,$A84,M!$L:$L)+SUMIF(bank!$A:$A,AG$9&$A84,bank!$N:$N) -> 0 | AH84: =SUMIF(P!$A:$A,$A84,P!$L:$L)+SUMIF(bank!$A:$A,AH$9&$A84,bank!$N:$N) -> 0 | AI84: =SUMIF(Zs!$A:$A,$A84,Zs!$L:$L)+SUMIF(bank!$A:$A,AI$9&$A84,bank!$N:$N) -> 0 | AJ84: * | AK84: k | AL84: 0 | AM84: lelkészlakás áramdíja
A85: k076 | B85: 76 | D85: Egyéb lakás | T85: 0 | U85: =SUMIF('Terv-segédlet'!$B:$B,$A85,'Terv-segédlet'!E:E) -> 0 | V85: =SUMIF('Terv-segédlet'!$B:$B,$A85,'Terv-segédlet'!F:F) -> 0 | W85: =SUMIF('Terv-segédlet'!$B:$B,$A85,'Terv-segédlet'!G:G) -> 0 | X85: =SUMIF('Terv-segédlet'!$B:$B,$A85,'Terv-segédlet'!H:H) -> 0 | Y85: =SUMIF('Terv-segédlet'!$B:$B,$A85,'Terv-segédlet'!I:I) -> 0 | Z85: =SUMIF('Terv-segédlet'!$B:$B,$A85,'Terv-segédlet'!J:J) -> 0 | AA85: =SUMIF('Terv-segédlet'!$B:$B,$A85,'Terv-segédlet'!K:K) -> 0 | AB85: 0 | AC85: =SUMIF(V!$A:$A,$A85,V!$L:$L)+SUMIF(bank!$A:$A,AC$9&$A85,bank!$N:$N) -> 0 | AD85: =SUMIF(Gy!$A:$A,$A85,Gy!$L:$L)+SUMIF(bank!$A:$A,AD$9&$A85,bank!$N:$N) -> 0 | AE85: =SUMIF(K!$A:$A,$A85,K!$L:$L)+SUMIF(bank!$A:$A,AE$9&$A85,bank!$N:$N) -> 0 | AF85: =SUMIF(Mk!$A:$A,$A85,Mk!$L:$L)+SUMIF(bank!$A:$A,AF$9&$A85,bank!$N:$N) -> 0 | AG85: =SUMIF(M!$A:$A,$A85,M!$L:$L)+SUMIF(bank!$A:$A,AG$9&$A85,bank!$N:$N) -> 0 | AH85: =SUMIF(P!$A:$A,$A85,P!$L:$L)+SUMIF(bank!$A:$A,AH$9&$A85,bank!$N:$N) -> 0 | AI85: =SUMIF(Zs!$A:$A,$A85,Zs!$L:$L)+SUMIF(bank!$A:$A,AI$9&$A85,bank!$N:$N) -> 0 | AJ85: * | AK85: k | AM85: egyéb lakóingatlan áramdíja
A86: k077 | B86: 77 | D86: Más gyülekezeti helyiség | T86: 87000 | U86: =SUMIF('Terv-segédlet'!$B:$B,$A86,'Terv-segédlet'!E:E) -> 14000 | V86: =SUMIF('Terv-segédlet'!$B:$B,$A86,'Terv-segédlet'!F:F) -> 4000 | W86: =SUMIF('Terv-segédlet'!$B:$B,$A86,'Terv-segédlet'!G:G) -> 30000 | X86: =SUMIF('Terv-segédlet'!$B:$B,$A86,'Terv-segédlet'!H:H) -> 18000 | Y86: =SUMIF('Terv-segédlet'!$B:$B,$A86,'Terv-segédlet'!I:I) -> 15000 | Z86: =SUMIF('Terv-segédlet'!$B:$B,$A86,'Terv-segédlet'!J:J) -> 4000 | AA86: =SUMIF('Terv-segédlet'!$B:$B,$A86,'Terv-segédlet'!K:K) -> 2000 | AB86: 0 | AC86: =SUMIF(V!$A:$A,$A86,V!$L:$L)+SUMIF(bank!$A:$A,AC$9&$A86,bank!$N:$N) -> 0 | AD86: =SUMIF(Gy!$A:$A,$A86,Gy!$L:$L)+SUMIF(bank!$A:$A,AD$9&$A86,bank!$N:$N) -> 0 | AE86: =SUMIF(K!$A:$A,$A86,K!$L:$L)+SUMIF(bank!$A:$A,AE$9&$A86,bank!$N:$N) -> 0 | AF86: =SUMIF(Mk!$A:$A,$A86,Mk!$L:$L)+SUMIF(bank!$A:$A,AF$9&$A86,bank!$N:$N) -> 0 | AG86: =SUMIF(M!$A:$A,$A86,M!$L:$L)+SUMIF(bank!$A:$A,AG$9&$A86,bank!$N:$N) -> 0 | AH86: =SUMIF(P!$A:$A,$A86,P!$L:$L)+SUMIF(bank!$A:$A,AH$9&$A86,bank!$N:$N) -> 0 | AI86: =SUMIF(Zs!$A:$A,$A86,Zs!$L:$L)+SUMIF(bank!$A:$A,AI$9&$A86,bank!$N:$N) -> 0 | AJ86: * | AK86: k | AL86: 0 | AM86: egyéb gyülekezeti ingatlan áramdíja (tepmlom, gyülkezeti terem, üzlethelység, stb.)
A87: k078 | B87: 78 | D87: -Víz és csatorna szolgáltatás és egyéb közüzemi díja (79..81) | T87: =SUM(T88:T90) -> 33000 | U87: =SUM(U88:U90) -> 10000 | V87: =SUM(V88:V90) -> 0 | W87: =SUM(W88:W90) -> 1000 | X87: =SUM(X88:X90) -> 20000 | Y87: =SUM(Y88:Y90) -> 2000 | Z87: =SUM(Z88:Z90) -> 0 | AA87: =SUM(AA88:AA90) -> 0 | AB87: =SUM(AB88:AB90) -> 1489 | AC87: =SUM(AC88:AC90) -> 1489 | AD87: =SUM(AD88:AD90) -> 0 | AE87: 0 | AF87: 0 | AG87: 0 | AH87: 0 | AI87: 0 | AK87: k | AL87: 0.04512121212
A88: k079 | B88: 79 | D88: Lelkészlakás | T88: =SUM(U88:AA88) -> 10000 | U88: =SUMIF('Terv-segédlet'!$B:$B,$A88,'Terv-segédlet'!E:E) -> 10000 | V88: =SUMIF('Terv-segédlet'!$B:$B,$A88,'Terv-segédlet'!F:F) -> 0 | W88: =SUMIF('Terv-segédlet'!$B:$B,$A88,'Terv-segédlet'!G:G) -> 0 | X88: =SUMIF('Terv-segédlet'!$B:$B,$A88,'Terv-segédlet'!H:H) -> 0 | Y88: =SUMIF('Terv-segédlet'!$B:$B,$A88,'Terv-segédlet'!I:I) -> 0 | Z88: =SUMIF('Terv-segédlet'!$B:$B,$A88,'Terv-segédlet'!J:J) -> 0 | AA88: =SUMIF('Terv-segédlet'!$B:$B,$A88,'Terv-segédlet'!K:K) -> 0 | AB88: =SUM(AC88:AI88) -> 1489 | AC88: =SUMIF(V!$A:$A,$A88,V!$L:$L)+SUMIF(bank!$A:$A,AC$9&$A88,bank!$N:$N) -> 1489 | AD88: =SUMIF(Gy!$A:$A,$A88,Gy!$L:$L)+SUMIF(bank!$A:$A,AD$9&$A88,bank!$N:$N) -> 0 | AE88: =SUMIF(K!$A:$A,$A88,K!$L:$L)+SUMIF(bank!$A:$A,AE$9&$A88,bank!$N:$N) -> 0 | AF88: =SUMIF(Mk!$A:$A,$A88,Mk!$L:$L)+SUMIF(bank!$A:$A,AF$9&$A88,bank!$N:$N) -> 0 | AG88: =SUMIF(M!$A:$A,$A88,M!$L:$L)+SUMIF(bank!$A:$A,AG$9&$A88,bank!$N:$N) -> 0 | AH88: =SUMIF(P!$A:$A,$A88,P!$L:$L)+SUMIF(bank!$A:$A,AH$9&$A88,bank!$N:$N) -> 0 | AI88: =SUMIF(Zs!$A:$A,$A88,Zs!$L:$L)+SUMIF(bank!$A:$A,AI$9&$A88,bank!$N:$N) -> 0 | AJ88: * | AK88: k | AL88: 0.1489 | AM88: lelkészlakás víz- és csatornadíja
A89: k080 | B89: 80 | D89: Egyéb lakás | T89: 0 | U89: =SUMIF('Terv-segédlet'!$B:$B,$A89,'Terv-segédlet'!E:E) -> 0 | V89: =SUMIF('Terv-segédlet'!$B:$B,$A89,'Terv-segédlet'!F:F) -> 0 | W89: =SUMIF('Terv-segédlet'!$B:$B,$A89,'Terv-segédlet'!G:G) -> 0 | X89: =SUMIF('Terv-segédlet'!$B:$B,$A89,'Terv-segédlet'!H:H) -> 0 | Y89: =SUMIF('Terv-segédlet'!$B:$B,$A89,'Terv-segédlet'!I:I) -> 0 | Z89: =SUMIF('Terv-segédlet'!$B:$B,$A89,'Terv-segédlet'!J:J) -> 0 | AA89: =SUMIF('Terv-segédlet'!$B:$B,$A89,'Terv-segédlet'!K:K) -> 0 | AB89: 0 | AC89: =SUMIF(V!$A:$A,$A89,V!$L:$L)+SUMIF(bank!$A:$A,AC$9&$A89,bank!$N:$N) -> 0 | AD89: =SUMIF(Gy!$A:$A,$A89,Gy!$L:$L)+SUMIF(bank!$A:$A,AD$9&$A89,bank!$N:$N) -> 0 | AE89: =SUMIF(K!$A:$A,$A89,K!$L:$L)+SUMIF(bank!$A:$A,AE$9&$A89,bank!$N:$N) -> 0 | AF89: =SUMIF(Mk!$A:$A,$A89,Mk!$L:$L)+SUMIF(bank!$A:$A,AF$9&$A89,bank!$N:$N) -> 0 | AG89: =SUMIF(M!$A:$A,$A89,M!$L:$L)+SUMIF(bank!$A:$A,AG$9&$A89,bank!$N:$N) -> 0 | AH89: =SUMIF(P!$A:$A,$A89,P!$L:$L)+SUMIF(bank!$A:$A,AH$9&$A89,bank!$N:$N) -> 0 | AI89: =SUMIF(Zs!$A:$A,$A89,Zs!$L:$L)+SUMIF(bank!$A:$A,AI$9&$A89,bank!$N:$N) -> 0 | AJ89: * | AK89: k | AM89: egyéb lakóingatlan víz- és csatornadíja
A90: k081 | B90: 81 | D90: Más gyülekezeti helyiség | T90: 23000 | U90: =SUMIF('Terv-segédlet'!$B:$B,$A90,'Terv-segédlet'!E:E) -> 0 | V90: =SUMIF('Terv-segédlet'!$B:$B,$A90,'Terv-segédlet'!F:F) -> 0 | W90: =SUMIF('Terv-segédlet'!$B:$B,$A90,'Terv-segédlet'!G:G) -> 1000 | X90: =SUMIF('Terv-segédlet'!$B:$B,$A90,'Terv-segédlet'!H:H) -> 20000 | Y90: =SUMIF('Terv-segédlet'!$B:$B,$A90,'Terv-segédlet'!I:I) -> 2000 | Z90: =SUMIF('Terv-segédlet'!$B:$B,$A90,'Terv-segédlet'!J:J) -> 0 | AA90: =SUMIF('Terv-segédlet'!$B:$B,$A90,'Terv-segédlet'!K:K) -> 0 | AB90: 0 | AC90: =SUMIF(V!$A:$A,$A90,V!$L:$L)+SUMIF(bank!$A:$A,AC$9&$A90,bank!$N:$N) -> 0 | AD90: =SUMIF(Gy!$A:$A,$A90,Gy!$L:$L)+SUMIF(bank!$A:$A,AD$9&$A90,bank!$N:$N) -> 0 | AE90: =SUMIF(K!$A:$A,$A90,K!$L:$L)+SUMIF(bank!$A:$A,AE$9&$A90,bank!$N:$N) -> 0 | AF90: =SUMIF(Mk!$A:$A,$A90,Mk!$L:$L)+SUMIF(bank!$A:$A,AF$9&$A90,bank!$N:$N) -> 0 | AG90: =SUMIF(M!$A:$A,$A90,M!$L:$L)+SUMIF(bank!$A:$A,AG$9&$A90,bank!$N:$N) -> 0 | AH90: =SUMIF(P!$A:$A,$A90,P!$L:$L)+SUMIF(bank!$A:$A,AH$9&$A90,bank!$N:$N) -> 0 | AI90: =SUMIF(Zs!$A:$A,$A90,Zs!$L:$L)+SUMIF(bank!$A:$A,AI$9&$A90,bank!$N:$N) -> 0 | AJ90: * | AK90: k | AL90: 0 | AM90: egyéb gyülekezeti ingatlan víz- és csatornadíja (tepmlom, gyülkezeti terem, üzlethelység, stb.)
A91: k082 | B91: 82 | D91: -Munkaruha költsége | T91: 0 | U91: =SUMIF('Terv-segédlet'!$B:$B,$A91,'Terv-segédlet'!E:E) -> 0 | V91: =SUMIF('Terv-segédlet'!$B:$B,$A91,'Terv-segédlet'!F:F) -> 0 | W91: =SUMIF('Terv-segédlet'!$B:$B,$A91,'Terv-segédlet'!G:G) -> 0 | X91: =SUMIF('Terv-segédlet'!$B:$B,$A91,'Terv-segédlet'!H:H) -> 0 | Y91: =SUMIF('Terv-segédlet'!$B:$B,$A91,'Terv-segédlet'!I:I) -> 0 | Z91: =SUMIF('Terv-segédlet'!$B:$B,$A91,'Terv-segédlet'!J:J) -> 0 | AA91: =SUMIF('Terv-segédlet'!$B:$B,$A91,'Terv-segédlet'!K:K) -> 0 | AB91: 0 | AC91: =SUMIF(V!$A:$A,$A91,V!$L:$L)+SUMIF(bank!$A:$A,AC$9&$A91,bank!$N:$N) -> 0 | AD91: =SUMIF(Gy!$A:$A,$A91,Gy!$L:$L)+SUMIF(bank!$A:$A,AD$9&$A91,bank!$N:$N) -> 0 | AE91: =SUMIF(K!$A:$A,$A91,K!$L:$L)+SUMIF(bank!$A:$A,AE$9&$A91,bank!$N:$N) -> 0 | AF91: =SUMIF(Mk!$A:$A,$A91,Mk!$L:$L)+SUMIF(bank!$A:$A,AF$9&$A91,bank!$N:$N) -> 0 | AG91: =SUMIF(M!$A:$A,$A91,M!$L:$L)+SUMIF(bank!$A:$A,AG$9&$A91,bank!$N:$N) -> 0 | AH91: =SUMIF(P!$A:$A,$A91,P!$L:$L)+SUMIF(bank!$A:$A,AH$9&$A91,bank!$N:$N) -> 0 | AI91: =SUMIF(Zs!$A:$A,$A91,Zs!$L:$L)+SUMIF(bank!$A:$A,AI$9&$A91,bank!$N:$N) -> 0 | AJ91: * | AK91: k | AM91: pl. Lutherkabát, baret, egyéb alkalmazottnak biztosított munkaruha
A92: k083 | B92: 83 | D92: -Egy éven belül elhasználódó eszközök, szerszámok költsége | T92: 0 | U92: =SUMIF('Terv-segédlet'!$B:$B,$A92,'Terv-segédlet'!E:E) -> 0 | V92: =SUMIF('Terv-segédlet'!$B:$B,$A92,'Terv-segédlet'!F:F) -> 0 | W92: =SUMIF('Terv-segédlet'!$B:$B,$A92,'Terv-segédlet'!G:G) -> 0 | X92: =SUMIF('Terv-segédlet'!$B:$B,$A92,'Terv-segédlet'!H:H) -> 0 | Y92: =SUMIF('Terv-segédlet'!$B:$B,$A92,'Terv-segédlet'!I:I) -> 0 | Z92: =SUMIF('Terv-segédlet'!$B:$B,$A92,'Terv-segédlet'!J:J) -> 0 | AA92: =SUMIF('Terv-segédlet'!$B:$B,$A92,'Terv-segédlet'!K:K) -> 0 | AB92: 0 | AC92: =SUMIF(V!$A:$A,$A92,V!$L:$L)+SUMIF(bank!$A:$A,AC$9&$A92,bank!$N:$N) -> 0 | AD92: =SUMIF(Gy!$A:$A,$A92,Gy!$L:$L)+SUMIF(bank!$A:$A,AD$9&$A92,bank!$N:$N) -> 0 | AE92: =SUMIF(K!$A:$A,$A92,K!$L:$L)+SUMIF(bank!$A:$A,AE$9&$A92,bank!$N:$N) -> 0 | AF92: =SUMIF(Mk!$A:$A,$A92,Mk!$L:$L)+SUMIF(bank!$A:$A,AF$9&$A92,bank!$N:$N) -> 0 | AG92: =SUMIF(M!$A:$A,$A92,M!$L:$L)+SUMIF(bank!$A:$A,AG$9&$A92,bank!$N:$N) -> 0 | AH92: =SUMIF(P!$A:$A,$A92,P!$L:$L)+SUMIF(bank!$A:$A,AH$9&$A92,bank!$N:$N) -> 0 | AI92: =SUMIF(Zs!$A:$A,$A92,Zs!$L:$L)+SUMIF(bank!$A:$A,AI$9&$A92,bank!$N:$N) -> 0 | AJ92: * | AK92: k | AM92: kéziszerszámok (kalapács, csavarhúzó), konyhai eszközök (tányér, pohár, evőeszköz), stb.
A93: k084 | B93: 84 | D93: - Irodaszerek, nyomtatványok költsége | T93: 50000 | U93: =SUMIF('Terv-segédlet'!$B:$B,$A93,'Terv-segédlet'!E:E) -> 50000 | V93: =SUMIF('Terv-segédlet'!$B:$B,$A93,'Terv-segédlet'!F:F) -> 0 | W93: =SUMIF('Terv-segédlet'!$B:$B,$A93,'Terv-segédlet'!G:G) -> 0 | X93: =SUMIF('Terv-segédlet'!$B:$B,$A93,'Terv-segédlet'!H:H) -> 0 | Y93: =SUMIF('Terv-segédlet'!$B:$B,$A93,'Terv-segédlet'!I:I) -> 0 | Z93: =SUMIF('Terv-segédlet'!$B:$B,$A93,'Terv-segédlet'!J:J) -> 0 | AA93: =SUMIF('Terv-segédlet'!$B:$B,$A93,'Terv-segédlet'!K:K) -> 0 | AB93: 0 | AC93: =SUMIF(V!$A:$A,$A93,V!$L:$L)+SUMIF(bank!$A:$A,AC$9&$A93,bank!$N:$N) -> 0 | AD93: =SUMIF(Gy!$A:$A,$A93,Gy!$L:$L)+SUMIF(bank!$A:$A,AD$9&$A93,bank!$N:$N) -> 0 | AE93: =SUMIF(K!$A:$A,$A93,K!$L:$L)+SUMIF(bank!$A:$A,AE$9&$A93,bank!$N:$N) -> 0 | AF93: =SUMIF(Mk!$A:$A,$A93,Mk!$L:$L)+SUMIF(bank!$A:$A,AF$9&$A93,bank!$N:$N) -> 0 | AG93: =SUMIF(M!$A:$A,$A93,M!$L:$L)+SUMIF(bank!$A:$A,AG$9&$A93,bank!$N:$N) -> 0 | AH93: =SUMIF(P!$A:$A,$A93,P!$L:$L)+SUMIF(bank!$A:$A,AH$9&$A93,bank!$N:$N) -> 0 | AI93: =SUMIF(Zs!$A:$A,$A93,Zs!$L:$L)+SUMIF(bank!$A:$A,AI$9&$A93,bank!$N:$N) -> 0 | AJ93: * | AK93: k | AL93: 0 | AM93: fénymásoló papír, toll, pénztárkönyv, számlatömb, kiküldetési rendelvény, stb.
A94: k085 | B94: 85 | D94: -Fenntartási, karbantartási anyagok költésége (86..90) | T94: =SUM(T95:T99) -> 50000 | U94: =SUM(U95:U99) -> 50000 | V94: =SUM(V95:V99) -> 0 | W94: =SUM(W95:W99) -> 0 | X94: =SUM(X95:X99) -> 0 | Y94: =SUM(Y95:Y99) -> 0 | Z94: =SUM(Z95:Z99) -> 0 | AA94: =SUM(AA95:AA99) -> 0 | AB94: =SUM(AB95:AB99) -> 0 | AC94: =SUM(AC95:AC99) -> 0 | AD94: =SUM(AD95:AD99) -> 0 | AE94: 0 | AF94: 0 | AG94: 0 | AH94: 0 | AI94: 0 | AK94: k | AL94: 0
A95: k086 | B95: 86 | D95: Lelkészlakás | T95: =SUM(U95:AA95) -> 50000 | U95: =SUMIF('Terv-segédlet'!$B:$B,$A95,'Terv-segédlet'!E:E) -> 50000 | V95: =SUMIF('Terv-segédlet'!$B:$B,$A95,'Terv-segédlet'!F:F) -> 0 | W95: =SUMIF('Terv-segédlet'!$B:$B,$A95,'Terv-segédlet'!G:G) -> 0 | X95: =SUMIF('Terv-segédlet'!$B:$B,$A95,'Terv-segédlet'!H:H) -> 0 | Y95: =SUMIF('Terv-segédlet'!$B:$B,$A95,'Terv-segédlet'!I:I) -> 0 | Z95: =SUMIF('Terv-segédlet'!$B:$B,$A95,'Terv-segédlet'!J:J) -> 0 | AA95: =SUMIF('Terv-segédlet'!$B:$B,$A95,'Terv-segédlet'!K:K) -> 0 | AB95: =SUM(AC95:AI95) -> 0 | AC95: =SUMIF(V!$A:$A,$A95,V!$L:$L)+SUMIF(bank!$A:$A,AC$9&$A95,bank!$N:$N) -> 0 | AD95: =SUMIF(Gy!$A:$A,$A95,Gy!$L:$L)+SUMIF(bank!$A:$A,AD$9&$A95,bank!$N:$N) -> 0 | AE95: =SUMIF(K!$A:$A,$A95,K!$L:$L)+SUMIF(bank!$A:$A,AE$9&$A95,bank!$N:$N) -> 0 | AF95: =SUMIF(Mk!$A:$A,$A95,Mk!$L:$L)+SUMIF(bank!$A:$A,AF$9&$A95,bank!$N:$N) -> 0 | AG95: =SUMIF(M!$A:$A,$A95,M!$L:$L)+SUMIF(bank!$A:$A,AG$9&$A95,bank!$N:$N) -> 0 | AH95: =SUMIF(P!$A:$A,$A95,P!$L:$L)+SUMIF(bank!$A:$A,AH$9&$A95,bank!$N:$N) -> 0 | AI95: =SUMIF(Zs!$A:$A,$A95,Zs!$L:$L)+SUMIF(bank!$A:$A,AI$9&$A95,bank!$N:$N) -> 0 | AJ95: * | AK95: k | AL95: 0 | AM95: lelkészlakás - karbantartási munkához vásárolt anyag (szolgáltatás nélkül) (festék, csaptelep, stb.)
A96: k087 | B96: 87 | D96: Egyéb lakás | T96: 0 | U96: =SUMIF('Terv-segédlet'!$B:$B,$A96,'Terv-segédlet'!E:E) -> 0 | V96: =SUMIF('Terv-segédlet'!$B:$B,$A96,'Terv-segédlet'!F:F) -> 0 | W96: =SUMIF('Terv-segédlet'!$B:$B,$A96,'Terv-segédlet'!G:G) -> 0 | X96: =SUMIF('Terv-segédlet'!$B:$B,$A96,'Terv-segédlet'!H:H) -> 0 | Y96: =SUMIF('Terv-segédlet'!$B:$B,$A96,'Terv-segédlet'!I:I) -> 0 | Z96: =SUMIF('Terv-segédlet'!$B:$B,$A96,'Terv-segédlet'!J:J) -> 0 | AA96: =SUMIF('Terv-segédlet'!$B:$B,$A96,'Terv-segédlet'!K:K) -> 0 | AB96: 0 | AC96: =SUMIF(V!$A:$A,$A96,V!$L:$L)+SUMIF(bank!$A:$A,AC$9&$A96,bank!$N:$N) -> 0 | AD96: =SUMIF(Gy!$A:$A,$A96,Gy!$L:$L)+SUMIF(bank!$A:$A,AD$9&$A96,bank!$N:$N) -> 0 | AE96: =SUMIF(K!$A:$A,$A96,K!$L:$L)+SUMIF(bank!$A:$A,AE$9&$A96,bank!$N:$N) -> 0 | AF96: =SUMIF(Mk!$A:$A,$A96,Mk!$L:$L)+SUMIF(bank!$A:$A,AF$9&$A96,bank!$N:$N) -> 0 | AG96: =SUMIF(M!$A:$A,$A96,M!$L:$L)+SUMIF(bank!$A:$A,AG$9&$A96,bank!$N:$N) -> 0 | AH96: =SUMIF(P!$A:$A,$A96,P!$L:$L)+SUMIF(bank!$A:$A,AH$9&$A96,bank!$N:$N) -> 0 | AI96: =SUMIF(Zs!$A:$A,$A96,Zs!$L:$L)+SUMIF(bank!$A:$A,AI$9&$A96,bank!$N:$N) -> 0 | AJ96: * | AK96: k | AM96: egyéb lakóingatlan - karbantartási munkához vásárolt anyag (szolgáltatás nélkül)
A97: k088 | B97: 88 | D97: Más gyülekezeti helyiség | T97: 0 | U97: =SUMIF('Terv-segédlet'!$B:$B,$A97,'Terv-segédlet'!E:E) -> 0 | V97: =SUMIF('Terv-segédlet'!$B:$B,$A97,'Terv-segédlet'!F:F) -> 0 | W97: =SUMIF('Terv-segédlet'!$B:$B,$A97,'Terv-segédlet'!G:G) -> 0 | X97: =SUMIF('Terv-segédlet'!$B:$B,$A97,'Terv-segédlet'!H:H) -> 0 | Y97: =SUMIF('Terv-segédlet'!$B:$B,$A97,'Terv-segédlet'!I:I) -> 0 | Z97: =SUMIF('Terv-segédlet'!$B:$B,$A97,'Terv-segédlet'!J:J) -> 0 | AA97: =SUMIF('Terv-segédlet'!$B:$B,$A97,'Terv-segédlet'!K:K) -> 0 | AB97: 0 | AC97: =SUMIF(V!$A:$A,$A97,V!$L:$L)+SUMIF(bank!$A:$A,AC$9&$A97,bank!$N:$N) -> 0 | AD97: =SUMIF(Gy!$A:$A,$A97,Gy!$L:$L)+SUMIF(bank!$A:$A,AD$9&$A97,bank!$N:$N) -> 0 | AE97: =SUMIF(K!$A:$A,$A97,K!$L:$L)+SUMIF(bank!$A:$A,AE$9&$A97,bank!$N:$N) -> 0 | AF97: =SUMIF(Mk!$A:$A,$A97,Mk!$L:$L)+SUMIF(bank!$A:$A,AF$9&$A97,bank!$N:$N) -> 0 | AG97: =SUMIF(M!$A:$A,$A97,M!$L:$L)+SUMIF(bank!$A:$A,AG$9&$A97,bank!$N:$N) -> 0 | AH97: =SUMIF(P!$A:$A,$A97,P!$L:$L)+SUMIF(bank!$A:$A,AH$9&$A97,bank!$N:$N) -> 0 | AI97: =SUMIF(Zs!$A:$A,$A97,Zs!$L:$L)+SUMIF(bank!$A:$A,AI$9&$A97,bank!$N:$N) -> 0 | AJ97: * | AK97: k | AM97: egyéb gyülekezeti ingatlan (templom, gyülekezeti terem, üzlethelység, stb.) - karbantartási munkához vásárolt anyag (szolgáltatás nélkül)
A98: k089 | B98: 89 | D98: Gépjárművek | T98: 0 | U98: =SUMIF('Terv-segédlet'!$B:$B,$A98,'Terv-segédlet'!E:E) -> 0 | V98: =SUMIF('Terv-segédlet'!$B:$B,$A98,'Terv-segédlet'!F:F) -> 0 | W98: =SUMIF('Terv-segédlet'!$B:$B,$A98,'Terv-segédlet'!G:G) -> 0 | X98: =SUMIF('Terv-segédlet'!$B:$B,$A98,'Terv-segédlet'!H:H) -> 0 | Y98: =SUMIF('Terv-segédlet'!$B:$B,$A98,'Terv-segédlet'!I:I) -> 0 | Z98: =SUMIF('Terv-segédlet'!$B:$B,$A98,'Terv-segédlet'!J:J) -> 0 | AA98: =SUMIF('Terv-segédlet'!$B:$B,$A98,'Terv-segédlet'!K:K) -> 0 | AB98: 0 | AC98: =SUMIF(V!$A:$A,$A98,V!$L:$L)+SUMIF(bank!$A:$A,AC$9&$A98,bank!$N:$N) -> 0 | AD98: =SUMIF(Gy!$A:$A,$A98,Gy!$L:$L)+SUMIF(bank!$A:$A,AD$9&$A98,bank!$N:$N) -> 0 | AE98: =SUMIF(K!$A:$A,$A98,K!$L:$L)+SUMIF(bank!$A:$A,AE$9&$A98,bank!$N:$N) -> 0 | AF98: =SUMIF(Mk!$A:$A,$A98,Mk!$L:$L)+SUMIF(bank!$A:$A,AF$9&$A98,bank!$N:$N) -> 0 | AG98: =SUMIF(M!$A:$A,$A98,M!$L:$L)+SUMIF(bank!$A:$A,AG$9&$A98,bank!$N:$N) -> 0 | AH98: =SUMIF(P!$A:$A,$A98,P!$L:$L)+SUMIF(bank!$A:$A,AH$9&$A98,bank!$N:$N) -> 0 | AI98: =SUMIF(Zs!$A:$A,$A98,Zs!$L:$L)+SUMIF(bank!$A:$A,AI$9&$A98,bank!$N:$N) -> 0 | AJ98: * | AK98: k | AM98: gépjármű - karbantartási munkához vásárolt anyag (szolgáltatás nélkül) (olaj, izzó, stb.)
A99: k090 | B99: 90 | D99: Egyéb | T99: 0 | U99: =SUMIF('Terv-segédlet'!$B:$B,$A99,'Terv-segédlet'!E:E) -> 0 | V99: =SUMIF('Terv-segédlet'!$B:$B,$A99,'Terv-segédlet'!F:F) -> 0 | W99: =SUMIF('Terv-segédlet'!$B:$B,$A99,'Terv-segédlet'!G:G) -> 0 | X99: =SUMIF('Terv-segédlet'!$B:$B,$A99,'Terv-segédlet'!H:H) -> 0 | Y99: =SUMIF('Terv-segédlet'!$B:$B,$A99,'Terv-segédlet'!I:I) -> 0 | Z99: =SUMIF('Terv-segédlet'!$B:$B,$A99,'Terv-segédlet'!J:J) -> 0 | AA99: =SUMIF('Terv-segédlet'!$B:$B,$A99,'Terv-segédlet'!K:K) -> 0 | AB99: 0 | AC99: =SUMIF(V!$A:$A,$A99,V!$L:$L)+SUMIF(bank!$A:$A,AC$9&$A99,bank!$N:$N) -> 0 | AD99: =SUMIF(Gy!$A:$A,$A99,Gy!$L:$L)+SUMIF(bank!$A:$A,AD$9&$A99,bank!$N:$N) -> 0 | AE99: =SUMIF(K!$A:$A,$A99,K!$L:$L)+SUMIF(bank!$A:$A,AE$9&$A99,bank!$N:$N) -> 0 | AF99: =SUMIF(Mk!$A:$A,$A99,Mk!$L:$L)+SUMIF(bank!$A:$A,AF$9&$A99,bank!$N:$N) -> 0 | AG99: =SUMIF(M!$A:$A,$A99,M!$L:$L)+SUMIF(bank!$A:$A,AG$9&$A99,bank!$N:$N) -> 0 | AH99: =SUMIF(P!$A:$A,$A99,P!$L:$L)+SUMIF(bank!$A:$A,AH$9&$A99,bank!$N:$N) -> 0 | AI99: =SUMIF(Zs!$A:$A,$A99,Zs!$L:$L)+SUMIF(bank!$A:$A,AI$9&$A99,bank!$N:$N) -> 0 | AJ99: * | AK99: k | AM99: egyéb eszközök, berendezések, felszerelések - karbantartási munkához vásárolt anyag (szolgáltatás nélkül)
A100: k091 | B100: 91 | D100: -Üzemanyag költség (92..93) | T100: =SUM(T101:T102) -> 268800 | U100: =SUM(U101:U102) -> 268800 | V100: =SUM(V101:V102) -> 0 | W100: =SUM(W101:W102) -> 0 | X100: =SUM(X101:X102) -> 0 | Y100: =SUM(Y101:Y102) -> 0 | Z100: =SUM(Z101:Z102) -> 0 | AA100: =SUM(AA101:AA102) -> 0 | AB100: =SUM(AB101:AB102) -> 0 | AC100: =SUM(AC101:AC102) -> 0 | AD100: =SUM(AD101:AD102) -> 0 | AE100: 0 | AF100: 0 | AG100: 0 | AH100: 0 | AI100: 0 | AK100: k | AL100: 0
A101: k092 | B101: 92 | D101: Lelkészi szolgálati gépjármű | F101: Villamos energia szolgáltatás díja | T101: =SUM(U101:AA101) -> 268800 | U101: =SUMIF('Terv-segédlet'!$B:$B,$A101,'Terv-segédlet'!E:E) -> 268800 | V101: =SUMIF('Terv-segédlet'!$B:$B,$A101,'Terv-segédlet'!F:F) -> 0 | W101: =SUMIF('Terv-segédlet'!$B:$B,$A101,'Terv-segédlet'!G:G) -> 0 | X101: =SUMIF('Terv-segédlet'!$B:$B,$A101,'Terv-segédlet'!H:H) -> 0 | Y101: =SUMIF('Terv-segédlet'!$B:$B,$A101,'Terv-segédlet'!I:I) -> 0 | Z101: =SUMIF('Terv-segédlet'!$B:$B,$A101,'Terv-segédlet'!J:J) -> 0 | AA101: =SUMIF('Terv-segédlet'!$B:$B,$A101,'Terv-segédlet'!K:K) -> 0 | AB101: =SUM(AC101:AI101) -> 0 | AC101: =SUMIF(V!$A:$A,$A101,V!$L:$L)+SUMIF(bank!$A:$A,AC$9&$A101,bank!$N:$N) -> 0 | AD101: =SUMIF(Gy!$A:$A,$A101,Gy!$L:$L)+SUMIF(bank!$A:$A,AD$9&$A101,bank!$N:$N) -> 0 | AE101: =SUMIF(K!$A:$A,$A101,K!$L:$L)+SUMIF(bank!$A:$A,AE$9&$A101,bank!$N:$N) -> 0 | AF101: =SUMIF(Mk!$A:$A,$A101,Mk!$L:$L)+SUMIF(bank!$A:$A,AF$9&$A101,bank!$N:$N) -> 0 | AG101: =SUMIF(M!$A:$A,$A101,M!$L:$L)+SUMIF(bank!$A:$A,AG$9&$A101,bank!$N:$N) -> 0 | AH101: =SUMIF(P!$A:$A,$A101,P!$L:$L)+SUMIF(bank!$A:$A,AH$9&$A101,bank!$N:$N) -> 0 | AI101: =SUMIF(Zs!$A:$A,$A101,Zs!$L:$L)+SUMIF(bank!$A:$A,AI$9&$A101,bank!$N:$N) -> 0 | AJ101: * | AK101: k | AL101: 0 | AM101: lelkész által használt egyházközségi tulajdonú, vagy egyházközség által üzembentartott gépkocsi üzemanyagköltsége, a gyülekezet nevére szóló számla alapján
A102: k093 | B102: 93 | D102: Nem lelkészi gépjármű | F102: Vízdíj | T102: 0 | U102: =SUMIF('Terv-segédlet'!$B:$B,$A102,'Terv-segédlet'!E:E) -> 0 | V102: =SUMIF('Terv-segédlet'!$B:$B,$A102,'Terv-segédlet'!F:F) -> 0 | W102: =SUMIF('Terv-segédlet'!$B:$B,$A102,'Terv-segédlet'!G:G) -> 0 | X102: =SUMIF('Terv-segédlet'!$B:$B,$A102,'Terv-segédlet'!H:H) -> 0 | Y102: =SUMIF('Terv-segédlet'!$B:$B,$A102,'Terv-segédlet'!I:I) -> 0 | Z102: =SUMIF('Terv-segédlet'!$B:$B,$A102,'Terv-segédlet'!J:J) -> 0 | AA102: =SUMIF('Terv-segédlet'!$B:$B,$A102,'Terv-segédlet'!K:K) -> 0 | AB102: 0 | AC102: =SUMIF(V!$A:$A,$A102,V!$L:$L)+SUMIF(bank!$A:$A,AC$9&$A102,bank!$N:$N) -> 0 | AD102: =SUMIF(Gy!$A:$A,$A102,Gy!$L:$L)+SUMIF(bank!$A:$A,AD$9&$A102,bank!$N:$N) -> 0 | AE102: =SUMIF(K!$A:$A,$A102,K!$L:$L)+SUMIF(bank!$A:$A,AE$9&$A102,bank!$N:$N) -> 0 | AF102: =SUMIF(Mk!$A:$A,$A102,Mk!$L:$L)+SUMIF(bank!$A:$A,AF$9&$A102,bank!$N:$N) -> 0 | AG102: =SUMIF(M!$A:$A,$A102,M!$L:$L)+SUMIF(bank!$A:$A,AG$9&$A102,bank!$N:$N) -> 0 | AH102: =SUMIF(P!$A:$A,$A102,P!$L:$L)+SUMIF(bank!$A:$A,AH$9&$A102,bank!$N:$N) -> 0 | AI102: =SUMIF(Zs!$A:$A,$A102,Zs!$L:$L)+SUMIF(bank!$A:$A,AI$9&$A102,bank!$N:$N) -> 0 | AJ102: * | AK102: k | AM102: nem lelkész által használt egyházközségi tulajdonú, vagy egyházközség által üzembentartott gépkocsi üzemanyagköltsége, a gyülekezet nevére szóló számla alapján
A103: k094 | B103: 94 | D103: -Könyvtári könyvek, szakkönyvek | F103: Rezsianyag költség | T103: 5000 | U103: =SUMIF('Terv-segédlet'!$B:$B,$A103,'Terv-segédlet'!E:E) -> 5000 | V103: =SUMIF('Terv-segédlet'!$B:$B,$A103,'Terv-segédlet'!F:F) -> 0 | W103: =SUMIF('Terv-segédlet'!$B:$B,$A103,'Terv-segédlet'!G:G) -> 0 | X103: =SUMIF('Terv-segédlet'!$B:$B,$A103,'Terv-segédlet'!H:H) -> 0 | Y103: =SUMIF('Terv-segédlet'!$B:$B,$A103,'Terv-segédlet'!I:I) -> 0 | Z103: =SUMIF('Terv-segédlet'!$B:$B,$A103,'Terv-segédlet'!J:J) -> 0 | AA103: =SUMIF('Terv-segédlet'!$B:$B,$A103,'Terv-segédlet'!K:K) -> 0 | AB103: 0 | AC103: =SUMIF(V!$A:$A,$A103,V!$L:$L)+SUMIF(bank!$A:$A,AC$9&$A103,bank!$N:$N) -> 0 | AD103: =SUMIF(Gy!$A:$A,$A103,Gy!$L:$L)+SUMIF(bank!$A:$A,AD$9&$A103,bank!$N:$N) -> 0 | AE103: =SUMIF(K!$A:$A,$A103,K!$L:$L)+SUMIF(bank!$A:$A,AE$9&$A103,bank!$N:$N) -> 0 | AF103: =SUMIF(Mk!$A:$A,$A103,Mk!$L:$L)+SUMIF(bank!$A:$A,AF$9&$A103,bank!$N:$N) -> 0 | AG103: =SUMIF(M!$A:$A,$A103,M!$L:$L)+SUMIF(bank!$A:$A,AG$9&$A103,bank!$N:$N) -> 0 | AH103: =SUMIF(P!$A:$A,$A103,P!$L:$L)+SUMIF(bank!$A:$A,AH$9&$A103,bank!$N:$N) -> 0 | AI103: =SUMIF(Zs!$A:$A,$A103,Zs!$L:$L)+SUMIF(bank!$A:$A,AI$9&$A103,bank!$N:$N) -> 0 | AJ103: * | AK103: k | AL103: 0 | AM103: egyházközségi könyvtár számára vásárolt kiadványok
A104: k095 | B104: 95 | D104: -Takarító- és tisztítószerek költsége | F104: Munkaruha, védőruha költség | T104: 5000 | U104: =SUMIF('Terv-segédlet'!$B:$B,$A104,'Terv-segédlet'!E:E) -> 5000 | V104: =SUMIF('Terv-segédlet'!$B:$B,$A104,'Terv-segédlet'!F:F) -> 0 | W104: =SUMIF('Terv-segédlet'!$B:$B,$A104,'Terv-segédlet'!G:G) -> 0 | X104: =SUMIF('Terv-segédlet'!$B:$B,$A104,'Terv-segédlet'!H:H) -> 0 | Y104: =SUMIF('Terv-segédlet'!$B:$B,$A104,'Terv-segédlet'!I:I) -> 0 | Z104: =SUMIF('Terv-segédlet'!$B:$B,$A104,'Terv-segédlet'!J:J) -> 0 | AA104: =SUMIF('Terv-segédlet'!$B:$B,$A104,'Terv-segédlet'!K:K) -> 0 | AB104: 0 | AC104: =SUMIF(V!$A:$A,$A104,V!$L:$L)+SUMIF(bank!$A:$A,AC$9&$A104,bank!$N:$N) -> 0 | AD104: =SUMIF(Gy!$A:$A,$A104,Gy!$L:$L)+SUMIF(bank!$A:$A,AD$9&$A104,bank!$N:$N) -> 0 | AE104: =SUMIF(K!$A:$A,$A104,K!$L:$L)+SUMIF(bank!$A:$A,AE$9&$A104,bank!$N:$N) -> 0 | AF104: =SUMIF(Mk!$A:$A,$A104,Mk!$L:$L)+SUMIF(bank!$A:$A,AF$9&$A104,bank!$N:$N) -> 0 | AG104: =SUMIF(M!$A:$A,$A104,M!$L:$L)+SUMIF(bank!$A:$A,AG$9&$A104,bank!$N:$N) -> 0 | AH104: =SUMIF(P!$A:$A,$A104,P!$L:$L)+SUMIF(bank!$A:$A,AH$9&$A104,bank!$N:$N) -> 0 | AI104: =SUMIF(Zs!$A:$A,$A104,Zs!$L:$L)+SUMIF(bank!$A:$A,AI$9&$A104,bank!$N:$N) -> 0 | AJ104: * | AK104: k | AL104: 0 | AM104: tisztítószerek, fertőtlenítő anyatok, takarító szerszámok
A105: k096 | B105: 96 | D105: -Egyéb anyagok költsége | F105: Egy éven belül elhasználódó eszközök, szerszámok, műszerek költsége | T105: 0 | U105: =SUMIF('Terv-segédlet'!$B:$B,$A105,'Terv-segédlet'!E:E) -> 0 | V105: =SUMIF('Terv-segédlet'!$B:$B,$A105,'Terv-segédlet'!F:F) -> 0 | W105: =SUMIF('Terv-segédlet'!$B:$B,$A105,'Terv-segédlet'!G:G) -> 0 | X105: =SUMIF('Terv-segédlet'!$B:$B,$A105,'Terv-segédlet'!H:H) -> 0 | Y105: =SUMIF('Terv-segédlet'!$B:$B,$A105,'Terv-segédlet'!I:I) -> 0 | Z105: =SUMIF('Terv-segédlet'!$B:$B,$A105,'Terv-segédlet'!J:J) -> 0 | AA105: =SUMIF('Terv-segédlet'!$B:$B,$A105,'Terv-segédlet'!K:K) -> 0 | AB105: 0 | AC105: =SUMIF(V!$A:$A,$A105,V!$L:$L)+SUMIF(bank!$A:$A,AC$9&$A105,bank!$N:$N) -> 0 | AD105: =SUMIF(Gy!$A:$A,$A105,Gy!$L:$L)+SUMIF(bank!$A:$A,AD$9&$A105,bank!$N:$N) -> 0 | AE105: =SUMIF(K!$A:$A,$A105,K!$L:$L)+SUMIF(bank!$A:$A,AE$9&$A105,bank!$N:$N) -> 0 | AF105: =SUMIF(Mk!$A:$A,$A105,Mk!$L:$L)+SUMIF(bank!$A:$A,AF$9&$A105,bank!$N:$N) -> 0 | AG105: =SUMIF(M!$A:$A,$A105,M!$L:$L)+SUMIF(bank!$A:$A,AG$9&$A105,bank!$N:$N) -> 0 | AH105: =SUMIF(P!$A:$A,$A105,P!$L:$L)+SUMIF(bank!$A:$A,AH$9&$A105,bank!$N:$N) -> 0 | AI105: =SUMIF(Zs!$A:$A,$A105,Zs!$L:$L)+SUMIF(bank!$A:$A,AI$9&$A105,bank!$N:$N) -> 0 | AJ105: * | AK105: k | AM105: 78-99 sorokban fel nem sorolt, vásárolt anyagok (pl. oltárdíszítéshez virág, gyertya, festékkazetta nyomtatóba, stb.)
A106: k097 | B106: 97 | D106: b) Igénybe vett szolgáltatások költsége (98..99+105+111..118) | F106: Nyomtatványok, irodaszerek költsége | T106: =SUM(T107:T108,T114,T120:T122,T123:T127) -> 6986040 | U106: =SUM(U107:U108,U114,U120:U122,U123:U127) -> 1406040 | V106: =SUM(V107:V108,V114,V120:V122,V123:V127) -> 0 | W106: =SUM(W107:W108,W114,W120:W122,W123:W127) -> 0 | X106: =SUM(X107:X108,X114,X120:X122,X123:X127) -> 5000000 | Y106: =SUM(Y107:Y108,Y114,Y120:Y122,Y123:Y127) -> 450000 | Z106: =SUM(Z107:Z108,Z114,Z120:Z122,Z123:Z127) -> 0 | AA106: =SUM(AA107:AA108,AA114,AA120:AA122,AA123:AA127) -> 130000 | AB106: =SUM(AB107:AB108,AB114,AB120:AB122,AB123:AB127) -> 82000 | AC106: =SUM(AC107:AC108,AC114,AC120:AC122,AC123:AC127) -> 0 | AD106: =SUM(AD107:AD108,AD114,AD120:AD122,AD123:AD127) -> 0 | AE106: 0 | AF106: 0 | AG106: 0 | AH106: 0 | AI106: 82000 | AK106: k | AL106: 0.01173769403
A107: k098 | B107: 98 | D107: -Szállítási, raktározási költség | F107: Szakmai anyagok költsége | AK107: k | AM107: költöztetés, ajándékba kapott / adott eszközök szállítása, stb.
A108: k099 | B108: 99 | D108: -Bérleti díjak, lízingdíjak (100..104) | F108: Fenntartási, karbantartási anyagok költsége | T108: =SUM(T109:T113) -> 0 | U108: =SUM(U109:U113) -> 0 | V108: =SUM(V109:V113) -> 0 | W108: =SUM(W109:W113) -> 0 | X108: =SUM(X109:X113) -> 0 | Y108: =SUM(Y109:Y113) -> 0 | Z108: =SUM(Z109:Z113) -> 0 | AA108: =SUM(AA109:AA113) -> 0 | AB108: =SUM(AB109:AB113) -> 0 | AC108: =SUM(AC109:AC113) -> 0 | AD108: =SUM(AD109:AD113) -> 0 | AE108: 0 | AF108: 0 | AG108: 0 | AH108: 0 | AI108: 0 | AK108: k
A109: k100 | B109: 100 | D109: Lelkészlakás | F109: Üzemanyagok költsége | T109: =SUM(U109:AA109) -> 0 | U109: =SUMIF('Terv-segédlet'!$B:$B,$A109,'Terv-segédlet'!E:E) -> 0 | V109: =SUMIF('Terv-segédlet'!$B:$B,$A109,'Terv-segédlet'!F:F) -> 0 | W109: =SUMIF('Terv-segédlet'!$B:$B,$A109,'Terv-segédlet'!G:G) -> 0 | X109: =SUMIF('Terv-segédlet'!$B:$B,$A109,'Terv-segédlet'!H:H) -> 0 | Y109: =SUMIF('Terv-segédlet'!$B:$B,$A109,'Terv-segédlet'!I:I) -> 0 | Z109: =SUMIF('Terv-segédlet'!$B:$B,$A109,'Terv-segédlet'!J:J) -> 0 | AA109: =SUMIF('Terv-segédlet'!$B:$B,$A109,'Terv-segédlet'!K:K) -> 0 | AB109: =SUM(AC109:AI109) -> 0 | AC109: =SUMIF(V!$A:$A,$A109,V!$L:$L)+SUMIF(bank!$A:$A,AC$9&$A109,bank!$N:$N) -> 0 | AD109: =SUMIF(Gy!$A:$A,$A109,Gy!$L:$L)+SUMIF(bank!$A:$A,AD$9&$A109,bank!$N:$N) -> 0 | AE109: =SUMIF(K!$A:$A,$A109,K!$L:$L)+SUMIF(bank!$A:$A,AE$9&$A109,bank!$N:$N) -> 0 | AF109: =SUMIF(Mk!$A:$A,$A109,Mk!$L:$L)+SUMIF(bank!$A:$A,AF$9&$A109,bank!$N:$N) -> 0 | AG109: =SUMIF(M!$A:$A,$A109,M!$L:$L)+SUMIF(bank!$A:$A,AG$9&$A109,bank!$N:$N) -> 0 | AH109: =SUMIF(P!$A:$A,$A109,P!$L:$L)+SUMIF(bank!$A:$A,AH$9&$A109,bank!$N:$N) -> 0 | AI109: =SUMIF(Zs!$A:$A,$A109,Zs!$L:$L)+SUMIF(bank!$A:$A,AI$9&$A109,bank!$N:$N) -> 0 | AJ109: * | AK109: k | AM109: lelkészlakás céljára bérelt ingatlan bérleti díja
A110: k101 | B110: 101 | D110: Egyéb lakás | T110: 0 | U110: =SUMIF('Terv-segédlet'!$B:$B,$A110,'Terv-segédlet'!E:E) -> 0 | V110: =SUMIF('Terv-segédlet'!$B:$B,$A110,'Terv-segédlet'!F:F) -> 0 | W110: =SUMIF('Terv-segédlet'!$B:$B,$A110,'Terv-segédlet'!G:G) -> 0 | X110: =SUMIF('Terv-segédlet'!$B:$B,$A110,'Terv-segédlet'!H:H) -> 0 | Y110: =SUMIF('Terv-segédlet'!$B:$B,$A110,'Terv-segédlet'!I:I) -> 0 | Z110: =SUMIF('Terv-segédlet'!$B:$B,$A110,'Terv-segédlet'!J:J) -> 0 | AA110: =SUMIF('Terv-segédlet'!$B:$B,$A110,'Terv-segédlet'!K:K) -> 0 | AB110: 0 | AC110: =SUMIF(V!$A:$A,$A110,V!$L:$L)+SUMIF(bank!$A:$A,AC$9&$A110,bank!$N:$N) -> 0 | AD110: =SUMIF(Gy!$A:$A,$A110,Gy!$L:$L)+SUMIF(bank!$A:$A,AD$9&$A110,bank!$N:$N) -> 0 | AE110: =SUMIF(K!$A:$A,$A110,K!$L:$L)+SUMIF(bank!$A:$A,AE$9&$A110,bank!$N:$N) -> 0 | AF110: =SUMIF(Mk!$A:$A,$A110,Mk!$L:$L)+SUMIF(bank!$A:$A,AF$9&$A110,bank!$N:$N) -> 0 | AG110: =SUMIF(M!$A:$A,$A110,M!$L:$L)+SUMIF(bank!$A:$A,AG$9&$A110,bank!$N:$N) -> 0 | AH110: =SUMIF(P!$A:$A,$A110,P!$L:$L)+SUMIF(bank!$A:$A,AH$9&$A110,bank!$N:$N) -> 0 | AI110: =SUMIF(Zs!$A:$A,$A110,Zs!$L:$L)+SUMIF(bank!$A:$A,AI$9&$A110,bank!$N:$N) -> 0 | AJ110: * | AK110: k | AM110: egyéb, lakás céljára bérelt ingatlan bérleti díja
A111: k102 | B111: 102 | D111: Más gyülekezeti helyiség | F111: Kenő-, hajtó- és tüzelőanyagok költsége | T111: 0 | U111: =SUMIF('Terv-segédlet'!$B:$B,$A111,'Terv-segédlet'!E:E) -> 0 | V111: =SUMIF('Terv-segédlet'!$B:$B,$A111,'Terv-segédlet'!F:F) -> 0 | W111: =SUMIF('Terv-segédlet'!$B:$B,$A111,'Terv-segédlet'!G:G) -> 0 | X111: =SUMIF('Terv-segédlet'!$B:$B,$A111,'Terv-segédlet'!H:H) -> 0 | Y111: =SUMIF('Terv-segédlet'!$B:$B,$A111,'Terv-segédlet'!I:I) -> 0 | Z111: =SUMIF('Terv-segédlet'!$B:$B,$A111,'Terv-segédlet'!J:J) -> 0 | AA111: =SUMIF('Terv-segédlet'!$B:$B,$A111,'Terv-segédlet'!K:K) -> 0 | AB111: 0 | AC111: =SUMIF(V!$A:$A,$A111,V!$L:$L)+SUMIF(bank!$A:$A,AC$9&$A111,bank!$N:$N) -> 0 | AD111: =SUMIF(Gy!$A:$A,$A111,Gy!$L:$L)+SUMIF(bank!$A:$A,AD$9&$A111,bank!$N:$N) -> 0 | AE111: =SUMIF(K!$A:$A,$A111,K!$L:$L)+SUMIF(bank!$A:$A,AE$9&$A111,bank!$N:$N) -> 0 | AF111: =SUMIF(Mk!$A:$A,$A111,Mk!$L:$L)+SUMIF(bank!$A:$A,AF$9&$A111,bank!$N:$N) -> 0 | AG111: =SUMIF(M!$A:$A,$A111,M!$L:$L)+SUMIF(bank!$A:$A,AG$9&$A111,bank!$N:$N) -> 0 | AH111: =SUMIF(P!$A:$A,$A111,P!$L:$L)+SUMIF(bank!$A:$A,AH$9&$A111,bank!$N:$N) -> 0 | AI111: =SUMIF(Zs!$A:$A,$A111,Zs!$L:$L)+SUMIF(bank!$A:$A,AI$9&$A111,bank!$N:$N) -> 0 | AJ111: * | AK111: k | AM111: egyéb ingatlan bérleti díj
A112: k103 | B112: 103 | D112: Gépjárművek | F112: Könyvtári, tanulói könyvek | T112: 0 | U112: =SUMIF('Terv-segédlet'!$B:$B,$A112,'Terv-segédlet'!E:E) -> 0 | V112: =SUMIF('Terv-segédlet'!$B:$B,$A112,'Terv-segédlet'!F:F) -> 0 | W112: =SUMIF('Terv-segédlet'!$B:$B,$A112,'Terv-segédlet'!G:G) -> 0 | X112: =SUMIF('Terv-segédlet'!$B:$B,$A112,'Terv-segédlet'!H:H) -> 0 | Y112: =SUMIF('Terv-segédlet'!$B:$B,$A112,'Terv-segédlet'!I:I) -> 0 | Z112: =SUMIF('Terv-segédlet'!$B:$B,$A112,'Terv-segédlet'!J:J) -> 0 | AA112: =SUMIF('Terv-segédlet'!$B:$B,$A112,'Terv-segédlet'!K:K) -> 0 | AB112: 0 | AC112: =SUMIF(V!$A:$A,$A112,V!$L:$L)+SUMIF(bank!$A:$A,AC$9&$A112,bank!$N:$N) -> 0 | AD112: =SUMIF(Gy!$A:$A,$A112,Gy!$L:$L)+SUMIF(bank!$A:$A,AD$9&$A112,bank!$N:$N) -> 0 | AE112: =SUMIF(K!$A:$A,$A112,K!$L:$L)+SUMIF(bank!$A:$A,AE$9&$A112,bank!$N:$N) -> 0 | AF112: =SUMIF(Mk!$A:$A,$A112,Mk!$L:$L)+SUMIF(bank!$A:$A,AF$9&$A112,bank!$N:$N) -> 0 | AG112: =SUMIF(M!$A:$A,$A112,M!$L:$L)+SUMIF(bank!$A:$A,AG$9&$A112,bank!$N:$N) -> 0 | AH112: =SUMIF(P!$A:$A,$A112,P!$L:$L)+SUMIF(bank!$A:$A,AH$9&$A112,bank!$N:$N) -> 0 | AI112: =SUMIF(Zs!$A:$A,$A112,Zs!$L:$L)+SUMIF(bank!$A:$A,AI$9&$A112,bank!$N:$N) -> 0 | AJ112: * | AK112: k | AM112: járművek bérleti díja
A113: k104 | B113: 104 | D113: Egyéb | F113: Takarító- és tisztítószerek költsége | T113: 0 | U113: =SUMIF('Terv-segédlet'!$B:$B,$A113,'Terv-segédlet'!E:E) -> 0 | V113: =SUMIF('Terv-segédlet'!$B:$B,$A113,'Terv-segédlet'!F:F) -> 0 | W113: =SUMIF('Terv-segédlet'!$B:$B,$A113,'Terv-segédlet'!G:G) -> 0 | X113: =SUMIF('Terv-segédlet'!$B:$B,$A113,'Terv-segédlet'!H:H) -> 0 | Y113: =SUMIF('Terv-segédlet'!$B:$B,$A113,'Terv-segédlet'!I:I) -> 0 | Z113: =SUMIF('Terv-segédlet'!$B:$B,$A113,'Terv-segédlet'!J:J) -> 0 | AA113: =SUMIF('Terv-segédlet'!$B:$B,$A113,'Terv-segédlet'!K:K) -> 0 | AB113: 0 | AC113: =SUMIF(V!$A:$A,$A113,V!$L:$L)+SUMIF(bank!$A:$A,AC$9&$A113,bank!$N:$N) -> 0 | AD113: =SUMIF(Gy!$A:$A,$A113,Gy!$L:$L)+SUMIF(bank!$A:$A,AD$9&$A113,bank!$N:$N) -> 0 | AE113: =SUMIF(K!$A:$A,$A113,K!$L:$L)+SUMIF(bank!$A:$A,AE$9&$A113,bank!$N:$N) -> 0 | AF113: =SUMIF(Mk!$A:$A,$A113,Mk!$L:$L)+SUMIF(bank!$A:$A,AF$9&$A113,bank!$N:$N) -> 0 | AG113: =SUMIF(M!$A:$A,$A113,M!$L:$L)+SUMIF(bank!$A:$A,AG$9&$A113,bank!$N:$N) -> 0 | AH113: =SUMIF(P!$A:$A,$A113,P!$L:$L)+SUMIF(bank!$A:$A,AH$9&$A113,bank!$N:$N) -> 0 | AI113: =SUMIF(Zs!$A:$A,$A113,Zs!$L:$L)+SUMIF(bank!$A:$A,AI$9&$A113,bank!$N:$N) -> 0 | AJ113: * | AK113: k | AM113: egyéb eszközök, berendezések, felszerelések bérleti díja
A114: k105 | B114: 105 | D114: -Karbantartási költségek (106..110) | F114: Mosószerek költsége | T114: =SUM(T115:T119) -> 6750000 | U114: =SUM(U115:U119) -> 1170000 | V114: =SUM(V115:V119) -> 0 | W114: =SUM(W115:W119) -> 0 | X114: =SUM(X115:X119) -> 5000000 | Y114: =SUM(Y115:Y119) -> 450000 | Z114: =SUM(Z115:Z119) -> 0 | AA114: =SUM(AA115:AA119) -> 130000 | AB114: =SUM(AB115:AB119) -> 82000 | AC114: =SUM(AC115:AC119) -> 0 | AD114: =SUM(AD115:AD119) -> 0 | AE114: 0 | AF114: 0 | AG114: 0 | AH114: 0 | AI114: 82000 | AK114: k | AL114: 0.01214814815
A115: k106 | B115: 106 | D115: Lelkészlakás | F115: Egyéb anyagok költsége | T115: =SUM(U115:AA115) -> 20000 | U115: =SUMIF('Terv-segédlet'!$B:$B,$A115,'Terv-segédlet'!E:E) -> 20000 | V115: =SUMIF('Terv-segédlet'!$B:$B,$A115,'Terv-segédlet'!F:F) -> 0 | W115: =SUMIF('Terv-segédlet'!$B:$B,$A115,'Terv-segédlet'!G:G) -> 0 | X115: =SUMIF('Terv-segédlet'!$B:$B,$A115,'Terv-segédlet'!H:H) -> 0 | Y115: =SUMIF('Terv-segédlet'!$B:$B,$A115,'Terv-segédlet'!I:I) -> 0 | Z115: =SUMIF('Terv-segédlet'!$B:$B,$A115,'Terv-segédlet'!J:J) -> 0 | AA115: =SUMIF('Terv-segédlet'!$B:$B,$A115,'Terv-segédlet'!K:K) -> 0 | AB115: =SUM(AC115:AI115) -> 0 | AC115: =SUMIF(V!$A:$A,$A115,V!$L:$L)+SUMIF(bank!$A:$A,AC$9&$A115,bank!$N:$N) -> 0 | AD115: =SUMIF(Gy!$A:$A,$A115,Gy!$L:$L)+SUMIF(bank!$A:$A,AD$9&$A115,bank!$N:$N) -> 0 | AE115: =SUMIF(K!$A:$A,$A115,K!$L:$L)+SUMIF(bank!$A:$A,AE$9&$A115,bank!$N:$N) -> 0 | AF115: =SUMIF(Mk!$A:$A,$A115,Mk!$L:$L)+SUMIF(bank!$A:$A,AF$9&$A115,bank!$N:$N) -> 0 | AG115: =SUMIF(M!$A:$A,$A115,M!$L:$L)+SUMIF(bank!$A:$A,AG$9&$A115,bank!$N:$N) -> 0 | AH115: =SUMIF(P!$A:$A,$A115,P!$L:$L)+SUMIF(bank!$A:$A,AH$9&$A115,bank!$N:$N) -> 0 | AI115: =SUMIF(Zs!$A:$A,$A115,Zs!$L:$L)+SUMIF(bank!$A:$A,AI$9&$A115,bank!$N:$N) -> 0 | AJ115: * | AK115: k | AL115: 0 | AM115: lelkészlakás - festés, szerelés, stb. karbantartási szolgáltatás (a benne lévő anyagköltséggel együtt)
A116: k107 | B116: 107 | D116: Egyéb lakás | T116: 0 | U116: =SUMIF('Terv-segédlet'!$B:$B,$A116,'Terv-segédlet'!E:E) -> 0 | V116: =SUMIF('Terv-segédlet'!$B:$B,$A116,'Terv-segédlet'!F:F) -> 0 | W116: =SUMIF('Terv-segédlet'!$B:$B,$A116,'Terv-segédlet'!G:G) -> 0 | X116: =SUMIF('Terv-segédlet'!$B:$B,$A116,'Terv-segédlet'!H:H) -> 0 | Y116: =SUMIF('Terv-segédlet'!$B:$B,$A116,'Terv-segédlet'!I:I) -> 0 | Z116: =SUMIF('Terv-segédlet'!$B:$B,$A116,'Terv-segédlet'!J:J) -> 0 | AA116: =SUMIF('Terv-segédlet'!$B:$B,$A116,'Terv-segédlet'!K:K) -> 0 | AB116: 0 | AC116: =SUMIF(V!$A:$A,$A116,V!$L:$L)+SUMIF(bank!$A:$A,AC$9&$A116,bank!$N:$N) -> 0 | AD116: =SUMIF(Gy!$A:$A,$A116,Gy!$L:$L)+SUMIF(bank!$A:$A,AD$9&$A116,bank!$N:$N) -> 0 | AE116: =SUMIF(K!$A:$A,$A116,K!$L:$L)+SUMIF(bank!$A:$A,AE$9&$A116,bank!$N:$N) -> 0 | AF116: =SUMIF(Mk!$A:$A,$A116,Mk!$L:$L)+SUMIF(bank!$A:$A,AF$9&$A116,bank!$N:$N) -> 0 | AG116: =SUMIF(M!$A:$A,$A116,M!$L:$L)+SUMIF(bank!$A:$A,AG$9&$A116,bank!$N:$N) -> 0 | AH116: =SUMIF(P!$A:$A,$A116,P!$L:$L)+SUMIF(bank!$A:$A,AH$9&$A116,bank!$N:$N) -> 0 | AI116: =SUMIF(Zs!$A:$A,$A116,Zs!$L:$L)+SUMIF(bank!$A:$A,AI$9&$A116,bank!$N:$N) -> 0 | AJ116: * | AK116: k | AM116: egyéb lakóingatlan - festés, szerelés, stb. karbantartási szolgáltatás (a benne lévő anyagköltséggel együtt)
A117: k108 | B117: 108 | D117: Más gyülekezeti helyiség | E117: Igénybe vett szolgáltatások költsége (86..102) | T117: 6580000 | U117: =SUMIF('Terv-segédlet'!$B:$B,$A117,'Terv-segédlet'!E:E) -> 1000000 | V117: =SUMIF('Terv-segédlet'!$B:$B,$A117,'Terv-segédlet'!F:F) -> 0 | W117: =SUMIF('Terv-segédlet'!$B:$B,$A117,'Terv-segédlet'!G:G) -> 0 | X117: =SUMIF('Terv-segédlet'!$B:$B,$A117,'Terv-segédlet'!H:H) -> 5000000 | Y117: =SUMIF('Terv-segédlet'!$B:$B,$A117,'Terv-segédlet'!I:I) -> 450000 | Z117: =SUMIF('Terv-segédlet'!$B:$B,$A117,'Terv-segédlet'!J:J) -> 0 | AA117: =SUMIF('Terv-segédlet'!$B:$B,$A117,'Terv-segédlet'!K:K) -> 130000 | AB117: 82000 | AC117: =SUMIF(V!$A:$A,$A117,V!$L:$L)+SUMIF(bank!$A:$A,AC$9&$A117,bank!$N:$N) -> 0 | AD117: =SUMIF(Gy!$A:$A,$A117,Gy!$L:$L)+SUMIF(bank!$A:$A,AD$9&$A117,bank!$N:$N) -> 0 | AE117: =SUMIF(K!$A:$A,$A117,K!$L:$L)+SUMIF(bank!$A:$A,AE$9&$A117,bank!$N:$N) -> 0 | AF117: =SUMIF(Mk!$A:$A,$A117,Mk!$L:$L)+SUMIF(bank!$A:$A,AF$9&$A117,bank!$N:$N) -> 0 | AG117: =SUMIF(M!$A:$A,$A117,M!$L:$L)+SUMIF(bank!$A:$A,AG$9&$A117,bank!$N:$N) -> 0 | AH117: =SUMIF(P!$A:$A,$A117,P!$L:$L)+SUMIF(bank!$A:$A,AH$9&$A117,bank!$N:$N) -> 0 | AI117: =SUMIF(Zs!$A:$A,$A117,Zs!$L:$L)+SUMIF(bank!$A:$A,AI$9&$A117,bank!$N:$N) -> 82000 | AJ117: * | AK117: k | AL117: 0.01246200608 | AM117: egyéb gyülekezeti ingatlan - festés, szerelés, stb. karbantartási szolgáltatás (a benne lévő anyagköltséggel együtt)
A118: k109 | B118: 109 | D118: Gépjárművek | F118: Szakmai anyagok költsége | T118: 150000 | U118: =SUMIF('Terv-segédlet'!$B:$B,$A118,'Terv-segédlet'!E:E) -> 150000 | V118: =SUMIF('Terv-segédlet'!$B:$B,$A118,'Terv-segédlet'!F:F) -> 0 | W118: =SUMIF('Terv-segédlet'!$B:$B,$A118,'Terv-segédlet'!G:G) -> 0 | X118: =SUMIF('Terv-segédlet'!$B:$B,$A118,'Terv-segédlet'!H:H) -> 0 | Y118: =SUMIF('Terv-segédlet'!$B:$B,$A118,'Terv-segédlet'!I:I) -> 0 | Z118: =SUMIF('Terv-segédlet'!$B:$B,$A118,'Terv-segédlet'!J:J) -> 0 | AA118: =SUMIF('Terv-segédlet'!$B:$B,$A118,'Terv-segédlet'!K:K) -> 0 | AB118: 0 | AC118: =SUMIF(V!$A:$A,$A118,V!$L:$L)+SUMIF(bank!$A:$A,AC$9&$A118,bank!$N:$N) -> 0 | AD118: =SUMIF(Gy!$A:$A,$A118,Gy!$L:$L)+SUMIF(bank!$A:$A,AD$9&$A118,bank!$N:$N) -> 0 | AE118: =SUMIF(K!$A:$A,$A118,K!$L:$L)+SUMIF(bank!$A:$A,AE$9&$A118,bank!$N:$N) -> 0 | AF118: =SUMIF(Mk!$A:$A,$A118,Mk!$L:$L)+SUMIF(bank!$A:$A,AF$9&$A118,bank!$N:$N) -> 0 | AG118: =SUMIF(M!$A:$A,$A118,M!$L:$L)+SUMIF(bank!$A:$A,AG$9&$A118,bank!$N:$N) -> 0 | AH118: =SUMIF(P!$A:$A,$A118,P!$L:$L)+SUMIF(bank!$A:$A,AH$9&$A118,bank!$N:$N) -> 0 | AI118: =SUMIF(Zs!$A:$A,$A118,Zs!$L:$L)+SUMIF(bank!$A:$A,AI$9&$A118,bank!$N:$N) -> 0 | AJ118: * | AK118: k | AL118: 0 | AM118: gépjárművek - festés, szerelés, stb. karbantartási szolgáltatás (a benne lévő anyagköltséggel együtt)
A119: k110 | B119: 110 | D119: Egyéb | F119: Szállítás, rakodás, raktározás költségei | T119: 0 | U119: =SUMIF('Terv-segédlet'!$B:$B,$A119,'Terv-segédlet'!E:E) -> 0 | V119: =SUMIF('Terv-segédlet'!$B:$B,$A119,'Terv-segédlet'!F:F) -> 0 | W119: =SUMIF('Terv-segédlet'!$B:$B,$A119,'Terv-segédlet'!G:G) -> 0 | X119: =SUMIF('Terv-segédlet'!$B:$B,$A119,'Terv-segédlet'!H:H) -> 0 | Y119: =SUMIF('Terv-segédlet'!$B:$B,$A119,'Terv-segédlet'!I:I) -> 0 | Z119: =SUMIF('Terv-segédlet'!$B:$B,$A119,'Terv-segédlet'!J:J) -> 0 | AA119: =SUMIF('Terv-segédlet'!$B:$B,$A119,'Terv-segédlet'!K:K) -> 0 | AB119: 0 | AC119: =SUMIF(V!$A:$A,$A119,V!$L:$L)+SUMIF(bank!$A:$A,AC$9&$A119,bank!$N:$N) -> 0 | AD119: =SUMIF(Gy!$A:$A,$A119,Gy!$L:$L)+SUMIF(bank!$A:$A,AD$9&$A119,bank!$N:$N) -> 0 | AE119: =SUMIF(K!$A:$A,$A119,K!$L:$L)+SUMIF(bank!$A:$A,AE$9&$A119,bank!$N:$N) -> 0 | AF119: =SUMIF(Mk!$A:$A,$A119,Mk!$L:$L)+SUMIF(bank!$A:$A,AF$9&$A119,bank!$N:$N) -> 0 | AG119: =SUMIF(M!$A:$A,$A119,M!$L:$L)+SUMIF(bank!$A:$A,AG$9&$A119,bank!$N:$N) -> 0 | AH119: =SUMIF(P!$A:$A,$A119,P!$L:$L)+SUMIF(bank!$A:$A,AH$9&$A119,bank!$N:$N) -> 0 | AI119: =SUMIF(Zs!$A:$A,$A119,Zs!$L:$L)+SUMIF(bank!$A:$A,AI$9&$A119,bank!$N:$N) -> 0 | AJ119: * | AK119: k | AM119: egyéb eszközök, berendezések, felszerelések - festés, szerelés, stb. karbantartási szolgáltatás (a benne lévő anyagköltséggel együtt)
A120: k111 | B120: 111 | D120: -Hirdetés, reklám költségek | F120: Bérleti díjak, lízingdíjak | T120: 0 | U120: =SUMIF('Terv-segédlet'!$B:$B,$A120,'Terv-segédlet'!E:E) -> 0 | V120: =SUMIF('Terv-segédlet'!$B:$B,$A120,'Terv-segédlet'!F:F) -> 0 | W120: =SUMIF('Terv-segédlet'!$B:$B,$A120,'Terv-segédlet'!G:G) -> 0 | X120: =SUMIF('Terv-segédlet'!$B:$B,$A120,'Terv-segédlet'!H:H) -> 0 | Y120: =SUMIF('Terv-segédlet'!$B:$B,$A120,'Terv-segédlet'!I:I) -> 0 | Z120: =SUMIF('Terv-segédlet'!$B:$B,$A120,'Terv-segédlet'!J:J) -> 0 | AA120: =SUMIF('Terv-segédlet'!$B:$B,$A120,'Terv-segédlet'!K:K) -> 0 | AB120: 0 | AC120: =SUMIF(V!$A:$A,$A120,V!$L:$L)+SUMIF(bank!$A:$A,AC$9&$A120,bank!$N:$N) -> 0 | AD120: =SUMIF(Gy!$A:$A,$A120,Gy!$L:$L)+SUMIF(bank!$A:$A,AD$9&$A120,bank!$N:$N) -> 0 | AE120: =SUMIF(K!$A:$A,$A120,K!$L:$L)+SUMIF(bank!$A:$A,AE$9&$A120,bank!$N:$N) -> 0 | AF120: =SUMIF(Mk!$A:$A,$A120,Mk!$L:$L)+SUMIF(bank!$A:$A,AF$9&$A120,bank!$N:$N) -> 0 | AG120: =SUMIF(M!$A:$A,$A120,M!$L:$L)+SUMIF(bank!$A:$A,AG$9&$A120,bank!$N:$N) -> 0 | AH120: =SUMIF(P!$A:$A,$A120,P!$L:$L)+SUMIF(bank!$A:$A,AH$9&$A120,bank!$N:$N) -> 0 | AI120: =SUMIF(Zs!$A:$A,$A120,Zs!$L:$L)+SUMIF(bank!$A:$A,AI$9&$A120,bank!$N:$N) -> 0 | AJ120: * | AK120: k | AM120: plakát-, szórólap készítés költsége, újsághirdetés, stb.
A121: k112 | B121: 112 | D121: -Oktatás és továbbképzés költsége (konferencia részvétel) | F121: Karbantartási költségek | T121: 0 | U121: =SUMIF('Terv-segédlet'!$B:$B,$A121,'Terv-segédlet'!E:E) -> 0 | V121: =SUMIF('Terv-segédlet'!$B:$B,$A121,'Terv-segédlet'!F:F) -> 0 | W121: =SUMIF('Terv-segédlet'!$B:$B,$A121,'Terv-segédlet'!G:G) -> 0 | X121: =SUMIF('Terv-segédlet'!$B:$B,$A121,'Terv-segédlet'!H:H) -> 0 | Y121: =SUMIF('Terv-segédlet'!$B:$B,$A121,'Terv-segédlet'!I:I) -> 0 | Z121: =SUMIF('Terv-segédlet'!$B:$B,$A121,'Terv-segédlet'!J:J) -> 0 | AA121: =SUMIF('Terv-segédlet'!$B:$B,$A121,'Terv-segédlet'!K:K) -> 0 | AB121: 0 | AC121: =SUMIF(V!$A:$A,$A121,V!$L:$L)+SUMIF(bank!$A:$A,AC$9&$A121,bank!$N:$N) -> 0 | AD121: =SUMIF(Gy!$A:$A,$A121,Gy!$L:$L)+SUMIF(bank!$A:$A,AD$9&$A121,bank!$N:$N) -> 0 | AE121: =SUMIF(K!$A:$A,$A121,K!$L:$L)+SUMIF(bank!$A:$A,AE$9&$A121,bank!$N:$N) -> 0 | AF121: =SUMIF(Mk!$A:$A,$A121,Mk!$L:$L)+SUMIF(bank!$A:$A,AF$9&$A121,bank!$N:$N) -> 0 | AG121: =SUMIF(M!$A:$A,$A121,M!$L:$L)+SUMIF(bank!$A:$A,AG$9&$A121,bank!$N:$N) -> 0 | AH121: =SUMIF(P!$A:$A,$A121,P!$L:$L)+SUMIF(bank!$A:$A,AH$9&$A121,bank!$N:$N) -> 0 | AI121: =SUMIF(Zs!$A:$A,$A121,Zs!$L:$L)+SUMIF(bank!$A:$A,AI$9&$A121,bank!$N:$N) -> 0 | AJ121: * | AK121: k | AM121: lelkész vagy nem lelkészi alkalmazott részére térített
A122: k113 | B122: 113 | D122: -Utazási és kiküldetési költségek, saját gépkocsi használat | F122: Hirdetés, reklám, propaganda | T122: 0 | U122: =SUMIF('Terv-segédlet'!$B:$B,$A122,'Terv-segédlet'!E:E) -> 0 | V122: =SUMIF('Terv-segédlet'!$B:$B,$A122,'Terv-segédlet'!F:F) -> 0 | W122: =SUMIF('Terv-segédlet'!$B:$B,$A122,'Terv-segédlet'!G:G) -> 0 | X122: =SUMIF('Terv-segédlet'!$B:$B,$A122,'Terv-segédlet'!H:H) -> 0 | Y122: =SUMIF('Terv-segédlet'!$B:$B,$A122,'Terv-segédlet'!I:I) -> 0 | Z122: =SUMIF('Terv-segédlet'!$B:$B,$A122,'Terv-segédlet'!J:J) -> 0 | AA122: =SUMIF('Terv-segédlet'!$B:$B,$A122,'Terv-segédlet'!K:K) -> 0 | AB122: 0 | AC122: =SUMIF(V!$A:$A,$A122,V!$L:$L)+SUMIF(bank!$A:$A,AC$9&$A122,bank!$N:$N) -> 0 | AD122: =SUMIF(Gy!$A:$A,$A122,Gy!$L:$L)+SUMIF(bank!$A:$A,AD$9&$A122,bank!$N:$N) -> 0 | AE122: =SUMIF(K!$A:$A,$A122,K!$L:$L)+SUMIF(bank!$A:$A,AE$9&$A122,bank!$N:$N) -> 0 | AF122: =SUMIF(Mk!$A:$A,$A122,Mk!$L:$L)+SUMIF(bank!$A:$A,AF$9&$A122,bank!$N:$N) -> 0 | AG122: =SUMIF(M!$A:$A,$A122,M!$L:$L)+SUMIF(bank!$A:$A,AG$9&$A122,bank!$N:$N) -> 0 | AH122: =SUMIF(P!$A:$A,$A122,P!$L:$L)+SUMIF(bank!$A:$A,AH$9&$A122,bank!$N:$N) -> 0 | AI122: =SUMIF(Zs!$A:$A,$A122,Zs!$L:$L)+SUMIF(bank!$A:$A,AI$9&$A122,bank!$N:$N) -> 0 | AJ122: * | AK122: k | AM122: kiküldetési rendelvény alapján kifizetett gépkocsi használat (lelkész saját gépkocsival ellátott szolgálati utak térítése is!) (NAV üzemanyagár, állami norma, +9Ft/km)
A123: k114 | B123: 114 | D123: -Szakértői díjak | F123: Oktatás és továbbképzés költsége | T123: 0 | U123: =SUMIF('Terv-segédlet'!$B:$B,$A123,'Terv-segédlet'!E:E) -> 0 | V123: =SUMIF('Terv-segédlet'!$B:$B,$A123,'Terv-segédlet'!F:F) -> 0 | W123: =SUMIF('Terv-segédlet'!$B:$B,$A123,'Terv-segédlet'!G:G) -> 0 | X123: =SUMIF('Terv-segédlet'!$B:$B,$A123,'Terv-segédlet'!H:H) -> 0 | Y123: =SUMIF('Terv-segédlet'!$B:$B,$A123,'Terv-segédlet'!I:I) -> 0 | Z123: =SUMIF('Terv-segédlet'!$B:$B,$A123,'Terv-segédlet'!J:J) -> 0 | AA123: =SUMIF('Terv-segédlet'!$B:$B,$A123,'Terv-segédlet'!K:K) -> 0 | AB123: 0 | AC123: =SUMIF(V!$A:$A,$A123,V!$L:$L)+SUMIF(bank!$A:$A,AC$9&$A123,bank!$N:$N) -> 0 | AD123: =SUMIF(Gy!$A:$A,$A123,Gy!$L:$L)+SUMIF(bank!$A:$A,AD$9&$A123,bank!$N:$N) -> 0 | AE123: =SUMIF(K!$A:$A,$A123,K!$L:$L)+SUMIF(bank!$A:$A,AE$9&$A123,bank!$N:$N) -> 0 | AF123: =SUMIF(Mk!$A:$A,$A123,Mk!$L:$L)+SUMIF(bank!$A:$A,AF$9&$A123,bank!$N:$N) -> 0 | AG123: =SUMIF(M!$A:$A,$A123,M!$L:$L)+SUMIF(bank!$A:$A,AG$9&$A123,bank!$N:$N) -> 0 | AH123: =SUMIF(P!$A:$A,$A123,P!$L:$L)+SUMIF(bank!$A:$A,AH$9&$A123,bank!$N:$N) -> 0 | AI123: =SUMIF(Zs!$A:$A,$A123,Zs!$L:$L)+SUMIF(bank!$A:$A,AI$9&$A123,bank!$N:$N) -> 0 | AJ123: * | AK123: k | AM123: jogi, számviteli, tűzvédelmi, egészségügyi, stb. szolgáltatás díja
A124: k115 | B124: 115 | D124: -Posta, telefon és egyéb telekommunikációs költségek | F124: Utazási és kiküldetési költségek | T124: 82240 | U124: =SUMIF('Terv-segédlet'!$B:$B,$A124,'Terv-segédlet'!E:E) -> 82240 | V124: =SUMIF('Terv-segédlet'!$B:$B,$A124,'Terv-segédlet'!F:F) -> 0 | W124: =SUMIF('Terv-segédlet'!$B:$B,$A124,'Terv-segédlet'!G:G) -> 0 | X124: =SUMIF('Terv-segédlet'!$B:$B,$A124,'Terv-segédlet'!H:H) -> 0 | Y124: =SUMIF('Terv-segédlet'!$B:$B,$A124,'Terv-segédlet'!I:I) -> 0 | Z124: =SUMIF('Terv-segédlet'!$B:$B,$A124,'Terv-segédlet'!J:J) -> 0 | AA124: =SUMIF('Terv-segédlet'!$B:$B,$A124,'Terv-segédlet'!K:K) -> 0 | AB124: 0 | AC124: =SUMIF(V!$A:$A,$A124,V!$L:$L)+SUMIF(bank!$A:$A,AC$9&$A124,bank!$N:$N) -> 0 | AD124: =SUMIF(Gy!$A:$A,$A124,Gy!$L:$L)+SUMIF(bank!$A:$A,AD$9&$A124,bank!$N:$N) -> 0 | AE124: =SUMIF(K!$A:$A,$A124,K!$L:$L)+SUMIF(bank!$A:$A,AE$9&$A124,bank!$N:$N) -> 0 | AF124: =SUMIF(Mk!$A:$A,$A124,Mk!$L:$L)+SUMIF(bank!$A:$A,AF$9&$A124,bank!$N:$N) -> 0 | AG124: =SUMIF(M!$A:$A,$A124,M!$L:$L)+SUMIF(bank!$A:$A,AG$9&$A124,bank!$N:$N) -> 0 | AH124: =SUMIF(P!$A:$A,$A124,P!$L:$L)+SUMIF(bank!$A:$A,AH$9&$A124,bank!$N:$N) -> 0 | AI124: =SUMIF(Zs!$A:$A,$A124,Zs!$L:$L)+SUMIF(bank!$A:$A,AI$9&$A124,bank!$N:$N) -> 0 | AJ124: * | AK124: k | AL124: 0 | AM124: posta, telefon, internet
A125: k116 | B125: 116 | D125: -Folyóiratok, szaklapok, közlönyök költsége | T125: 153800 | U125: =SUMIF('Terv-segédlet'!$B:$B,$A125,'Terv-segédlet'!E:E) -> 153800 | V125: =SUMIF('Terv-segédlet'!$B:$B,$A125,'Terv-segédlet'!F:F) -> 0 | W125: =SUMIF('Terv-segédlet'!$B:$B,$A125,'Terv-segédlet'!G:G) -> 0 | X125: =SUMIF('Terv-segédlet'!$B:$B,$A125,'Terv-segédlet'!H:H) -> 0 | Y125: =SUMIF('Terv-segédlet'!$B:$B,$A125,'Terv-segédlet'!I:I) -> 0 | Z125: =SUMIF('Terv-segédlet'!$B:$B,$A125,'Terv-segédlet'!J:J) -> 0 | AA125: =SUMIF('Terv-segédlet'!$B:$B,$A125,'Terv-segédlet'!K:K) -> 0 | AB125: 0 | AC125: =SUMIF(V!$A:$A,$A125,V!$L:$L)+SUMIF(bank!$A:$A,AC$9&$A125,bank!$N:$N) -> 0 | AD125: =SUMIF(Gy!$A:$A,$A125,Gy!$L:$L)+SUMIF(bank!$A:$A,AD$9&$A125,bank!$N:$N) -> 0 | AE125: =SUMIF(K!$A:$A,$A125,K!$L:$L)+SUMIF(bank!$A:$A,AE$9&$A125,bank!$N:$N) -> 0 | AF125: =SUMIF(Mk!$A:$A,$A125,Mk!$L:$L)+SUMIF(bank!$A:$A,AF$9&$A125,bank!$N:$N) -> 0 | AG125: =SUMIF(M!$A:$A,$A125,M!$L:$L)+SUMIF(bank!$A:$A,AG$9&$A125,bank!$N:$N) -> 0 | AH125: =SUMIF(P!$A:$A,$A125,P!$L:$L)+SUMIF(bank!$A:$A,AH$9&$A125,bank!$N:$N) -> 0 | AI125: =SUMIF(Zs!$A:$A,$A125,Zs!$L:$L)+SUMIF(bank!$A:$A,AI$9&$A125,bank!$N:$N) -> 0 | AJ125: * | AK125: k | AL125: 0 | AM125: saját célra vásárolt folyóiratok, szaklapok költsége
A126: k117 | B126: 117 | D126: -Távfűtés | F126: Vásárolt élelmezés | T126: 0 | U126: =SUMIF('Terv-segédlet'!$B:$B,$A126,'Terv-segédlet'!E:E) -> 0 | V126: =SUMIF('Terv-segédlet'!$B:$B,$A126,'Terv-segédlet'!F:F) -> 0 | W126: =SUMIF('Terv-segédlet'!$B:$B,$A126,'Terv-segédlet'!G:G) -> 0 | X126: =SUMIF('Terv-segédlet'!$B:$B,$A126,'Terv-segédlet'!H:H) -> 0 | Y126: =SUMIF('Terv-segédlet'!$B:$B,$A126,'Terv-segédlet'!I:I) -> 0 | Z126: =SUMIF('Terv-segédlet'!$B:$B,$A126,'Terv-segédlet'!J:J) -> 0 | AA126: =SUMIF('Terv-segédlet'!$B:$B,$A126,'Terv-segédlet'!K:K) -> 0 | AB126: 0 | AC126: =SUMIF(V!$A:$A,$A126,V!$L:$L)+SUMIF(bank!$A:$A,AC$9&$A126,bank!$N:$N) -> 0 | AD126: =SUMIF(Gy!$A:$A,$A126,Gy!$L:$L)+SUMIF(bank!$A:$A,AD$9&$A126,bank!$N:$N) -> 0 | AE126: =SUMIF(K!$A:$A,$A126,K!$L:$L)+SUMIF(bank!$A:$A,AE$9&$A126,bank!$N:$N) -> 0 | AF126: =SUMIF(Mk!$A:$A,$A126,Mk!$L:$L)+SUMIF(bank!$A:$A,AF$9&$A126,bank!$N:$N) -> 0 | AG126: =SUMIF(M!$A:$A,$A126,M!$L:$L)+SUMIF(bank!$A:$A,AG$9&$A126,bank!$N:$N) -> 0 | AH126: =SUMIF(P!$A:$A,$A126,P!$L:$L)+SUMIF(bank!$A:$A,AH$9&$A126,bank!$N:$N) -> 0 | AI126: =SUMIF(Zs!$A:$A,$A126,Zs!$L:$L)+SUMIF(bank!$A:$A,AI$9&$A126,bank!$N:$N) -> 0 | AJ126: * | AK126: k | AM126: távfűtési szolgáltatás díja számla szerint (pl. társasházak közös fűtési rendszeréből a hőszolgáltatás alapján kiszámlázott díj)
A127: k118 | B127: 118 | D127: -Egyéb igénybe vett szolgáltatás | F127: Könyv, folyóirat, egyéb információhordozó költsége | T127: 0 | U127: =SUMIF('Terv-segédlet'!$B:$B,$A127,'Terv-segédlet'!E:E) -> 0 | V127: =SUMIF('Terv-segédlet'!$B:$B,$A127,'Terv-segédlet'!F:F) -> 0 | W127: =SUMIF('Terv-segédlet'!$B:$B,$A127,'Terv-segédlet'!G:G) -> 0 | X127: =SUMIF('Terv-segédlet'!$B:$B,$A127,'Terv-segédlet'!H:H) -> 0 | Y127: =SUMIF('Terv-segédlet'!$B:$B,$A127,'Terv-segédlet'!I:I) -> 0 | Z127: =SUMIF('Terv-segédlet'!$B:$B,$A127,'Terv-segédlet'!J:J) -> 0 | AA127: =SUMIF('Terv-segédlet'!$B:$B,$A127,'Terv-segédlet'!K:K) -> 0 | AB127: 0 | AC127: =SUMIF(V!$A:$A,$A127,V!$L:$L)+SUMIF(bank!$A:$A,AC$9&$A127,bank!$N:$N) -> 0 | AD127: =SUMIF(Gy!$A:$A,$A127,Gy!$L:$L)+SUMIF(bank!$A:$A,AD$9&$A127,bank!$N:$N) -> 0 | AE127: =SUMIF(K!$A:$A,$A127,K!$L:$L)+SUMIF(bank!$A:$A,AE$9&$A127,bank!$N:$N) -> 0 | AF127: =SUMIF(Mk!$A:$A,$A127,Mk!$L:$L)+SUMIF(bank!$A:$A,AF$9&$A127,bank!$N:$N) -> 0 | AG127: =SUMIF(M!$A:$A,$A127,M!$L:$L)+SUMIF(bank!$A:$A,AG$9&$A127,bank!$N:$N) -> 0 | AH127: =SUMIF(P!$A:$A,$A127,P!$L:$L)+SUMIF(bank!$A:$A,AH$9&$A127,bank!$N:$N) -> 0 | AI127: =SUMIF(Zs!$A:$A,$A127,Zs!$L:$L)+SUMIF(bank!$A:$A,AI$9&$A127,bank!$N:$N) -> 0 | AJ127: * | AK127: k | AM127: 198-117 sorokban ki nem emelt szolgáltatások (pl. vásárolt élelmezés - nem reprezentációs célú, tagdíjak, parkolási díj, autópályadíj, fénymásolás, mosatás, gépkocsi mosás, szemétszállítás, stb.)
A128: k119 | B128: 119 | D128: c) Egyéb szolgáltatások költsége (120..122+126..127) | F128: Épületüzemeltetési egyéb szolgáltatások | T128: =SUM(T129:T131,T135:T136) -> 300310 | U128: =SUM(U129:U131,U135:U136) -> 203420 | V128: =SUM(V129:V131,V135:V136) -> 22260 | W128: =SUM(W129:W131,W135:W136) -> 16690 | X128: =SUM(X129:X131,X135:X136) -> 28570 | Y128: =SUM(Y129:Y131,Y135:Y136) -> 27370 | Z128: =SUM(Z129:Z131,Z135:Z136) -> 1000 | AA128: =SUM(AA129:AA131,AA135:AA136) -> 1000 | AB128: =SUM(AB129:AB131,AB135:AB136) -> 766 | AC128: =SUM(AC129:AC131,AC135:AC136) -> 566 | AD128: =SUM(AD129:AD131,AD135:AD136) -> 0 | AE128: 50 | AF128: 50 | AG128: 50 | AH128: 0 | AI128: 50 | AK128: k | AL128: 0.002550697612
A129: k120 | B129: 120 | D129: -Hatósági igazgatási, szolgáltatási díjak, illetékek | F129: Tagdíjak | T129: =SUM(U129:AA129) -> 0 | U129: =SUMIF('Terv-segédlet'!$B:$B,$A129,'Terv-segédlet'!E:E) -> 0 | V129: =SUMIF('Terv-segédlet'!$B:$B,$A129,'Terv-segédlet'!F:F) -> 0 | W129: =SUMIF('Terv-segédlet'!$B:$B,$A129,'Terv-segédlet'!G:G) -> 0 | X129: =SUMIF('Terv-segédlet'!$B:$B,$A129,'Terv-segédlet'!H:H) -> 0 | Y129: =SUMIF('Terv-segédlet'!$B:$B,$A129,'Terv-segédlet'!I:I) -> 0 | Z129: =SUMIF('Terv-segédlet'!$B:$B,$A129,'Terv-segédlet'!J:J) -> 0 | AA129: =SUMIF('Terv-segédlet'!$B:$B,$A129,'Terv-segédlet'!K:K) -> 0 | AB129: =SUM(AC129:AI129) -> 0 | AC129: =SUMIF(V!$A:$A,$A129,V!$L:$L)+SUMIF(bank!$A:$A,AC$9&$A129,bank!$N:$N) -> 0 | AD129: =SUMIF(Gy!$A:$A,$A129,Gy!$L:$L)+SUMIF(bank!$A:$A,AD$9&$A129,bank!$N:$N) -> 0 | AE129: =SUMIF(K!$A:$A,$A129,K!$L:$L)+SUMIF(bank!$A:$A,AE$9&$A129,bank!$N:$N) -> 0 | AF129: =SUMIF(Mk!$A:$A,$A129,Mk!$L:$L)+SUMIF(bank!$A:$A,AF$9&$A129,bank!$N:$N) -> 0 | AG129: =SUMIF(M!$A:$A,$A129,M!$L:$L)+SUMIF(bank!$A:$A,AG$9&$A129,bank!$N:$N) -> 0 | AH129: =SUMIF(P!$A:$A,$A129,P!$L:$L)+SUMIF(bank!$A:$A,AH$9&$A129,bank!$N:$N) -> 0 | AI129: =SUMIF(Zs!$A:$A,$A129,Zs!$L:$L)+SUMIF(bank!$A:$A,AI$9&$A129,bank!$N:$N) -> 0 | AJ129: * | AK129: k | AM129: közjegyzői díj, illetékek, műszaki engedélyek hatósági díja, stb.
A130: k121 | B130: 121 | D130: -Pénzügyi, befektetési szolgáltatás díja (bankktg) | F130: Távfűtés | T130: 30000 | U130: =SUMIF('Terv-segédlet'!$B:$B,$A130,'Terv-segédlet'!E:E) -> 15000 | V130: =SUMIF('Terv-segédlet'!$B:$B,$A130,'Terv-segédlet'!F:F) -> 1000 | W130: =SUMIF('Terv-segédlet'!$B:$B,$A130,'Terv-segédlet'!G:G) -> 1000 | X130: =SUMIF('Terv-segédlet'!$B:$B,$A130,'Terv-segédlet'!H:H) -> 10000 | Y130: =SUMIF('Terv-segédlet'!$B:$B,$A130,'Terv-segédlet'!I:I) -> 1000 | Z130: =SUMIF('Terv-segédlet'!$B:$B,$A130,'Terv-segédlet'!J:J) -> 1000 | AA130: =SUMIF('Terv-segédlet'!$B:$B,$A130,'Terv-segédlet'!K:K) -> 1000 | AB130: 766 | AC130: =SUMIF(V!$A:$A,$A130,V!$L:$L)+SUMIF(bank!$A:$A,AC$9&$A130,bank!$N:$N) -> 566 | AD130: =SUMIF(Gy!$A:$A,$A130,Gy!$L:$L)+SUMIF(bank!$A:$A,AD$9&$A130,bank!$N:$N) -> 0 | AE130: =SUMIF(K!$A:$A,$A130,K!$L:$L)+SUMIF(bank!$A:$A,AE$9&$A130,bank!$N:$N) -> 50 | AF130: =SUMIF(Mk!$A:$A,$A130,Mk!$L:$L)+SUMIF(bank!$A:$A,AF$9&$A130,bank!$N:$N) -> 50 | AG130: =SUMIF(M!$A:$A,$A130,M!$L:$L)+SUMIF(bank!$A:$A,AG$9&$A130,bank!$N:$N) -> 50 | AH130: =SUMIF(P!$A:$A,$A130,P!$L:$L)+SUMIF(bank!$A:$A,AH$9&$A130,bank!$N:$N) -> 0 | AI130: =SUMIF(Zs!$A:$A,$A130,Zs!$L:$L)+SUMIF(bank!$A:$A,AI$9&$A130,bank!$N:$N) -> 50 | AJ130: * | AK130: k | AL130: 0.02553333333 | AM130: bankjutalék, bankköltség, banki kezelési díjak
A131: k122 | B131: 122 | D131: -Biztosítási díjak (123..125) | F131: Egészségügyi, foglalkozás egészségügyi szolgáltatás | T131: =SUM(T132:T134) -> 270310 | U131: =SUM(U132:U134) -> 188420 | V131: =SUM(V132:V134) -> 21260 | W131: =SUM(W132:W134) -> 15690 | X131: =SUM(X132:X134) -> 18570 | Y131: =SUM(Y132:Y134) -> 26370 | Z131: =SUM(Z132:Z134) -> 0 | AA131: =SUM(AA132:AA134) -> 0 | AB131: =SUM(AB132:AB134) -> 0 | AC131: =SUM(AC132:AC134) -> 0 | AD131: =SUM(AD132:AD134) -> 0 | AE131: 0 | AF131: 0 | AG131: 0 | AH131: 0 | AI131: 0 | AK131: k | AL131: 0
A132: k123 | B132: 123 | D132: Ingatlan | F132: Orvosi, egészségügyi szolgáltatás | T132: =SUM(U132:AA132) -> 203310 | U132: =SUMIF('Terv-segédlet'!$B:$B,$A132,'Terv-segédlet'!E:E) -> 121420 | V132: =SUMIF('Terv-segédlet'!$B:$B,$A132,'Terv-segédlet'!F:F) -> 21260 | W132: =SUMIF('Terv-segédlet'!$B:$B,$A132,'Terv-segédlet'!G:G) -> 15690 | X132: =SUMIF('Terv-segédlet'!$B:$B,$A132,'Terv-segédlet'!H:H) -> 18570 | Y132: =SUMIF('Terv-segédlet'!$B:$B,$A132,'Terv-segédlet'!I:I) -> 26370 | Z132: =SUMIF('Terv-segédlet'!$B:$B,$A132,'Terv-segédlet'!J:J) -> 0 | AA132: =SUMIF('Terv-segédlet'!$B:$B,$A132,'Terv-segédlet'!K:K) -> 0 | AB132: =SUM(AC132:AI132) -> 0 | AC132: =SUMIF(V!$A:$A,$A132,V!$L:$L)+SUMIF(bank!$A:$A,AC$9&$A132,bank!$N:$N) -> 0 | AD132: =SUMIF(Gy!$A:$A,$A132,Gy!$L:$L)+SUMIF(bank!$A:$A,AD$9&$A132,bank!$N:$N) -> 0 | AE132: =SUMIF(K!$A:$A,$A132,K!$L:$L)+SUMIF(bank!$A:$A,AE$9&$A132,bank!$N:$N) -> 0 | AF132: =SUMIF(Mk!$A:$A,$A132,Mk!$L:$L)+SUMIF(bank!$A:$A,AF$9&$A132,bank!$N:$N) -> 0 | AG132: =SUMIF(M!$A:$A,$A132,M!$L:$L)+SUMIF(bank!$A:$A,AG$9&$A132,bank!$N:$N) -> 0 | AH132: =SUMIF(P!$A:$A,$A132,P!$L:$L)+SUMIF(bank!$A:$A,AH$9&$A132,bank!$N:$N) -> 0 | AI132: =SUMIF(Zs!$A:$A,$A132,Zs!$L:$L)+SUMIF(bank!$A:$A,AI$9&$A132,bank!$N:$N) -> 0 | AJ132: * | AK132: k | AL132: 0 | AM132: vagyonbiztosítás
A133: k124 | B133: 124 | D133: Gépjárművek | F133: Egyéb igénybe vett szolgáltatás | T133: 67000 | U133: =SUMIF('Terv-segédlet'!$B:$B,$A133,'Terv-segédlet'!E:E) -> 67000 | V133: =SUMIF('Terv-segédlet'!$B:$B,$A133,'Terv-segédlet'!F:F) -> 0 | W133: =SUMIF('Terv-segédlet'!$B:$B,$A133,'Terv-segédlet'!G:G) -> 0 | X133: =SUMIF('Terv-segédlet'!$B:$B,$A133,'Terv-segédlet'!H:H) -> 0 | Y133: =SUMIF('Terv-segédlet'!$B:$B,$A133,'Terv-segédlet'!I:I) -> 0 | Z133: =SUMIF('Terv-segédlet'!$B:$B,$A133,'Terv-segédlet'!J:J) -> 0 | AA133: =SUMIF('Terv-segédlet'!$B:$B,$A133,'Terv-segédlet'!K:K) -> 0 | AB133: 0 | AC133: =SUMIF(V!$A:$A,$A133,V!$L:$L)+SUMIF(bank!$A:$A,AC$9&$A133,bank!$N:$N) -> 0 | AD133: =SUMIF(Gy!$A:$A,$A133,Gy!$L:$L)+SUMIF(bank!$A:$A,AD$9&$A133,bank!$N:$N) -> 0 | AE133: =SUMIF(K!$A:$A,$A133,K!$L:$L)+SUMIF(bank!$A:$A,AE$9&$A133,bank!$N:$N) -> 0 | AF133: =SUMIF(Mk!$A:$A,$A133,Mk!$L:$L)+SUMIF(bank!$A:$A,AF$9&$A133,bank!$N:$N) -> 0 | AG133: =SUMIF(M!$A:$A,$A133,M!$L:$L)+SUMIF(bank!$A:$A,AG$9&$A133,bank!$N:$N) -> 0 | AH133: =SUMIF(P!$A:$A,$A133,P!$L:$L)+SUMIF(bank!$A:$A,AH$9&$A133,bank!$N:$N) -> 0 | AI133: =SUMIF(Zs!$A:$A,$A133,Zs!$L:$L)+SUMIF(bank!$A:$A,AI$9&$A133,bank!$N:$N) -> 0 | AJ133: * | AK133: k | AL133: 0 | AM133: CASCO, kötelező biztosítás
A134: k125 | B134: 125 | D134: Egyéb | E134: Egyéb szolgáltatások költsége (104..108) | T134: 0 | U134: =SUMIF('Terv-segédlet'!$B:$B,$A134,'Terv-segédlet'!E:E) -> 0 | V134: =SUMIF('Terv-segédlet'!$B:$B,$A134,'Terv-segédlet'!F:F) -> 0 | W134: =SUMIF('Terv-segédlet'!$B:$B,$A134,'Terv-segédlet'!G:G) -> 0 | X134: =SUMIF('Terv-segédlet'!$B:$B,$A134,'Terv-segédlet'!H:H) -> 0 | Y134: =SUMIF('Terv-segédlet'!$B:$B,$A134,'Terv-segédlet'!I:I) -> 0 | Z134: =SUMIF('Terv-segédlet'!$B:$B,$A134,'Terv-segédlet'!J:J) -> 0 | AA134: =SUMIF('Terv-segédlet'!$B:$B,$A134,'Terv-segédlet'!K:K) -> 0 | AB134: 0 | AC134: =SUMIF(V!$A:$A,$A134,V!$L:$L)+SUMIF(bank!$A:$A,AC$9&$A134,bank!$N:$N) -> 0 | AD134: =SUMIF(Gy!$A:$A,$A134,Gy!$L:$L)+SUMIF(bank!$A:$A,AD$9&$A134,bank!$N:$N) -> 0 | AE134: =SUMIF(K!$A:$A,$A134,K!$L:$L)+SUMIF(bank!$A:$A,AE$9&$A134,bank!$N:$N) -> 0 | AF134: =SUMIF(Mk!$A:$A,$A134,Mk!$L:$L)+SUMIF(bank!$A:$A,AF$9&$A134,bank!$N:$N) -> 0 | AG134: =SUMIF(M!$A:$A,$A134,M!$L:$L)+SUMIF(bank!$A:$A,AG$9&$A134,bank!$N:$N) -> 0 | AH134: =SUMIF(P!$A:$A,$A134,P!$L:$L)+SUMIF(bank!$A:$A,AH$9&$A134,bank!$N:$N) -> 0 | AI134: =SUMIF(Zs!$A:$A,$A134,Zs!$L:$L)+SUMIF(bank!$A:$A,AI$9&$A134,bank!$N:$N) -> 0 | AJ134: * | AK134: k | AM134: utasbiztosítás, felelősségbiztosítás
A135: k126 | B135: 126 | D135: -Költségként elszámolható adók, járulékok | F135: Hatósági igazgatási, szolgáltatási díjak, illetékek | T135: 0 | U135: =SUMIF('Terv-segédlet'!$B:$B,$A135,'Terv-segédlet'!E:E) -> 0 | V135: =SUMIF('Terv-segédlet'!$B:$B,$A135,'Terv-segédlet'!F:F) -> 0 | W135: =SUMIF('Terv-segédlet'!$B:$B,$A135,'Terv-segédlet'!G:G) -> 0 | X135: =SUMIF('Terv-segédlet'!$B:$B,$A135,'Terv-segédlet'!H:H) -> 0 | Y135: =SUMIF('Terv-segédlet'!$B:$B,$A135,'Terv-segédlet'!I:I) -> 0 | Z135: =SUMIF('Terv-segédlet'!$B:$B,$A135,'Terv-segédlet'!J:J) -> 0 | AA135: =SUMIF('Terv-segédlet'!$B:$B,$A135,'Terv-segédlet'!K:K) -> 0 | AB135: 0 | AC135: =SUMIF(V!$A:$A,$A135,V!$L:$L)+SUMIF(bank!$A:$A,AC$9&$A135,bank!$N:$N) -> 0 | AD135: =SUMIF(Gy!$A:$A,$A135,Gy!$L:$L)+SUMIF(bank!$A:$A,AD$9&$A135,bank!$N:$N) -> 0 | AE135: =SUMIF(K!$A:$A,$A135,K!$L:$L)+SUMIF(bank!$A:$A,AE$9&$A135,bank!$N:$N) -> 0 | AF135: =SUMIF(Mk!$A:$A,$A135,Mk!$L:$L)+SUMIF(bank!$A:$A,AF$9&$A135,bank!$N:$N) -> 0 | AG135: =SUMIF(M!$A:$A,$A135,M!$L:$L)+SUMIF(bank!$A:$A,AG$9&$A135,bank!$N:$N) -> 0 | AH135: =SUMIF(P!$A:$A,$A135,P!$L:$L)+SUMIF(bank!$A:$A,AH$9&$A135,bank!$N:$N) -> 0 | AI135: =SUMIF(Zs!$A:$A,$A135,Zs!$L:$L)+SUMIF(bank!$A:$A,AI$9&$A135,bank!$N:$N) -> 0 | AJ135: * | AK135: k | AM135: pl. baleseti adó, cégautóadó
A136: k127 | B136: 127 | D136: -Különféle egyéb szolgáltatások költsége | F136: Pénzügyi, befektetési szolgáltatási díjak | T136: 0 | U136: =SUMIF('Terv-segédlet'!$B:$B,$A136,'Terv-segédlet'!E:E) -> 0 | V136: =SUMIF('Terv-segédlet'!$B:$B,$A136,'Terv-segédlet'!F:F) -> 0 | W136: =SUMIF('Terv-segédlet'!$B:$B,$A136,'Terv-segédlet'!G:G) -> 0 | X136: =SUMIF('Terv-segédlet'!$B:$B,$A136,'Terv-segédlet'!H:H) -> 0 | Y136: =SUMIF('Terv-segédlet'!$B:$B,$A136,'Terv-segédlet'!I:I) -> 0 | Z136: =SUMIF('Terv-segédlet'!$B:$B,$A136,'Terv-segédlet'!J:J) -> 0 | AA136: =SUMIF('Terv-segédlet'!$B:$B,$A136,'Terv-segédlet'!K:K) -> 0 | AB136: 0 | AC136: =SUMIF(V!$A:$A,$A136,V!$L:$L)+SUMIF(bank!$A:$A,AC$9&$A136,bank!$N:$N) -> 0 | AD136: =SUMIF(Gy!$A:$A,$A136,Gy!$L:$L)+SUMIF(bank!$A:$A,AD$9&$A136,bank!$N:$N) -> 0 | AE136: =SUMIF(K!$A:$A,$A136,K!$L:$L)+SUMIF(bank!$A:$A,AE$9&$A136,bank!$N:$N) -> 0 | AF136: =SUMIF(Mk!$A:$A,$A136,Mk!$L:$L)+SUMIF(bank!$A:$A,AF$9&$A136,bank!$N:$N) -> 0 | AG136: =SUMIF(M!$A:$A,$A136,M!$L:$L)+SUMIF(bank!$A:$A,AG$9&$A136,bank!$N:$N) -> 0 | AH136: =SUMIF(P!$A:$A,$A136,P!$L:$L)+SUMIF(bank!$A:$A,AH$9&$A136,bank!$N:$N) -> 0 | AI136: =SUMIF(Zs!$A:$A,$A136,Zs!$L:$L)+SUMIF(bank!$A:$A,AI$9&$A136,bank!$N:$N) -> 0 | AJ136: * | AK136: k | AM136: nem jellemző kiadás, a 125-131 sorokban fel nem sorolt, igénybe vett hatósági szolgáltatások díja
A137: k128 | B137: 128 | D137: d) Eladott áruk beszerzési értéke | F137: Biztosítási díjak | T137: 0 | U137: =SUMIF('Terv-segédlet'!$B:$B,$A137,'Terv-segédlet'!E:E) -> 0 | V137: =SUMIF('Terv-segédlet'!$B:$B,$A137,'Terv-segédlet'!F:F) -> 0 | W137: =SUMIF('Terv-segédlet'!$B:$B,$A137,'Terv-segédlet'!G:G) -> 0 | X137: =SUMIF('Terv-segédlet'!$B:$B,$A137,'Terv-segédlet'!H:H) -> 0 | Y137: =SUMIF('Terv-segédlet'!$B:$B,$A137,'Terv-segédlet'!I:I) -> 0 | Z137: =SUMIF('Terv-segédlet'!$B:$B,$A137,'Terv-segédlet'!J:J) -> 0 | AA137: =SUMIF('Terv-segédlet'!$B:$B,$A137,'Terv-segédlet'!K:K) -> 0 | AB137: 0 | AC137: =SUMIF(V!$A:$A,$A137,V!$L:$L)+SUMIF(bank!$A:$A,AC$9&$A137,bank!$N:$N) -> 0 | AD137: =SUMIF(Gy!$A:$A,$A137,Gy!$L:$L)+SUMIF(bank!$A:$A,AD$9&$A137,bank!$N:$N) -> 0 | AE137: =SUMIF(K!$A:$A,$A137,K!$L:$L)+SUMIF(bank!$A:$A,AE$9&$A137,bank!$N:$N) -> 0 | AF137: =SUMIF(Mk!$A:$A,$A137,Mk!$L:$L)+SUMIF(bank!$A:$A,AF$9&$A137,bank!$N:$N) -> 0 | AG137: =SUMIF(M!$A:$A,$A137,M!$L:$L)+SUMIF(bank!$A:$A,AG$9&$A137,bank!$N:$N) -> 0 | AH137: =SUMIF(P!$A:$A,$A137,P!$L:$L)+SUMIF(bank!$A:$A,AH$9&$A137,bank!$N:$N) -> 0 | AI137: =SUMIF(Zs!$A:$A,$A137,Zs!$L:$L)+SUMIF(bank!$A:$A,AI$9&$A137,bank!$N:$N) -> 0 | AJ137: * | AK137: k | AM137: eladásra vásárolt áruk értéke - nem összesítő sor!
A138: k129 | B138: =+B137+1 -> 129 | D138: ebből Iratterjesztés költsége | T138: 0 | U138: =SUMIF('Terv-segédlet'!$B:$B,$A138,'Terv-segédlet'!E:E) -> 0 | V138: =SUMIF('Terv-segédlet'!$B:$B,$A138,'Terv-segédlet'!F:F) -> 0 | W138: =SUMIF('Terv-segédlet'!$B:$B,$A138,'Terv-segédlet'!G:G) -> 0 | X138: =SUMIF('Terv-segédlet'!$B:$B,$A138,'Terv-segédlet'!H:H) -> 0 | Y138: =SUMIF('Terv-segédlet'!$B:$B,$A138,'Terv-segédlet'!I:I) -> 0 | Z138: =SUMIF('Terv-segédlet'!$B:$B,$A138,'Terv-segédlet'!J:J) -> 0 | AA138: =SUMIF('Terv-segédlet'!$B:$B,$A138,'Terv-segédlet'!K:K) -> 0 | AB138: 0 | AC138: =SUMIF(V!$A:$A,$A138,V!$L:$L)+SUMIF(bank!$A:$A,AC$9&$A138,bank!$N:$N) -> 0 | AD138: =SUMIF(Gy!$A:$A,$A138,Gy!$L:$L)+SUMIF(bank!$A:$A,AD$9&$A138,bank!$N:$N) -> 0 | AE138: =SUMIF(K!$A:$A,$A138,K!$L:$L)+SUMIF(bank!$A:$A,AE$9&$A138,bank!$N:$N) -> 0 | AF138: =SUMIF(Mk!$A:$A,$A138,Mk!$L:$L)+SUMIF(bank!$A:$A,AF$9&$A138,bank!$N:$N) -> 0 | AG138: =SUMIF(M!$A:$A,$A138,M!$L:$L)+SUMIF(bank!$A:$A,AG$9&$A138,bank!$N:$N) -> 0 | AH138: =SUMIF(P!$A:$A,$A138,P!$L:$L)+SUMIF(bank!$A:$A,AH$9&$A138,bank!$N:$N) -> 0 | AI138: =SUMIF(Zs!$A:$A,$A138,Zs!$L:$L)+SUMIF(bank!$A:$A,AI$9&$A138,bank!$N:$N) -> 0 | AJ138: * | AK138: k | AM138: a 128 sor értékéből az eladásra vásárolt iratterjesztési cikkek értéke
A139: k130 | B139: 130 | D139: e) Eladott közvetített szogláltatások értéke | F139: Költségként elszámolható adók, járulékok, termékdíjak | T139: 0 | U139: =SUMIF('Terv-segédlet'!$B:$B,$A139,'Terv-segédlet'!E:E) -> 0 | V139: =SUMIF('Terv-segédlet'!$B:$B,$A139,'Terv-segédlet'!F:F) -> 0 | W139: =SUMIF('Terv-segédlet'!$B:$B,$A139,'Terv-segédlet'!G:G) -> 0 | X139: =SUMIF('Terv-segédlet'!$B:$B,$A139,'Terv-segédlet'!H:H) -> 0 | Y139: =SUMIF('Terv-segédlet'!$B:$B,$A139,'Terv-segédlet'!I:I) -> 0 | Z139: =SUMIF('Terv-segédlet'!$B:$B,$A139,'Terv-segédlet'!J:J) -> 0 | AA139: =SUMIF('Terv-segédlet'!$B:$B,$A139,'Terv-segédlet'!K:K) -> 0 | AB139: 0 | AC139: =SUMIF(V!$A:$A,$A139,V!$L:$L)+SUMIF(bank!$A:$A,AC$9&$A139,bank!$N:$N) -> 0 | AD139: =SUMIF(Gy!$A:$A,$A139,Gy!$L:$L)+SUMIF(bank!$A:$A,AD$9&$A139,bank!$N:$N) -> 0 | AE139: =SUMIF(K!$A:$A,$A139,K!$L:$L)+SUMIF(bank!$A:$A,AE$9&$A139,bank!$N:$N) -> 0 | AF139: =SUMIF(Mk!$A:$A,$A139,Mk!$L:$L)+SUMIF(bank!$A:$A,AF$9&$A139,bank!$N:$N) -> 0 | AG139: =SUMIF(M!$A:$A,$A139,M!$L:$L)+SUMIF(bank!$A:$A,AG$9&$A139,bank!$N:$N) -> 0 | AH139: =SUMIF(P!$A:$A,$A139,P!$L:$L)+SUMIF(bank!$A:$A,AH$9&$A139,bank!$N:$N) -> 0 | AI139: =SUMIF(Zs!$A:$A,$A139,Zs!$L:$L)+SUMIF(bank!$A:$A,AI$9&$A139,bank!$N:$N) -> 0 | AJ139: * | AK139: k | AM139: továbbszámlázott szolgáltatások értéke (pl.a rezsiszámla értékéből továbbszámlázott rész, továbbszámlázort telefonköltség)
A140: k131 | B140: 131 | D140: 8. Személyi jellegű ráfordítások (132+138+155) | T140: =SUM(T141,T147,T164) -> 3483174.941 | U140: =SUM(U141,U147,U164) -> 3272174.941 | V140: =SUM(V141,V147,V164) -> 14000 | W140: =SUM(W141,W147,W164) -> 24000 | X140: =SUM(X141,X147,X164) -> 126000 | Y140: =SUM(Y141,Y147,Y164) -> 47000 | Z140: =SUM(Z141,Z147,Z164) -> 0 | AA140: =SUM(AA141,AA147,AA164) -> 0 | AB140: =SUM(AB141,AB147,AB164) -> 302679 | AC140: =SUM(AC141,AC147,AC164) -> 302679 | AD140: =SUM(AD141,AD147,AD164) -> 0 | AE140: 0 | AF140: 0 | AG140: 0 | AH140: 0 | AI140: 0 | AK140: k | AL140: 0.08689744417 | AM140: 54..56+82%
A141: k132 | B141: 132 | D141: a) Bérköltség (133..137) | T141: =SUM(T142:T146) -> 3130284.941 | U141: =SUM(U142:U146) -> 3019284.941 | V141: =SUM(V142:V146) -> 14000 | W141: =SUM(W142:W146) -> 24000 | X141: =SUM(X142:X146) -> 26000 | Y141: =SUM(Y142:Y146) -> 47000 | Z141: =SUM(Z142:Z146) -> 0 | AA141: =SUM(AA142:AA146) -> 0 | AB141: =SUM(AB142:AB146) -> 262446 | AC141: =SUM(AC142:AC146) -> 262446 | AD141: =SUM(AD142:AD146) -> 0 | AE141: 0 | AF141: 0 | AG141: 0 | AH141: 0 | AI141: 0 | AK141: k | AL141: 0.0838409298
A142: k133 | B142: 133 | D142: - Lelkészek illetménye egyházi szolgálatért | T142: =SUM(U142:AA142) -> 2879284.941 | U142: =SUMIF('Terv-segédlet'!$B:$B,$A142,'Terv-segédlet'!E:E) -> 2879284.941 | V142: =SUMIF('Terv-segédlet'!$B:$B,$A142,'Terv-segédlet'!F:F) -> 0 | W142: =SUMIF('Terv-segédlet'!$B:$B,$A142,'Terv-segédlet'!G:G) -> 0 | X142: =SUMIF('Terv-segédlet'!$B:$B,$A142,'Terv-segédlet'!H:H) -> 0 | Y142: =SUMIF('Terv-segédlet'!$B:$B,$A142,'Terv-segédlet'!I:I) -> 0 | Z142: =SUMIF('Terv-segédlet'!$B:$B,$A142,'Terv-segédlet'!J:J) -> 0 | AA142: =SUMIF('Terv-segédlet'!$B:$B,$A142,'Terv-segédlet'!K:K) -> 0 | AB142: =SUM(AC142:AI142) -> 262446 | AC142: =SUMIF(V!$A:$A,$A142,V!$L:$L)+SUMIF(bank!$A:$A,AC$9&$A142,bank!$N:$N) -> 262446 | AD142: =SUMIF(Gy!$A:$A,$A142,Gy!$L:$L)+SUMIF(bank!$A:$A,AD$9&$A142,bank!$N:$N) -> 0 | AE142: =SUMIF(K!$A:$A,$A142,K!$L:$L)+SUMIF(bank!$A:$A,AE$9&$A142,bank!$N:$N) -> 0 | AF142: =SUMIF(Mk!$A:$A,$A142,Mk!$L:$L)+SUMIF(bank!$A:$A,AF$9&$A142,bank!$N:$N) -> 0 | AG142: =SUMIF(M!$A:$A,$A142,M!$L:$L)+SUMIF(bank!$A:$A,AG$9&$A142,bank!$N:$N) -> 0 | AH142: =SUMIF(P!$A:$A,$A142,P!$L:$L)+SUMIF(bank!$A:$A,AH$9&$A142,bank!$N:$N) -> 0 | AI142: =SUMIF(Zs!$A:$A,$A142,Zs!$L:$L)+SUMIF(bank!$A:$A,AI$9&$A142,bank!$N:$N) -> 0 | AJ142: * | AK142: k | AL142: 0.09114971438 | AM142: lelkészi illetmény
A143: k134 | B143: 134 | D143: - Lelkészi egyéb juttatások | T143: 0 | U143: =SUMIF('Terv-segédlet'!$B:$B,$A143,'Terv-segédlet'!E:E) -> 0 | V143: =SUMIF('Terv-segédlet'!$B:$B,$A143,'Terv-segédlet'!F:F) -> 0 | W143: =SUMIF('Terv-segédlet'!$B:$B,$A143,'Terv-segédlet'!G:G) -> 0 | X143: =SUMIF('Terv-segédlet'!$B:$B,$A143,'Terv-segédlet'!H:H) -> 0 | Y143: =SUMIF('Terv-segédlet'!$B:$B,$A143,'Terv-segédlet'!I:I) -> 0 | Z143: =SUMIF('Terv-segédlet'!$B:$B,$A143,'Terv-segédlet'!J:J) -> 0 | AA143: =SUMIF('Terv-segédlet'!$B:$B,$A143,'Terv-segédlet'!K:K) -> 0 | AB143: =SUM(AC143:AI143) -> 0 | AC143: =SUMIF(V!$A:$A,$A143,V!$L:$L)+SUMIF(bank!$A:$A,AC$9&$A143,bank!$N:$N) -> 0 | AD143: =SUMIF(Gy!$A:$A,$A143,Gy!$L:$L)+SUMIF(bank!$A:$A,AD$9&$A143,bank!$N:$N) -> 0 | AE143: =SUMIF(K!$A:$A,$A143,K!$L:$L)+SUMIF(bank!$A:$A,AE$9&$A143,bank!$N:$N) -> 0 | AF143: =SUMIF(Mk!$A:$A,$A143,Mk!$L:$L)+SUMIF(bank!$A:$A,AF$9&$A143,bank!$N:$N) -> 0 | AG143: =SUMIF(M!$A:$A,$A143,M!$L:$L)+SUMIF(bank!$A:$A,AG$9&$A143,bank!$N:$N) -> 0 | AH143: =SUMIF(P!$A:$A,$A143,P!$L:$L)+SUMIF(bank!$A:$A,AH$9&$A143,bank!$N:$N) -> 0 | AI143: =SUMIF(Zs!$A:$A,$A143,Zs!$L:$L)+SUMIF(bank!$A:$A,AI$9&$A143,bank!$N:$N) -> 0 | AJ143: * | AK143: k | AL143: =IF(AND(OR(T143<>0,AB143<>0),T143<>0),ABS(AB143/T143),"") ->  | AM143: lelkésznek pályázathoz kapcsolódó közreműködői díj, stóla
A144: k135 | B144: 135 | D144: - Nem lelkészi alkalmazottak illetménye | T144: 251000 | U144: =SUMIF('Terv-segédlet'!$B:$B,$A144,'Terv-segédlet'!E:E) -> 140000 | V144: =SUMIF('Terv-segédlet'!$B:$B,$A144,'Terv-segédlet'!F:F) -> 14000 | W144: =SUMIF('Terv-segédlet'!$B:$B,$A144,'Terv-segédlet'!G:G) -> 24000 | X144: =SUMIF('Terv-segédlet'!$B:$B,$A144,'Terv-segédlet'!H:H) -> 26000 | Y144: =SUMIF('Terv-segédlet'!$B:$B,$A144,'Terv-segédlet'!I:I) -> 47000 | Z144: =SUMIF('Terv-segédlet'!$B:$B,$A144,'Terv-segédlet'!J:J) -> 0 | AA144: =SUMIF('Terv-segédlet'!$B:$B,$A144,'Terv-segédlet'!K:K) -> 0 | AB144: 0 | AC144: =SUMIF(V!$A:$A,$A144,V!$L:$L)+SUMIF(bank!$A:$A,AC$9&$A144,bank!$N:$N) -> 0 | AD144: =SUMIF(Gy!$A:$A,$A144,Gy!$L:$L)+SUMIF(bank!$A:$A,AD$9&$A144,bank!$N:$N) -> 0 | AE144: =SUMIF(K!$A:$A,$A144,K!$L:$L)+SUMIF(bank!$A:$A,AE$9&$A144,bank!$N:$N) -> 0 | AF144: =SUMIF(Mk!$A:$A,$A144,Mk!$L:$L)+SUMIF(bank!$A:$A,AF$9&$A144,bank!$N:$N) -> 0 | AG144: =SUMIF(M!$A:$A,$A144,M!$L:$L)+SUMIF(bank!$A:$A,AG$9&$A144,bank!$N:$N) -> 0 | AH144: =SUMIF(P!$A:$A,$A144,P!$L:$L)+SUMIF(bank!$A:$A,AH$9&$A144,bank!$N:$N) -> 0 | AI144: =SUMIF(Zs!$A:$A,$A144,Zs!$L:$L)+SUMIF(bank!$A:$A,AI$9&$A144,bank!$N:$N) -> 0 | AJ144: * | AK144: k | AL144: 0 | AM144: nem lelkészi alkalmazottak bruttó illetménye
A145: k136 | B145: 136 | D145: - Megbízási díjak | T145: 0 | U145: =SUMIF('Terv-segédlet'!$B:$B,$A145,'Terv-segédlet'!E:E) -> 0 | V145: =SUMIF('Terv-segédlet'!$B:$B,$A145,'Terv-segédlet'!F:F) -> 0 | W145: =SUMIF('Terv-segédlet'!$B:$B,$A145,'Terv-segédlet'!G:G) -> 0 | X145: =SUMIF('Terv-segédlet'!$B:$B,$A145,'Terv-segédlet'!H:H) -> 0 | Y145: =SUMIF('Terv-segédlet'!$B:$B,$A145,'Terv-segédlet'!I:I) -> 0 | Z145: =SUMIF('Terv-segédlet'!$B:$B,$A145,'Terv-segédlet'!J:J) -> 0 | AA145: =SUMIF('Terv-segédlet'!$B:$B,$A145,'Terv-segédlet'!K:K) -> 0 | AB145: 0 | AC145: =SUMIF(V!$A:$A,$A145,V!$L:$L)+SUMIF(bank!$A:$A,AC$9&$A145,bank!$N:$N) -> 0 | AD145: =SUMIF(Gy!$A:$A,$A145,Gy!$L:$L)+SUMIF(bank!$A:$A,AD$9&$A145,bank!$N:$N) -> 0 | AE145: =SUMIF(K!$A:$A,$A145,K!$L:$L)+SUMIF(bank!$A:$A,AE$9&$A145,bank!$N:$N) -> 0 | AF145: =SUMIF(Mk!$A:$A,$A145,Mk!$L:$L)+SUMIF(bank!$A:$A,AF$9&$A145,bank!$N:$N) -> 0 | AG145: =SUMIF(M!$A:$A,$A145,M!$L:$L)+SUMIF(bank!$A:$A,AG$9&$A145,bank!$N:$N) -> 0 | AH145: =SUMIF(P!$A:$A,$A145,P!$L:$L)+SUMIF(bank!$A:$A,AH$9&$A145,bank!$N:$N) -> 0 | AI145: =SUMIF(Zs!$A:$A,$A145,Zs!$L:$L)+SUMIF(bank!$A:$A,AI$9&$A145,bank!$N:$N) -> 0 | AJ145: * | AK145: k | AM145: megbízási szerződés alapján magánszemélynek fizetett bruttó megbízási díj
A146: k137 | B146: 137 | D146: - Egyéb munkavégzéshez kapcsolódó juttatások | T146: 0 | U146: =SUMIF('Terv-segédlet'!$B:$B,$A146,'Terv-segédlet'!E:E) -> 0 | V146: =SUMIF('Terv-segédlet'!$B:$B,$A146,'Terv-segédlet'!F:F) -> 0 | W146: =SUMIF('Terv-segédlet'!$B:$B,$A146,'Terv-segédlet'!G:G) -> 0 | X146: =SUMIF('Terv-segédlet'!$B:$B,$A146,'Terv-segédlet'!H:H) -> 0 | Y146: =SUMIF('Terv-segédlet'!$B:$B,$A146,'Terv-segédlet'!I:I) -> 0 | Z146: =SUMIF('Terv-segédlet'!$B:$B,$A146,'Terv-segédlet'!J:J) -> 0 | AA146: =SUMIF('Terv-segédlet'!$B:$B,$A146,'Terv-segédlet'!K:K) -> 0 | AB146: 0 | AC146: =SUMIF(V!$A:$A,$A146,V!$L:$L)+SUMIF(bank!$A:$A,AC$9&$A146,bank!$N:$N) -> 0 | AD146: =SUMIF(Gy!$A:$A,$A146,Gy!$L:$L)+SUMIF(bank!$A:$A,AD$9&$A146,bank!$N:$N) -> 0 | AE146: =SUMIF(K!$A:$A,$A146,K!$L:$L)+SUMIF(bank!$A:$A,AE$9&$A146,bank!$N:$N) -> 0 | AF146: =SUMIF(Mk!$A:$A,$A146,Mk!$L:$L)+SUMIF(bank!$A:$A,AF$9&$A146,bank!$N:$N) -> 0 | AG146: =SUMIF(M!$A:$A,$A146,M!$L:$L)+SUMIF(bank!$A:$A,AG$9&$A146,bank!$N:$N) -> 0 | AH146: =SUMIF(P!$A:$A,$A146,P!$L:$L)+SUMIF(bank!$A:$A,AH$9&$A146,bank!$N:$N) -> 0 | AI146: =SUMIF(Zs!$A:$A,$A146,Zs!$L:$L)+SUMIF(bank!$A:$A,AI$9&$A146,bank!$N:$N) -> 0 | AJ146: * | AK146: k | AM146: közmunkaprogram keretében kifizetett bér, egyházi szolgálatért fizetett bruttó illetmény (kántor, harangozó, stb.)
A147: k138 | B147: 138 | D147: b) Személyi jellegű egyéb kifizetések (139..140+143..145+150..154) | T147: =SUM(T148,T149,T152:T154,T159:T160,T160:T163) -> 100000 | U147: =SUM(U148,U149,U152:U154,U159:U160,U160:U163) -> 0 | V147: =SUM(V148,V149,V152:V154,V159:V160,V160:V163) -> 0 | W147: =SUM(W148,W149,W152:W154,W159:W160,W160:W163) -> 0 | X147: =SUM(X148,X149,X152:X154,X159:X160,X160:X163) -> 100000 | Y147: =SUM(Y148,Y149,Y152:Y154,Y159:Y160,Y160:Y163) -> 0 | Z147: =SUM(Z148,Z149,Z152:Z154,Z159:Z160,Z160:Z163) -> 0 | AA147: =SUM(AA148,AA149,AA152:AA154,AA159:AA160,AA160:AA163) -> 0 | AB147: =SUM(AB148,AB149,AB152:AB154,AB159:AB160,AB160:AB163) -> 0 | AC147: =SUM(AC148,AC149,AC152:AC154,AC159:AC160,AC160:AC163) -> 0 | AD147: =SUM(AD148,AD149,AD152:AD154,AD159:AD160,AD160:AD163) -> 0 | AE147: 0 | AF147: 0 | AG147: 0 | AH147: 0 | AI147: 0 | AK147: k | AL147: 0
A148: k139 | B148: 139 | D148: - Napidíj, utiköltség térítés | T148: =SUM(U148:AA148) -> 0 | U148: =SUMIF('Terv-segédlet'!$B:$B,$A148,'Terv-segédlet'!E:E) -> 0 | V148: =SUMIF('Terv-segédlet'!$B:$B,$A148,'Terv-segédlet'!F:F) -> 0 | W148: =SUMIF('Terv-segédlet'!$B:$B,$A148,'Terv-segédlet'!G:G) -> 0 | X148: =SUMIF('Terv-segédlet'!$B:$B,$A148,'Terv-segédlet'!H:H) -> 0 | Y148: =SUMIF('Terv-segédlet'!$B:$B,$A148,'Terv-segédlet'!I:I) -> 0 | Z148: =SUMIF('Terv-segédlet'!$B:$B,$A148,'Terv-segédlet'!J:J) -> 0 | AA148: =SUMIF('Terv-segédlet'!$B:$B,$A148,'Terv-segédlet'!K:K) -> 0 | AB148: =SUM(AC148:AI148) -> 0 | AC148: =SUMIF(V!$A:$A,$A148,V!$L:$L)+SUMIF(bank!$A:$A,AC$9&$A148,bank!$N:$N) -> 0 | AD148: =SUMIF(Gy!$A:$A,$A148,Gy!$L:$L)+SUMIF(bank!$A:$A,AD$9&$A148,bank!$N:$N) -> 0 | AE148: =SUMIF(K!$A:$A,$A148,K!$L:$L)+SUMIF(bank!$A:$A,AE$9&$A148,bank!$N:$N) -> 0 | AF148: =SUMIF(Mk!$A:$A,$A148,Mk!$L:$L)+SUMIF(bank!$A:$A,AF$9&$A148,bank!$N:$N) -> 0 | AG148: =SUMIF(M!$A:$A,$A148,M!$L:$L)+SUMIF(bank!$A:$A,AG$9&$A148,bank!$N:$N) -> 0 | AH148: =SUMIF(P!$A:$A,$A148,P!$L:$L)+SUMIF(bank!$A:$A,AH$9&$A148,bank!$N:$N) -> 0 | AI148: =SUMIF(Zs!$A:$A,$A148,Zs!$L:$L)+SUMIF(bank!$A:$A,AI$9&$A148,bank!$N:$N) -> 0 | AJ148: * | AK148: k | AM148: kiküldetéshez kapcsolódóan fizetett napidíj
A149: k140 | B149: 140 | D149: - Béren kívüli juttatások (étkezési hozj, helyi bérlet, stb.) (141..142) | T149: =SUM(T150:T151) -> 0 | U149: =SUM(U150:U151) -> 0 | V149: =SUM(V150:V151) -> 0 | W149: =SUM(W150:W151) -> 0 | X149: =SUM(X150:X151) -> 0 | Y149: =SUM(Y150:Y151) -> 0 | Z149: =SUM(Z150:Z151) -> 0 | AA149: =SUM(AA150:AA151) -> 0 | AB149: =SUM(AB150:AB151) -> 0 | AC149: =SUM(AC150:AC151) -> 0 | AD149: =SUM(AD150:AD151) -> 0 | AE149: 0 | AF149: 0 | AG149: 0 | AH149: 0 | AI149: 0 | AK149: k
A150: k141 | B150: 141 | D150: Lelkészeknek | T150: =SUM(U150:AA150) -> 0 | U150: =SUMIF('Terv-segédlet'!$B:$B,$A150,'Terv-segédlet'!E:E) -> 0 | V150: =SUMIF('Terv-segédlet'!$B:$B,$A150,'Terv-segédlet'!F:F) -> 0 | W150: =SUMIF('Terv-segédlet'!$B:$B,$A150,'Terv-segédlet'!G:G) -> 0 | X150: =SUMIF('Terv-segédlet'!$B:$B,$A150,'Terv-segédlet'!H:H) -> 0 | Y150: =SUMIF('Terv-segédlet'!$B:$B,$A150,'Terv-segédlet'!I:I) -> 0 | Z150: =SUMIF('Terv-segédlet'!$B:$B,$A150,'Terv-segédlet'!J:J) -> 0 | AA150: =SUMIF('Terv-segédlet'!$B:$B,$A150,'Terv-segédlet'!K:K) -> 0 | AB150: =SUM(AC150:AI150) -> 0 | AC150: =SUMIF(V!$A:$A,$A150,V!$L:$L)+SUMIF(bank!$A:$A,AC$9&$A150,bank!$N:$N) -> 0 | AD150: =SUMIF(Gy!$A:$A,$A150,Gy!$L:$L)+SUMIF(bank!$A:$A,AD$9&$A150,bank!$N:$N) -> 0 | AE150: =SUMIF(K!$A:$A,$A150,K!$L:$L)+SUMIF(bank!$A:$A,AE$9&$A150,bank!$N:$N) -> 0 | AF150: =SUMIF(Mk!$A:$A,$A150,Mk!$L:$L)+SUMIF(bank!$A:$A,AF$9&$A150,bank!$N:$N) -> 0 | AG150: =SUMIF(M!$A:$A,$A150,M!$L:$L)+SUMIF(bank!$A:$A,AG$9&$A150,bank!$N:$N) -> 0 | AH150: =SUMIF(P!$A:$A,$A150,P!$L:$L)+SUMIF(bank!$A:$A,AH$9&$A150,bank!$N:$N) -> 0 | AI150: =SUMIF(Zs!$A:$A,$A150,Zs!$L:$L)+SUMIF(bank!$A:$A,AI$9&$A150,bank!$N:$N) -> 0 | AJ150: * | AK150: k | AM150: lelkésznek - SZJA törvény szerinti juttatások (helyi bérlet, Erzsébet-utalvány, SZÉP-kártya, iskolakezdési támogatás, stb.)
A151: k142 | B151: 142 | D151: Nem lelkész alkalmazottaknak | T151: 0 | U151: =SUMIF('Terv-segédlet'!$B:$B,$A151,'Terv-segédlet'!E:E) -> 0 | V151: =SUMIF('Terv-segédlet'!$B:$B,$A151,'Terv-segédlet'!F:F) -> 0 | W151: =SUMIF('Terv-segédlet'!$B:$B,$A151,'Terv-segédlet'!G:G) -> 0 | X151: =SUMIF('Terv-segédlet'!$B:$B,$A151,'Terv-segédlet'!H:H) -> 0 | Y151: =SUMIF('Terv-segédlet'!$B:$B,$A151,'Terv-segédlet'!I:I) -> 0 | Z151: =SUMIF('Terv-segédlet'!$B:$B,$A151,'Terv-segédlet'!J:J) -> 0 | AA151: =SUMIF('Terv-segédlet'!$B:$B,$A151,'Terv-segédlet'!K:K) -> 0 | AB151: 0 | AC151: =SUMIF(V!$A:$A,$A151,V!$L:$L)+SUMIF(bank!$A:$A,AC$9&$A151,bank!$N:$N) -> 0 | AD151: =SUMIF(Gy!$A:$A,$A151,Gy!$L:$L)+SUMIF(bank!$A:$A,AD$9&$A151,bank!$N:$N) -> 0 | AE151: =SUMIF(K!$A:$A,$A151,K!$L:$L)+SUMIF(bank!$A:$A,AE$9&$A151,bank!$N:$N) -> 0 | AF151: =SUMIF(Mk!$A:$A,$A151,Mk!$L:$L)+SUMIF(bank!$A:$A,AF$9&$A151,bank!$N:$N) -> 0 | AG151: =SUMIF(M!$A:$A,$A151,M!$L:$L)+SUMIF(bank!$A:$A,AG$9&$A151,bank!$N:$N) -> 0 | AH151: =SUMIF(P!$A:$A,$A151,P!$L:$L)+SUMIF(bank!$A:$A,AH$9&$A151,bank!$N:$N) -> 0 | AI151: =SUMIF(Zs!$A:$A,$A151,Zs!$L:$L)+SUMIF(bank!$A:$A,AI$9&$A151,bank!$N:$N) -> 0 | AJ151: * | AK151: k | AM151: nem lelkészi alkalmazottnak - SZJA törvény szerinti juttatások (helyi bérlet, Erzsébet-utalvány, SZÉP-kártya, iskolakezdési támogatás, stb.)
A152: k143 | B152: 143 | D152: - Egyéb jóléti és kulturális költségek | T152: 0 | U152: =SUMIF('Terv-segédlet'!$B:$B,$A152,'Terv-segédlet'!E:E) -> 0 | V152: =SUMIF('Terv-segédlet'!$B:$B,$A152,'Terv-segédlet'!F:F) -> 0 | W152: =SUMIF('Terv-segédlet'!$B:$B,$A152,'Terv-segédlet'!G:G) -> 0 | X152: =SUMIF('Terv-segédlet'!$B:$B,$A152,'Terv-segédlet'!H:H) -> 0 | Y152: =SUMIF('Terv-segédlet'!$B:$B,$A152,'Terv-segédlet'!I:I) -> 0 | Z152: =SUMIF('Terv-segédlet'!$B:$B,$A152,'Terv-segédlet'!J:J) -> 0 | AA152: =SUMIF('Terv-segédlet'!$B:$B,$A152,'Terv-segédlet'!K:K) -> 0 | AB152: 0 | AC152: =SUMIF(V!$A:$A,$A152,V!$L:$L)+SUMIF(bank!$A:$A,AC$9&$A152,bank!$N:$N) -> 0 | AD152: =SUMIF(Gy!$A:$A,$A152,Gy!$L:$L)+SUMIF(bank!$A:$A,AD$9&$A152,bank!$N:$N) -> 0 | AE152: =SUMIF(K!$A:$A,$A152,K!$L:$L)+SUMIF(bank!$A:$A,AE$9&$A152,bank!$N:$N) -> 0 | AF152: =SUMIF(Mk!$A:$A,$A152,Mk!$L:$L)+SUMIF(bank!$A:$A,AF$9&$A152,bank!$N:$N) -> 0 | AG152: =SUMIF(M!$A:$A,$A152,M!$L:$L)+SUMIF(bank!$A:$A,AG$9&$A152,bank!$N:$N) -> 0 | AH152: =SUMIF(P!$A:$A,$A152,P!$L:$L)+SUMIF(bank!$A:$A,AH$9&$A152,bank!$N:$N) -> 0 | AI152: =SUMIF(Zs!$A:$A,$A152,Zs!$L:$L)+SUMIF(bank!$A:$A,AI$9&$A152,bank!$N:$N) -> 0 | AJ152: * | AK152: k | AM152: nem jellemző
A153: k144 | B153: 144 | D153: - Munkáltatót terhelő személyi jövedelemadó | T153: 0 | U153: =SUMIF('Terv-segédlet'!$B:$B,$A153,'Terv-segédlet'!E:E) -> 0 | V153: =SUMIF('Terv-segédlet'!$B:$B,$A153,'Terv-segédlet'!F:F) -> 0 | W153: =SUMIF('Terv-segédlet'!$B:$B,$A153,'Terv-segédlet'!G:G) -> 0 | X153: =SUMIF('Terv-segédlet'!$B:$B,$A153,'Terv-segédlet'!H:H) -> 0 | Y153: =SUMIF('Terv-segédlet'!$B:$B,$A153,'Terv-segédlet'!I:I) -> 0 | Z153: =SUMIF('Terv-segédlet'!$B:$B,$A153,'Terv-segédlet'!J:J) -> 0 | AA153: =SUMIF('Terv-segédlet'!$B:$B,$A153,'Terv-segédlet'!K:K) -> 0 | AB153: 0 | AC153: =SUMIF(V!$A:$A,$A153,V!$L:$L)+SUMIF(bank!$A:$A,AC$9&$A153,bank!$N:$N) -> 0 | AD153: =SUMIF(Gy!$A:$A,$A153,Gy!$L:$L)+SUMIF(bank!$A:$A,AD$9&$A153,bank!$N:$N) -> 0 | AE153: =SUMIF(K!$A:$A,$A153,K!$L:$L)+SUMIF(bank!$A:$A,AE$9&$A153,bank!$N:$N) -> 0 | AF153: =SUMIF(Mk!$A:$A,$A153,Mk!$L:$L)+SUMIF(bank!$A:$A,AF$9&$A153,bank!$N:$N) -> 0 | AG153: =SUMIF(M!$A:$A,$A153,M!$L:$L)+SUMIF(bank!$A:$A,AG$9&$A153,bank!$N:$N) -> 0 | AH153: =SUMIF(P!$A:$A,$A153,P!$L:$L)+SUMIF(bank!$A:$A,AH$9&$A153,bank!$N:$N) -> 0 | AI153: =SUMIF(Zs!$A:$A,$A153,Zs!$L:$L)+SUMIF(bank!$A:$A,AI$9&$A153,bank!$N:$N) -> 0 | AJ153: * | AK153: k | AM153: béren kívüli és egyes meghatározott juttatások után a kifizetőt terhelő szja
A154: k145 | B154: 145 | D154: - Reprezentáció, üzleti ajándék (146..149) | T154: =SUM(T155:T158) -> 100000 | U154: =SUM(U155:U158) -> 0 | V154: =SUM(V155:V158) -> 0 | W154: =SUM(W155:W158) -> 0 | X154: =SUM(X155:X158) -> 100000 | Y154: =SUM(Y155:Y158) -> 0 | Z154: =SUM(Z155:Z158) -> 0 | AA154: =SUM(AA155:AA158) -> 0 | AB154: =SUM(AB155:AB158) -> 0 | AC154: =SUM(AC155:AC158) -> 0 | AD154: =SUM(AD155:AD158) -> 0 | AE154: 0 | AF154: 0 | AG154: 0 | AH154: 0 | AI154: 0 | AK154: k | AL154: 0 | AM154: Együttesen a K71. sorban szereplő bevétel 10%-ig adómentes!!!
A155: k146 | B155: 146 | D155: Hitéleti tevékenységhez kapcsolódó | T155: =SUM(U155:AA155) -> 100000 | U155: =SUMIF('Terv-segédlet'!$B:$B,$A155,'Terv-segédlet'!E:E) -> 0 | V155: =SUMIF('Terv-segédlet'!$B:$B,$A155,'Terv-segédlet'!F:F) -> 0 | W155: =SUMIF('Terv-segédlet'!$B:$B,$A155,'Terv-segédlet'!G:G) -> 0 | X155: =SUMIF('Terv-segédlet'!$B:$B,$A155,'Terv-segédlet'!H:H) -> 100000 | Y155: =SUMIF('Terv-segédlet'!$B:$B,$A155,'Terv-segédlet'!I:I) -> 0 | Z155: =SUMIF('Terv-segédlet'!$B:$B,$A155,'Terv-segédlet'!J:J) -> 0 | AA155: =SUMIF('Terv-segédlet'!$B:$B,$A155,'Terv-segédlet'!K:K) -> 0 | AB155: =SUM(AC155:AI155) -> 0 | AC155: =SUMIF(V!$A:$A,$A155,V!$L:$L)+SUMIF(bank!$A:$A,AC$9&$A155,bank!$N:$N) -> 0 | AD155: =SUMIF(Gy!$A:$A,$A155,Gy!$L:$L)+SUMIF(bank!$A:$A,AD$9&$A155,bank!$N:$N) -> 0 | AE155: =SUMIF(K!$A:$A,$A155,K!$L:$L)+SUMIF(bank!$A:$A,AE$9&$A155,bank!$N:$N) -> 0 | AF155: =SUMIF(Mk!$A:$A,$A155,Mk!$L:$L)+SUMIF(bank!$A:$A,AF$9&$A155,bank!$N:$N) -> 0 | AG155: =SUMIF(M!$A:$A,$A155,M!$L:$L)+SUMIF(bank!$A:$A,AG$9&$A155,bank!$N:$N) -> 0 | AH155: =SUMIF(P!$A:$A,$A155,P!$L:$L)+SUMIF(bank!$A:$A,AH$9&$A155,bank!$N:$N) -> 0 | AI155: =SUMIF(Zs!$A:$A,$A155,Zs!$L:$L)+SUMIF(bank!$A:$A,AI$9&$A155,bank!$N:$N) -> 0 | AJ155: * | AK155: k | AL155: 0 | AM155: hitéleti rendezvény keretében vagy egyházi ünnepen nyújtott vendéglátás (ide sorolhatók az úrvacsorai kellékek)
A156: k147 | B156: 147 | D156: Csekély értékű ajándék | T156: 0 | U156: =SUMIF('Terv-segédlet'!$B:$B,$A156,'Terv-segédlet'!E:E) -> 0 | V156: =SUMIF('Terv-segédlet'!$B:$B,$A156,'Terv-segédlet'!F:F) -> 0 | W156: =SUMIF('Terv-segédlet'!$B:$B,$A156,'Terv-segédlet'!G:G) -> 0 | X156: =SUMIF('Terv-segédlet'!$B:$B,$A156,'Terv-segédlet'!H:H) -> 0 | Y156: =SUMIF('Terv-segédlet'!$B:$B,$A156,'Terv-segédlet'!I:I) -> 0 | Z156: =SUMIF('Terv-segédlet'!$B:$B,$A156,'Terv-segédlet'!J:J) -> 0 | AA156: =SUMIF('Terv-segédlet'!$B:$B,$A156,'Terv-segédlet'!K:K) -> 0 | AB156: 0 | AC156: =SUMIF(V!$A:$A,$A156,V!$L:$L)+SUMIF(bank!$A:$A,AC$9&$A156,bank!$N:$N) -> 0 | AD156: =SUMIF(Gy!$A:$A,$A156,Gy!$L:$L)+SUMIF(bank!$A:$A,AD$9&$A156,bank!$N:$N) -> 0 | AE156: =SUMIF(K!$A:$A,$A156,K!$L:$L)+SUMIF(bank!$A:$A,AE$9&$A156,bank!$N:$N) -> 0 | AF156: =SUMIF(Mk!$A:$A,$A156,Mk!$L:$L)+SUMIF(bank!$A:$A,AF$9&$A156,bank!$N:$N) -> 0 | AG156: =SUMIF(M!$A:$A,$A156,M!$L:$L)+SUMIF(bank!$A:$A,AG$9&$A156,bank!$N:$N) -> 0 | AH156: =SUMIF(P!$A:$A,$A156,P!$L:$L)+SUMIF(bank!$A:$A,AH$9&$A156,bank!$N:$N) -> 0 | AI156: =SUMIF(Zs!$A:$A,$A156,Zs!$L:$L)+SUMIF(bank!$A:$A,AI$9&$A156,bank!$N:$N) -> 0 | AJ156: * | AK156: k | AM156: hitéleti rendezvény keretében vagy egyházi ünnepen adott adómentes ajándék (név szerinti lista szükséges!) - személyenként 5.000 Ft-ot meg nem haladó értékben
A157: k148 | B157: 148 | D157: Konferencia, rendezvény | T157: 0 | U157: =SUMIF('Terv-segédlet'!$B:$B,$A157,'Terv-segédlet'!E:E) -> 0 | V157: =SUMIF('Terv-segédlet'!$B:$B,$A157,'Terv-segédlet'!F:F) -> 0 | W157: =SUMIF('Terv-segédlet'!$B:$B,$A157,'Terv-segédlet'!G:G) -> 0 | X157: =SUMIF('Terv-segédlet'!$B:$B,$A157,'Terv-segédlet'!H:H) -> 0 | Y157: =SUMIF('Terv-segédlet'!$B:$B,$A157,'Terv-segédlet'!I:I) -> 0 | Z157: =SUMIF('Terv-segédlet'!$B:$B,$A157,'Terv-segédlet'!J:J) -> 0 | AA157: =SUMIF('Terv-segédlet'!$B:$B,$A157,'Terv-segédlet'!K:K) -> 0 | AB157: 0 | AC157: =SUMIF(V!$A:$A,$A157,V!$L:$L)+SUMIF(bank!$A:$A,AC$9&$A157,bank!$N:$N) -> 0 | AD157: =SUMIF(Gy!$A:$A,$A157,Gy!$L:$L)+SUMIF(bank!$A:$A,AD$9&$A157,bank!$N:$N) -> 0 | AE157: =SUMIF(K!$A:$A,$A157,K!$L:$L)+SUMIF(bank!$A:$A,AE$9&$A157,bank!$N:$N) -> 0 | AF157: =SUMIF(Mk!$A:$A,$A157,Mk!$L:$L)+SUMIF(bank!$A:$A,AF$9&$A157,bank!$N:$N) -> 0 | AG157: =SUMIF(M!$A:$A,$A157,M!$L:$L)+SUMIF(bank!$A:$A,AG$9&$A157,bank!$N:$N) -> 0 | AH157: =SUMIF(P!$A:$A,$A157,P!$L:$L)+SUMIF(bank!$A:$A,AH$9&$A157,bank!$N:$N) -> 0 | AI157: =SUMIF(Zs!$A:$A,$A157,Zs!$L:$L)+SUMIF(bank!$A:$A,AI$9&$A157,bank!$N:$N) -> 0 | AJ157: * | AK157: k | AM157: gyülekezet által szervezett egyházi konferencia keretében nyújtott vendéglátás
A158: k149 | B158: 149 | D158: Adóköteles reprezentáció | T158: 0 | U158: =SUMIF('Terv-segédlet'!$B:$B,$A158,'Terv-segédlet'!E:E) -> 0 | V158: =SUMIF('Terv-segédlet'!$B:$B,$A158,'Terv-segédlet'!F:F) -> 0 | W158: =SUMIF('Terv-segédlet'!$B:$B,$A158,'Terv-segédlet'!G:G) -> 0 | X158: =SUMIF('Terv-segédlet'!$B:$B,$A158,'Terv-segédlet'!H:H) -> 0 | Y158: =SUMIF('Terv-segédlet'!$B:$B,$A158,'Terv-segédlet'!I:I) -> 0 | Z158: =SUMIF('Terv-segédlet'!$B:$B,$A158,'Terv-segédlet'!J:J) -> 0 | AA158: =SUMIF('Terv-segédlet'!$B:$B,$A158,'Terv-segédlet'!K:K) -> 0 | AB158: 0 | AC158: =SUMIF(V!$A:$A,$A158,V!$L:$L)+SUMIF(bank!$A:$A,AC$9&$A158,bank!$N:$N) -> 0 | AD158: =SUMIF(Gy!$A:$A,$A158,Gy!$L:$L)+SUMIF(bank!$A:$A,AD$9&$A158,bank!$N:$N) -> 0 | AE158: =SUMIF(K!$A:$A,$A158,K!$L:$L)+SUMIF(bank!$A:$A,AE$9&$A158,bank!$N:$N) -> 0 | AF158: =SUMIF(Mk!$A:$A,$A158,Mk!$L:$L)+SUMIF(bank!$A:$A,AF$9&$A158,bank!$N:$N) -> 0 | AG158: =SUMIF(M!$A:$A,$A158,M!$L:$L)+SUMIF(bank!$A:$A,AG$9&$A158,bank!$N:$N) -> 0 | AH158: =SUMIF(P!$A:$A,$A158,P!$L:$L)+SUMIF(bank!$A:$A,AH$9&$A158,bank!$N:$N) -> 0 | AI158: =SUMIF(Zs!$A:$A,$A158,Zs!$L:$L)+SUMIF(bank!$A:$A,AI$9&$A158,bank!$N:$N) -> 0 | AJ158: * | AK158: k | AM158: A K74. sorban szereplő bevétel 10%-át, vagy az adómentes határt meghaladó ajándék értéke, amely után az egyházközséget adókötelezettség terheli
A159: k150 | B159: 150 | D159: -Albérleti hozzájárulás, lakásépítési támogatás | T159: 0 | U159: =SUMIF('Terv-segédlet'!$B:$B,$A159,'Terv-segédlet'!E:E) -> 0 | V159: =SUMIF('Terv-segédlet'!$B:$B,$A159,'Terv-segédlet'!F:F) -> 0 | W159: =SUMIF('Terv-segédlet'!$B:$B,$A159,'Terv-segédlet'!G:G) -> 0 | X159: =SUMIF('Terv-segédlet'!$B:$B,$A159,'Terv-segédlet'!H:H) -> 0 | Y159: =SUMIF('Terv-segédlet'!$B:$B,$A159,'Terv-segédlet'!I:I) -> 0 | Z159: =SUMIF('Terv-segédlet'!$B:$B,$A159,'Terv-segédlet'!J:J) -> 0 | AA159: =SUMIF('Terv-segédlet'!$B:$B,$A159,'Terv-segédlet'!K:K) -> 0 | AB159: 0 | AC159: =SUMIF(V!$A:$A,$A159,V!$L:$L)+SUMIF(bank!$A:$A,AC$9&$A159,bank!$N:$N) -> 0 | AD159: =SUMIF(Gy!$A:$A,$A159,Gy!$L:$L)+SUMIF(bank!$A:$A,AD$9&$A159,bank!$N:$N) -> 0 | AE159: =SUMIF(K!$A:$A,$A159,K!$L:$L)+SUMIF(bank!$A:$A,AE$9&$A159,bank!$N:$N) -> 0 | AF159: =SUMIF(Mk!$A:$A,$A159,Mk!$L:$L)+SUMIF(bank!$A:$A,AF$9&$A159,bank!$N:$N) -> 0 | AG159: =SUMIF(M!$A:$A,$A159,M!$L:$L)+SUMIF(bank!$A:$A,AG$9&$A159,bank!$N:$N) -> 0 | AH159: =SUMIF(P!$A:$A,$A159,P!$L:$L)+SUMIF(bank!$A:$A,AH$9&$A159,bank!$N:$N) -> 0 | AI159: =SUMIF(Zs!$A:$A,$A159,Zs!$L:$L)+SUMIF(bank!$A:$A,AI$9&$A159,bank!$N:$N) -> 0 | AJ159: * | AK159: k | AM159: pénzben nyújtott albérleti költségtérítés, lakásépítési támogatás - ADÓKÖTELES!!!
A160: k151 | B160: 151 | D160: -Közlekedési költségtérítés, munkába járás | T160: 0 | U160: =SUMIF('Terv-segédlet'!$B:$B,$A160,'Terv-segédlet'!E:E) -> 0 | V160: =SUMIF('Terv-segédlet'!$B:$B,$A160,'Terv-segédlet'!F:F) -> 0 | W160: =SUMIF('Terv-segédlet'!$B:$B,$A160,'Terv-segédlet'!G:G) -> 0 | X160: =SUMIF('Terv-segédlet'!$B:$B,$A160,'Terv-segédlet'!H:H) -> 0 | Y160: =SUMIF('Terv-segédlet'!$B:$B,$A160,'Terv-segédlet'!I:I) -> 0 | Z160: =SUMIF('Terv-segédlet'!$B:$B,$A160,'Terv-segédlet'!J:J) -> 0 | AA160: =SUMIF('Terv-segédlet'!$B:$B,$A160,'Terv-segédlet'!K:K) -> 0 | AB160: 0 | AC160: =SUMIF(V!$A:$A,$A160,V!$L:$L)+SUMIF(bank!$A:$A,AC$9&$A160,bank!$N:$N) -> 0 | AD160: =SUMIF(Gy!$A:$A,$A160,Gy!$L:$L)+SUMIF(bank!$A:$A,AD$9&$A160,bank!$N:$N) -> 0 | AE160: =SUMIF(K!$A:$A,$A160,K!$L:$L)+SUMIF(bank!$A:$A,AE$9&$A160,bank!$N:$N) -> 0 | AF160: =SUMIF(Mk!$A:$A,$A160,Mk!$L:$L)+SUMIF(bank!$A:$A,AF$9&$A160,bank!$N:$N) -> 0 | AG160: =SUMIF(M!$A:$A,$A160,M!$L:$L)+SUMIF(bank!$A:$A,AG$9&$A160,bank!$N:$N) -> 0 | AH160: =SUMIF(P!$A:$A,$A160,P!$L:$L)+SUMIF(bank!$A:$A,AH$9&$A160,bank!$N:$N) -> 0 | AI160: =SUMIF(Zs!$A:$A,$A160,Zs!$L:$L)+SUMIF(bank!$A:$A,AI$9&$A160,bank!$N:$N) -> 0 | AJ160: * | AK160: k | AM160: lelkésznek, nem lelkészi alkalmazottnak a lakóhelyéről a munkahelyre történő, munkába járáshoz kapcsolódó utazás költsége (távolsági bérlet 86%, saját gépkocsival történő munkábajárás esetén 9 Ft/km)
A161: k152 | B161: 152 | D161: -Választott tisztségviselők díja | T161: 0 | U161: =SUMIF('Terv-segédlet'!$B:$B,$A161,'Terv-segédlet'!E:E) -> 0 | V161: =SUMIF('Terv-segédlet'!$B:$B,$A161,'Terv-segédlet'!F:F) -> 0 | W161: =SUMIF('Terv-segédlet'!$B:$B,$A161,'Terv-segédlet'!G:G) -> 0 | X161: =SUMIF('Terv-segédlet'!$B:$B,$A161,'Terv-segédlet'!H:H) -> 0 | Y161: =SUMIF('Terv-segédlet'!$B:$B,$A161,'Terv-segédlet'!I:I) -> 0 | Z161: =SUMIF('Terv-segédlet'!$B:$B,$A161,'Terv-segédlet'!J:J) -> 0 | AA161: =SUMIF('Terv-segédlet'!$B:$B,$A161,'Terv-segédlet'!K:K) -> 0 | AB161: 0 | AC161: =SUMIF(V!$A:$A,$A161,V!$L:$L)+SUMIF(bank!$A:$A,AC$9&$A161,bank!$N:$N) -> 0 | AD161: =SUMIF(Gy!$A:$A,$A161,Gy!$L:$L)+SUMIF(bank!$A:$A,AD$9&$A161,bank!$N:$N) -> 0 | AE161: =SUMIF(K!$A:$A,$A161,K!$L:$L)+SUMIF(bank!$A:$A,AE$9&$A161,bank!$N:$N) -> 0 | AF161: =SUMIF(Mk!$A:$A,$A161,Mk!$L:$L)+SUMIF(bank!$A:$A,AF$9&$A161,bank!$N:$N) -> 0 | AG161: =SUMIF(M!$A:$A,$A161,M!$L:$L)+SUMIF(bank!$A:$A,AG$9&$A161,bank!$N:$N) -> 0 | AH161: =SUMIF(P!$A:$A,$A161,P!$L:$L)+SUMIF(bank!$A:$A,AH$9&$A161,bank!$N:$N) -> 0 | AI161: =SUMIF(Zs!$A:$A,$A161,Zs!$L:$L)+SUMIF(bank!$A:$A,AI$9&$A161,bank!$N:$N) -> 0 | AJ161: * | AK161: k | AM161: tiszteletdíj (pl. felügyelő, gondnok, stb.)
A162: k153 | B162: 153 | D162: -Segélyek, szociális támogatások | T162: 0 | U162: =SUMIF('Terv-segédlet'!$B:$B,$A162,'Terv-segédlet'!E:E) -> 0 | V162: =SUMIF('Terv-segédlet'!$B:$B,$A162,'Terv-segédlet'!F:F) -> 0 | W162: =SUMIF('Terv-segédlet'!$B:$B,$A162,'Terv-segédlet'!G:G) -> 0 | X162: =SUMIF('Terv-segédlet'!$B:$B,$A162,'Terv-segédlet'!H:H) -> 0 | Y162: =SUMIF('Terv-segédlet'!$B:$B,$A162,'Terv-segédlet'!I:I) -> 0 | Z162: =SUMIF('Terv-segédlet'!$B:$B,$A162,'Terv-segédlet'!J:J) -> 0 | AA162: =SUMIF('Terv-segédlet'!$B:$B,$A162,'Terv-segédlet'!K:K) -> 0 | AB162: 0 | AC162: =SUMIF(V!$A:$A,$A162,V!$L:$L)+SUMIF(bank!$A:$A,AC$9&$A162,bank!$N:$N) -> 0 | AD162: =SUMIF(Gy!$A:$A,$A162,Gy!$L:$L)+SUMIF(bank!$A:$A,AD$9&$A162,bank!$N:$N) -> 0 | AE162: =SUMIF(K!$A:$A,$A162,K!$L:$L)+SUMIF(bank!$A:$A,AE$9&$A162,bank!$N:$N) -> 0 | AF162: =SUMIF(Mk!$A:$A,$A162,Mk!$L:$L)+SUMIF(bank!$A:$A,AF$9&$A162,bank!$N:$N) -> 0 | AG162: =SUMIF(M!$A:$A,$A162,M!$L:$L)+SUMIF(bank!$A:$A,AG$9&$A162,bank!$N:$N) -> 0 | AH162: =SUMIF(P!$A:$A,$A162,P!$L:$L)+SUMIF(bank!$A:$A,AH$9&$A162,bank!$N:$N) -> 0 | AI162: =SUMIF(Zs!$A:$A,$A162,Zs!$L:$L)+SUMIF(bank!$A:$A,AI$9&$A162,bank!$N:$N) -> 0 | AJ162: * | AK162: k | AM162: magánszemélyeknek fizetett segély - SZABÁLYOZÁSI KÖTELEZETTSÉG VAN!!
A163: k154 | B163: 154 | D163: -Egyéb személyi jellegű kifizetések | T163: 0 | U163: =SUMIF('Terv-segédlet'!$B:$B,$A163,'Terv-segédlet'!E:E) -> 0 | V163: =SUMIF('Terv-segédlet'!$B:$B,$A163,'Terv-segédlet'!F:F) -> 0 | W163: =SUMIF('Terv-segédlet'!$B:$B,$A163,'Terv-segédlet'!G:G) -> 0 | X163: =SUMIF('Terv-segédlet'!$B:$B,$A163,'Terv-segédlet'!H:H) -> 0 | Y163: =SUMIF('Terv-segédlet'!$B:$B,$A163,'Terv-segédlet'!I:I) -> 0 | Z163: =SUMIF('Terv-segédlet'!$B:$B,$A163,'Terv-segédlet'!J:J) -> 0 | AA163: =SUMIF('Terv-segédlet'!$B:$B,$A163,'Terv-segédlet'!K:K) -> 0 | AB163: 0 | AC163: =SUMIF(V!$A:$A,$A163,V!$L:$L)+SUMIF(bank!$A:$A,AC$9&$A163,bank!$N:$N) -> 0 | AD163: =SUMIF(Gy!$A:$A,$A163,Gy!$L:$L)+SUMIF(bank!$A:$A,AD$9&$A163,bank!$N:$N) -> 0 | AE163: =SUMIF(K!$A:$A,$A163,K!$L:$L)+SUMIF(bank!$A:$A,AE$9&$A163,bank!$N:$N) -> 0 | AF163: =SUMIF(Mk!$A:$A,$A163,Mk!$L:$L)+SUMIF(bank!$A:$A,AF$9&$A163,bank!$N:$N) -> 0 | AG163: =SUMIF(M!$A:$A,$A163,M!$L:$L)+SUMIF(bank!$A:$A,AG$9&$A163,bank!$N:$N) -> 0 | AH163: =SUMIF(P!$A:$A,$A163,P!$L:$L)+SUMIF(bank!$A:$A,AH$9&$A163,bank!$N:$N) -> 0 | AI163: =SUMIF(Zs!$A:$A,$A163,Zs!$L:$L)+SUMIF(bank!$A:$A,AI$9&$A163,bank!$N:$N) -> 0 | AJ163: * | AK163: k | AM163: szerzői jogdíjak, egészségpénztárba fizetett, átvállalt összegek
A164: k155 | B164: 155 | D164: c) Bérjárulékok (156..160) | T164: =SUM(T165:T169) -> 252890 | U164: =SUM(U165:U169) -> 252890 | V164: =SUM(V165:V169) -> 0 | W164: =SUM(W165:W169) -> 0 | X164: =SUM(X165:X169) -> 0 | Y164: =SUM(Y165:Y169) -> 0 | Z164: =SUM(Z165:Z169) -> 0 | AA164: =SUM(AA165:AA169) -> 0 | AB164: =SUM(AB165:AB169) -> 40233 | AC164: =SUM(AC165:AC169) -> 40233 | AD164: =SUM(AD165:AD169) -> 0 | AE164: 0 | AF164: 0 | AG164: 0 | AH164: 0 | AI164: 0 | AK164: k | AL164: 0.1590928862
A165: k156 | B165: 156 | D165: -Szociális hozzájárulási adó | T165: =SUM(U165:AA165) -> 0 | U165: =SUMIF('Terv-segédlet'!$B:$B,$A165,'Terv-segédlet'!E:E) -> 0 | V165: =SUMIF('Terv-segédlet'!$B:$B,$A165,'Terv-segédlet'!F:F) -> 0 | W165: =SUMIF('Terv-segédlet'!$B:$B,$A165,'Terv-segédlet'!G:G) -> 0 | X165: =SUMIF('Terv-segédlet'!$B:$B,$A165,'Terv-segédlet'!H:H) -> 0 | Y165: =SUMIF('Terv-segédlet'!$B:$B,$A165,'Terv-segédlet'!I:I) -> 0 | Z165: =SUMIF('Terv-segédlet'!$B:$B,$A165,'Terv-segédlet'!J:J) -> 0 | AA165: =SUMIF('Terv-segédlet'!$B:$B,$A165,'Terv-segédlet'!K:K) -> 0 | AB165: =SUM(AC165:AI165) -> 0 | AC165: =SUMIF(V!$A:$A,$A165,V!$L:$L)+SUMIF(bank!$A:$A,AC$9&$A165,bank!$N:$N) -> 0 | AD165: =SUMIF(Gy!$A:$A,$A165,Gy!$L:$L)+SUMIF(bank!$A:$A,AD$9&$A165,bank!$N:$N) -> 0 | AE165: =SUMIF(K!$A:$A,$A165,K!$L:$L)+SUMIF(bank!$A:$A,AE$9&$A165,bank!$N:$N) -> 0 | AF165: =SUMIF(Mk!$A:$A,$A165,Mk!$L:$L)+SUMIF(bank!$A:$A,AF$9&$A165,bank!$N:$N) -> 0 | AG165: =SUMIF(M!$A:$A,$A165,M!$L:$L)+SUMIF(bank!$A:$A,AG$9&$A165,bank!$N:$N) -> 0 | AH165: =SUMIF(P!$A:$A,$A165,P!$L:$L)+SUMIF(bank!$A:$A,AH$9&$A165,bank!$N:$N) -> 0 | AI165: =SUMIF(Zs!$A:$A,$A165,Zs!$L:$L)+SUMIF(bank!$A:$A,AI$9&$A165,bank!$N:$N) -> 0 | AJ165: * | AK165: k | AM165: 08 bevallásban bevallott, megfizetett összeg
A166: k157 | B166: 157 | D166: -Egészségügyi hozzájárulás | T166: 0 | U166: =SUMIF('Terv-segédlet'!$B:$B,$A166,'Terv-segédlet'!E:E) -> 0 | V166: =SUMIF('Terv-segédlet'!$B:$B,$A166,'Terv-segédlet'!F:F) -> 0 | W166: =SUMIF('Terv-segédlet'!$B:$B,$A166,'Terv-segédlet'!G:G) -> 0 | X166: =SUMIF('Terv-segédlet'!$B:$B,$A166,'Terv-segédlet'!H:H) -> 0 | Y166: =SUMIF('Terv-segédlet'!$B:$B,$A166,'Terv-segédlet'!I:I) -> 0 | Z166: =SUMIF('Terv-segédlet'!$B:$B,$A166,'Terv-segédlet'!J:J) -> 0 | AA166: =SUMIF('Terv-segédlet'!$B:$B,$A166,'Terv-segédlet'!K:K) -> 0 | AB166: 0 | AC166: =SUMIF(V!$A:$A,$A166,V!$L:$L)+SUMIF(bank!$A:$A,AC$9&$A166,bank!$N:$N) -> 0 | AD166: =SUMIF(Gy!$A:$A,$A166,Gy!$L:$L)+SUMIF(bank!$A:$A,AD$9&$A166,bank!$N:$N) -> 0 | AE166: =SUMIF(K!$A:$A,$A166,K!$L:$L)+SUMIF(bank!$A:$A,AE$9&$A166,bank!$N:$N) -> 0 | AF166: =SUMIF(Mk!$A:$A,$A166,Mk!$L:$L)+SUMIF(bank!$A:$A,AF$9&$A166,bank!$N:$N) -> 0 | AG166: =SUMIF(M!$A:$A,$A166,M!$L:$L)+SUMIF(bank!$A:$A,AG$9&$A166,bank!$N:$N) -> 0 | AH166: =SUMIF(P!$A:$A,$A166,P!$L:$L)+SUMIF(bank!$A:$A,AH$9&$A166,bank!$N:$N) -> 0 | AI166: =SUMIF(Zs!$A:$A,$A166,Zs!$L:$L)+SUMIF(bank!$A:$A,AI$9&$A166,bank!$N:$N) -> 0 | AJ166: * | AK166: k | AM166: 08 bevallásban bevallott, megfizetett, pl. béren kívüli juttatás után a kifizetőt terhelő összeg
A167: k158 | B167: 158 | D167: -Rehabilitációs hozzájárulás | T167: 0 | U167: =SUMIF('Terv-segédlet'!$B:$B,$A167,'Terv-segédlet'!E:E) -> 0 | V167: =SUMIF('Terv-segédlet'!$B:$B,$A167,'Terv-segédlet'!F:F) -> 0 | W167: =SUMIF('Terv-segédlet'!$B:$B,$A167,'Terv-segédlet'!G:G) -> 0 | X167: =SUMIF('Terv-segédlet'!$B:$B,$A167,'Terv-segédlet'!H:H) -> 0 | Y167: =SUMIF('Terv-segédlet'!$B:$B,$A167,'Terv-segédlet'!I:I) -> 0 | Z167: =SUMIF('Terv-segédlet'!$B:$B,$A167,'Terv-segédlet'!J:J) -> 0 | AA167: =SUMIF('Terv-segédlet'!$B:$B,$A167,'Terv-segédlet'!K:K) -> 0 | AB167: 0 | AC167: =SUMIF(V!$A:$A,$A167,V!$L:$L)+SUMIF(bank!$A:$A,AC$9&$A167,bank!$N:$N) -> 0 | AD167: =SUMIF(Gy!$A:$A,$A167,Gy!$L:$L)+SUMIF(bank!$A:$A,AD$9&$A167,bank!$N:$N) -> 0 | AE167: =SUMIF(K!$A:$A,$A167,K!$L:$L)+SUMIF(bank!$A:$A,AE$9&$A167,bank!$N:$N) -> 0 | AF167: =SUMIF(Mk!$A:$A,$A167,Mk!$L:$L)+SUMIF(bank!$A:$A,AF$9&$A167,bank!$N:$N) -> 0 | AG167: =SUMIF(M!$A:$A,$A167,M!$L:$L)+SUMIF(bank!$A:$A,AG$9&$A167,bank!$N:$N) -> 0 | AH167: =SUMIF(P!$A:$A,$A167,P!$L:$L)+SUMIF(bank!$A:$A,AH$9&$A167,bank!$N:$N) -> 0 | AI167: =SUMIF(Zs!$A:$A,$A167,Zs!$L:$L)+SUMIF(bank!$A:$A,AI$9&$A167,bank!$N:$N) -> 0 | AJ167: * | AK167: k | AM167: 25 főt meghaladó alkalmazotti létszám esetén fizetendő adó
A168: k159 | B168: 159 | D168: -Fenntartói nyugdíjjárulék (Zelenka Pál SzA) | T168: 252890 | U168: =SUMIF('Terv-segédlet'!$B:$B,$A168,'Terv-segédlet'!E:E) -> 252890 | V168: =SUMIF('Terv-segédlet'!$B:$B,$A168,'Terv-segédlet'!F:F) -> 0 | W168: =SUMIF('Terv-segédlet'!$B:$B,$A168,'Terv-segédlet'!G:G) -> 0 | X168: =SUMIF('Terv-segédlet'!$B:$B,$A168,'Terv-segédlet'!H:H) -> 0 | Y168: =SUMIF('Terv-segédlet'!$B:$B,$A168,'Terv-segédlet'!I:I) -> 0 | Z168: =SUMIF('Terv-segédlet'!$B:$B,$A168,'Terv-segédlet'!J:J) -> 0 | AA168: =SUMIF('Terv-segédlet'!$B:$B,$A168,'Terv-segédlet'!K:K) -> 0 | AB168: 40233 | AC168: =SUMIF(V!$A:$A,$A168,V!$L:$L)+SUMIF(bank!$A:$A,AC$9&$A168,bank!$N:$N) -> 40233 | AD168: =SUMIF(Gy!$A:$A,$A168,Gy!$L:$L)+SUMIF(bank!$A:$A,AD$9&$A168,bank!$N:$N) -> 0 | AE168: =SUMIF(K!$A:$A,$A168,K!$L:$L)+SUMIF(bank!$A:$A,AE$9&$A168,bank!$N:$N) -> 0 | AF168: =SUMIF(Mk!$A:$A,$A168,Mk!$L:$L)+SUMIF(bank!$A:$A,AF$9&$A168,bank!$N:$N) -> 0 | AG168: =SUMIF(M!$A:$A,$A168,M!$L:$L)+SUMIF(bank!$A:$A,AG$9&$A168,bank!$N:$N) -> 0 | AH168: =SUMIF(P!$A:$A,$A168,P!$L:$L)+SUMIF(bank!$A:$A,AH$9&$A168,bank!$N:$N) -> 0 | AI168: =SUMIF(Zs!$A:$A,$A168,Zs!$L:$L)+SUMIF(bank!$A:$A,AI$9&$A168,bank!$N:$N) -> 0 | AJ168: * | AK168: k | AL168: 0.1590928862 | AM168: Zelenka P. alapba megfizetett fenntartói járulék (gyülekezetet terhelő) összege
A169: k160 | B169: 160 | D169: -Egyéb bérjárulék | T169: 0 | U169: =SUMIF('Terv-segédlet'!$B:$B,$A169,'Terv-segédlet'!E:E) -> 0 | V169: =SUMIF('Terv-segédlet'!$B:$B,$A169,'Terv-segédlet'!F:F) -> 0 | W169: =SUMIF('Terv-segédlet'!$B:$B,$A169,'Terv-segédlet'!G:G) -> 0 | X169: =SUMIF('Terv-segédlet'!$B:$B,$A169,'Terv-segédlet'!H:H) -> 0 | Y169: =SUMIF('Terv-segédlet'!$B:$B,$A169,'Terv-segédlet'!I:I) -> 0 | Z169: =SUMIF('Terv-segédlet'!$B:$B,$A169,'Terv-segédlet'!J:J) -> 0 | AA169: =SUMIF('Terv-segédlet'!$B:$B,$A169,'Terv-segédlet'!K:K) -> 0 | AB169: 0 | AC169: =SUMIF(V!$A:$A,$A169,V!$L:$L)+SUMIF(bank!$A:$A,AC$9&$A169,bank!$N:$N) -> 0 | AD169: =SUMIF(Gy!$A:$A,$A169,Gy!$L:$L)+SUMIF(bank!$A:$A,AD$9&$A169,bank!$N:$N) -> 0 | AE169: =SUMIF(K!$A:$A,$A169,K!$L:$L)+SUMIF(bank!$A:$A,AE$9&$A169,bank!$N:$N) -> 0 | AF169: =SUMIF(Mk!$A:$A,$A169,Mk!$L:$L)+SUMIF(bank!$A:$A,AF$9&$A169,bank!$N:$N) -> 0 | AG169: =SUMIF(M!$A:$A,$A169,M!$L:$L)+SUMIF(bank!$A:$A,AG$9&$A169,bank!$N:$N) -> 0 | AH169: =SUMIF(P!$A:$A,$A169,P!$L:$L)+SUMIF(bank!$A:$A,AH$9&$A169,bank!$N:$N) -> 0 | AI169: =SUMIF(Zs!$A:$A,$A169,Zs!$L:$L)+SUMIF(bank!$A:$A,AI$9&$A169,bank!$N:$N) -> 0 | AJ169: * | AK169: k | AM169: MEP járulék, stb.
A170: k161 | B170: 161 | D170: 9. Egyéb ráfordítások (162+167) | T170: =SUM(T171:T171,T176) -> 481000 | U170: =SUM(U171:U171,U176) -> 223000 | V170: =SUM(V171:V171,V176) -> 5000 | W170: =SUM(W171:W171,W176) -> 60000 | X170: =SUM(X171:X171,X176) -> 60000 | Y170: =SUM(Y171:Y171,Y176) -> 120000 | Z170: =SUM(Z171:Z171,Z176) -> 5000 | AA170: =SUM(AA171:AA171,AA176) -> 8000 | AB170: =SUM(AB171:AB171,AB176) -> 29310 | AC170: =SUM(AC171:AC171,AC176) -> 0 | AD170: =SUM(AD171:AD171,AD176) -> 0 | AE170: 5100 | AF170: 11200 | AG170: 10610 | AH170: 0 | AI170: 2400 | AK170: k | AL170: 0.06093555094
A171: k162 | B171: 162 | D171: i) Különféle egyéb ráfordítások (163..166) | T171: =SUM(T172:T175) -> 0 | U171: =SUM(U172:U175) -> 0 | V171: =SUM(V172:V175) -> 0 | W171: =SUM(W172:W175) -> 0 | X171: =SUM(X172:X175) -> 0 | Y171: =SUM(Y172:Y175) -> 0 | Z171: =SUM(Z172:Z175) -> 0 | AA171: =SUM(AA172:AA175) -> 0 | AB171: =SUM(AB172:AB175) -> 0 | AC171: =SUM(AC172:AC175) -> 0 | AD171: =SUM(AD172:AD175) -> 0 | AE171: 0 | AF171: 0 | AG171: 0 | AH171: 0 | AI171: 0 | AK171: k
A172: k163 | B172: 163 | D172: Adók, illetékek, hozzájárulások | T172: =SUM(U172:AA172) -> 0 | U172: =SUMIF('Terv-segédlet'!$B:$B,$A172,'Terv-segédlet'!E:E) -> 0 | V172: =SUMIF('Terv-segédlet'!$B:$B,$A172,'Terv-segédlet'!F:F) -> 0 | W172: =SUMIF('Terv-segédlet'!$B:$B,$A172,'Terv-segédlet'!G:G) -> 0 | X172: =SUMIF('Terv-segédlet'!$B:$B,$A172,'Terv-segédlet'!H:H) -> 0 | Y172: =SUMIF('Terv-segédlet'!$B:$B,$A172,'Terv-segédlet'!I:I) -> 0 | Z172: =SUMIF('Terv-segédlet'!$B:$B,$A172,'Terv-segédlet'!J:J) -> 0 | AA172: =SUMIF('Terv-segédlet'!$B:$B,$A172,'Terv-segédlet'!K:K) -> 0 | AB172: =SUM(AC172:AI172) -> 0 | AC172: =SUMIF(V!$A:$A,$A172,V!$L:$L)+SUMIF(bank!$A:$A,AC$9&$A172,bank!$N:$N) -> 0 | AD172: =SUMIF(Gy!$A:$A,$A172,Gy!$L:$L)+SUMIF(bank!$A:$A,AD$9&$A172,bank!$N:$N) -> 0 | AE172: =SUMIF(K!$A:$A,$A172,K!$L:$L)+SUMIF(bank!$A:$A,AE$9&$A172,bank!$N:$N) -> 0 | AF172: =SUMIF(Mk!$A:$A,$A172,Mk!$L:$L)+SUMIF(bank!$A:$A,AF$9&$A172,bank!$N:$N) -> 0 | AG172: =SUMIF(M!$A:$A,$A172,M!$L:$L)+SUMIF(bank!$A:$A,AG$9&$A172,bank!$N:$N) -> 0 | AH172: =SUMIF(P!$A:$A,$A172,P!$L:$L)+SUMIF(bank!$A:$A,AH$9&$A172,bank!$N:$N) -> 0 | AI172: =SUMIF(Zs!$A:$A,$A172,Zs!$L:$L)+SUMIF(bank!$A:$A,AI$9&$A172,bank!$N:$N) -> 0 | AJ172: * | AK172: k | AM172: pl. helyi adók
A173: k164 | B173: 164 | D173: Káreseménnyel kapcsolatos fizetések, fizetendő összege, káresemények ráfordítása | T173: 0 | U173: =SUMIF('Terv-segédlet'!$B:$B,$A173,'Terv-segédlet'!E:E) -> 0 | V173: =SUMIF('Terv-segédlet'!$B:$B,$A173,'Terv-segédlet'!F:F) -> 0 | W173: =SUMIF('Terv-segédlet'!$B:$B,$A173,'Terv-segédlet'!G:G) -> 0 | X173: =SUMIF('Terv-segédlet'!$B:$B,$A173,'Terv-segédlet'!H:H) -> 0 | Y173: =SUMIF('Terv-segédlet'!$B:$B,$A173,'Terv-segédlet'!I:I) -> 0 | Z173: =SUMIF('Terv-segédlet'!$B:$B,$A173,'Terv-segédlet'!J:J) -> 0 | AA173: =SUMIF('Terv-segédlet'!$B:$B,$A173,'Terv-segédlet'!K:K) -> 0 | AB173: 0 | AC173: =SUMIF(V!$A:$A,$A173,V!$L:$L)+SUMIF(bank!$A:$A,AC$9&$A173,bank!$N:$N) -> 0 | AD173: =SUMIF(Gy!$A:$A,$A173,Gy!$L:$L)+SUMIF(bank!$A:$A,AD$9&$A173,bank!$N:$N) -> 0 | AE173: =SUMIF(K!$A:$A,$A173,K!$L:$L)+SUMIF(bank!$A:$A,AE$9&$A173,bank!$N:$N) -> 0 | AF173: =SUMIF(Mk!$A:$A,$A173,Mk!$L:$L)+SUMIF(bank!$A:$A,AF$9&$A173,bank!$N:$N) -> 0 | AG173: =SUMIF(M!$A:$A,$A173,M!$L:$L)+SUMIF(bank!$A:$A,AG$9&$A173,bank!$N:$N) -> 0 | AH173: =SUMIF(P!$A:$A,$A173,P!$L:$L)+SUMIF(bank!$A:$A,AH$9&$A173,bank!$N:$N) -> 0 | AI173: =SUMIF(Zs!$A:$A,$A173,Zs!$L:$L)+SUMIF(bank!$A:$A,AI$9&$A173,bank!$N:$N) -> 0 | AJ173: * | AK173: k | AM173: fizetett kártérítési kötelezettség
A174: k165 | B174: 165 | D174: Bírságok, kötbérek, késedelmi kamatok, kártérítések | T174: 0 | U174: =SUMIF('Terv-segédlet'!$B:$B,$A174,'Terv-segédlet'!E:E) -> 0 | V174: =SUMIF('Terv-segédlet'!$B:$B,$A174,'Terv-segédlet'!F:F) -> 0 | W174: =SUMIF('Terv-segédlet'!$B:$B,$A174,'Terv-segédlet'!G:G) -> 0 | X174: =SUMIF('Terv-segédlet'!$B:$B,$A174,'Terv-segédlet'!H:H) -> 0 | Y174: =SUMIF('Terv-segédlet'!$B:$B,$A174,'Terv-segédlet'!I:I) -> 0 | Z174: =SUMIF('Terv-segédlet'!$B:$B,$A174,'Terv-segédlet'!J:J) -> 0 | AA174: =SUMIF('Terv-segédlet'!$B:$B,$A174,'Terv-segédlet'!K:K) -> 0 | AB174: 0 | AC174: =SUMIF(V!$A:$A,$A174,V!$L:$L)+SUMIF(bank!$A:$A,AC$9&$A174,bank!$N:$N) -> 0 | AD174: =SUMIF(Gy!$A:$A,$A174,Gy!$L:$L)+SUMIF(bank!$A:$A,AD$9&$A174,bank!$N:$N) -> 0 | AE174: =SUMIF(K!$A:$A,$A174,K!$L:$L)+SUMIF(bank!$A:$A,AE$9&$A174,bank!$N:$N) -> 0 | AF174: =SUMIF(Mk!$A:$A,$A174,Mk!$L:$L)+SUMIF(bank!$A:$A,AF$9&$A174,bank!$N:$N) -> 0 | AG174: =SUMIF(M!$A:$A,$A174,M!$L:$L)+SUMIF(bank!$A:$A,AG$9&$A174,bank!$N:$N) -> 0 | AH174: =SUMIF(P!$A:$A,$A174,P!$L:$L)+SUMIF(bank!$A:$A,AH$9&$A174,bank!$N:$N) -> 0 | AI174: =SUMIF(Zs!$A:$A,$A174,Zs!$L:$L)+SUMIF(bank!$A:$A,AI$9&$A174,bank!$N:$N) -> 0 | AJ174: * | AK174: k | AM174: késedelmi kamat, bírság, kötbér, stb.
A175: k166 | B175: 166 | D175: Más különféle egyéb ráfordítások | T175: 0 | U175: =SUMIF('Terv-segédlet'!$B:$B,$A175,'Terv-segédlet'!E:E) -> 0 | V175: =SUMIF('Terv-segédlet'!$B:$B,$A175,'Terv-segédlet'!F:F) -> 0 | W175: =SUMIF('Terv-segédlet'!$B:$B,$A175,'Terv-segédlet'!G:G) -> 0 | X175: =SUMIF('Terv-segédlet'!$B:$B,$A175,'Terv-segédlet'!H:H) -> 0 | Y175: =SUMIF('Terv-segédlet'!$B:$B,$A175,'Terv-segédlet'!I:I) -> 0 | Z175: =SUMIF('Terv-segédlet'!$B:$B,$A175,'Terv-segédlet'!J:J) -> 0 | AA175: =SUMIF('Terv-segédlet'!$B:$B,$A175,'Terv-segédlet'!K:K) -> 0 | AB175: 0 | AC175: =SUMIF(V!$A:$A,$A175,V!$L:$L)+SUMIF(bank!$A:$A,AC$9&$A175,bank!$N:$N) -> 0 | AD175: =SUMIF(Gy!$A:$A,$A175,Gy!$L:$L)+SUMIF(bank!$A:$A,AD$9&$A175,bank!$N:$N) -> 0 | AE175: =SUMIF(K!$A:$A,$A175,K!$L:$L)+SUMIF(bank!$A:$A,AE$9&$A175,bank!$N:$N) -> 0 | AF175: =SUMIF(Mk!$A:$A,$A175,Mk!$L:$L)+SUMIF(bank!$A:$A,AF$9&$A175,bank!$N:$N) -> 0 | AG175: =SUMIF(M!$A:$A,$A175,M!$L:$L)+SUMIF(bank!$A:$A,AG$9&$A175,bank!$N:$N) -> 0 | AH175: =SUMIF(P!$A:$A,$A175,P!$L:$L)+SUMIF(bank!$A:$A,AH$9&$A175,bank!$N:$N) -> 0 | AI175: =SUMIF(Zs!$A:$A,$A175,Zs!$L:$L)+SUMIF(bank!$A:$A,AI$9&$A175,bank!$N:$N) -> 0 | AJ175: * | AK175: k | AM175: pl. kerekítés
A176: k167 | B176: 167 | D176: ii) Adott, átadott támogatások (168+174+179) | T176: =SUM(T177,T183,T188) -> 481000 | U176: =SUM(U177,U183,U188) -> 223000 | V176: =SUM(V177,V183,V188) -> 5000 | W176: =SUM(W177,W183,W188) -> 60000 | X176: =SUM(X177,X183,X188) -> 60000 | Y176: =SUM(Y177,Y183,Y188) -> 120000 | Z176: =SUM(Z177,Z183,Z188) -> 5000 | AA176: =SUM(AA177,AA183,AA188) -> 8000 | AB176: =SUM(AB177,AB183,AB188) -> 29310 | AC176: =SUM(AC177,AC183,AC188) -> 0 | AD176: =SUM(AD177,AD183,AD188) -> 0 | AE176: 5100 | AF176: 11200 | AG176: 10610 | AH176: 0 | AI176: 2400 | AK176: k | AL176: 0.06093555094
A177: k168 | B177: 168 | D177: a ) Egyházi támogatás (169+173) | T177: =SUM(T182,T178) -> 143000 | U177: =SUM(U182,U178) -> 143000 | V177: =SUM(V182,V178) -> 0 | W177: =SUM(W182,W178) -> 0 | X177: =SUM(X182,X178) -> 0 | Y177: =SUM(Y182,Y178) -> 0 | Z177: =SUM(Z182,Z178) -> 0 | AA177: =SUM(AA182,AA178) -> 0 | AB177: =SUM(AB182,AB178) -> 0 | AC177: =SUM(AC182,AC178) -> 0 | AD177: =SUM(AD182,AD178) -> 0 | AE177: 0 | AF177: 0 | AG177: 0 | AH177: 0 | AI177: 0 | AK177: k | AL177: 0
A178: k169 | B178: 169 | D178: aa) Belföldi egyházi jogi személynek (170..172) | T178: =SUM(T179:T181) -> 143000 | U178: =SUM(U179:U181) -> 143000 | V178: =SUM(V179:V181) -> 0 | W178: =SUM(W179:W181) -> 0 | X178: =SUM(X179:X181) -> 0 | Y178: =SUM(Y179:Y181) -> 0 | Z178: =SUM(Z179:Z181) -> 0 | AA178: =SUM(AA179:AA181) -> 0 | AB178: =SUM(AB179:AB181) -> 0 | AC178: =SUM(AC179:AC181) -> 0 | AD178: =SUM(AD179:AD181) -> 0 | AE178: 0 | AF178: 0 | AG178: 0 | AH178: 0 | AI178: 0 | AK178: k | AL178: 0
A179: k170 | B179: 170 | D179: -Egyházmegyei járulék | T179: =SUM(U179:AA179) -> 131000 | U179: =SUMIF('Terv-segédlet'!$B:$B,$A179,'Terv-segédlet'!E:E) -> 131000 | V179: =SUMIF('Terv-segédlet'!$B:$B,$A179,'Terv-segédlet'!F:F) -> 0 | W179: =SUMIF('Terv-segédlet'!$B:$B,$A179,'Terv-segédlet'!G:G) -> 0 | X179: =SUMIF('Terv-segédlet'!$B:$B,$A179,'Terv-segédlet'!H:H) -> 0 | Y179: =SUMIF('Terv-segédlet'!$B:$B,$A179,'Terv-segédlet'!I:I) -> 0 | Z179: =SUMIF('Terv-segédlet'!$B:$B,$A179,'Terv-segédlet'!J:J) -> 0 | AA179: =SUMIF('Terv-segédlet'!$B:$B,$A179,'Terv-segédlet'!K:K) -> 0 | AB179: =SUM(AC179:AI179) -> 0 | AC179: =SUMIF(V!$A:$A,$A179,V!$L:$L)+SUMIF(bank!$A:$A,AC$9&$A179,bank!$N:$N) -> 0 | AD179: =SUMIF(Gy!$A:$A,$A179,Gy!$L:$L)+SUMIF(bank!$A:$A,AD$9&$A179,bank!$N:$N) -> 0 | AE179: =SUMIF(K!$A:$A,$A179,K!$L:$L)+SUMIF(bank!$A:$A,AE$9&$A179,bank!$N:$N) -> 0 | AF179: =SUMIF(Mk!$A:$A,$A179,Mk!$L:$L)+SUMIF(bank!$A:$A,AF$9&$A179,bank!$N:$N) -> 0 | AG179: =SUMIF(M!$A:$A,$A179,M!$L:$L)+SUMIF(bank!$A:$A,AG$9&$A179,bank!$N:$N) -> 0 | AH179: =SUMIF(P!$A:$A,$A179,P!$L:$L)+SUMIF(bank!$A:$A,AH$9&$A179,bank!$N:$N) -> 0 | AI179: =SUMIF(Zs!$A:$A,$A179,Zs!$L:$L)+SUMIF(bank!$A:$A,AI$9&$A179,bank!$N:$N) -> 0 | AJ179: * | AK179: k | AL179: 0 | AM179: egyházmegyének befizetett egházfenntartói járulék
A180: k171 | B180: 171 | D180: -Saját fenntartású intézménynek adott támogatás | T180: 0 | U180: =SUMIF('Terv-segédlet'!$B:$B,$A180,'Terv-segédlet'!E:E) -> 0 | V180: =SUMIF('Terv-segédlet'!$B:$B,$A180,'Terv-segédlet'!F:F) -> 0 | W180: =SUMIF('Terv-segédlet'!$B:$B,$A180,'Terv-segédlet'!G:G) -> 0 | X180: =SUMIF('Terv-segédlet'!$B:$B,$A180,'Terv-segédlet'!H:H) -> 0 | Y180: =SUMIF('Terv-segédlet'!$B:$B,$A180,'Terv-segédlet'!I:I) -> 0 | Z180: =SUMIF('Terv-segédlet'!$B:$B,$A180,'Terv-segédlet'!J:J) -> 0 | AA180: =SUMIF('Terv-segédlet'!$B:$B,$A180,'Terv-segédlet'!K:K) -> 0 | AB180: 0 | AC180: =SUMIF(V!$A:$A,$A180,V!$L:$L)+SUMIF(bank!$A:$A,AC$9&$A180,bank!$N:$N) -> 0 | AD180: =SUMIF(Gy!$A:$A,$A180,Gy!$L:$L)+SUMIF(bank!$A:$A,AD$9&$A180,bank!$N:$N) -> 0 | AE180: =SUMIF(K!$A:$A,$A180,K!$L:$L)+SUMIF(bank!$A:$A,AE$9&$A180,bank!$N:$N) -> 0 | AF180: =SUMIF(Mk!$A:$A,$A180,Mk!$L:$L)+SUMIF(bank!$A:$A,AF$9&$A180,bank!$N:$N) -> 0 | AG180: =SUMIF(M!$A:$A,$A180,M!$L:$L)+SUMIF(bank!$A:$A,AG$9&$A180,bank!$N:$N) -> 0 | AH180: =SUMIF(P!$A:$A,$A180,P!$L:$L)+SUMIF(bank!$A:$A,AH$9&$A180,bank!$N:$N) -> 0 | AI180: =SUMIF(Zs!$A:$A,$A180,Zs!$L:$L)+SUMIF(bank!$A:$A,AI$9&$A180,bank!$N:$N) -> 0 | AJ180: * | AK180: k | AM180: saját fenntartású intézménynek támogatás címén átadott saját bevétel
A181: k172 | B181: 172 | D181: -Más egyházi jogi személynek adott támogatás | T181: 12000 | U181: =SUMIF('Terv-segédlet'!$B:$B,$A181,'Terv-segédlet'!E:E) -> 12000 | V181: =SUMIF('Terv-segédlet'!$B:$B,$A181,'Terv-segédlet'!F:F) -> 0 | W181: =SUMIF('Terv-segédlet'!$B:$B,$A181,'Terv-segédlet'!G:G) -> 0 | X181: =SUMIF('Terv-segédlet'!$B:$B,$A181,'Terv-segédlet'!H:H) -> 0 | Y181: =SUMIF('Terv-segédlet'!$B:$B,$A181,'Terv-segédlet'!I:I) -> 0 | Z181: =SUMIF('Terv-segédlet'!$B:$B,$A181,'Terv-segédlet'!J:J) -> 0 | AA181: =SUMIF('Terv-segédlet'!$B:$B,$A181,'Terv-segédlet'!K:K) -> 0 | AB181: 0 | AC181: =SUMIF(V!$A:$A,$A181,V!$L:$L)+SUMIF(bank!$A:$A,AC$9&$A181,bank!$N:$N) -> 0 | AD181: =SUMIF(Gy!$A:$A,$A181,Gy!$L:$L)+SUMIF(bank!$A:$A,AD$9&$A181,bank!$N:$N) -> 0 | AE181: =SUMIF(K!$A:$A,$A181,K!$L:$L)+SUMIF(bank!$A:$A,AE$9&$A181,bank!$N:$N) -> 0 | AF181: =SUMIF(Mk!$A:$A,$A181,Mk!$L:$L)+SUMIF(bank!$A:$A,AF$9&$A181,bank!$N:$N) -> 0 | AG181: =SUMIF(M!$A:$A,$A181,M!$L:$L)+SUMIF(bank!$A:$A,AG$9&$A181,bank!$N:$N) -> 0 | AH181: =SUMIF(P!$A:$A,$A181,P!$L:$L)+SUMIF(bank!$A:$A,AH$9&$A181,bank!$N:$N) -> 0 | AI181: =SUMIF(Zs!$A:$A,$A181,Zs!$L:$L)+SUMIF(bank!$A:$A,AI$9&$A181,bank!$N:$N) -> 0 | AJ181: * | AK181: k | AL181: 0 | AM181: más egyházmegyének, egyházközségnek, egyházi intézménynek, országos egyháznak adott támogatás
A182: k173 | B182: 173 | D182: ab) Külföldi egyháznak | T182: 0 | U182: =SUMIF('Terv-segédlet'!$B:$B,$A182,'Terv-segédlet'!E:E) -> 0 | V182: =SUMIF('Terv-segédlet'!$B:$B,$A182,'Terv-segédlet'!F:F) -> 0 | W182: =SUMIF('Terv-segédlet'!$B:$B,$A182,'Terv-segédlet'!G:G) -> 0 | X182: =SUMIF('Terv-segédlet'!$B:$B,$A182,'Terv-segédlet'!H:H) -> 0 | Y182: =SUMIF('Terv-segédlet'!$B:$B,$A182,'Terv-segédlet'!I:I) -> 0 | Z182: =SUMIF('Terv-segédlet'!$B:$B,$A182,'Terv-segédlet'!J:J) -> 0 | AA182: =SUMIF('Terv-segédlet'!$B:$B,$A182,'Terv-segédlet'!K:K) -> 0 | AB182: 0 | AC182: =SUMIF(V!$A:$A,$A182,V!$L:$L)+SUMIF(bank!$A:$A,AC$9&$A182,bank!$N:$N) -> 0 | AD182: =SUMIF(Gy!$A:$A,$A182,Gy!$L:$L)+SUMIF(bank!$A:$A,AD$9&$A182,bank!$N:$N) -> 0 | AE182: =SUMIF(K!$A:$A,$A182,K!$L:$L)+SUMIF(bank!$A:$A,AE$9&$A182,bank!$N:$N) -> 0 | AF182: =SUMIF(Mk!$A:$A,$A182,Mk!$L:$L)+SUMIF(bank!$A:$A,AF$9&$A182,bank!$N:$N) -> 0 | AG182: =SUMIF(M!$A:$A,$A182,M!$L:$L)+SUMIF(bank!$A:$A,AG$9&$A182,bank!$N:$N) -> 0 | AH182: =SUMIF(P!$A:$A,$A182,P!$L:$L)+SUMIF(bank!$A:$A,AH$9&$A182,bank!$N:$N) -> 0 | AI182: =SUMIF(Zs!$A:$A,$A182,Zs!$L:$L)+SUMIF(bank!$A:$A,AI$9&$A182,bank!$N:$N) -> 0 | AJ182: * | AK182: k | AM182: külföldi testvérgyülekezetnek, GAW, LVSZ, stb. adott támogatás
A183: k174 | B183: 174 | D183: b) Központi költségvetés (175..178) | T183: =SUM(T184:T187) -> 0 | U183: =SUM(U184:U187) -> 0 | V183: =SUM(V184:V187) -> 0 | W183: =SUM(W184:W187) -> 0 | X183: =SUM(X184:X187) -> 0 | Y183: =SUM(Y184:Y187) -> 0 | Z183: =SUM(Z184:Z187) -> 0 | AA183: =SUM(AA184:AA187) -> 0 | AB183: =SUM(AB184:AB187) -> 0 | AC183: =SUM(AC184:AC187) -> 0 | AD183: =SUM(AD184:AD187) -> 0 | AE183: 0 | AF183: 0 | AG183: 0 | AH183: 0 | AI183: 0 | AK183: k
A184: k175 | B184: 175 | D184: -Köznevelési támogatás átadása | T184: =SUM(U184:AA184) -> 0 | U184: =SUMIF('Terv-segédlet'!$B:$B,$A184,'Terv-segédlet'!E:E) -> 0 | V184: =SUMIF('Terv-segédlet'!$B:$B,$A184,'Terv-segédlet'!F:F) -> 0 | W184: =SUMIF('Terv-segédlet'!$B:$B,$A184,'Terv-segédlet'!G:G) -> 0 | X184: =SUMIF('Terv-segédlet'!$B:$B,$A184,'Terv-segédlet'!H:H) -> 0 | Y184: =SUMIF('Terv-segédlet'!$B:$B,$A184,'Terv-segédlet'!I:I) -> 0 | Z184: =SUMIF('Terv-segédlet'!$B:$B,$A184,'Terv-segédlet'!J:J) -> 0 | AA184: =SUMIF('Terv-segédlet'!$B:$B,$A184,'Terv-segédlet'!K:K) -> 0 | AB184: =SUM(AC184:AI184) -> 0 | AC184: =SUMIF(V!$A:$A,$A184,V!$L:$L)+SUMIF(bank!$A:$A,AC$9&$A184,bank!$N:$N) -> 0 | AD184: =SUMIF(Gy!$A:$A,$A184,Gy!$L:$L)+SUMIF(bank!$A:$A,AD$9&$A184,bank!$N:$N) -> 0 | AE184: =SUMIF(K!$A:$A,$A184,K!$L:$L)+SUMIF(bank!$A:$A,AE$9&$A184,bank!$N:$N) -> 0 | AF184: =SUMIF(Mk!$A:$A,$A184,Mk!$L:$L)+SUMIF(bank!$A:$A,AF$9&$A184,bank!$N:$N) -> 0 | AG184: =SUMIF(M!$A:$A,$A184,M!$L:$L)+SUMIF(bank!$A:$A,AG$9&$A184,bank!$N:$N) -> 0 | AH184: =SUMIF(P!$A:$A,$A184,P!$L:$L)+SUMIF(bank!$A:$A,AH$9&$A184,bank!$N:$N) -> 0 | AI184: =SUMIF(Zs!$A:$A,$A184,Zs!$L:$L)+SUMIF(bank!$A:$A,AI$9&$A184,bank!$N:$N) -> 0 | AJ184: * | AK184: k | AM184: saját fenntartású köznevelési intézménynek továbbadott állami támogatás
A185: k176 | B185: 176 | D185: -Szociális támogatás átadása | T185: 0 | U185: =SUMIF('Terv-segédlet'!$B:$B,$A185,'Terv-segédlet'!E:E) -> 0 | V185: =SUMIF('Terv-segédlet'!$B:$B,$A185,'Terv-segédlet'!F:F) -> 0 | W185: =SUMIF('Terv-segédlet'!$B:$B,$A185,'Terv-segédlet'!G:G) -> 0 | X185: =SUMIF('Terv-segédlet'!$B:$B,$A185,'Terv-segédlet'!H:H) -> 0 | Y185: =SUMIF('Terv-segédlet'!$B:$B,$A185,'Terv-segédlet'!I:I) -> 0 | Z185: =SUMIF('Terv-segédlet'!$B:$B,$A185,'Terv-segédlet'!J:J) -> 0 | AA185: =SUMIF('Terv-segédlet'!$B:$B,$A185,'Terv-segédlet'!K:K) -> 0 | AB185: 0 | AC185: =SUMIF(V!$A:$A,$A185,V!$L:$L)+SUMIF(bank!$A:$A,AC$9&$A185,bank!$N:$N) -> 0 | AD185: =SUMIF(Gy!$A:$A,$A185,Gy!$L:$L)+SUMIF(bank!$A:$A,AD$9&$A185,bank!$N:$N) -> 0 | AE185: =SUMIF(K!$A:$A,$A185,K!$L:$L)+SUMIF(bank!$A:$A,AE$9&$A185,bank!$N:$N) -> 0 | AF185: =SUMIF(Mk!$A:$A,$A185,Mk!$L:$L)+SUMIF(bank!$A:$A,AF$9&$A185,bank!$N:$N) -> 0 | AG185: =SUMIF(M!$A:$A,$A185,M!$L:$L)+SUMIF(bank!$A:$A,AG$9&$A185,bank!$N:$N) -> 0 | AH185: =SUMIF(P!$A:$A,$A185,P!$L:$L)+SUMIF(bank!$A:$A,AH$9&$A185,bank!$N:$N) -> 0 | AI185: =SUMIF(Zs!$A:$A,$A185,Zs!$L:$L)+SUMIF(bank!$A:$A,AI$9&$A185,bank!$N:$N) -> 0 | AJ185: * | AK185: k | AM185: saját fenntartású szociális intézménynek továbbadott állami támogatás
A186: k177 | B186: 177 | D186: -Hitoktatási, munkaügyi költségvetési támogatás átadása | T186: 0 | U186: =SUMIF('Terv-segédlet'!$B:$B,$A186,'Terv-segédlet'!E:E) -> 0 | V186: =SUMIF('Terv-segédlet'!$B:$B,$A186,'Terv-segédlet'!F:F) -> 0 | W186: =SUMIF('Terv-segédlet'!$B:$B,$A186,'Terv-segédlet'!G:G) -> 0 | X186: =SUMIF('Terv-segédlet'!$B:$B,$A186,'Terv-segédlet'!H:H) -> 0 | Y186: =SUMIF('Terv-segédlet'!$B:$B,$A186,'Terv-segédlet'!I:I) -> 0 | Z186: =SUMIF('Terv-segédlet'!$B:$B,$A186,'Terv-segédlet'!J:J) -> 0 | AA186: =SUMIF('Terv-segédlet'!$B:$B,$A186,'Terv-segédlet'!K:K) -> 0 | AB186: 0 | AC186: =SUMIF(V!$A:$A,$A186,V!$L:$L)+SUMIF(bank!$A:$A,AC$9&$A186,bank!$N:$N) -> 0 | AD186: =SUMIF(Gy!$A:$A,$A186,Gy!$L:$L)+SUMIF(bank!$A:$A,AD$9&$A186,bank!$N:$N) -> 0 | AE186: =SUMIF(K!$A:$A,$A186,K!$L:$L)+SUMIF(bank!$A:$A,AE$9&$A186,bank!$N:$N) -> 0 | AF186: =SUMIF(Mk!$A:$A,$A186,Mk!$L:$L)+SUMIF(bank!$A:$A,AF$9&$A186,bank!$N:$N) -> 0 | AG186: =SUMIF(M!$A:$A,$A186,M!$L:$L)+SUMIF(bank!$A:$A,AG$9&$A186,bank!$N:$N) -> 0 | AH186: =SUMIF(P!$A:$A,$A186,P!$L:$L)+SUMIF(bank!$A:$A,AH$9&$A186,bank!$N:$N) -> 0 | AI186: =SUMIF(Zs!$A:$A,$A186,Zs!$L:$L)+SUMIF(bank!$A:$A,AI$9&$A186,bank!$N:$N) -> 0 | AJ186: * | AK186: k | AM186: támogatásként továbbadott hitoktatási támogatás, munkaügyi támogatás
A187: k178 | B187: 178 | D187: -Egyéb központi költségvetési támogatás átadása | T187: 0 | U187: =SUMIF('Terv-segédlet'!$B:$B,$A187,'Terv-segédlet'!E:E) -> 0 | V187: =SUMIF('Terv-segédlet'!$B:$B,$A187,'Terv-segédlet'!F:F) -> 0 | W187: =SUMIF('Terv-segédlet'!$B:$B,$A187,'Terv-segédlet'!G:G) -> 0 | X187: =SUMIF('Terv-segédlet'!$B:$B,$A187,'Terv-segédlet'!H:H) -> 0 | Y187: =SUMIF('Terv-segédlet'!$B:$B,$A187,'Terv-segédlet'!I:I) -> 0 | Z187: =SUMIF('Terv-segédlet'!$B:$B,$A187,'Terv-segédlet'!J:J) -> 0 | AA187: =SUMIF('Terv-segédlet'!$B:$B,$A187,'Terv-segédlet'!K:K) -> 0 | AB187: 0 | AC187: =SUMIF(V!$A:$A,$A187,V!$L:$L)+SUMIF(bank!$A:$A,AC$9&$A187,bank!$N:$N) -> 0 | AD187: =SUMIF(Gy!$A:$A,$A187,Gy!$L:$L)+SUMIF(bank!$A:$A,AD$9&$A187,bank!$N:$N) -> 0 | AE187: =SUMIF(K!$A:$A,$A187,K!$L:$L)+SUMIF(bank!$A:$A,AE$9&$A187,bank!$N:$N) -> 0 | AF187: =SUMIF(Mk!$A:$A,$A187,Mk!$L:$L)+SUMIF(bank!$A:$A,AF$9&$A187,bank!$N:$N) -> 0 | AG187: =SUMIF(M!$A:$A,$A187,M!$L:$L)+SUMIF(bank!$A:$A,AG$9&$A187,bank!$N:$N) -> 0 | AH187: =SUMIF(P!$A:$A,$A187,P!$L:$L)+SUMIF(bank!$A:$A,AH$9&$A187,bank!$N:$N) -> 0 | AI187: =SUMIF(Zs!$A:$A,$A187,Zs!$L:$L)+SUMIF(bank!$A:$A,AI$9&$A187,bank!$N:$N) -> 0 | AJ187: * | AK187: k | AM187: támogatásként továbbadott egyéb állami támogatás
A188: k179 | B188: 179 | D188: c) Egyéb támogatások (180+183) | T188: =SUM(T189,T192) -> 338000 | U188: =SUM(U189,U192) -> 80000 | V188: =SUM(V189,V192) -> 5000 | W188: =SUM(W189,W192) -> 60000 | X188: =SUM(X189,X192) -> 60000 | Y188: =SUM(Y189,Y192) -> 120000 | Z188: =SUM(Z189,Z192) -> 5000 | AA188: =SUM(AA189,AA192) -> 8000 | AB188: =SUM(AB189,AB192) -> 29310 | AC188: =SUM(AC189,AC192) -> 0 | AD188: =SUM(AD189,AD192) -> 0 | AE188: 5100 | AF188: 11200 | AG188: 10610 | AH188: 0 | AI188: 2400 | AK188: k | AL188: 0.08671597633
A189: k180 | B189: 180 | D189: ca) Gazdálkodó szerveknek (181..182) | T189: =SUM(T190:T191) -> 0 | U189: =SUM(U190:U191) -> 0 | V189: =SUM(V190:V191) -> 0 | W189: =SUM(W190:W191) -> 0 | X189: =SUM(X190:X191) -> 0 | Y189: =SUM(Y190:Y191) -> 0 | Z189: =SUM(Z190:Z191) -> 0 | AA189: =SUM(AA190:AA191) -> 0 | AB189: =SUM(AB190:AB191) -> 0 | AC189: =SUM(AC190:AC191) -> 0 | AD189: =SUM(AD190:AD191) -> 0 | AE189: 0 | AF189: 0 | AG189: 0 | AH189: 0 | AI189: 0 | AK189: k
A190: k181 | B190: 181 | D190: -Saját alapítványnak | T190: =SUM(U190:AA190) -> 0 | U190: =SUMIF('Terv-segédlet'!$B:$B,$A190,'Terv-segédlet'!E:E) -> 0 | V190: =SUMIF('Terv-segédlet'!$B:$B,$A190,'Terv-segédlet'!F:F) -> 0 | W190: =SUMIF('Terv-segédlet'!$B:$B,$A190,'Terv-segédlet'!G:G) -> 0 | X190: =SUMIF('Terv-segédlet'!$B:$B,$A190,'Terv-segédlet'!H:H) -> 0 | Y190: =SUMIF('Terv-segédlet'!$B:$B,$A190,'Terv-segédlet'!I:I) -> 0 | Z190: =SUMIF('Terv-segédlet'!$B:$B,$A190,'Terv-segédlet'!J:J) -> 0 | AA190: =SUMIF('Terv-segédlet'!$B:$B,$A190,'Terv-segédlet'!K:K) -> 0 | AB190: =SUM(AC190:AI190) -> 0 | AC190: =SUMIF(V!$A:$A,$A190,V!$L:$L)+SUMIF(bank!$A:$A,AC$9&$A190,bank!$N:$N) -> 0 | AD190: =SUMIF(Gy!$A:$A,$A190,Gy!$L:$L)+SUMIF(bank!$A:$A,AD$9&$A190,bank!$N:$N) -> 0 | AE190: =SUMIF(K!$A:$A,$A190,K!$L:$L)+SUMIF(bank!$A:$A,AE$9&$A190,bank!$N:$N) -> 0 | AF190: =SUMIF(Mk!$A:$A,$A190,Mk!$L:$L)+SUMIF(bank!$A:$A,AF$9&$A190,bank!$N:$N) -> 0 | AG190: =SUMIF(M!$A:$A,$A190,M!$L:$L)+SUMIF(bank!$A:$A,AG$9&$A190,bank!$N:$N) -> 0 | AH190: =SUMIF(P!$A:$A,$A190,P!$L:$L)+SUMIF(bank!$A:$A,AH$9&$A190,bank!$N:$N) -> 0 | AI190: =SUMIF(Zs!$A:$A,$A190,Zs!$L:$L)+SUMIF(bank!$A:$A,AI$9&$A190,bank!$N:$N) -> 0 | AJ190: * | AK190: k | AM190: egyházközség által létrehozott saját alapítványnak adott támogatás
A191: k182 | B191: 182 | D191: -Egyéb | E191: Értékesített, átruházott (engedményezett) követelések könyv szerinti értéke | T191: 0 | U191: =SUMIF('Terv-segédlet'!$B:$B,$A191,'Terv-segédlet'!E:E) -> 0 | V191: =SUMIF('Terv-segédlet'!$B:$B,$A191,'Terv-segédlet'!F:F) -> 0 | W191: =SUMIF('Terv-segédlet'!$B:$B,$A191,'Terv-segédlet'!G:G) -> 0 | X191: =SUMIF('Terv-segédlet'!$B:$B,$A191,'Terv-segédlet'!H:H) -> 0 | Y191: =SUMIF('Terv-segédlet'!$B:$B,$A191,'Terv-segédlet'!I:I) -> 0 | Z191: =SUMIF('Terv-segédlet'!$B:$B,$A191,'Terv-segédlet'!J:J) -> 0 | AA191: =SUMIF('Terv-segédlet'!$B:$B,$A191,'Terv-segédlet'!K:K) -> 0 | AB191: 0 | AC191: =SUMIF(V!$A:$A,$A191,V!$L:$L)+SUMIF(bank!$A:$A,AC$9&$A191,bank!$N:$N) -> 0 | AD191: =SUMIF(Gy!$A:$A,$A191,Gy!$L:$L)+SUMIF(bank!$A:$A,AD$9&$A191,bank!$N:$N) -> 0 | AE191: =SUMIF(K!$A:$A,$A191,K!$L:$L)+SUMIF(bank!$A:$A,AE$9&$A191,bank!$N:$N) -> 0 | AF191: =SUMIF(Mk!$A:$A,$A191,Mk!$L:$L)+SUMIF(bank!$A:$A,AF$9&$A191,bank!$N:$N) -> 0 | AG191: =SUMIF(M!$A:$A,$A191,M!$L:$L)+SUMIF(bank!$A:$A,AG$9&$A191,bank!$N:$N) -> 0 | AH191: =SUMIF(P!$A:$A,$A191,P!$L:$L)+SUMIF(bank!$A:$A,AH$9&$A191,bank!$N:$N) -> 0 | AI191: =SUMIF(Zs!$A:$A,$A191,Zs!$L:$L)+SUMIF(bank!$A:$A,AI$9&$A191,bank!$N:$N) -> 0 | AJ191: * | AK191: k | AM191: vállalkozásoknak, egyéb alapítványoknak, társadalmi szervezeteknek adott támogatás
A192: k183 | B192: 183 | D192: cb) Továbbítandó egyéb támogatások, bevételek átadása | E192: Közoktatási normatív támogatás visszatérítése | T192: 338000 | U192: =SUMIF('Terv-segédlet'!$B:$B,$A192,'Terv-segédlet'!E:E) -> 80000 | V192: =SUMIF('Terv-segédlet'!$B:$B,$A192,'Terv-segédlet'!F:F) -> 5000 | W192: =SUMIF('Terv-segédlet'!$B:$B,$A192,'Terv-segédlet'!G:G) -> 60000 | X192: =SUMIF('Terv-segédlet'!$B:$B,$A192,'Terv-segédlet'!H:H) -> 60000 | Y192: =SUMIF('Terv-segédlet'!$B:$B,$A192,'Terv-segédlet'!I:I) -> 120000 | Z192: =SUMIF('Terv-segédlet'!$B:$B,$A192,'Terv-segédlet'!J:J) -> 5000 | AA192: =SUMIF('Terv-segédlet'!$B:$B,$A192,'Terv-segédlet'!K:K) -> 8000 | AB192: 29310 | AC192: =SUMIF(V!$A:$A,$A192,V!$L:$L)+SUMIF(bank!$A:$A,AC$9&$A192,bank!$N:$N) -> 0 | AD192: =SUMIF(Gy!$A:$A,$A192,Gy!$L:$L)+SUMIF(bank!$A:$A,AD$9&$A192,bank!$N:$N) -> 0 | AE192: =SUMIF(K!$A:$A,$A192,K!$L:$L)+SUMIF(bank!$A:$A,AE$9&$A192,bank!$N:$N) -> 5100 | AF192: =SUMIF(Mk!$A:$A,$A192,Mk!$L:$L)+SUMIF(bank!$A:$A,AF$9&$A192,bank!$N:$N) -> 11200 | AG192: =SUMIF(M!$A:$A,$A192,M!$L:$L)+SUMIF(bank!$A:$A,AG$9&$A192,bank!$N:$N) -> 10610 | AH192: =SUMIF(P!$A:$A,$A192,P!$L:$L)+SUMIF(bank!$A:$A,AH$9&$A192,bank!$N:$N) -> 0 | AI192: =SUMIF(Zs!$A:$A,$A192,Zs!$L:$L)+SUMIF(bank!$A:$A,AI$9&$A192,bank!$N:$N) -> 2400 | AJ192: * | AK192: k | AL192: 0.08671597633 | AM192: kötelező offertórium, Gusztáv Adolf segély, szupplikáció, továbbítandó egyéb adományok
A193: k184 | B193: 184 | D193: 10. Pénzügyi műveletek ráfordítása (185..187) | T193: =SUM(T194:T196) -> 0 | U193: =SUM(U194:U196) -> 0 | V193: =SUM(V194:V196) -> 0 | W193: =SUM(W194:W196) -> 0 | X193: =SUM(X194:X196) -> 0 | Y193: =SUM(Y194:Y196) -> 0 | Z193: =SUM(Z194:Z196) -> 0 | AA193: =SUM(AA194:AA196) -> 0 | AB193: =SUM(AB194:AB196) -> 0 | AC193: =SUM(AC194:AC196) -> 0 | AD193: =SUM(AD194:AD196) -> 0 | AE193: 0 | AF193: 0 | AG193: 0 | AH193: 0 | AI193: 0 | AK193: k
A194: k185 | B194: 185 | E194: Befektetett pénzügyi eszközök árfolyamveszteségek | T194: =SUM(U194:AA194) -> 0 | U194: =SUMIF('Terv-segédlet'!$B:$B,$A194,'Terv-segédlet'!E:E) -> 0 | V194: =SUMIF('Terv-segédlet'!$B:$B,$A194,'Terv-segédlet'!F:F) -> 0 | W194: =SUMIF('Terv-segédlet'!$B:$B,$A194,'Terv-segédlet'!G:G) -> 0 | X194: =SUMIF('Terv-segédlet'!$B:$B,$A194,'Terv-segédlet'!H:H) -> 0 | Y194: =SUMIF('Terv-segédlet'!$B:$B,$A194,'Terv-segédlet'!I:I) -> 0 | Z194: =SUMIF('Terv-segédlet'!$B:$B,$A194,'Terv-segédlet'!J:J) -> 0 | AA194: =SUMIF('Terv-segédlet'!$B:$B,$A194,'Terv-segédlet'!K:K) -> 0 | AB194: =SUM(AC194:AI194) -> 0 | AC194: =SUMIF(V!$A:$A,$A194,V!$L:$L)+SUMIF(bank!$A:$A,AC$9&$A194,bank!$N:$N) -> 0 | AD194: =SUMIF(Gy!$A:$A,$A194,Gy!$L:$L)+SUMIF(bank!$A:$A,AD$9&$A194,bank!$N:$N) -> 0 | AE194: =SUMIF(K!$A:$A,$A194,K!$L:$L)+SUMIF(bank!$A:$A,AE$9&$A194,bank!$N:$N) -> 0 | AF194: =SUMIF(Mk!$A:$A,$A194,Mk!$L:$L)+SUMIF(bank!$A:$A,AF$9&$A194,bank!$N:$N) -> 0 | AG194: =SUMIF(M!$A:$A,$A194,M!$L:$L)+SUMIF(bank!$A:$A,AG$9&$A194,bank!$N:$N) -> 0 | AH194: =SUMIF(P!$A:$A,$A194,P!$L:$L)+SUMIF(bank!$A:$A,AH$9&$A194,bank!$N:$N) -> 0 | AI194: =SUMIF(Zs!$A:$A,$A194,Zs!$L:$L)+SUMIF(bank!$A:$A,AI$9&$A194,bank!$N:$N) -> 0 | AJ194: * | AK194: k | AM194: éven túl befektetett pénzügyi ezsközök árfolyamvesztesége
A195: k186 | B195: 186 | E195: Fizetendő kamatok és kamatjellegű ráfordítások | T195: 0 | U195: =SUMIF('Terv-segédlet'!$B:$B,$A195,'Terv-segédlet'!E:E) -> 0 | V195: =SUMIF('Terv-segédlet'!$B:$B,$A195,'Terv-segédlet'!F:F) -> 0 | W195: =SUMIF('Terv-segédlet'!$B:$B,$A195,'Terv-segédlet'!G:G) -> 0 | X195: =SUMIF('Terv-segédlet'!$B:$B,$A195,'Terv-segédlet'!H:H) -> 0 | Y195: =SUMIF('Terv-segédlet'!$B:$B,$A195,'Terv-segédlet'!I:I) -> 0 | Z195: =SUMIF('Terv-segédlet'!$B:$B,$A195,'Terv-segédlet'!J:J) -> 0 | AA195: =SUMIF('Terv-segédlet'!$B:$B,$A195,'Terv-segédlet'!K:K) -> 0 | AB195: 0 | AC195: =SUMIF(V!$A:$A,$A195,V!$L:$L)+SUMIF(bank!$A:$A,AC$9&$A195,bank!$N:$N) -> 0 | AD195: =SUMIF(Gy!$A:$A,$A195,Gy!$L:$L)+SUMIF(bank!$A:$A,AD$9&$A195,bank!$N:$N) -> 0 | AE195: =SUMIF(K!$A:$A,$A195,K!$L:$L)+SUMIF(bank!$A:$A,AE$9&$A195,bank!$N:$N) -> 0 | AF195: =SUMIF(Mk!$A:$A,$A195,Mk!$L:$L)+SUMIF(bank!$A:$A,AF$9&$A195,bank!$N:$N) -> 0 | AG195: =SUMIF(M!$A:$A,$A195,M!$L:$L)+SUMIF(bank!$A:$A,AG$9&$A195,bank!$N:$N) -> 0 | AH195: =SUMIF(P!$A:$A,$A195,P!$L:$L)+SUMIF(bank!$A:$A,AH$9&$A195,bank!$N:$N) -> 0 | AI195: =SUMIF(Zs!$A:$A,$A195,Zs!$L:$L)+SUMIF(bank!$A:$A,AI$9&$A195,bank!$N:$N) -> 0 | AJ195: * | AK195: k | AM195: hitel, kölcsön, egyéb idegen forrás után fizetett kamatok
A196: k187 | B196: 187 | E196: Pénzügyi műveletek egyéb ráfordítása | T196: 0 | U196: =SUMIF('Terv-segédlet'!$B:$B,$A196,'Terv-segédlet'!E:E) -> 0 | V196: =SUMIF('Terv-segédlet'!$B:$B,$A196,'Terv-segédlet'!F:F) -> 0 | W196: =SUMIF('Terv-segédlet'!$B:$B,$A196,'Terv-segédlet'!G:G) -> 0 | X196: =SUMIF('Terv-segédlet'!$B:$B,$A196,'Terv-segédlet'!H:H) -> 0 | Y196: =SUMIF('Terv-segédlet'!$B:$B,$A196,'Terv-segédlet'!I:I) -> 0 | Z196: =SUMIF('Terv-segédlet'!$B:$B,$A196,'Terv-segédlet'!J:J) -> 0 | AA196: =SUMIF('Terv-segédlet'!$B:$B,$A196,'Terv-segédlet'!K:K) -> 0 | AB196: 0 | AC196: =SUMIF(V!$A:$A,$A196,V!$L:$L)+SUMIF(bank!$A:$A,AC$9&$A196,bank!$N:$N) -> 0 | AD196: =SUMIF(Gy!$A:$A,$A196,Gy!$L:$L)+SUMIF(bank!$A:$A,AD$9&$A196,bank!$N:$N) -> 0 | AE196: =SUMIF(K!$A:$A,$A196,K!$L:$L)+SUMIF(bank!$A:$A,AE$9&$A196,bank!$N:$N) -> 0 | AF196: =SUMIF(Mk!$A:$A,$A196,Mk!$L:$L)+SUMIF(bank!$A:$A,AF$9&$A196,bank!$N:$N) -> 0 | AG196: =SUMIF(M!$A:$A,$A196,M!$L:$L)+SUMIF(bank!$A:$A,AG$9&$A196,bank!$N:$N) -> 0 | AH196: =SUMIF(P!$A:$A,$A196,P!$L:$L)+SUMIF(bank!$A:$A,AH$9&$A196,bank!$N:$N) -> 0 | AI196: =SUMIF(Zs!$A:$A,$A196,Zs!$L:$L)+SUMIF(bank!$A:$A,AI$9&$A196,bank!$N:$N) -> 0 | AJ196: * | AK196: k | AM196: árfolyamdifferencia
A197: k188 | B197: 188 | D197: IV. Ráfordítást jelentő eszközváltozások (189..191) | T197: =SUM(T198:T200) -> 0 | U197: =SUM(U198:U200) -> 0 | V197: =SUM(V198:V200) -> 0 | W197: =SUM(W198:W200) -> 0 | X197: =SUM(X198:X200) -> 0 | Y197: =SUM(Y198:Y200) -> 0 | Z197: =SUM(Z198:Z200) -> 0 | AA197: =SUM(AA198:AA200) -> 0 | AB197: =SUM(AB198:AB200) -> 0 | AC197: =SUM(AC198:AC200) -> 0 | AD197: =SUM(AD198:AD200) -> 0 | AE197: 0 | AF197: 0 | AG197: 0 | AH197: 0 | AI197: 0 | AK197: k
A198: k189 | B198: 189 | D198: Nem pénzben kiegyenlített, nem beruházási célú beszerzések | T198: =SUM(U198:AA198) -> 0 | U198: =SUMIF('Terv-segédlet'!$B:$B,$A198,'Terv-segédlet'!E:E) -> 0 | V198: =SUMIF('Terv-segédlet'!$B:$B,$A198,'Terv-segédlet'!F:F) -> 0 | W198: =SUMIF('Terv-segédlet'!$B:$B,$A198,'Terv-segédlet'!G:G) -> 0 | X198: =SUMIF('Terv-segédlet'!$B:$B,$A198,'Terv-segédlet'!H:H) -> 0 | Y198: =SUMIF('Terv-segédlet'!$B:$B,$A198,'Terv-segédlet'!I:I) -> 0 | Z198: =SUMIF('Terv-segédlet'!$B:$B,$A198,'Terv-segédlet'!J:J) -> 0 | AA198: =SUMIF('Terv-segédlet'!$B:$B,$A198,'Terv-segédlet'!K:K) -> 0 | AB198: =SUM(AC198:AI198) -> 0 | AC198: =SUMIF(V!$A:$A,$A198,V!$L:$L)+SUMIF(bank!$A:$A,AC$9&$A198,bank!$N:$N) -> 0 | AD198: =SUMIF(Gy!$A:$A,$A198,Gy!$L:$L)+SUMIF(bank!$A:$A,AD$9&$A198,bank!$N:$N) -> 0 | AE198: =SUMIF(K!$A:$A,$A198,K!$L:$L)+SUMIF(bank!$A:$A,AE$9&$A198,bank!$N:$N) -> 0 | AF198: =SUMIF(Mk!$A:$A,$A198,Mk!$L:$L)+SUMIF(bank!$A:$A,AF$9&$A198,bank!$N:$N) -> 0 | AG198: =SUMIF(M!$A:$A,$A198,M!$L:$L)+SUMIF(bank!$A:$A,AG$9&$A198,bank!$N:$N) -> 0 | AH198: =SUMIF(P!$A:$A,$A198,P!$L:$L)+SUMIF(bank!$A:$A,AH$9&$A198,bank!$N:$N) -> 0 | AI198: =SUMIF(Zs!$A:$A,$A198,Zs!$L:$L)+SUMIF(bank!$A:$A,AI$9&$A198,bank!$N:$N) -> 0 | AJ198: * | AK198: k | AM198: eszközcsere
A199: k190 | B199: 190 | D199: Természetben adott juttatások | T199: 0 | U199: =SUMIF('Terv-segédlet'!$B:$B,$A199,'Terv-segédlet'!E:E) -> 0 | V199: =SUMIF('Terv-segédlet'!$B:$B,$A199,'Terv-segédlet'!F:F) -> 0 | W199: =SUMIF('Terv-segédlet'!$B:$B,$A199,'Terv-segédlet'!G:G) -> 0 | X199: =SUMIF('Terv-segédlet'!$B:$B,$A199,'Terv-segédlet'!H:H) -> 0 | Y199: =SUMIF('Terv-segédlet'!$B:$B,$A199,'Terv-segédlet'!I:I) -> 0 | Z199: =SUMIF('Terv-segédlet'!$B:$B,$A199,'Terv-segédlet'!J:J) -> 0 | AA199: =SUMIF('Terv-segédlet'!$B:$B,$A199,'Terv-segédlet'!K:K) -> 0 | AB199: 0 | AC199: =SUMIF(V!$A:$A,$A199,V!$L:$L)+SUMIF(bank!$A:$A,AC$9&$A199,bank!$N:$N) -> 0 | AD199: =SUMIF(Gy!$A:$A,$A199,Gy!$L:$L)+SUMIF(bank!$A:$A,AD$9&$A199,bank!$N:$N) -> 0 | AE199: =SUMIF(K!$A:$A,$A199,K!$L:$L)+SUMIF(bank!$A:$A,AE$9&$A199,bank!$N:$N) -> 0 | AF199: =SUMIF(Mk!$A:$A,$A199,Mk!$L:$L)+SUMIF(bank!$A:$A,AF$9&$A199,bank!$N:$N) -> 0 | AG199: =SUMIF(M!$A:$A,$A199,M!$L:$L)+SUMIF(bank!$A:$A,AG$9&$A199,bank!$N:$N) -> 0 | AH199: =SUMIF(P!$A:$A,$A199,P!$L:$L)+SUMIF(bank!$A:$A,AH$9&$A199,bank!$N:$N) -> 0 | AI199: =SUMIF(Zs!$A:$A,$A199,Zs!$L:$L)+SUMIF(bank!$A:$A,AI$9&$A199,bank!$N:$N) -> 0 | AJ199: * | AK199: k | AM199: pl. saját termelésű készletből adott ajándék
A200: k191 | B200: 191 | D200: Nem pénzben kiegyenlített ráfordítások | T200: 0 | U200: =SUMIF('Terv-segédlet'!$B:$B,$A200,'Terv-segédlet'!E:E) -> 0 | V200: =SUMIF('Terv-segédlet'!$B:$B,$A200,'Terv-segédlet'!F:F) -> 0 | W200: =SUMIF('Terv-segédlet'!$B:$B,$A200,'Terv-segédlet'!G:G) -> 0 | X200: =SUMIF('Terv-segédlet'!$B:$B,$A200,'Terv-segédlet'!H:H) -> 0 | Y200: =SUMIF('Terv-segédlet'!$B:$B,$A200,'Terv-segédlet'!I:I) -> 0 | Z200: =SUMIF('Terv-segédlet'!$B:$B,$A200,'Terv-segédlet'!J:J) -> 0 | AA200: =SUMIF('Terv-segédlet'!$B:$B,$A200,'Terv-segédlet'!K:K) -> 0 | AB200: 0 | AC200: =SUMIF(V!$A:$A,$A200,V!$L:$L)+SUMIF(bank!$A:$A,AC$9&$A200,bank!$N:$N) -> 0 | AD200: =SUMIF(Gy!$A:$A,$A200,Gy!$L:$L)+SUMIF(bank!$A:$A,AD$9&$A200,bank!$N:$N) -> 0 | AE200: =SUMIF(K!$A:$A,$A200,K!$L:$L)+SUMIF(bank!$A:$A,AE$9&$A200,bank!$N:$N) -> 0 | AF200: =SUMIF(Mk!$A:$A,$A200,Mk!$L:$L)+SUMIF(bank!$A:$A,AF$9&$A200,bank!$N:$N) -> 0 | AG200: =SUMIF(M!$A:$A,$A200,M!$L:$L)+SUMIF(bank!$A:$A,AG$9&$A200,bank!$N:$N) -> 0 | AH200: =SUMIF(P!$A:$A,$A200,P!$L:$L)+SUMIF(bank!$A:$A,AH$9&$A200,bank!$N:$N) -> 0 | AI200: =SUMIF(Zs!$A:$A,$A200,Zs!$L:$L)+SUMIF(bank!$A:$A,AI$9&$A200,bank!$N:$N) -> 0 | AJ200: * | AK200: k | AM200: kompenzálással, beszámítással rendezett kiadások, eladott eszközök könyv szerinti értéke
A201: k192 | B201: 192 | D201: ebből fenntartói nyugdíjjárulék - támogatással fedezett | T201: 0 | U201: =SUMIF('Terv-segédlet'!$B:$B,$A201,'Terv-segédlet'!E:E) -> 0 | V201: =SUMIF('Terv-segédlet'!$B:$B,$A201,'Terv-segédlet'!F:F) -> 0 | W201: =SUMIF('Terv-segédlet'!$B:$B,$A201,'Terv-segédlet'!G:G) -> 0 | X201: =SUMIF('Terv-segédlet'!$B:$B,$A201,'Terv-segédlet'!H:H) -> 0 | Y201: =SUMIF('Terv-segédlet'!$B:$B,$A201,'Terv-segédlet'!I:I) -> 0 | Z201: =SUMIF('Terv-segédlet'!$B:$B,$A201,'Terv-segédlet'!J:J) -> 0 | AA201: =SUMIF('Terv-segédlet'!$B:$B,$A201,'Terv-segédlet'!K:K) -> 0 | AB201: 0 | AC201: =SUMIF(V!$A:$A,$A201,V!$L:$L)+SUMIF(bank!$A:$A,AC$9&$A201,bank!$N:$N) -> 0 | AD201: =SUMIF(Gy!$A:$A,$A201,Gy!$L:$L)+SUMIF(bank!$A:$A,AD$9&$A201,bank!$N:$N) -> 0 | AE201: =SUMIF(K!$A:$A,$A201,K!$L:$L)+SUMIF(bank!$A:$A,AE$9&$A201,bank!$N:$N) -> 0 | AF201: =SUMIF(Mk!$A:$A,$A201,Mk!$L:$L)+SUMIF(bank!$A:$A,AF$9&$A201,bank!$N:$N) -> 0 | AG201: =SUMIF(M!$A:$A,$A201,M!$L:$L)+SUMIF(bank!$A:$A,AG$9&$A201,bank!$N:$N) -> 0 | AH201: =SUMIF(P!$A:$A,$A201,P!$L:$L)+SUMIF(bank!$A:$A,AH$9&$A201,bank!$N:$N) -> 0 | AI201: =SUMIF(Zs!$A:$A,$A201,Zs!$L:$L)+SUMIF(bank!$A:$A,AI$9&$A201,bank!$N:$N) -> 0 | AJ201: * | AK201: k | AM201: támogatásból fedezett, be nem fizetett fenntartók járulék
A202: k193 | B202: =+B201+1 -> 193 | D202: ebből előfinanszírozott GAW támogatás | T202: 0 | U202: =SUMIF('Terv-segédlet'!$B:$B,$A202,'Terv-segédlet'!E:E) -> 0 | V202: =SUMIF('Terv-segédlet'!$B:$B,$A202,'Terv-segédlet'!F:F) -> 0 | W202: =SUMIF('Terv-segédlet'!$B:$B,$A202,'Terv-segédlet'!G:G) -> 0 | X202: =SUMIF('Terv-segédlet'!$B:$B,$A202,'Terv-segédlet'!H:H) -> 0 | Y202: =SUMIF('Terv-segédlet'!$B:$B,$A202,'Terv-segédlet'!I:I) -> 0 | Z202: =SUMIF('Terv-segédlet'!$B:$B,$A202,'Terv-segédlet'!J:J) -> 0 | AA202: =SUMIF('Terv-segédlet'!$B:$B,$A202,'Terv-segédlet'!K:K) -> 0 | AB202: 0 | AC202: =SUMIF(V!$A:$A,$A202,V!$L:$L)+SUMIF(bank!$A:$A,AC$9&$A202,bank!$N:$N) -> 0 | AD202: =SUMIF(Gy!$A:$A,$A202,Gy!$L:$L)+SUMIF(bank!$A:$A,AD$9&$A202,bank!$N:$N) -> 0 | AE202: =SUMIF(K!$A:$A,$A202,K!$L:$L)+SUMIF(bank!$A:$A,AE$9&$A202,bank!$N:$N) -> 0 | AF202: =SUMIF(Mk!$A:$A,$A202,Mk!$L:$L)+SUMIF(bank!$A:$A,AF$9&$A202,bank!$N:$N) -> 0 | AG202: =SUMIF(M!$A:$A,$A202,M!$L:$L)+SUMIF(bank!$A:$A,AG$9&$A202,bank!$N:$N) -> 0 | AH202: =SUMIF(P!$A:$A,$A202,P!$L:$L)+SUMIF(bank!$A:$A,AH$9&$A202,bank!$N:$N) -> 0 | AI202: =SUMIF(Zs!$A:$A,$A202,Zs!$L:$L)+SUMIF(bank!$A:$A,AI$9&$A202,bank!$N:$N) -> 0 | AJ202: * | AK202: k | AM202: előfinanszírozás kiegyenlített része GAW támogatásból
A203: k194 | B203: 194 | D203: V. Ráfordítást jelentő elszámolások (195+202) | T203: =T204+T211 -> 0 | U203: =U204+U211 -> 0 | V203: 0 | W203: 0 | X203: 0 | Y203: 0 | Z203: 0 | AA203: 0 | AB203: =AB204+AB211 -> 0 | AC203: 0 | AD203: =AD204+AD211 -> 0 | AE203: 0 | AF203: 0 | AG203: 0 | AH203: 0 | AI203: 0 | AK203: k | AM203: eladott tárgyi eszközök könyv szerinti értéke
A204: k195 | B204: 195 | D204: Értékcsökkenési leírás, terven felüli értékcsökkenés ( 196+199) | T204: =SUM(T205,T208) -> 0 | U204: =SUM(U205,U208) -> 0 | V204: =SUM(V205,V208) -> 0 | W204: =SUM(W205,W208) -> 0 | X204: =SUM(X205,X208) -> 0 | Y204: =SUM(Y205,Y208) -> 0 | Z204: =SUM(Z205,Z208) -> 0 | AA204: =SUM(AA205,AA208) -> 0 | AB204: =SUM(AB205,AB208) -> 0 | AC204: =SUM(AC205,AC208) -> 0 | AD204: =SUM(AD205,AD208) -> 0 | AE204: 0 | AF204: 0 | AG204: 0 | AH204: 0 | AI204: 0 | AK204: k
A205: k196 | B205: 196 | E205: Immateriális javak terv szerinti és terven felüli értékcsökkenése (197..198) | T205: =SUM(T206:T207) -> 0 | U205: =SUM(U206:U207) -> 0 | V205: =SUM(V206:V207) -> 0 | W205: =SUM(W206:W207) -> 0 | X205: =SUM(X206:X207) -> 0 | Y205: =SUM(Y206:Y207) -> 0 | Z205: =SUM(Z206:Z207) -> 0 | AA205: =SUM(AA206:AA207) -> 0 | AB205: =SUM(AB206:AB207) -> 0 | AC205: =SUM(AC206:AC207) -> 0 | AD205: =SUM(AD206:AD207) -> 0 | AE205: 0 | AF205: 0 | AG205: 0 | AH205: 0 | AI205: 0 | AK205: k
... 97 more rows

Sheet V
F1: Készpénz: | G1: =mérleg1!D13 -> 209597 | H1: VADOSFA | K1: pénztár
E3: sor-szám | F3: dátum | G3: biz.sorszám | H3: megnevezés | I3: egyéb megjegyzés | J3: további megjegyzések | K3: bevétel | L3: kiadás

Sheet Gy
F1: Készpénz: | G1: =mérleg1!E13 -> 44592 | H1: Gyóró | K1: pénztár
E3: sor-szám | F3: dátum | G3: biz.sorszám | H3: megnevezés | I3: egyéb megjegyzés | J3: további megjegyzések | K3: bevétel | L3: kiadás

Sheet K
F1: Készpénz: | G1: =mérleg1!F13 -> 44554 | H1: Kisfalud | K1: pénztár
E3: sor-szám | F3: dátum | G3: biz.sorszám | H3: megnevezés | I3: egyéb megjegyzés | J3: további megjegyzések | K3: bevétel | L3: kiadás

Sheet Mk
F1: Készpénz: | G1: =mérleg1!G13 -> 48825 | H1: Magyarkeresztúr | K1: pénztár
E3: sor-szám | F3: dátum | G3: biz.sorszám | H3: megnevezés | I3: egyéb megjegyzés | J3: további megjegyzések | K3: bevétel | L3: kiadás
E4: 1 | F4: 2016-01-04 | G4: PA3902957 | H4: Vízdíj lakásban | L4: 1845
A5: k004 | C5: k004 | D5: INGATLAN BÉRBEADÁS ÁRBEVÉTELE / részleges ingatlan bérbeadás (lakás, egyéb ingatlan, földterület, stb.) (nem vállalkozási tevékenység) | E5: 2 | F5: 2016-01-09 | G5: BG455638 | H5: lakbér | K5: 20000
A6: k054 | C6: k054 | D6: DC) TOVÁBBÍTANDÓ EGYÉB TÁMOGATÁSOKDC) TOVÁBBÍTANDÓ EGYÉB TÁMOGATÁSOK, BEVÉTELEKDC) TOVÁBBÍTANDÓ EGYÉB TÁMOGATÁSOK, BEVÉTELEK / kötelező offertórium, Gusztáv Adolf segély, szupplikáció, továbbítandó egyéb adományok | E6: 3 | F6: 2016-01-10 | G6: BG455639 | H6: templomépítési offertórium | K6: 11200
E7: 4 | F7: 2016-02-08 | G7: PA3902958 | H7: vízdíj lakásban | L7: 1845

Sheet M
F1: Készpénz: | G1: =mérleg1!H13 -> 279585 | H1: Mihályi | K1: pénztár
E3: sor-szám | F3: dátum | G3: biz.sorszám | H3: megnevezés | I3: egyéb megjegyzés | J3: további megjegyzések | K3: bevétel | L3: kiadás
A4: k073 | B4: M | C4: k073 | D4: MÁS GYÜLEKEZETI HELYISÉGGYÓGYSZEREK KÖLTSÉGE / egyéb gyülekezeti ingatlan gáz és egyéb fűtőanyag költsége (tepmlom, gyülkezeti terem, üzlethelység, stb.) | E4: 1. | F4: 2016-01-04 | G4: PA 3307558 | H4: Gázdíj | L4: 12178 | T4: 4
A5: k166 | B5: M | C5: k166 | D5: MÁS KÜLÖNFÉLE EGYÉB RÁFORDÍTÁSOK / pl. kerekítés | E5: 2. | F5: 2016-01-04 | G5: PA 3307558 | H5: Kerekítés | L5: 2 | T5: 5
A6: k054 | B6: M | C6: k054 | D6: DC) TOVÁBBÍTANDÓ EGYÉB TÁMOGATÁSOKDC) TOVÁBBÍTANDÓ EGYÉB TÁMOGATÁSOK, BEVÉTELEKDC) TOVÁBBÍTANDÓ EGYÉB TÁMOGATÁSOK, BEVÉTELEK / kötelező offertórium, Gusztáv Adolf segély, szupplikáció, továbbítandó egyéb adományok | E6: 3. | F6: 2016-01-10 | G6: BG 455961 | H6: Templomépítési offertórium | K6: 10610 | T6: 6
A7: k004 | B7: M | C7: k004 | D7: INGATLAN BÉRBEADÁS ÁRBEVÉTELE / részleges ingatlan bérbeadás (lakás, egyéb ingatlan, földterület, stb.) (nem vállalkozási tevékenység) | E7: 4. | F7: 2016-01-25 | G7: BG 455962 | H7: Lakbér 2016.febr.hó | K7: 40000 | T7: 7
A8: k073 | B8: M | C8: k073 | D8: MÁS GYÜLEKEZETI HELYISÉGGYÓGYSZEREK KÖLTSÉGE / egyéb gyülekezeti ingatlan gáz és egyéb fűtőanyag költsége (tepmlom, gyülkezeti terem, üzlethelység, stb.) | E8: 5. | F8: 2016-02-02 | G8: PA 3307559 | H8: Gázdíj | L8: 12177 | T8: 8
A9: k166 | B9: M | C9: k166 | D9: MÁS KÜLÖNFÉLE EGYÉB RÁFORDÍTÁSOK / pl. kerekítés | E9: 6. | F9: 2016-02-02 | G9: PA 3307559 | H9: Kerekítés | L9: -2 | T9: 9

Sheet P
F1: Készpénz: | G1: =mérleg1!I13 -> 34415 | H1: Potyond | K1: pénztár
E3: sor-szám | F3: dátum | G3: biz.sorszám | H3: megnevezés | I3: egyéb megjegyzés | J3: további megjegyzések | K3: bevétel | L3: kiadás

Sheet Zs
F1: Készpénz: | G1: =mérleg1!J13 -> 175075 | H1: Zsebeháza | K1: pénztár
E3: sor-szám | F3: dátum | G3: biz.sorszám | H3: megnevezés | I3: egyéb megjegyzés | J3: további megjegyzések | K3: bevétel | L3: kiadás

Sheet bank
H1: BANK | I1: ='Terv-segédlet'!A1 -> 2016 | K1: pénztár
E3: sor-szám | F3: dátum | G3: Tak.Szöv. | H3: megnevezés | I3: számla/betét száma | J3: megjegyzések | K3: bevétel | L3: kiadás | M3: bevétel | N3: kiadás | O3: 11 | P3: 12 | Q3: Tranzakció típusa | R3: Átutaló neve / számlaszáma | S3: Kedvezményezett neve / számlaszáma
A4: Vp016 | B4: V | C4: p016 | D4: - LELKÉSZI NYUGDÍJJÁRULÉK / Zelenka Pál Szolidaritási Alapnak átutalt, lelkésztől levont nyugdíjjárulék összege | E4: 1 | F4: 2016-01-04 | G4: Rajkai Tak.Szöv. | H4: . | I4: F/V59500186-11094690 | J4: 16/01/01-i Nyugdíj jár.. Mihácsi Lajos nyugdíjjár. | N4: 19683 | O4: 11 5950018611094690 HUFEgyéb szerv. pénzfor59500186 Csornai kirendeltsé2016010420160104 298748600 283710500Vadosfai Evangélikus Egyházk. Kossuth utca 13 9346 Vadosfa | P4: 120131 FYXR-9328 -000000001968300HUF Vadosfai Evangélikus Egyházk. 595001861109469000000000 16/01/01-i Nyugdíj jár.. Mihácsi Lajos nyugdíjjár. evangélikus nyugdíjosztály 117070242050080100000000 NOTPRO 117070242050080100000000 595001861109469000000000 00000000196830020160104 | Q4: IG2 átutalási megbízás (rendszeres) | R4: Vadosfai Evangélikus Egyházk. / 595001861109469000000000 | S4: evangélikus nyugdíjosztály / 117070242050080100000000 | T4: 4
A5: Vk159 | B5: V | C5: k159 | D5: -FENNTARTÓI NYUGDÍJJÁRULÉK (ZELENKA PÁL SZA) / Zelenka P. alapba megfizetett fenntartói járulék (gyülekezetet terhelő) összege | E5: 2 | F5: 2016-01-04 | G5: Rajkai Tak.Szöv. | H5: . | I5: F/V59500186-11094690 | J5: 16/01/01-i Fenntartói Szol.Alap. Fenntartói Szol. Alap VADOSFA | N5: 19158 | O5: 11 5950018611094690 HUFEgyéb szerv. pénzfor59500186 Csornai kirendeltsé2016010420160104 298748600 283710500Vadosfai Evangélikus Egyházk. Kossuth utca 13 9346 Vadosfa | P5: 120131 FYXR-9329 -000000001915800HUF Vadosfai Evangélikus Egyházk. 595001861109469000000000 16/01/01-i Fenntartói Szol.Alap. Fenntartói Szol. Alap VADOSFA Magyar Evangélikus Egyház 117070242050080100000000 NOTPRO 117070242050080100000000 595001861109469000000000 00000000191580020160104 | Q5: IG2 átutalási megbízás (rendszeres) | R5: Vadosfai Evangélikus Egyházk. / 595001861109469000000000 | S5: Magyar Evangélikus Egyház / 117070242050080100000000 | T5: 5
A6: Vk133 | B6: V | C6: k133 | D6: - LELKÉSZEK ILLETMÉNYE EGYHÁZI SZOLGÁLATÉRT / lelkészi illetmény | E6: 3 | F6: 2016-01-04 | G6: Rajkai Tak.Szöv. | H6: . | I6: F/V59500186-11094690 | J6: 16/01/01-i Mihácsi Lajos. lelkészi illetmény | N6: 111540 | O6: 11 5950018611094690 HUFEgyéb szerv. pénzfor59500186 Csornai kirendeltsé2016010420160104 298748600 283710500Vadosfai Evangélikus Egyházk. Kossuth utca 13 9346 Vadosfa | P6: 120131 FYXR-9330 -000000011154000HUF Vadosfai Evangélikus Egyházk. 595001861109469000000000 16/01/01-i Mihácsi Lajos. lelkészi illetmény Mihácsi Lajos 120940020100456300100008 NOTPRO 120940020100456300100008 595001861109469000000000 00000001115400020160104 | Q6: IG2 átutalási megbízás (rendszeres) | R6: Vadosfai Evangélikus Egyházk. / 595001861109469000000000 | S6: Mihácsi Lajos / 120940020100456300100008 | T6: 6
A7: Vk133 | B7: V | C7: k133 | D7: - LELKÉSZEK ILLETMÉNYE EGYHÁZI SZOLGÁLATÉRT / lelkészi illetmény | F7: 2016-01-04 | G7: Rajkai Tak.Szöv. | H7: . | I7: F/V59500186-11094690 | J7: Mihácsi Lajos. lelkészi illetmény - ny.jár. átvez. | N7: 19683 | T7: 7
A8: Vp004 | B8: V | C8: p004 | D8: - LELKÉSZI NYUGDÍJJÁRULÉK / lelkész által befizetett (bevételezett) lelkészi nyugdíjjárulék összege | F8: 2016-01-04 | G8: Rajkai Tak.Szöv. | H8: . | I8: F/V59500186-11094690 | J8: Mihácsi Lajos. lelkészi illetmény - ny.jár. átvez. | M8: 19683 | T8: 8
A9: Vk071 | B9: V | C9: k071 | D9: LELKÉSZLAKÁSÉLELMISZEREK KÖLTSÉGE / lelkészlakás gáz és egyéb fűtőanyag költsége | E9: 4 | F9: 2016-01-05 | G9: Rajkai Tak.Szöv. | H9: . | I9: F/V59500186-11094690 | J9: A13799047 201512280001012879 UGYFELKOD=110730068 | N9: 12417 | O9: 11 5950018611094690 HUFEgyéb szerv. pénzfor59500186 Csornai kirendeltsé2016010520160105 283710500 282468800Vadosfai Evangélikus Egyházk. Kossuth utca 13 9346 Vadosfa | P9: 120118 FYXV-1500 -000000001241700HUF 5950018611094690 A13799047 201512280001012879 UGYFELKOD=110730068 GDF SUEZ ENERGIA MAGYARORSZÁG ZR 1173500520451879 0 1173500520451879 5950018611094690 00000000124170020160105 | Q9: Csoportos beszedési megbízás | R9: / 5950018611094690 | S9: GDF SUEZ ENERGIA MAGYARORSZÁG ZR / 1173500520451879 | T9: 9
A10: Mkk183 | B10: Mk | C10: k183 | D10: CB) TOVÁBBÍTANDÓ EGYÉB TÁMOGATÁSOK, BEVÉTELEK ÁTADÁSAKÖZOKTATÁSI NORMATÍV TÁMOGATÁS VISSZATÉRÍTÉSE / kötelező offertórium, Gusztáv Adolf segély, szupplikáció, továbbítandó egyéb adományok | E10: 5 | F10: 2016-01-11 | G10: Rajkai Tak.Szöv. | H10: . | I10: F/Mk59500186-11095952 | J10: építési offertórium Vadosfa/M+úr | N10: 11200 | O10: 11 5950018611095952 HUFEgyéb szerv. pénzfor59500186 Csornai kirendeltsé2016011120160111 17326600 16206600Vadosfai Evangélikus Egyházk. Kossuth utca 13 9346 Vadosfa | P10: 120125 FYXY-4942 -000000001120000HUF Vadosfai Evangélikus Egyházk. 595001861109595200000000 építési offertórium Vadosfa/M+úr Soproni Evangélikus Egyházmegye 117370832011710800000000 NOTPRO 117370832011710800000000 595001861109595200000000 00000000112000020160111 | Q10: IG2 átutalási megbízás (EB - vállalk.) | R10: Vadosfai Evangélikus Egyházk. / 595001861109595200000000 | S10: Soproni Evangélikus Egyházmegye / 117370832011710800000000 | T10: 10
A11: Kk183 | B11: K | C11: k183 | D11: CB) TOVÁBBÍTANDÓ EGYÉB TÁMOGATÁSOK, BEVÉTELEK ÁTADÁSAKÖZOKTATÁSI NORMATÍV TÁMOGATÁS VISSZATÉRÍTÉSE / kötelező offertórium, Gusztáv Adolf segély, szupplikáció, továbbítandó egyéb adományok | E11: 6 | F11: 2016-01-11 | G11: Rajkai Tak.Szöv. | H11: . | I11: F/K59500186-11096582 | J11: Vadosfa/Kisfalud templomépítési off. | N11: 5100 | O11: 11 5950018611096582 HUFEgyéb szerv. pénzfor59500186 Csornai kirendeltsé2016011120160111 13451700 12941700Vadosfai Evangélikus Egyházk. Kossuth utca 13 9346 Vadosfa | P11: 120125 FYXY-4988 -000000000510000HUF Vadosfai Evangélikus Egyházk. 595001861109658200000000 Vadosfa/Kisfalud templomépítési off. Soproni Evangélikus Egyházmegye 117370832011710800000000 NOTPRO 117370832011710800000000 595001861109658200000000 00000000051000020160111 | Q11: IG2 átutalási megbízás (EB - vállalk.) | R11: Vadosfai Evangélikus Egyházk. / 595001861109658200000000 | S11: Soproni Evangélikus Egyházmegye / 117370832011710800000000 | T11: 11
A12: Zsk183 | B12: Zs | C12: k183 | D12: CB) TOVÁBBÍTANDÓ EGYÉB TÁMOGATÁSOK, BEVÉTELEK ÁTADÁSAKÖZOKTATÁSI NORMATÍV TÁMOGATÁS VISSZATÉRÍTÉSE / kötelező offertórium, Gusztáv Adolf segély, szupplikáció, továbbítandó egyéb adományok | E12: 7 | F12: 2016-01-11 | G12: Rajkai Tak.Szöv. | H12: . | I12: F/Zs59500186-11096599 | J12: Vadosfa/Zsebeháza templomépítési offertórium | N12: 2400 | O12: 11 5950018611096599 HUFEgyéb szerv. pénzfor59500186 Csornai kirendeltsé2016011120160111 18855700 18615700Vadosfai Evangélikus Egyházk. Kossuth utca 13 9346 Vadosfa | P12: 120125 FYXY-4989 -000000000240000HUF Vadosfai Evangélikus Egyházk. 595001861109659900000000 Vadosfa/Zsebeháza templomépítési offertórium Soproni Evangélikus Egyházmegye 117370832011710800000000 NOTPRO 117370832011710800000000 595001861109659900000000 00000000024000020160111 | Q12: IG2 átutalási megbízás (EB - vállalk.) | R12: Vadosfai Evangélikus Egyházk. / 595001861109659900000000 | S12: Soproni Evangélikus Egyházmegye / 117370832011710800000000 | T12: 12
A13: Mk049 | B13: M | C13: k049 | D13: -EGYHÁZFENNTARTÓI JÁRULÉK-EGYHÁZFENNTARTÓI JÁRULÉK-EGYHÁZFENNTARTÓI JÁRULÉK / magánszemélyek által ezen a címen teljesítet befizetés | E13: 8 | F13: 2016-01-12 | G13: Rajkai Tak.Szöv. | H13: . | I13: F/M59500186-11095608 | J13: Egyházfenntartási hozzá- járulás | M13: 18000 | O13: 11 5950018611095608 HUFEgyéb szerv. pénzfor59500186 Csornai kirendeltsé2016011220160112 35815700 36554700Vadosfai Evangélikus Egyházk. Kossuth utca 13 9346 Vadosfa | P13: 121174 FYYA-5639 000000001800000HUF Bálint Kálmán 5950022715282358 Egyházfenntartási hozzá- járulás 5950018611095608 5950018611095608 000000001800000201601125950022715282358 | Q13: Átvezetés ügyfelek pforg.szlai között | R13: Bálint Kálmán / 5950022715282358 | S13: / 5950018611095608 | T13: 13
A14: Mk183 | B14: M | C14: k183 | D14: CB) TOVÁBBÍTANDÓ EGYÉB TÁMOGATÁSOK, BEVÉTELEK ÁTADÁSAKÖZOKTATÁSI NORMATÍV TÁMOGATÁS VISSZATÉRÍTÉSE / kötelező offertórium, Gusztáv Adolf segély, szupplikáció, továbbítandó egyéb adományok | E14: 9 | F14: 2016-01-12 | G14: Rajkai Tak.Szöv. | H14: . | I14: F/M59500186-11095608 | J14: Templomépítési offertórium Vadosfa/Mihályi leányegyh. | N14: 10610 | O14: 11 5950018611095608 HUFEgyéb szerv. pénzfor59500186 Csornai kirendeltsé2016011220160112 35815700 36554700Vadosfai Evangélikus Egyházk. Kossuth utca 13 9346 Vadosfa | P14: 120125 FYYA-5621 -000000001061000HUF Vadosfai Evangélikus Egyházk. 595001861109560800000000 Templomépítési offertórium Vadosfa/Mihályi leányegyh. Soproni Evangélikus Egyházmegye 117370832011710800000000 NOTPRO 117370832011710800000000 595001861109560800000000 00000000106100020160112 | Q14: IG2 átutalási megbízás (EB - vállalk.) | R14: Vadosfai Evangélikus Egyházk. / 595001861109560800000000 | S14: Soproni Evangélikus Egyházmegye / 117370832011710800000000 | T14: 14
A15: Pk057 | B15: P | C15: k057 | D15: EGYÉB KAPOTT (JÁRÓ) KAMATOK ÉS KAMATJELLEGŰ BEVÉTELEK / bankszámla, egyéb éven belüli lekötések kamata | E15: 10 | F15: 2016-01-15 | G15: Rajkai Tak.Szöv. | H15: . | I15: B/P59500186-33161925 | M15: 58 | O15: 11 5950018633161925 HUFVállalk. fix kam. pe59500186 Csornai kirendeltsé2016011520160115 4212700 4218500Vadosfai Evangélikus Egyházk. Kossuth utca 13 9346 Vadosfa | P15: 120340 FYYE-9275 000000000005800HUF 5950018633161925 5950018633161925 5950018633161925 000000000005800201601155950018633161925 HUF | Q15: Tőke és kamat prolongálás (22) | R15: / 5950018633161925 | S15: / 5950018633161925 | T15: 15
A16: Mk057 | B16: M | C16: k057 | D16: EGYÉB KAPOTT (JÁRÓ) KAMATOK ÉS KAMATJELLEGŰ BEVÉTELEK / bankszámla, egyéb éven belüli lekötések kamata | E16: 11 | F16: 2016-01-16 | G16: Rajkai Tak.Szöv. | H16: . | I16: B/M59500186-33217772 | M16: 216 | O16: 11 5950018633217772 HUFVállalk. fix kam. pe59500186 Csornai kirendeltsé2016011620160116 15564300 15585900Vadosfai Evangélikus Egyházk. Kossuth utca 13 9346 Vadosfa | P16: 120340 FYYH-7521 000000000021600HUF 5950018633217772 5950018633217772 5950018633217772 000000000021600201601165950018633217772 HUF | Q16: Tőke és kamat prolongálás (22) | R16: / 5950018633217772 | S16: / 5950018633217772 | T16: 16
A17: Vk057 | B17: V | C17: k057 | D17: EGYÉB KAPOTT (JÁRÓ) KAMATOK ÉS KAMATJELLEGŰ BEVÉTELEK / bankszámla, egyéb éven belüli lekötések kamata | E17: 12 | F17: 2016-01-19 | G17: Rajkai Tak.Szöv. | H17: . | I17: B/V59500186-33072715 | M17: 2985 | O17: 11 5950018633072715 HUFVállalk. fix kam. pe59500186 Csornai kirendeltsé2016011920160119 215317900 215616400Vadosfai Evangélikus Egyházk. Kossuth utca 13 9346 Vadosfa | P17: 120340 FYYJ-3961 000000000298500HUF 5950018633072715 5950018633072715 5950018633072715 000000000298500201601195950018633072715 HUF | Q17: Tőke és kamat prolongálás (22) | R17: / 5950018633072715 | S17: / 5950018633072715 | T17: 17
A18: Vp007 | B18: V | C18: p007 | D18: - EGYHÁZKÖZSÉG MÁS RÉSZÉTŐL (TÁRS, LEÁNY) / azonos adószám alatt nyilvántartott anya- vagy leánygyülekezetektől, társgyülekezetektől átvett pénz | E18: 13 | F18: 2016-01-20 | G18: Rajkai Tak.Szöv. | H18: . | I18: F/V59500186-11094690 | J18: 2015.évi e.h.f.átadás zsebeháza | M18: 30000 | O18: 11 5950018611094690 HUFEgyéb szerv. pénzfor59500186 Csornai kirendeltsé2016012020160120 282468800 285468800Vadosfai Evangélikus Egyházk. Kossuth utca 13 9346 Vadosfa | P18: 121146 FYYK-7644 000000003000000HUF Vadosfai Evangélikus Egyházk. 5950018611096599 2015.évi e.h.f.átadás zsebeháza 5950018611094690 5950018611094690 000000003000000201601205950018611096599 | Q18: Átvezetés ügyfél számlái között | R18: Vadosfai Evangélikus Egyházk. / 5950018611096599 | S18: / 5950018611094690 | T18: 18
A19: Zsp012 | B19: Zs | C19: p012 | D19: - EGYÉB ÁTFUTÓ TÉTEL (BANK PÉNZTÁR KÖZÖTTI PÉNZMOZGÁS) / készpénzfelvétel, kp. Befizetése bankszámlára, lekötés elkülönített számlára | E19: 14 | F19: 2016-01-20 | G19: Rajkai Tak.Szöv. | H19: . | I19: F/Zs59500186-11096599 | J19: e.h.f.2015. évi | M19: 30000 | O19: 11 5950018611096599 HUFEgyéb szerv. pénzfor59500186 Csornai kirendeltsé2016012020160120 18615700 18615700Vadosfai Evangélikus Egyházk. Kossuth utca 13 9346 Vadosfa | P19: 120001 FYYK-7617 000000003000000HUF 5950018611096599 e.h.f.2015. évi 5950018611096599 5950018611096599 000000003000000201601205950018611096599 HUF | Q19: Pénztári készpénz befizetés | R19: / 5950018611096599 | S19: / 5950018611096599 | T19: 19
A20: Zsp019 | B20: Zs | C20: p019 | D20: - EGYHÁZKÖZSÉG MÁS RÉSZÉNEK (TÁRS, LEÁNY) / azonos adószám alatt nyilvántartott anya- vagy leánygyülekezeteknek, társgyülekezetek átvett pénz | E20: 15 | F20: 2016-01-20 | G20: Rajkai Tak.Szöv. | H20: . | I20: F/Zs59500186-11096599 | J20: 2015.évi e.h.f.átadás zsebeháza | N20: 30000 | O20: 11 5950018611096599 HUFEgyéb szerv. pénzfor59500186 Csornai kirendeltsé2016012020160120 18615700 18615700Vadosfai Evangélikus Egyházk. Kossuth utca 13 9346 Vadosfa | P20: 121146 FYYK-7644 -000000003000000HUF 5950018611096599 2015.évi e.h.f.átadás zsebeháza Vadosfai Evangélikus Egyházk. 5950018611094690 5950018611094690 5950018611096599 00000000300000020160120 | Q20: Átvezetés ügyfél számlái között | R20: / 5950018611096599 | S20: Vadosfai Evangélikus Egyházk. / 5950018611094690 | T20: 20
A21: Zsk057 | B21: Zs | C21: k057 | D21: EGYÉB KAPOTT (JÁRÓ) KAMATOK ÉS KAMATJELLEGŰ BEVÉTELEK / bankszámla, egyéb éven belüli lekötések kamata | E21: 16 | F21: 2016-01-25 | G21: Rajkai Tak.Szöv. | H21: . | I21: B/Zs59500210-33116121 | M21: 553 | O21: 11 5950021033116121 HUFVállalk. fix kam. pe59500210 Szili Betétgyűjtő P2016012520160125 63365600 63420900Vadosfai Evangélikus Egyházk. Kossuth utca 13 9346 Vadosfa | P21: 120340 FYYM-7747 000000000055300HUF 5950021033116121 5950021033116121 5950021033116121 000000000055300201601255950021033116121 HUF | Q21: Tőke és kamat prolongálás (22) | R21: / 5950021033116121 | S21: / 5950021033116121 | T21: 21
A22: Gyk057 | B22: Gy | C22: k057 | D22: EGYÉB KAPOTT (JÁRÓ) KAMATOK ÉS KAMATJELLEGŰ BEVÉTELEK / bankszámla, egyéb éven belüli lekötések kamata | E22: 17 | F22: 2016-01-25 | G22: Rajkai Tak.Szöv. | H22: . | I22: B/Gy59500186-33150781 | M22: 16 | O22: 11 5950018633150781 HUFVállalk. fix kam. pe59500186 Csornai kirendeltsé2016012520160125 10346400 10348000Vadosfai Evangélikus Egyházk. Kossuth utca 13 9346 Vadosfa | P22: 120340 FYYM-7695 000000000001600HUF 5950018633150781 5950018633150781 5950018633150781 000000000001600201601255950018633150781 HUF | Q22: Tőke és kamat prolongálás (22) | R22: / 5950018633150781 | S22: / 5950018633150781 | T22: 22
A23: Kk057 | B23: K | C23: k057 | D23: EGYÉB KAPOTT (JÁRÓ) KAMATOK ÉS KAMATJELLEGŰ BEVÉTELEK / bankszámla, egyéb éven belüli lekötések kamata | E23: 18 | F23: 2016-01-28 | G23: Rajkai Tak.Szöv. | H23: . | I23: B/K59500186-33117249 | M23: 324 | O23: 11 5950018633117249 HUFVállalk. fix kam. pe59500186 Csornai kirendeltsé2016012820160128 36780900 36813300Vadosfai Evangélikus Egyházk. Kossuth utca 13 9346 Vadosfa | P23: 120340 FYYP-6527 000000000032400HUF 5950018633117249 5950018633117249 5950018633117249 000000000032400201601285950018633117249 HUF | Q23: Tőke és kamat prolongálás (22) | R23: / 5950018633117249 | S23: / 5950018633117249 | T23: 23
A24: Vk121 | B24: V | C24: k121 | D24: -PÉNZÜGYI, BEFEKTETÉSI SZOLGÁLTATÁS DÍJA (BANKKTG)TÁVFŰTÉS / bankjutalék, bankköltség, banki kezelési díjak | E24: 19 | F24: 2016-01-30 | G24: Rajkai Tak.Szöv. | H24: . | I24: F/V59500186-11094690 | N24: 516 | O24: 11 5950018611094690 HUFEgyéb szerv. pénzfor59500186 Csornai kirendeltsé2016013020160130 285468800 285412200Vadosfai Evangélikus Egyházk. Kossuth utca 13 9346 Vadosfa | P24: 121052 FYZC-1891 -000000000051600HUF 5950018611094690 5950018611094690 5950018611094690 HUF 5950018611094690 00000000005160020160130 | Q24: Jutalék terhelés | R24: / 5950018611094690 | S24: / 5950018611094690 | T24: 24
A25: Vk121 | B25: V | C25: k121 | D25: -PÉNZÜGYI, BEFEKTETÉSI SZOLGÁLTATÁS DÍJA (BANKKTG)TÁVFŰTÉS / bankjutalék, bankköltség, banki kezelési díjak | E25: 20 | F25: 2016-01-30 | G25: Rajkai Tak.Szöv. | H25: . | I25: F/V59500186-11094690 | N25: 50 | O25: 11 5950018611094690 HUFEgyéb szerv. pénzfor59500186 Csornai kirendeltsé2016013020160130 285468800 285412200Vadosfai Evangélikus Egyházk. Kossuth utca 13 9346 Vadosfa | P25: 121054 FYZE-3649 -000000000005000HUF 5950018611094690 5950018611094690 5950018611094690 HUF 5950018611094690 00000000000500020160130 | Q25: Kivonat költség terhelés | R25: / 5950018611094690 | S25: / 5950018611094690 | T25: 25
A26: Mk121 | B26: M | C26: k121 | D26: -PÉNZÜGYI, BEFEKTETÉSI SZOLGÁLTATÁS DÍJA (BANKKTG)TÁVFŰTÉS / bankjutalék, bankköltség, banki kezelési díjak | E26: 21 | F26: 2016-01-30 | G26: Rajkai Tak.Szöv. | H26: . | I26: F/M59500186-11095608 | N26: 50 | O26: 11 5950018611095608 HUFEgyéb szerv. pénzfor59500186 Csornai kirendeltsé2016013020160130 36554700 36549700Vadosfai Evangélikus Egyházk. Kossuth utca 13 9346 Vadosfa | P26: 121052 FYZC-1930 -000000000005000HUF 5950018611095608 5950018611095608 5950018611095608 HUF 5950018611095608 00000000000500020160130 | Q26: Jutalék terhelés | R26: / 5950018611095608 | S26: / 5950018611095608 | T26: 26
A27: Mkk121 | B27: Mk | C27: k121 | D27: -PÉNZÜGYI, BEFEKTETÉSI SZOLGÁLTATÁS DÍJA (BANKKTG)TÁVFŰTÉS / bankjutalék, bankköltség, banki kezelési díjak | E27: 22 | F27: 2016-01-30 | G27: Rajkai Tak.Szöv. | H27: . | I27: F/Mk59500186-11095952 | N27: 50 | O27: 11 5950018611095952 HUFEgyéb szerv. pénzfor59500186 Csornai kirendeltsé2016013020160130 16206600 16201600Vadosfai Evangélikus Egyházk. Kossuth utca 13 9346 Vadosfa | P27: 121052 FYZC-1931 -000000000005000HUF 5950018611095952 5950018611095952 5950018611095952 HUF 5950018611095952 00000000000500020160130 | Q27: Jutalék terhelés | R27: / 5950018611095952 | S27: / 5950018611095952 | T27: 27
A28: Kk121 | B28: K | C28: k121 | D28: -PÉNZÜGYI, BEFEKTETÉSI SZOLGÁLTATÁS DÍJA (BANKKTG)TÁVFŰTÉS / bankjutalék, bankköltség, banki kezelési díjak | E28: 23 | F28: 2016-01-30 | G28: Rajkai Tak.Szöv. | H28: . | I28: F/K59500186-11096582 | N28: 50 | O28: 11 5950018611096582 HUFEgyéb szerv. pénzfor59500186 Csornai kirendeltsé2016013020160130 12941700 12936700Vadosfai Evangélikus Egyházk. Kossuth utca 13 9346 Vadosfa | P28: 121052 FYZC-1934 -000000000005000HUF 5950018611096582 5950018611096582 5950018611096582 HUF 5950018611096582 00000000000500020160130 | Q28: Jutalék terhelés | R28: / 5950018611096582 | S28: / 5950018611096582 | T28: 28
A29: Zsk121 | B29: Zs | C29: k121 | D29: -PÉNZÜGYI, BEFEKTETÉSI SZOLGÁLTATÁS DÍJA (BANKKTG)TÁVFŰTÉS / bankjutalék, bankköltség, banki kezelési díjak | E29: 24 | F29: 2016-01-30 | G29: Rajkai Tak.Szöv. | H29: . | I29: F/Zs59500186-11096599 | N29: 50 | O29: 11 5950018611096599 HUFEgyéb szerv. pénzfor59500186 Csornai kirendeltsé2016013020160130 18615700 18610700Vadosfai Evangélikus Egyházk. Kossuth utca 13 9346 Vadosfa | P29: 121052 FYZC-1936 -000000000005000HUF 5950018611096599 5950018611096599 5950018611096599 HUF 5950018611096599 00000000000500020160130 | Q29: Jutalék terhelés | R29: / 5950018611096599 | S29: / 5950018611096599 | T29: 29
A30: Vk159 | B30: V | C30: k159 | D30: -FENNTARTÓI NYUGDÍJJÁRULÉK (ZELENKA PÁL SZA) / Zelenka P. alapba megfizetett fenntartói járulék (gyülekezetet terhelő) összege | E30: 25 | F30: 2016-02-01 | G30: Rajkai Tak.Szöv. | H30: . | I30: F/V59500186-11094690 | J30: 16/02/01-i Fenntartói Szol.Alap. Fenntartói Szol. Alap VADOSFA | N30: 19158 | O30: 11 5950018611094690 HUFEgyéb szerv. pénzfor59500186 Csornai kirendeltsé2016020120160201 285412200 270374100Vadosfai Evangélikus Egyházk. Kossuth utca 13 9346 Vadosfa | P30: 120131 FYZF-9155 -000000001915800HUF Vadosfai Evangélikus Egyházk. 595001861109469000000000 16/02/01-i Fenntartói Szol.Alap. Fenntartói Szol. Alap VADOSFA Magyar Evangélikus Egyház 117070242050080100000000 NOTPRO 117070242050080100000000 595001861109469000000000 00000000191580020160201 | Q30: IG2 átutalási megbízás (rendszeres) | R30: Vadosfai Evangélikus Egyházk. / 595001861109469000000000 | S30: Magyar Evangélikus Egyház / 117070242050080100000000 | T30: 30
A31: Vk133 | B31: V | C31: k133 | D31: - LELKÉSZEK ILLETMÉNYE EGYHÁZI SZOLGÁLATÉRT / lelkészi illetmény | E31: 26 | F31: 2016-02-01 | G31: Rajkai Tak.Szöv. | H31: . | I31: F/V59500186-11094690 | J31: 16/02/01-i Mihácsi Lajos. lelkészi illetmény | N31: 111540 | O31: 11 5950018611094690 HUFEgyéb szerv. pénzfor59500186 Csornai kirendeltsé2016020120160201 285412200 270374100Vadosfai Evangélikus Egyházk. Kossuth utca 13 9346 Vadosfa | P31: 120131 FYZF-9164 -000000011154000HUF Vadosfai Evangélikus Egyházk. 595001861109469000000000 16/02/01-i Mihácsi Lajos. lelkészi illetmény Mihácsi Lajos 120940020100456300100008 NOTPRO 120940020100456300100008 595001861109469000000000 00000001115400020160201 | Q31: IG2 átutalási megbízás (rendszeres) | R31: Vadosfai Evangélikus Egyházk. / 595001861109469000000000 | S31: Mihácsi Lajos / 120940020100456300100008 | T31: 31
A32: Vp016 | B32: V | C32: p016 | D32: - LELKÉSZI NYUGDÍJJÁRULÉK / Zelenka Pál Szolidaritási Alapnak átutalt, lelkésztől levont nyugdíjjárulék összege | E32: 27 | F32: 2016-02-01 | G32: Rajkai Tak.Szöv. | H32: . | I32: F/V59500186-11094690 | J32: 16/02/01-i Nyugdíj jár.. Mihácsi Lajos nyugdíjjár. | N32: 19683 | O32: 11 5950018611094690 HUFEgyéb szerv. pénzfor59500186 Csornai kirendeltsé2016020120160201 285412200 270374100Vadosfai Evangélikus Egyházk. Kossuth utca 13 9346 Vadosfa | P32: 120131 FYZF-9172 -000000001968300HUF Vadosfai Evangélikus Egyházk. 595001861109469000000000 16/02/01-i Nyugdíj jár.. Mihácsi Lajos nyugdíjjár. evangélikus nyugdíjosztály 117070242050080100000000 NOTPRO 117070242050080100000000 595001861109469000000000 00000000196830020160201 | Q32: IG2 átutalási megbízás (rendszeres) | R32: Vadosfai Evangélikus Egyházk. / 595001861109469000000000 | S32: evangélikus nyugdíjosztály / 117070242050080100000000 | T32: 32
E33: 28 | F33: 2016-02-01 | G33: Rajkai Tak.Szöv. | H33: . | I33: F/V59500186-11094690 | J33: A13799047 201601290001037512 110730068 | M33: x12417 | O33: 11 5950018611094690 HUFEgyéb szerv. pénzfor59500186 Csornai kirendeltsé2016020120160201 285412200 270374100Vadosfai Evangélikus Egyházk. Kossuth utca 13 9346 Vadosfa | P33: 120263 FYZG-0000 000000001241700HUF ENKSZ ÉSZAK-DÉL REGIONÁLIS FÖLDG 1173500520451879 A13799047 201601290001037512 110730068 5950018611094690 0 5950018611094690 HUF 000000001241700201602011173500520451879 | Q33: Csoportos beszedés fogadás (Ugiro non-klíring fogadás számlára) | R33: ENKSZ ÉSZAK-DÉL REGIONÁLIS FÖLDG / 1173500520451879 | S33: / 5950018611094690 | T33: 33
A34: Vk133 | B34: V | C34: k133 | D34: - LELKÉSZEK ILLETMÉNYE EGYHÁZI SZOLGÁLATÉRT / lelkészi illetmény | F34: 2016-02-01 | G34: Rajkai Tak.Szöv. | H34: lelkészi ill. bttósítása (ny.jár.) | I34: F/V59500186-11094690 | N34: 19683 | T34: 34
A35: Vp004 | B35: V | C35: p004 | D35: - LELKÉSZI NYUGDÍJJÁRULÉK / lelkész által befizetett (bevételezett) lelkészi nyugdíjjárulék összege | F35: 2016-02-01 | G35: Rajkai Tak.Szöv. | H35: lelkészi ill. ny. jár. Levonása | I35: F/V59500186-11094690 | M35: 19683 | T35: 35
E36: 29 | F36: 2016-02-03 | G36: Rajkai Tak.Szöv. | H36: . | I36: F/V59500186-11094690 | J36: A11401429 201602021002000712 100846616 | M36: x1489 | O36: 11 5950018611094690 HUFEgyéb szerv. pénzfor59500186 Csornai kirendeltsé2016020320160203 270374100 270374100Vadosfai Evangélikus Egyházk. Kossuth utca 13 9346 Vadosfa | P36: 120263 FYZI-5997 000000000148900HUF PANNON-VIZ ZRT. GYOR 1173700720702876 A11401429 201602021002000712 100846616 5950018611094690 0 5950018611094690 HUF 000000000148900201602031173700720702876 | Q36: Csoportos beszedés fogadás (Ugiro non-klíring fogadás számlára) | R36: PANNON-VIZ ZRT. GYOR / 1173700720702876 | S36: / 5950018611094690 | T36: 36
A37: Vk071 | B37: V | C37: k071 | D37: LELKÉSZLAKÁSÉLELMISZEREK KÖLTSÉGE / lelkészlakás gáz és egyéb fűtőanyag költsége | E37: 30 | F37: 2016-02-05 | G37: Rajkai Tak.Szöv. | H37: . | I37: F/V59500186-11094690 | J37: A13799047 201601290001037512 UGYFELKOD=110730068 | N37: 12417 | O37: 11 5950018611094690 HUFEgyéb szerv. pénzfor59500186 Csornai kirendeltsé2016020520160205 270374100 269132400Vadosfai Evangélikus Egyházk. Kossuth utca 13 9346 Vadosfa | P37: 120118 FYZL-9750 -000000001241700HUF 5950018611094690 A13799047 201601290001037512 UGYFELKOD=110730068 ENKSZ ÉSZAK-DÉL REGIONÁLIS FÖLDG 1173500520451879 0 1173500520451879 5950018611094690 00000000124170020160205 | Q37: Csoportos beszedési megbízás | R37: / 5950018611094690 | S37: ENKSZ ÉSZAK-DÉL REGIONÁLIS FÖLDG / 1173500520451879 | T37: 37
A38: Vk159 | B38: V | C38: k159 | D38: -FENNTARTÓI NYUGDÍJJÁRULÉK (ZELENKA PÁL SZA) / Zelenka P. alapba megfizetett fenntartói járulék (gyülekezetet terhelő) összege | E38: 31 | F38: 2016-02-08 | G38: Rajkai Tak.Szöv. | H38: . | I38: F/V59500186-11094690 | J38: Fenntartói szoc.alap.különb fenntartói szoc al.VADOSFA | N38: 1917 | O38: 11 5950018611094690 HUFEgyéb szerv. pénzfor59500186 Csornai kirendeltsé2016020820160208 269132400 268940700Vadosfai Evangélikus Egyházk. Kossuth utca 13 9346 Vadosfa | P38: 120126 FYZN-6708 -000000000191700HUF Vadosfai Evangélikus Egyházk. 595001861109469000000000 Fenntartói szoc.alap.különb fenntartói szoc al.VADOSFA evangélikus nyugdíjosztály 117070242050080100000000 NOTPRO 117070242050080100000000 595001861109469000000000 00000000019170020160208 | R38: Vadosfai Evangélikus Egyházk. / 595001861109469000000000 | S38: evangélikus nyugdíjosztály / 117070242050080100000000 | T38: 38
A39: Mk049 | B39: M | C39: k049 | D39: -EGYHÁZFENNTARTÓI JÁRULÉK-EGYHÁZFENNTARTÓI JÁRULÉK-EGYHÁZFENNTARTÓI JÁRULÉK / magánszemélyek által ezen a címen teljesítet befizetés | E39: 32 | F39: 2016-02-08 | G39: Rajkai Tak.Szöv. | H39: . | I39: F/M59500186-11095608 | J39: Egyházadó Csiszár Károlyné Mihályi | M39: 6000 | O39: 11 5950018611095608 HUFEgyéb szerv. pénzfor59500186 Csornai kirendeltsé2016020820160208 36549700 37949700Vadosfai Evangélikus Egyházk. Kossuth utca 13 9346 Vadosfa | P39: 120222 FYZN-8254 000000000600000HUF Csiszár Károlyné 589000261001449900000000 Egyházadó Csiszár Károlyné Mihályi Mihályi Evangélikus Egyház 595001861109560800000000 NOTPRO 595001861109560800000000 00000000060000020160208589000261001449900000000 | Q39: IG2 átutalás fogadása számlára | R39: Csiszár Károlyné / 589000261001449900000000 | S39: Mihályi Evangélikus Egyház / 595001861109560800000000 | T39: 39
A40: Mk049 | B40: M | C40: k049 | D40: -EGYHÁZFENNTARTÓI JÁRULÉK-EGYHÁZFENNTARTÓI JÁRULÉK-EGYHÁZFENNTARTÓI JÁRULÉK / magánszemélyek által ezen a címen teljesítet befizetés | E40: 33 | F40: 2016-02-08 | G40: Rajkai Tak.Szöv. | H40: . | I40: F/M59500186-11095608 | J40: Egyházadó Böcskörné Csiszár Anita Mihályi Korona u.20. | M40: 8000 | O40: 11 5950018611095608 HUFEgyéb szerv. pénzfor59500186 Csornai kirendeltsé2016020820160208 36549700 37949700Vadosfai Evangélikus Egyházk. Kossuth utca 13 9346 Vadosfa | P40: 120222 FYZN-8292 000000000800000HUF Csiszár Károlyné 589000261001449900000000 Egyházadó Böcskörné Csiszár Anita Mihályi Korona u.20. Mihályi Evangélikus Egyház 595001861109560800000000 NOTPRO 595001861109560800000000 00000000080000020160208589000261001449900000000 | Q40: IG2 átutalás fogadása számlára | R40: Csiszár Károlyné / 589000261001449900000000 | S40: Mihályi Evangélikus Egyház / 595001861109560800000000 | T40: 40
A41: Vk079 | B41: V | C41: k079 | D41: LELKÉSZLAKÁS / lelkészlakás víz- és csatornadíja | E41: 34 | F41: 2016-02-10 | G41: Rajkai Tak.Szöv. | H41: . | I41: F/V59500186-11094690 | J41: A11401429 201602021002000712 UGYFELKOD=100846616 | N41: 1489 | O41: 11 5950018611094690 HUFEgyéb szerv. pénzfor59500186 Csornai kirendeltsé2016021020160210 268940700 268791800Vadosfai Evangélikus Egyházk. Kossuth utca 13 9346 Vadosfa | P41: 120118 FYZQ-7898 -000000000148900HUF 5950018611094690 A11401429 201602021002000712 UGYFELKOD=100846616 PANNON-VIZ ZRT. GYOR 1173700720702876 0 1173700720702876 5950018611094690 00000000014890020160210 | Q41: Csoportos beszedési megbízás | R41: / 5950018611094690 | S41: PANNON-VIZ ZRT. GYOR / 1173700720702876
A42: Zsk108 | B42: Zs | C42: k108 | D42: MÁS GYÜLEKEZETI HELYISÉGIGÉNYBE VETT SZOLGÁLTATÁSOK KÖLTSÉGE (86..102) / egyéb gyülekezeti ingatlan - festés, szerelés, stb. karbantartási szolgáltatás (a benne lévő anyagköltséggel együtt) | E42: 35 | F42: 2016-02-10 | G42: Rajkai Tak.Szöv. | H42: . | I42: F/Zs59500186-11096599 | J42: HS4SA :0296855 SZLA KIEGY | N42: 82000 | O42: 11 5950018611096599 HUFEgyéb szerv. pénzfor59500186 Csornai kirendeltsé2016021020160210 18610700 10410700Vadosfai Evangélikus Egyházk. Kossuth utca 13 9346 Vadosfa | P42: 120126 FYZQ-3424 -000000008200000HUF Vadosfai Evangélikus Egyházk. 595001861109659900000000 HS4SA :0296855 SZLA KIEGY ifj. Szabo Tibor 104033185052677056871007 NOTPRO 104033185052677056871007 595001861109659900000000 00000000820000020160210 | R42: Vadosfai Evangélikus Egyházk. / 595001861109659900000000 | S42: ifj. Szabo Tibor / 104033185052677056871007
A43: Mk057 | B43: M | C43: k057 | D43: EGYÉB KAPOTT (JÁRÓ) KAMATOK ÉS KAMATJELLEGŰ BEVÉTELEK / bankszámla, egyéb éven belüli lekötések kamata | E43: 36 | F43: 2016-02-17 | G43: Rajkai Tak.Szöv. | H43: . | I43: B/M59500186-33263395 | M43: 1340 | O43: 11 5950018633263395 HUFVállalk. fix kam. pe59500186 Csornai kirendeltsé2016021720160217 151949700 152083700Vadosfai Evangélikus Egyházk. Kossuth utca 13 9346 Vadosfa | P43: 120340 FYZW-7738 000000000134000HUF 5950018633263395 5950018633263395 5950018633263395 000000000134000201602175950018633263395 HUF | Q43: Tőke és kamat prolongálás (22) | R43: / 5950018633263395 | S43: / 5950018633263395
E44: 37 | F44: 2016-02-22 | G44: Rajkai Tak.Szöv. | H44: . | I44: F/V59500186-11094690 | J44: A13958147T100201602182183010141 30013539776 EVANGÉLIKUS/LELKÉSZIHIV Vadosfa Kossuth Lajos 13 | M44: x2668 | O44: 11 5950018611094690 HUFEgyéb szerv. pénzfor59500186 Csornai kirendeltsé2016022220160222 268791800 268791800Vadosfai Evangélikus Egyházk. Kossuth utca 13 9346 Vadosfa | P44: 120263 FYZZ-1741 000000000266800HUF E.ON Energiaszolg. Kft. 109180010000002494090040 A13958147T100201602182183010141 30013539776 EVANGÉLIKUS/LELKÉSZIHIV Vadosfa Kossuth Lajos 13 5950018611094690 0 5950018611094690 HUF 00000000026680020160222109180010000002494090040 | Q44: Csoportos beszedés fogadás (Ugiro non-klíring fogadás számlára) | R44: E.ON Energiaszolg. Kft. / 109180010000002494090040 | S44: / 5950018611094690
E45: 38 | F45: 2016-02-22 | G45: Rajkai Tak.Szöv. | H45: . | I45: F/Mk59500186-11095952 | J45: Hiv:96/GUT/2016 Egyházmegyei ép.támog. | M45: 1000000 | O45: 11 5950018611095952 HUFEgyéb szerv. pénzfor59500186 Csornai kirendeltsé2016022220160222 16201600 116201600Vadosfai Evangélikus Egyházk. Kossuth utca 13 9346 Vadosfa | P45: 120222 FZAA-3366 000000100000000HUF MAGYARORSZÁGI EVANGÉLIKUS EGYHÁZ 117070242034725700000000 Hiv:96/GUT/2016 Egyházmegyei ép.támog. Magyarkeresztúri Evangélikus Egy 595001861109595200000000 NOTPRO 595001861109595200000000 00000010000000020160222117070242034725700000000 | Q45: IG2 átutalás fogadása számlára | R45: MAGYARORSZÁGI EVANGÉLIKUS EGYHÁZ / 117070242034725700000000 | S45: Magyarkeresztúri Evangélikus Egy / 595001861109595200000000
E46: 39 | F46: 2016-02-25 | G46: Rajkai Tak.Szöv. | H46: . | I46: B/Gy59500186-33150781 | M46: 18 | O46: 11 5950018633150781 HUFVállalk. fix kam. pe59500186 Csornai kirendeltsé2016022520160225 10348000 10349800Vadosfai Evangélikus Egyházk. Kossuth utca 13 9346 Vadosfa | P46: 120340 FZAB-9196 000000000001800HUF 5950018633150781 5950018633150781 5950018633150781 000000000001800201602255950018633150781 HUF | Q46: Tőke és kamat prolongálás (22) | R46: / 5950018633150781 | S46: / 5950018633150781
E47: 40 | F47: 2016-02-26 | G47: Rajkai Tak.Szöv. | H47: . | I47: F/V59500186-11094690 | J47: A13958147T100201602182183010141 UGYFELKOD=30013539776 EVANGÉLIKUS/LELKÉSZIHIV Vadosfa Kossuth Lajos 13 | N47: 2668 | O47: 11 5950018611094690 HUFEgyéb szerv. pénzfor59500186 Csornai kirendeltsé2016022620160226 268791800 268525000Vadosfai Evangélikus Egyházk. Kossuth utca 13 9346 Vadosfa | P47: 120118 FZAD-4018 -000000000266800HUF 5950018611094690 A13958147T100201602182183010141 UGYFELKOD=30013539776 EVANGÉLIKUS/LELKÉSZIHIV Vadosfa Kossuth Lajos 13 E.ON Energiaszolg. Kft. 109180010000002494090040 0 109180010000002494090040 5950018611094690 00000000026680020160226 | Q47: Csoportos beszedési megbízás | R47: / 5950018611094690 | S47: E.ON Energiaszolg. Kft. / 109180010000002494090040

Sheet mérleg1
A1: bank | B1: ="A VADOSFAI EVANGÉLIKUS EGYHÁZKÖZSÉG ZÁRÓMÉRLEGE - " & mnap('Terv-segédlet'!A1,range("A:N")) -> A VADOSFAI EVANGÉLIKUS EGYHÁZKÖZSÉG ZÁRÓMÉRLEGE - 2016. február 28-án (évközi) | K1: https://ibank.takarekpont.hu/eib/getstatement | L1: =$K1+SUMIF(bank!$I:$I,mérleg1!$B1,bank!$M:$M)-SUMIF(bank!$I:$I,mérleg1!$B1,bank!$N:$N) -> 
A2: * | C2: ÖSSZESEN | D2: Vadosfa | E2: Gyóró | F2: Kisfalud | G2: Magyar-keresztúr | H2: Mihályi | I2: Potyond | J2: Zsebeháza
A3: * | D3: V | E3: Gy | F3: K | G3: Mk | H3: M | I3: P | J3: Zs
A4: * | B4: Előző évi maradvány (kp): | C4: =SUM(D4:J4) -> 782878 | D4: 209597 | E4: 44592 | F4: 44554 | G4: 21315 | H4: 253330 | I4: 34415 | J4: 175075
A5: * | B5: Előző évi maradvány (bank): | C5: 13197708 | D5: 5140665 | E5: 578368 | F5: 502326 | G5: 3331893 | H5: 2533297 | I5: 288946 | J5: 822213
A6: * | B6: + Tárgyévi bevételek(kp): | C6: 81810 | D6: =SUM(V!K:K) -> 0 | E6: =SUM(Gy!K:K) -> 0 | F6: =SUM(K!K:K) -> 0 | G6: =SUM(Mk!K:K) -> 31200 | H6: =SUM(M!K:K) -> 50610 | I6: =SUM(P!K:K) -> 0 | J6: =SUM(Zs!K:K) -> 0
A7: * | B7: + Tárgyévi bevételek(bank): | C7: 136858 | D7: =SUMIF(bank!B:B,"V",bank!M:M) -> 72351 | E7: =SUMIF(bank!B:B,"Gy",bank!M:M) -> 16 | F7: =SUMIF(bank!B:B,"K",bank!M:M) -> 324 | G7: =SUMIF(bank!B:B,"Mk",bank!M:M) -> 0 | H7: =SUMIF(bank!B:B,"M",bank!M:M) -> 33556 | I7: =SUMIF(bank!B:B,"P",bank!M:M) -> 58 | J7: =SUMIF(bank!B:B,"Zs",bank!M:M) -> 30553
A8: * | B8: bevétel összesen: | C8: 14199254 | D8: =SUM(D4:D7) -> 5422613 | E8: =SUM(E4:E7) -> 622976 | F8: 547204 | G8: 3384408 | H8: 2870793 | I8: 323419 | J8: 1027841
A9: * | B9: - Tárgyévi kiadások(kp): | C9: 28045 | D9: =SUM(V!L:L) -> 0 | E9: =SUM(Gy!L:L) -> 0 | F9: =SUM(K!L:L) -> 0 | G9: =SUM(Mk!L:L) -> 3690 | H9: =SUM(M!L:L) -> 24355 | I9: =SUM(P!L:L) -> 0 | J9: =SUM(Zs!L:L) -> 0
A10: * | B10: - Tárgyévi kiadások(bank): | C10: 510444 | D10: =SUMIF(bank!B:B,"V",bank!N:N) -> 368934 | E10: =SUMIF(bank!B:B,"Gy",bank!N:N) -> 0 | F10: =SUMIF(bank!B:B,"K",bank!N:N) -> 5150 | G10: =SUMIF(bank!B:B,"Mk",bank!N:N) -> 11250 | H10: =SUMIF(bank!B:B,"M",bank!N:N) -> 10660 | I10: =SUMIF(bank!B:B,"P",bank!N:N) -> 0 | J10: =SUMIF(bank!B:B,"Zs",bank!N:N) -> 114450
A11: * | B11: kiadás összesen: | C11: 538489 | D11: =SUM(D9:D10) -> 368934 | E11: =SUM(E9:E10) -> 0 | F11: 5150 | G11: 14940 | H11: 35015 | I11: 0 | J11: 114450
A12: * | B12: ="= Egyenleg " & mnap('Terv-segédlet'!A1,range("A:N")) -> = Egyenleg 2016. február 28-án (évközi) | C12: =SUM(D12:J12) -> 13660765 | D12: =D8-D11 -> 5053679 | E12: =E8-E11 -> 622976 | F12: 542054 | G12: 3369468 | H12: 2835778 | I12: 323419 | J12: 913391
A13: * | B13: ebből kp. | C13: 836643 | D13: =D4+D6-D9 -> 209597 | E13: =E4+E6-E9 -> 44592 | F13: 44554 | G13: 48825 | H13: 279585 | I13: 34415 | J13: 175075
A14: * | B14: ebből bank | C14: 12824122 | D14: =D5+D7-D10 -> 4844082 | E14: =E5+E7-E10 -> 578384 | F14: 497500 | G14: 3320643 | H14: 2556193 | I14: 289004 | J14: 738316
A15: * | B15: változás az elmúlt évhez képest | C15: -319821 | D15: =-(D4+D5-D12) -> -296583 | E15: 16 | F15: -4826 | G15: 16260 | H15: 49151 | I15: 58 | J15: =-(J4+J5-J12) -> -83897
B16: kv | C16: =SUM(D16:J16) ->  | D16: =#REF! ->  | E16: =#REF! ->  | F16: =#REF! ->  | G16: =#REF! ->  | H16: =#REF! ->  | I16: =#REF! ->  | J16: =#REF! ->  | O16: 28982751 | P16: =C16-O16 -> 
C17: =SUM(D17:J17) -> 218668 | D17: =D6+D7 -> 72351 | E17: =E6+E7 -> 16 | F17: =F6+F7 -> 324 | G17: 31200 | H17: =H6+H7 -> 84166 | I17: 58 | J17: 30553 | O17: 28982751 | P17: -28764083
C18: =C17-C16 ->  | D18: =D17-D16 ->  | O18: 0
B19: kv | C19: =SUM(D19:J19) ->  | D19: =#REF! ->  | E19: =#REF! ->  | F19: =#REF! ->  | G19: =#REF! ->  | H19: =#REF! ->  | I19: =#REF! ->  | J19: =#REF! ->  | O19: 33534355
C20: =SUM(D20:J20) -> 538489 | D20: =D9+D10 -> 368934 | E20: =E9+E10 -> 0 | F20: =F9+F10 -> 5150 | G20: 14940 | H20: 35015 | I20: 0 | J20: 114450 | O20: 33534355 | P20: -32995866
C21: =C20-C19 ->  | D21: =D20-D19 ->  | E21: =E20-E19 ->  | O21: 0
A22: * | B22: Folyószámla (Rajkai Takarékszövetkezet): | C22: =SUM(C23:C29) -> 5077295 | D22: =SUM(D23:D29) -> 2685250 | E22: 370239 | F22: 129367 | G22: 1162016 | H22: 379497 | I22: 246819 | J22: 104107 | K22: Nyitó érték jan. 1-én | L22: számlanyitás ideje
A23: * | B23: F/V59500186-11094690 | C23: =SUM(D23:J23) -> 2685250 | D23: =K23+SUMIF(bank!$I:$I,mérleg1!$B23,bank!$M:$M)-SUMIF(bank!$I:$I,mérleg1!$B23,bank!$N:$N) -> 2685250 | K23: 2987486 | L23: 2013-03-20
A24: * | B24: F/M59500186-11095608 | C24: 379497 | H24: =K24+SUMIF(bank!$I:$I,mérleg1!$B24,bank!$M:$M)-SUMIF(bank!$I:$I,mérleg1!$B24,bank!$N:$N) -> 379497 | K24: 358157 | L24: 2013-04-23
A25: * | B25: F/P59500186-11095615 | C25: 246819 | I25: =K25+SUMIF(bank!$I:$I,mérleg1!$B25,bank!$M:$M)-SUMIF(bank!$I:$I,mérleg1!$B25,bank!$N:$N) -> 246819 | K25: 246819 | L25: 2013-04-23
A26: * | B26: F/Mk59500186-11095952 | C26: 1162016 | G26: =K26+SUMIF(bank!$I:$I,mérleg1!$B26,bank!$M:$M)-SUMIF(bank!$I:$I,mérleg1!$B26,bank!$N:$N) -> 1162016 | K26: 173266 | L26: 2013-04-27
A27: * | B27: F/K59500186-11096582 | C27: 129367 | F27: =K27+SUMIF(bank!$I:$I,mérleg1!$B27,bank!$M:$M)-SUMIF(bank!$I:$I,mérleg1!$B27,bank!$N:$N) -> 129367 | K27: 134517 | L27: 2013-06-06
A28: * | B28: F/Zs59500186-11096599 | C28: 104107 | J28: =K28+SUMIF(bank!$I:$I,mérleg1!$B28,bank!$M:$M)-SUMIF(bank!$I:$I,mérleg1!$B28,bank!$N:$N) -> 104107 | K28: 188557 | L28: 2013-06-06
A29: * | B29: F/Gy59500186-11096609 | C29: 370239 | E29: =K29+SUMIF(bank!$I:$I,mérleg1!$B29,bank!$M:$M)-SUMIF(bank!$I:$I,mérleg1!$B29,bank!$N:$N) -> 370239 | K29: 370239 | L29: 2013-06-06
A30: * | B30: Betétek: | C30: =SUM(C31:C46) -> 8744177 | D30: =SUM(D31:D50) -> 2156164 | E30: =SUM(E31:E50) -> 208163 | F30: 368133 | G30: 3158627 | H30: 2176696 | I30: 42185 | J30: 634209 | L30: lekötés kezdete | M30: lekötés vége | N30: nap
A31: =IF(C31=0,"","*") -> * | B31: B/Mk59500186-33017479 | C31: =SUM(D31:J31) -> 955511 | G31: =$K31+SUMIF(bank!$I:$I,mérleg1!$B31,bank!$M:$M)-SUMIF(bank!$I:$I,mérleg1!$B31,bank!$N:$N) -> 955511 | K31: 955511 | L31: 2015-12-07 | M31: 2016-03-07 | N31: =M31-TODAY() -> 8
A32: * | B32: B/V59500186-33072715 | C32: 2156164 | D32: =$K32+SUMIF(bank!$I:$I,mérleg1!$B32,bank!$M:$M)-SUMIF(bank!$I:$I,mérleg1!$B32,bank!$N:$N) -> 2156164 | K32: 2153179 | L32: 2016-01-19 | M32: 2016-04-19 | N32: =M32-TODAY() -> 51
A33: =IF(C33=0,"","*") -> * | B33: B/Zs59500210-33116121 | C33: =SUM(D33:J33) -> 634209 | J33: =$K33+SUMIF(bank!$I:$I,mérleg1!$B33,bank!$M:$M)-SUMIF(bank!$I:$I,mérleg1!$B33,bank!$N:$N) -> 634209 | K33: 633656 | L33: 2016-01-25 | M33: 2016-04-25 | N33: =M33-TODAY() -> 57
A34: * | B34: B/K59500186-33117249 | C34: 368133 | F34: =$K34+SUMIF(bank!$I:$I,mérleg1!$B34,bank!$M:$M)-SUMIF(bank!$I:$I,mérleg1!$B34,bank!$N:$N) -> 368133 | K34: 367809 | L34: 2016-01-28 | M34: 2016-04-28 | N34: =M34-TODAY() -> 60
A35: * | B35: B/Gy59500186-33150767 | C35: 104665 | E35: =$K35+SUMIF(bank!$I:$I,mérleg1!$B35,bank!$M:$M)-SUMIF(bank!$I:$I,mérleg1!$B35,bank!$N:$N) -> 104665 | K35: 104665 | L35: 2015-12-28 | M35: 2016-03-25 | N35: =M35-TODAY() -> 26
A36: * | B36: B/Gy59500186-33150781 | C36: 103498 | E36: =$K36+SUMIF(bank!$I:$I,mérleg1!$B36,bank!$M:$M)-SUMIF(bank!$I:$I,mérleg1!$B36,bank!$N:$N) -> 103498 | K36: 103464 | L36: 2016-02-25 | M36: 2016-03-25 | N36: 26
A37: * | B37: B/P59500186-33161925 | C37: 42185 | I37: =$K37+SUMIF(bank!$I:$I,mérleg1!$B37,bank!$M:$M)-SUMIF(bank!$I:$I,mérleg1!$B37,bank!$N:$N) -> 42185 | K37: 42127 | L37: 2016-01-15 | M37: 2016-04-15 | N37: =M37-TODAY() -> 47
A38: * | B38: B/M59500186-33217772 | C38: 155859 | H38: =$K38+SUMIF(bank!$I:$I,mérleg1!$B38,bank!$M:$M)-SUMIF(bank!$I:$I,mérleg1!$B38,bank!$N:$N) -> 155859 | K38: 155643 | L38: 2016-01-16 | M38: 2016-04-16 | N38: 48
A39: * | B39: B/M59500186-33263395 | C39: 1520837 | H39: =$K39+SUMIF(bank!$I:$I,mérleg1!$B39,bank!$M:$M)-SUMIF(bank!$I:$I,mérleg1!$B39,bank!$N:$N) -> 1520837 | K39: 1519497 | L39: 2016-02-17 | M39: 2016-05-17 | N39: 79
A40: * | B40: B/Mk59500186-33318787 | C40: 2203116 | G40: =$K40+SUMIF(bank!$I:$I,mérleg1!$B40,bank!$M:$M)-SUMIF(bank!$I:$I,mérleg1!$B40,bank!$N:$N) -> 2203116 | K40: 2203116 | L40: 2015-12-28 | M40: 2016-03-25 | N40: 26
A41: * | B41: B/M59500227-33331513 | C41: 500000 | H41: =$K41+SUMIF(bank!$I:$I,mérleg1!$B41,bank!$M:$M)-SUMIF(bank!$I:$I,mérleg1!$B41,bank!$N:$N) -> 500000 | K41: 500000 | L41: 2015-12-03 | M41: 2016-03-03 | N41: 4

Sheet bizonylatok
A1: Gyül.rész | B1: dátum | C1: sorszám
A2: M | B2: 2016-01-10 | C2: +BG455961
A3: M | B3: 2016-01-25 | C3: +BG455962
A4: M | B4: 2016-01-04 | C4: -PA3307558 | D4: új sorozat
A5: M | B5: 2016-02-02 | C5: -PA3307559

Sheet leltár
A1: A Vadosfai Evangélikus Egyházközség leltára | G1: leltárba vétel ideje | H1: selejtezés ideje | I1: =MAX(A:A)+1 -> 1021
A2: =mnap('Terv-segédlet'!A1,range("A:F")) -> 2016. február 28-án (évközi)
A4: Vadosfa - templom
A5: Vadosfa - templom
A6: Sor-szám | B6: Besorolás | C6: Megnevezés | D6: Darab | E6: Ár (darabonként) | F6: Megjegyzés
A7: 1 | B7: Ingatlan | C7: Templom | D7: 1 | E7: 178734000 | F7: 84-es helyrajzi számon, 1244 m2 területű, az épület 1912-ben épült templom körül 1912-ben épült beton alapon álló vas kerítés 1 kettős kapuval és 2 kiskapuval. | G7: 2014. | H7: 2000
A8: 2 | B8: Ingatlan | C8: Szántó | D8: 1 | E8: 14,08 aranykor. | F8: 039/3-as helyrajzi számú, 0,5395 ha területű | G8: 2014.
B9: A templom felszerelését képezi a 2000-ben teljesen felújított villamos hálózat annak minden szerelvényével együtt.
A10: Vadosfa templom - templomtér földszint
A11: Sor-szám | B11: Besorolás | C11: Megnevezés | D11: Darab | E11: Ár (darabonként) | F11: Megjegyzés
A12: 3 | B12: Értékes t. | C12: Keresztelő tál | D12: 1 | E12: 150000 | F12: Ón, keresztelő medencében, felirattal, átmérő: 40 cm, 1775 jún.15. | G12: 2014.
A13: 4 | B13: Értékes t. | C13: Pad | D13: 30 | E13: 60000 | F13: Fa, pácolt, 463 cm X 104 cm X 50 cm | G13: 2014.
A14: 5 | B14: Értékes t. | C14: Pad | D14: 14 | E14: 60000 | F14: Fa, pácolt, 376 cm X 104 cm X 50 cm | G14: 2014.
A15: 6 | B15: Értékes t. | C15: Pad | D15: 10 | E15: 60000 | F15: Fa, pácolt, 300 cm X 104 cm X 50 cm | G15: 2014.
A16: 7 | B16: Értékes t. | C16: Pad | D16: 6 | E16: 60000 | F16: Fa, pácolt, 360 cm X 104 cm X 50 cm | G16: 2014.
A17: 8 | B17: Értékes t. | C17: Pad | D17: 2 | E17: 50000 | F17: Fa, pácolt, 230 cm X 104 cm X 50 cm | G17: 2014.
A18: 9 | B18: Értékes t. | C18: Egyházfi pad | D18: 1 | E18: 50000 | F18: Fa, pácolt, 110 cm X 104 cm X 72 cm, előpaddal együtt | G18: 2014.
A19: 10 | B19: Értékes t. | C19: Hősi emléktábla | D19: 1 | E19: 100000 | F19: II. világháború áldozatainak emlékére 140 cm X 173 cm | G19: 2014.
A20: 11 | B20: Értékes t. | C20: Hősi emléktábla | D20: 1 | E20: 100000 | F20: I. világháború áldozatainak emlékére 127 cm X 183 cm | G20: 2014.
A21: 12 | B21: Értékes t. | C21: Szószékoltár oltárképpel | D21: 1 | E21: 1500000 | F21: 1912-ben készítették, az oltárképet 1889-ben kapta a gyülekezet (Ajkay) | G21: 2014.
A22: 13 | B22: Értékes t. | C22: Villanyóra | D22: 1 | E22: 150000 | F22: Főbejárat mögött biztosíték szekrénnyel | G22: 2014.
A23: 14 | B23: Értékes t. | C23: Csillár | D23: 1 | E23: 300000 | F23: 1912-ben készült öntöttvas csillár, 24 ágú, kötéllel 2000-ben villamosított | G23: 2014.
A24: 15 | B24: Értékes t. | C24: Keresztelő medence | D24: 1 | E24: 200000 | F24: Homokkő, 1734-ben készült, 100 cm magas, 60 cm átmérőjű | G24: 2014.
A25: 16 | B25: Értékes t. | C25: Feszület | D25: 1 | E25: 200000 | F25: Ezüst, 73,5 cm X 36,5 cm, egy ezüst szeg hiányzik | G25: 2014.
A26: 17 | B26: Értékes t. | C26: Gyertyatartó | D26: 2 | E26: 100000 | F26: Ezüstörött réz, 87 cm magas, Kisfaludi gyülekezet ajándéka 1912 | G26: 2014.
A27: 18 | B27: Értékes t. | C27: Csillár | D27: 1 | E27: 150000 | F27: 1734-ben készült réz, 6 karos, 2000-ben villamosítva | G27: 2014.
A28: 19 | B28: Értékes t. | C28: Csillár | D28: 1 | E28: 200000 | F28: 1734-ben készült réz, 12 karos, 2000-ben villamosítva | G28: 2014.
A29: 20 | B29: Egyéb t. | C29: Előpad | D29: 2 | F29: Fa, pácolt, 463 cm X 104 cm X 20 cm | G29: 2014.
A30: 21 | B30: Egyéb t. | C30: Előpad | D30: 2 | F30: Fa, pácolt, 376 cm X 104 cm X 20 cm | G30: 2014.
A31: 22 | B31: Egyéb t. | C31: Előpad | D31: 2 | F31: Fa, pácolt, 300 cm X 104 cm X 20 cm | G31: 2014.
A32: 23 | B32: Egyéb t. | C32: Előpad | D32: 2 | F32: Fa, pácolt, 230 cm X 104 cm X 20 cm | G32: 2014.
A33: 24 | B33: Egyéb t. | C33: Oltárkerítés | D33: 2 | F33: 1913-ban készült, ajtóval, 165 cm X 90 cm | G33: 2014.
A34: 25 | B34: Egyéb t. | C34: Oltárzsámoly | D34: 2 | F34: Fa, zöld bársonnyal kérpitozva, 152 cm X 25 cm X 25 cm | G34: 2014.
